Workbook

Sheet Summary
I1: Comparators | K1: Classificaton | M1: Brand | O1: Store
B2: Summary of Financial Results
K4: Analysis of Assumptions and Comparators
C5: IRR with Continuing Ownership | F5: ='Financial Model'!D241 -> 0.0852019155
C6: IRR with Sale in 5yrs and Multiple of | N6: ="R"&Graphs!K5&"C1" -> R122C1 | O6: =Graphs!K5 -> 122
C7: Canibalisation | E7: =Assumptions!$F$54 -> 0.1
C8: Canibalised Store | E8: =Assumptions!F19 -> Store 10 Argentina
C9: Row for Presentation

Sheet Store Database
B1: Address | C1: No | D1: Store | E1: Name of Store | F1: Total Sales | G1: Area of Store in Square Meters | H1: Brand Type | I1: Brand Type | J1: CLASSIFICATION | K1: Store Classification | L1: Average Inventory | M1: Store EBITDA | N1: Revenues | O1: Gross Margin | P1: Gross Margin Adjustments | Q1: Final Gross Margin | R1: Operating Expense | S1: Utilities Expense | T1: Lease Assesment | U1: Stock Loss | V1: Total Labour Cost | W1: Rental Expense | X1: Equipment and Containers - Operating Lease | Y1: Credit Card Commission | Z1: Other Expenses | AA1: Depreciation | AB1: Total Operating Income Before Tax | AC1: Other Wages | AD1: Repairs And Maintenance | AE1: Leasehold improvements at cost - Assets | AF1: Leasehold improvements - accumulated depreciation | AG1: Fixtures & fittings at cost - Assets | AH1: Fixtures & fittings - accumulated depreciation | AI1: Computer equipment & software at cost | AJ1: Computer equipment & software - accumulated depreciation | AK1: Machinery & vehicles at cost | AL1: Machinery & vehicles - accumulated depreciation | AM1: Establishment insurance | AN1: Cash Sales Amount | AO1: Cash Sales Percent | AP1: Credit Sales Amount | AQ1: Credit Sales Percent | AR1: Brand | AS1: Brand No | AT1: Gross Profit as Percent of Sales | AU1: Financial Adjustment as Percent of Sales | AV1: Financial GP as Precent of Sales | AW1: Manpower as Percent of Revenues | AX1: Manpower as Percent of m3 | AY1: Stock Loss as Percent of Revenues | AZ1: Stock Loss per m3 | BA1: Net Store Assets | BB1: Depreciation as Percent of Net Assets | BC1: Gross Plant Asset | BD1: Depreciation as Percent of Gross Assets | BE1: Depreciation as Percent of Sales | BF1: Reapirs and Maintenance per m3 | BG1: Reapirs and Maintenance as Pct of Revenues | BH1: Other Expenses with Casual Wage Light | BI1: Other Expenses as Percent of Sales | BJ1: Other Expenses per m3 | BK1: Basic Rent per m3 | BL1: Lease per m3 | BM1: Credit Sales % | BN1: Credit Sales % | BO1: Inventory as Percent of Sales | BP1: Net Investment Plus Stock | BQ1: Trading Profit | BR1: ROIC | BS1: Brand Switch | BT1: Brand Count | BU1: Row | BV1: Selected as Average | BW1: Selected Row | BX1: Classification Switch | BY1: Brand Test
B2: Argentina | C2: 1 | D2: ="Store "&C2 -> Store 1 | E2: =D2&" "&B2 -> Store 1 Argentina | F2: 18315021.22 | G2: 1400 | H2: Brand Type 2 | I2: Brand Type 2 | J2: Classification Type 2 | K2: Classification Type 2 | L2: 1356152.615 | M2: 621640.87 | N2: 7267971.44 | O2: 2300592.36 | P2: 4603.54 | Q2: 2305195.9 | R2: -1683555.03 | S2: -176243.6 | T2: -53800.7 | U2: -64493.33 | V2: -435145.99 | W2: -547813.48 | X2: -539.46 | Y2: -73335.14 | Z2: -15531.62 | AA2: -96523.71 | AB2: 525117.16 | AC2: -3825.36 | AD2: -18686.7 | AE2: -2801475.8 | AF2: 2764171.89 | AG2: -9918702 | AH2: 9689095.76 | AI2: -114189.84 | AJ2: 114189.84 | AK2: 0 | AL2: 0 | AM2: 0 | AN2: 5622440.81 | AO2: 0.6785890209 | AP2: 2663046.63 | AQ2: 0.3214109791 | AR2: =Comparatives!$D$3 -> Brand Type 15 | AS2: =BY2*1 -> 0 | AT2: =IF(N2,O2/N2) -> 0.3165384425 | AU2: =IF(N2,P2/N2) -> 0.000633400948 | AV2: =IF(N2,Q2/N2) -> 0.3171718435 | AW2: =IFERROR(-V2/N2,FALSE) -> 0.05987172536 | AX2: =IFERROR(-V2/G2,FALSE) -> 310.8185643 | AY2: =IFERROR(-U2/N2,FALSE) -> 0.008873635585 | AZ2: =IFERROR(-U2/G2,FALSE) -> 46.06666429 | BA2: =-SUM(AE2:AL2) -> 266910.15 | BB2: =IFERROR(-AA2/BA2,FALSE) -> 0.3616337183 | BC2: =-(AE2+AG2+AI2+AK2) -> 12834367.64 | BD2: =IFERROR(-AA2/BC2,FALSE) -> 0.007520721917 | BE2: =IFERROR(-AA2/N2,FALSE) -> 0.01328069473 | BF2: =IFERROR(-AD2/G2,FALSE) -> 13.34764286 | BG2: =IFERROR(-AD2/N2,FALSE) -> 0.002571102563 | BH2: =-(S2+Y2+Z2+AC2) -> 268935.72 | BI2: =IF(N2,BH2/N2) -> 0.03700285867 | BJ2: =IF(G2,BH2/G2) -> 192.0969429 | BK2: =IF(G2,-W2/G2) -> 391.2953429 | BL2: =IF(G2,-SUM(X2,T2)/G2) -> 38.8144 | BM2: =AQ2 -> 0.3214109791 | BN2: =IF(N2,-Y2/N2) -> 0.01009017999 | BO2: =IF(N2,L2/N2) -> 0.1865930028 | BP2: =BA2+L2 -> 1623062.765 | BQ2: =AB2 -> 525117.16 | BR2: =BQ2*(1-0.28)/BP2 -> 0.2329449996 | BS2: =I2=Comparatives!$D$3 -> FALSE | BT2: =BS2*1 -> 0 | BU2: =ROW() -> 2 | BV2: =NOT(ISNA(MATCH(BU2,Comparatives!$F:$F,0))) -> FALSE | BW2: =EU2='List Box etc'!$G$18 -> FALSE | BX2: =K2=Assumptions!$F$16 -> FALSE | BY2: =AR2=H2 -> FALSE
B3: Argentina | C3: 2 | D3: Store 2 | E3: Store 2 Argentina | F3: 47526424.41 | G3: 3089 | H3: Brand Type 2 | I3: Brand Type 2 | J3: Classification Type 4 | K3: Classification Type 4 | L3: 665988.4615 | M3: -1184775.31 | N3: 4131678.45 | O3: 226756.41 | P3: -30505.91 | Q3: 196250.5 | R3: -1401698.31 | S3: -279505.92 | T3: 0 | U3: 897.82 | V3: -422332.82 | W3: -327699 | X3: -9712.08 | Y3: -16405.07 | Z3: -19844.78 | AA3: -426268.83 | AB3: -1631716.64 | AC3: 0 | AD3: -59396.58 | AE3: -8870624.64 | AF3: 6289097.72 | AG3: -36714085.02 | AH3: 21826654.65 | AI3: 0 | AJ3: 0 | AK3: 0 | AL3: 0 | AM3: 0 | AN3: 4083867.91 | AO3: 0.8682629484 | AP3: 619624.18 | AQ3: 0.1317370516 | AR3: =Comparatives!$D$3 -> Brand Type 15 | AS3: =BY3+AS2 -> 0 | AT3: 0.05488239531 | AU3: -0.007383418233 | AV3: 0.04749897708 | AW3: 0.1022182208 | AX3: 136.7215345 | AY3: -0.0002173015182 | AZ3: -0.290650696 | BA3: 17468957.29 | BB3: 0.02440150393 | BC3: 45584709.66 | BD3: 0.009351136229 | BE3: 0.1031708627 | BF3: 19.22841696 | BG3: 0.01437589607 | BH3: 315755.77 | BI3: 0.07642312291 | BJ3: 102.219414 | BK3: 106.0857883 | BL3: 3.144085465 | BM3: 0.1317370516 | BN3: 0.003970558261 | BO3: 0.1611907775 | BP3: 18134945.75 | BQ3: -1631716.64 | BR3: =BQ3*(1-0.28)/BP3 -> -0.06478298843 | BS3: =I3=Comparatives!$D$3 -> FALSE | BT3: =BT2+BS3 -> 0 | BU3: =ROW() -> 3 | BV3: =NOT(ISNA(MATCH(BU3,Comparatives!$F:$F,0))) -> FALSE | BW3: =BU3='List Box etc'!$G$18 -> FALSE | BX3: =K3=Assumptions!$F$16 -> FALSE | BY3: FALSE
B4: Argentina | C4: 3 | D4: Store 3 | E4: Store 3 Argentina | F4: 19823558.85 | G4: 1548 | H4: Brand Type 2 | I4: Brand Type 2 | J4: Classification Type 6 | K4: Classification Type 6 | L4: 1491847.846 | M4: 1694800.55 | N4: 12794290.25 | O4: 4326302.76 | P4: 4521.6 | Q4: 4330824.36 | R4: -2636023.81 | S4: -96504.31 | T4: -69779.6 | U4: 67.61 | V4: -1089218.43 | W4: -1025838.85 | X4: -11979.18 | Y4: -179727.69 | Z4: -15914.58 | AA4: -38790 | AB4: 1656010.55 | AC4: 0 | AD4: -21298.25 | AE4: -547335.36 | AF4: 497330.82 | AG4: -3318107.54 | AH4: 1715671.46 | AI4: -1026797.04 | AJ4: 1026797.04 | AK4: 0 | AL4: 0 | AM4: 0 | AN4: 10578162.35 | AO4: 0.7253098453 | AP4: 4006173.46 | AQ4: 0.2746901547 | AR4: =Comparatives!$D$3 -> Brand Type 15 | AS4: =AS3+BY4 -> 0 | AT4: 0.3381432401 | AU4: 0.000353407646 | AV4: 0.3384966478 | AW4: 0.08513316555 | AX4: 703.6294767 | AY4: -5.28438848e-06 | AZ4: -0.04367571059 | BA4: 1652440.62 | BB4: 0.02347436848 | BC4: 4892239.94 | BD4: 0.00792888339 | BE4: 0.003031821167 | BF4: 13.75855943 | BG4: 0.001664668347 | BH4: 292146.58 | BI4: 0.02283413728 | BJ4: 188.7251809 | BK4: 662.6865956 | BL4: 52.81574935 | BM4: 0.2746901547 | BN4: 0.01404749201 | BO4: 0.1166026264 | BP4: 3144288.466 | BQ4: 1656010.55 | BR4: 0.3792042648 | BS4: =I4=Comparatives!$D$3 -> FALSE | BT4: =BT3+BS4 -> 0 | BU4: =ROW() -> 4 | BV4: =NOT(ISNA(MATCH(BU4,Comparatives!$F:$F,0))) -> FALSE | BW4: =BU4='List Box etc'!$G$18 -> FALSE | BX4: =K4=Assumptions!$F$16 -> FALSE | BY4: FALSE
B5: Argentina | C5: 4 | D5: Store 4 | E5: Store 4 Argentina | F5: 131422886 | G5: 6352 | H5: Brand Type 2 | I5: Brand Type 2 | J5: Classification Type 9 | K5: Classification Type 9 | L5: 7659322.538 | M5: 791174.23 | N5: 7138537.94 | O5: 2455138.72 | P5: 2429.71 | Q5: 2457568.43 | R5: -1666394.2 | S5: -123107.25 | T5: -39753.1 | U5: -78703.83 | V5: -595180.6 | W5: -609599.36 | X5: 0 | Y5: -108973.75 | Z5: -32795.74 | AA5: 1530.94 | AB5: 792705.17 | AC5: 0 | AD5: -13801.75 | AE5: -1149142.56 | AF5: 999041.59 | AG5: 747423.53 | AH5: -1101550.35 | AI5: -8520 | AJ5: 8520 | AK5: 0 | AL5: 0 | AM5: 0 | AN5: 6046853.36 | AO5: 0.743045335 | AP5: 2091079.92 | AQ5: 0.256954665 | AR5: =Comparatives!$D$3 -> Brand Type 15 | AS5: 0 | AT5: 0.3439273897 | AU5: 0.0003403652149 | AV5: 0.3442677549 | AW5: 0.08337570032 | AX5: 93.69971662 | AY5: 0.01102520301 | AZ5: 12.39040145 | BA5: 504227.79 | BB5: -0.003036207108 | BC5: 410239.03 | BD5: -0.003731824346 | BE5: -0.0002144612822 | BF5: 2.172819584 | BG5: 0.001933414113 | BH5: 264876.74 | BI5: 0.03710518067 | BJ5: 41.69973866 | BK5: 95.96967254 | BL5: 6.258359572 | BM5: 0.256954665 | BN5: 0.0152655559 | BO5: 1.072953958 | BP5: 8163550.328 | BQ5: 792705.17 | BR5: 0.06991415492 | BS5: =I5=Comparatives!$D$3 -> FALSE | BT5: 0 | BU5: =ROW() -> 5 | BV5: =NOT(ISNA(MATCH(BU5,Comparatives!$F:$F,0))) -> FALSE | BW5: =BU5='List Box etc'!$G$18 -> FALSE | BX5: =K5=Assumptions!$F$16 -> TRUE | BY5: FALSE
B6: Argentina | C6: 5 | D6: Store 5 | E6: Store 5 Argentina | F6: 8911328.61 | G6: 154 | H6: Brand Type 1 | I6: Brand Type 1 | J6: Classification Type 1 | K6: Classification Type 1 | L6: 10475505.46 | M6: 827745.75 | N6: 16480364.55 | O6: 5954901.96 | P6: 93244.45 | Q6: 6047795.41 | R6: -5204032.23 | S6: -472940.42 | T6: -138553.14 | U6: 61129.77 | V6: -1352579.56 | W6: -2242597.24 | X6: -20787.46 | Y6: -91382.45 | Z6: -50186.08 | AA6: -195420.04 | AB6: 632325.71 | AC6: -38444.38 | AD6: -220538.17 | AE6: -10400458.23 | AF6: 8204346.4 | AG6: -40847086.31 | AH6: 30367339.38 | AI6: -619586.4 | AJ6: 619586.4 | AK6: 0 | AL6: 0 | AM6: 0 | AN6: 10368978.05 | AO6: 0.5709681597 | AP6: 7791365.7 | AQ6: 0.4290318403 | AR6: =Comparatives!$D$3 -> Brand Type 15 | AS6: 0 | AT6: 0.3613331454 | AU6: 0.005657911857 | AV6: 0.3669697592 | AW6: 0.08207218693 | AX6: 8782.984156 | AY6: -0.003709248653 | AZ6: -396.9465584 | BA6: 12675858.76 | BB6: 0.01541671012 | BC6: 51867130.94 | BD6: 0.003767704835 | BE6: 0.01185774983 | BF6: 1432.066039 | BG6: 0.01338187449 | BH6: 652953.33 | BI6: 0.03962007806 | BJ6: 4239.956688 | BK6: 14562.31974 | BL6: 1034.679221 | BM6: 0.4290318403 | BN6: 0.00554492892 | BO6: 0.6356355425 | BP6: 23151364.22 | BQ6: 632325.71 | BR6: 0.01966512672 | BS6: =I6=Comparatives!$D$3 -> FALSE | BT6: 0 | BU6: =ROW() -> 6 | BV6: =NOT(ISNA(MATCH(BU6,Comparatives!$F:$F,0))) -> FALSE | BW6: =BU6='List Box etc'!$G$18 -> FALSE | BX6: =K6=Assumptions!$F$16 -> FALSE | BY6: FALSE
B7: Argentina | C7: 6 | D7: Store 6 | E7: Store 6 Argentina | F7: 28669594.69 | G7: 1476.5 | H7: Brand Type 13 | I7: Brand Type 13 | J7: Classification Type 17 | K7: Classification Type 17 | L7: 1984342.692 | M7: 16213261.06 | N7: 75443169.15 | O7: 31574855.54 | P7: 598812.54 | Q7: 32173668.08 | R7: -15934453.51 | S7: -1568935.33 | T7: -804086.52 | U7: -349993.18 | V7: -5627627.86 | W7: -5375051.52 | X7: -4609.46 | Y7: -532059.66 | Z7: -200481.04 | AA7: -1073715.54 | AB7: 15139545.52 | AC7: -90692.33 | AD7: -459286.39 | AE7: -8084203.25 | AF7: 3824037.34 | AG7: -130831199.2 | AH7: 75772452.71 | AI7: -9060 | AJ7: 9060 | AK7: 0 | AL7: 0 | AM7: 0 | AN7: 34534507.68 | AO7: 0.4007298239 | AP7: 51644522.73 | AQ7: 0.5992701761 | AR7: =Comparatives!$D$3 -> Brand Type 15 | AS7: 0 | AT7: 0.418525042 | AU7: 0.007937266511 | AV7: 0.4264623085 | AW7: 0.07459426643 | AX7: 3811.464856 | AY7: 0.004639163279 | AZ7: 237.0424517 | BA7: 59318912.39 | BB7: 0.0181007287 | BC7: 138924462.4 | BD7: 0.007728772321 | BE7: 0.01423211077 | BF7: 311.0642668 | BG7: 0.006087845927 | BH7: 2392168.36 | BI7: 0.03170821675 | BJ7: 1620.161436 | BK7: 3640.400623 | BL7: 547.7114663 | BM7: 0.5992701761 | BN7: 0.007052456385 | BO7: 0.02630248324 | BP7: 61303255.08 | BQ7: 15139545.52 | BR7: 0.1778122998 | BS7: =I7=Comparatives!$D$3 -> FALSE | BT7: 0 | BU7: =ROW() -> 7 | BV7: =NOT(ISNA(MATCH(BU7,Comparatives!$F:$F,0))) -> FALSE | BW7: =BU7='List Box etc'!$G$18 -> FALSE | BX7: =K7=Assumptions!$F$16 -> FALSE | BY7: FALSE
B8: Argentina | C8: 7 | D8: Store 7 | E8: Store 7 Argentina | F8: 12384767.85 | G8: 800 | H8: Brand Type 12 | I8: Brand Type 12 | J8: Classification Type 15 | K8: Classification Type 15 | L8: 426184.9231 | M8: 3659442.35 | N8: 22441506.23 | O8: 9593448.51 | P8: 134372.66 | Q8: 9727821.17 | R8: -6066817.6 | S8: -831778.54 | T8: -291892.13 | U8: -98900.29 | V8: -1455408.77 | W8: -2443557.69 | X8: -539.46 | Y8: -137510.79 | Z8: -45444.34 | AA8: -38456.1 | AB8: 3620986.25 | AC8: -26648.86 | AD8: -170043.63 | AE8: -15238396.17 | AF8: 15083921.98 | AG8: -102697665.5 | AH8: 100898672.9 | AI8: -15960 | AJ8: 15960 | AK8: 0 | AL8: 0 | AM8: 0 | AN8: 10888892.01 | AO8: 0.4306669679 | AP8: 14394895.28 | AQ8: 0.5693330321 | AR8: =Comparatives!$D$3 -> Brand Type 15 | AS8: 0 | AT8: 0.4274868367 | AU8: 0.005987684544 | AV8: 0.4334745213 | AW8: 0.0648534352 | AX8: 1819.260963 | AY8: 0.00440702549 | AZ8: 123.6253625 | BA8: 1953466.73 | BB8: 0.01968607881 | BC8: 117952021.6 | BD8: 0.0003260317159 | BE8: 0.001713614924 | BF8: 212.5545375 | BG8: 0.007577193271 | BH8: 1041382.53 | BI8: 0.04640430635 | BJ8: 1301.728162 | BK8: 3054.447113 | BL8: 365.5394875 | BM8: 0.5693330321 | BN8: 0.006127520523 | BO8: 0.01899092328 | BP8: 2379651.653 | BQ8: 3620986.25 | BR8: 1.095584766 | BS8: =I8=Comparatives!$D$3 -> FALSE | BT8: 0 | BU8: =ROW() -> 8 | BV8: =NOT(ISNA(MATCH(BU8,Comparatives!$F:$F,0))) -> FALSE | BW8: =BU8='List Box etc'!$G$18 -> FALSE | BX8: =K8=Assumptions!$F$16 -> FALSE | BY8: FALSE
B9: Argentina | C9: 8 | D9: Store 8 | E9: Store 8 Argentina | F9: 9662360.28 | G9: 4200 | H9: Brand Type 6 | I9: Brand Type 6 | J9: Classification Type 22 | K9: Classification Type 22 | L9: 3121578 | M9: 2234578.13 | N9: 24062231.28 | O9: 10119997.13 | P9: 185380.27 | Q9: 10305377.4 | R9: -8062005.62 | S9: -864928.37 | T9: -296696.42 | U9: -287897.93 | V9: -1634093.31 | W9: -3461386.95 | X9: -25477.53 | Y9: -183952.33 | Z9: -70252.65 | AA9: -445554.65 | AB9: 1789023.48 | AC9: -52586.75 | AD9: -680059.72 | AE9: -14322082.31 | AF9: 10237793.57 | AG9: -72510524.27 | AH9: 73143290.81 | AI9: -435708 | AJ9: 435708 | AK9: 0 | AL9: 0 | AM9: 0 | AN9: 14694276.48 | AO9: 0.5384902284 | AP9: 12593640.19 | AQ9: 0.4615097716 | AR9: =Comparatives!$D$3 -> Brand Type 15 | AS9: 0 | AT9: 0.4205760061 | AU9: 0.007704201154 | AV9: 0.4282802073 | AW9: 0.06791112973 | AX9: 389.0698357 | AY9: 0.01196472292 | AZ9: 68.54712619 | BA9: 3451522.2 | BB9: 0.1290893189 | BC9: 87268314.58 | BD9: 0.005105571846 | BE9: 0.01851676367 | BF9: 161.918981 | BG9: 0.02826253775 | BH9: 1171720.1 | BI9: 0.04869540511 | BJ9: 278.9809762 | BK9: 824.13975 | BL9: 76.70808333 | BM9: 0.4615097716 | BN9: 0.00764485753 | BO9: 0.1297293656 | BP9: 6573100.2 | BQ9: 1789023.48 | BR9: 0.1959648973 | BS9: =I9=Comparatives!$D$3 -> FALSE | BT9: 0 | BU9: =ROW() -> 9 | BV9: =NOT(ISNA(MATCH(BU9,Comparatives!$F:$F,0))) -> FALSE | BW9: =BU9='List Box etc'!$G$18 -> FALSE | BX9: =K9=Assumptions!$F$16 -> FALSE | BY9: FALSE
B10: Argentina | C10: 9 | D10: Store 9 | E10: Store 9 Argentina | F10: 12674105.31 | G10: 452 | H10: Brand Type 6 | I10: Brand Type 6 | J10: Classification Type 15 | K10: Classification Type 15 | L10: 324798.2308 | M10: 3520727.04 | N10: 31228904.96 | O10: 12561401.52 | P10: 93580.02 | Q10: 12654981.54 | R10: -9089155.71 | S10: -1063317.16 | T10: -461564.65 | U10: -543648.51 | V10: -2514500.78 | W10: -3031872.06 | X10: 0 | Y10: -239280.82 | Z10: -148920.31 | AA10: -203829.29 | AB10: 3316897.75 | AC10: -206172.86 | AD10: -280157.85 | AE10: -8954895.16 | AF10: 8781219.11 | AG10: -88548438.72 | AH10: 83870997.27 | AI10: -844834.68 | AJ10: 844834.68 | AK10: 0 | AL10: 0 | AM10: 0 | AN10: 14710595.83 | AO10: 0.4225005789 | AP10: 20107334.76 | AQ10: 0.5774994211 | AR10: =Comparatives!$D$3 -> Brand Type 15 | AS10: 0 | AT10: 0.4022363748 | AU10: 0.002996583458 | AV10: 0.4052329583 | AW10: 0.08051837819 | AX10: 5563.054823 | AY10: 0.01740850378 | AZ10: 1202.76219 | BA10: 4851117.5 | BB10: 0.0420169765 | BC10: 98348168.56 | BD10: 0.002072527562 | BE10: 0.006526943236 | BF10: 619.8182522 | BG10: 0.008971107068 | BH10: 1657691.15 | BI10: 0.05308194931 | BJ10: 3667.458296 | BK10: 6707.681549 | BL10: 1021.16073 | BM10: 0.5774994211 | BN10: 0.007662158513 | BO10: 0.01040056419 | BP10: 5175915.731 | BQ10: 3316897.75 | BR10: 0.4613997801 | BS10: =I10=Comparatives!$D$3 -> FALSE | BT10: 0 | BU10: =ROW() -> 10 | BV10: =NOT(ISNA(MATCH(BU10,Comparatives!$F:$F,0))) -> FALSE | BW10: =BU10='List Box etc'!$G$18 -> FALSE | BX10: =K10=Assumptions!$F$16 -> FALSE | BY10: FALSE
B11: Argentina | C11: 10 | D11: Store 10 | E11: Store 10 Argentina | F11: 11955225.25 | G11: 650 | H11: Brand Type 6 | I11: Brand Type 6 | J11: Classification Type 16 | K11: Classification Type 16 | L11: 780051.2308 | M11: -689015.19 | N11: 13042117.75 | O11: 5712516.42 | P11: 82524.24 | Q11: 5795040.66 | R11: -6465817.25 | S11: -897774.28 | T11: -75720.84 | U11: -435702.43 | V11: -1151244.98 | W11: -3051548.19 | X11: 0 | Y11: -124454.42 | Z11: -140033.99 | AA11: -538470.11 | AB11: -1227485.3 | AC11: -35127.77 | AD11: -143627.05 | AE11: -6566930.52 | AF11: 6423412.89 | AG11: -47567581.04 | AH11: 32732377.73 | AI11: -6240 | AJ11: 6240 | AK11: 0 | AL11: 0 | AM11: 0 | AN11: 7361842.29 | AO11: 0.5036698237 | AP11: 7254563.03 | AQ11: 0.4963301763 | AR11: =Comparatives!$D$3 -> Brand Type 15 | AS11: 0 | AT11: 0.4380052787 | AU11: 0.006327518397 | AV11: 0.4443327971 | AW11: 0.08827132235 | AX11: 1771.146123 | AY11: 0.03340733755 | AZ11: 670.3114308 | BA11: 14978720.94 | BB11: 0.03594900474 | BC11: 54140751.56 | BD11: 0.009945745016 | BE11: 0.04128701491 | BF11: 220.9646923 | BG11: 0.01101255584 | BH11: 1197390.46 | BI11: 0.09180951153 | BJ11: 1842.139169 | BK11: 4694.689523 | BL11: 116.4936 | BM11: 0.4963301763 | BN11: 0.009542500872 | BO11: 0.05981016624 | BP11: 15758772.17 | BQ11: -1227485.3 | BR11: -0.05608237789 | BS11: =I11=Comparatives!$D$3 -> FALSE | BT11: 0 | BU11: =ROW() -> 11 | BV11: =NOT(ISNA(MATCH(BU11,Comparatives!$F:$F,0))) -> FALSE | BW11: =BU11='List Box etc'!$G$18 -> FALSE | BX11: =K11=Assumptions!$F$16 -> FALSE | BY11: FALSE
B12: Argentina | C12: 11 | D12: Store 11 | E12: Store 11 Argentina | F12: 5573574.4 | G12: 650 | H12: Brand Type 12 | I12: Brand Type 12 | J12: Classification Type 16 | K12: Classification Type 16 | L12: 362101.8462 | M12: 6389088.14 | N12: 27979576.35 | O12: 11910569.23 | P12: 90117.75 | Q12: 12001525.98 | R12: -5606276.67 | S12: -284082.53 | T12: -285358.44 | U12: -309600.09 | V12: -1811239.88 | W12: -1643494.2 | X12: 0 | Y12: -274780.71 | Z12: -79025.05 | AA12: -624677.1 | AB12: 5764411.04 | AC12: -59258.2 | AD12: -135259.97 | AE12: -11377830.85 | AF12: 8282137.46 | AG12: -54667356.95 | AH12: 36775593.72 | AI12: -8520 | AJ12: 8520 | AK12: 0 | AL12: 0 | AM12: 0 | AN12: 12493537.14 | AO12: 0.3952373006 | AP12: 19116680.62 | AQ12: 0.6047626994 | AR12: =Comparatives!$D$3 -> Brand Type 15 | AS12: 0 | AT12: 0.4256879762 | AU12: 0.003220840404 | AV12: 0.4289388027 | AW12: 0.06473435685 | AX12: 2786.522892 | AY12: 0.01106521722 | AZ12: 476.3078308 | BA12: 20987456.62 | BB12: 0.02976430691 | BC12: 66053707.8 | BD12: 0.00945710878 | BE12: 0.0223261815 | BF12: 208.0922615 | BG12: 0.004834239386 | BH12: 697146.49 | BI12: 0.02491626325 | BJ12: 1072.533062 | BK12: 2528.452615 | BL12: 439.0129846 | BM12: 0.6047626994 | BN12: 0.009820760206 | BO12: 0.01294164864 | BP12: 21349558.47 | BQ12: 5764411.04 | BR12: 0.1944010203 | BS12: =I12=Comparatives!$D$3 -> FALSE | BT12: 0 | BU12: =ROW() -> 12 | BV12: =NOT(ISNA(MATCH(BU12,Comparatives!$F:$F,0))) -> FALSE | BW12: =BU12='List Box etc'!$G$18 -> FALSE | BX12: =K12=Assumptions!$F$16 -> FALSE | BY12: FALSE
B13: Argentina | C13: 12 | D13: Store 12 | E13: Store 12 Argentina | F13: 9442364.03 | G13: 650 | H13: Brand Type 12 | I13: Brand Type 12 | J13: Classification Type 18 | K13: Classification Type 18 | L13: 449797.2308 | M13: 10046442.08 | N13: 45204777.25 | O13: 19678745.5 | P13: 233703.84 | Q13: 19912449.34 | R13: -9866007.26 | S13: -1234362.56 | T13: -164517.35 | U13: -246716.5 | V13: -2763813.49 | W13: -4237304.4 | X13: -1939.46 | Y13: -327443.49 | Z13: -118932.49 | AA13: -85435.44 | AB13: 9961006.64 | AC13: -133516.85 | AD13: -265461.64 | AE13: -17958986.06 | AF13: 17744497.58 | AG13: -125357155.8 | AH13: 121544938.1 | AI13: -22800 | AJ13: 22800 | AK13: 0 | AL13: 0 | AM13: 0 | AN13: 23449093.9 | AO13: 0.453467356 | AP13: 28261560.88 | AQ13: 0.546532644 | AR13: =Comparatives!$D$3 -> Brand Type 15 | AS13: 0 | AT13: 0.4353244656 | AU13: 0.005169892525 | AV13: 0.4404943581 | AW13: 0.0611398542 | AX13: 4252.020754 | AY13: 0.005457752809 | AZ13: 379.5638462 | BA13: 4026706.17 | BB13: 0.02121720245 | BC13: 143338941.9 | BD13: 0.0005960378867 | BE13: 0.001889964849 | BF13: 408.4025231 | BG13: 0.005872424468 | BH13: 1814255.39 | BI13: 0.04013415175 | BJ13: 2791.162138 | BK13: 6518.929846 | BL13: 256.0874 | BM13: 0.546532644 | BN13: 0.007243559418 | BO13: 0.009950214516 | BP13: 4476503.401 | BQ13: 9961006.64 | BR13: 1.602126512 | BS13: =I13=Comparatives!$D$3 -> FALSE | BT13: 0 | BU13: =ROW() -> 13 | BV13: =NOT(ISNA(MATCH(BU13,Comparatives!$F:$F,0))) -> FALSE | BW13: =BU13='List Box etc'!$G$18 -> FALSE | BX13: =K13=Assumptions!$F$16 -> FALSE | BY13: FALSE
B14: Argentina | C14: 13 | D14: Store 13 | E14: Store 13 Argentina | F14: 15269749.31 | G14: 900 | H14: Brand Type 12 | I14: Brand Type 12 | J14: Classification Type 16 | K14: Classification Type 16 | L14: 78079.46154 | M14: 3229873.02 | N14: 16424851.91 | O14: 7195690.54 | P14: 105645.98 | Q14: 7301336.52 | R14: -4071463.5 | S14: -239352.25 | T14: -61916.27 | U14: -297931.73 | V14: -1266654.95 | W14: -1837805.57 | X14: 0 | Y14: -132230.97 | Z14: 9938.97 | AA14: -549110.23 | AB14: 2680762.79 | AC14: -30320.25 | AD14: -95055.02 | AE14: -16899770.97 | AF14: 14530866.88 | AG14: -36830639.06 | AH14: 25490838.33 | AI14: 0 | AJ14: 0 | AK14: 0 | AL14: 0 | AM14: 0 | AN14: 11585546.43 | AO14: 0.6220093288 | AP14: 7040454.65 | AQ14: 0.3779906712 | AR14: =Comparatives!$D$3 -> Brand Type 15 | AS14: 0 | AT14: 0.4380977423 | AU14: 0.006432081128 | AV14: 0.4445298235 | AW14: 0.07711819607 | AX14: 1407.394389 | AY14: 0.01813908166 | AZ14: 331.0352556 | BA14: 13708704.82 | BB14: 0.04005558783 | BC14: 53730410.03 | BD14: 0.01021972901 | BE14: 0.03343167007 | BF14: 105.6166889 | BG14: 0.005787268008 | BH14: 391964.5 | BI14: 0.02386411166 | BJ14: 435.5161111 | BK14: 2042.006189 | BL14: 68.79585556 | BM14: 0.3779906712 | BN14: 0.008050664367 | BO14: 0.004753739149 | BP14: 13786784.28 | BQ14: 2680762.79 | BR14: 0.1399999572 | BS14: =I14=Comparatives!$D$3 -> FALSE | BT14: 0 | BU14: =ROW() -> 14 | BV14: =NOT(ISNA(MATCH(BU14,Comparatives!$F:$F,0))) -> FALSE | BW14: =BU14='List Box etc'!$G$18 -> FALSE | BX14: =K14=Assumptions!$F$16 -> FALSE | BY14: FALSE
B15: Argentina | C15: 14 | D15: Store 14 | E15: Store 14 Argentina | F15: 13958288.16 | G15: 681 | H15: Brand Type 12 | I15: Brand Type 12 | J15: Classification Type 15 | K15: Classification Type 15 | L15: 386973.6923 | M15: 1356773.26 | N15: 18160632.17 | O15: 7461075.73 | P15: 115760.63 | Q15: 7576836.36 | R15: -6211662.62 | S15: -918222.24 | T15: -88196.04 | U15: -31642.33 | V15: -1650693.16 | W15: -2579842.62 | X15: 0 | Y15: -172051.73 | Z15: -70266.98 | AA15: -924789.19 | AB15: 431984.07 | AC15: -69052.13 | AD15: -171115.62 | AE15: -8786608.29 | AF15: 7222966.98 | AG15: -79086787.35 | AH15: 53458407.4 | AI15: 0 | AJ15: 0 | AK15: 0 | AL15: 0 | AM15: 0 | AN15: 12219164.1 | AO15: 0.6006953865 | AP15: 8122533.83 | AQ15: 0.3993046135 | AR15: =Comparatives!$D$3 -> Brand Type 15 | AS15: 0 | AT15: 0.410837886 | AU15: 0.006374262136 | AV15: 0.4172121482 | AW15: 0.09089403632 | AX15: 2423.925345 | AY15: 0.001742358399 | AZ15: 46.46450808 | BA15: 27192021.26 | BB15: 0.03400957881 | BC15: 87873395.64 | BD15: 0.01052410896 | BE15: 0.05092274219 | BF15: 251.2711013 | BG15: 0.009422338297 | BH15: 1229593.08 | BI15: 0.0677065131 | BJ15: 1805.569868 | BK15: 3788.315154 | BL15: 129.5096035 | BM15: 0.3993046135 | BN15: 0.00947388441 | BO15: 0.02130838226 | BP15: 27578994.95 | BQ15: 431984.07 | BR15: 0.0112777326 | BS15: =I15=Comparatives!$D$3 -> FALSE | BT15: 0 | BU15: =ROW() -> 15 | BV15: =NOT(ISNA(MATCH(BU15,Comparatives!$F:$F,0))) -> FALSE | BW15: =BU15='List Box etc'!$G$18 -> FALSE | BX15: =K15=Assumptions!$F$16 -> FALSE | BY15: FALSE
B16: Argentina | C16: 15 | D16: Store 15 | E16: Store 15 Argentina | F16: 3994197.65 | G16: 296 | H16: Brand Type 15 | I16: Brand Type 15 | J16: Classification Type 26 | K16: Classification Type 26 | L16: 2389756.077 | M16: 2237901.38 | N16: 10976633.98 | O16: 4551012.91 | P16: 102404.13 | Q16: 4654037.04 | R16: -2416135.66 | S16: -287751.06 | T16: -1682.5 | U16: 27508.13 | V16: -844569.43 | W16: -750183.62 | X16: 0 | Y16: -75864.16 | Z16: -51918.04 | AA16: -50260.56 | AB16: 2187640.82 | AC16: -23399.7 | AD16: -121475.7 | AE16: -840645.36 | AF16: 311865.52 | AG16: -4024399.52 | AH16: 1850660.52 | AI16: -10670.52 | AJ16: 10670.52 | AK16: 0 | AL16: 0 | AM16: 0 | AN16: 6063311.75 | AO16: 0.4906458894 | AP16: 6294504.51 | AQ16: 0.5093541106 | AR16: =Comparatives!$D$3 -> Brand Type 15 | AS16: 1 | AT16: 0.4146091523 | AU16: 0.009329283475 | AV16: 0.4239949194 | AW16: 0.07694247905 | AX16: 2853.275101 | AY16: -0.002506062428 | AZ16: -92.93287162 | BA16: 2702518.84 | BB16: 0.01859767238 | BC16: 4875715.4 | BD16: 0.01030834573 | BE16: 0.004578868175 | BF16: 410.3908784 | BG16: 0.01106675327 | BH16: 438932.96 | BI16: 0.03998793809 | BJ16: 1482.881622 | BK16: 2534.404122 | BL16: 5.684121622 | BM16: 0.5093541106 | BN16: 0.00691142295 | BO16: 0.2177130149 | BP16: 5092274.917 | BQ16: 2187640.82 | BR16: 0.3093119315 | BS16: =I16=Comparatives!$D$3 -> TRUE | BT16: 1 | BU16: =ROW() -> 16 | BV16: =NOT(ISNA(MATCH(BU16,Comparatives!$F:$F,0))) -> TRUE | BW16: =BU16='List Box etc'!$G$18 -> FALSE | BX16: =K16=Assumptions!$F$16 -> FALSE | BY16: TRUE
B17: Argentina | C17: 16 | D17: Store 16 | E17: Store 16 Argentina | F17: 4089023.67 | G17: 350 | H17: Brand Type 15 | I17: Brand Type 15 | J17: Classification Type 24 | K17: Classification Type 24 | L17: 1626512.462 | M17: 13866710.34 | N17: 68555301.88 | O17: 26002786.41 | P17: 649536.43 | Q17: 26652322.84 | R17: -12738909.75 | S17: -548029.76 | T17: -443606.16 | U17: -762187.58 | V17: -4942409.94 | W17: -4068666.59 | X17: -71530.49 | Y17: -290197.47 | Z17: -182556.79 | AA17: -1654657.88 | AB17: 12212052.46 | AC17: -452066.3 | AD17: -340495.47 | AE17: -4201392.04 | AF17: 2427179.64 | AG17: -157858439.6 | AH17: 99535071.57 | AI17: -11640 | AJ17: 11640 | AK17: 0 | AL17: 0 | AM17: 0 | AN17: 35012627.83 | AO17: 0.4640949619 | AP17: 40430181.73 | AQ17: 0.5359050381 | AR17: =Comparatives!$D$3 -> Brand Type 15 | AS17: 2 | AT17: 0.3792965051 | AU17: 0.009474634524 | AV17: 0.3887711396 | AW17: 0.0720937667 | AX17: 14121.17126 | AY17: 0.01111785025 | AZ17: 2177.6788 | BA17: 60097580.41 | BB17: 0.02753285355 | BC17: 162071471.6 | BD17: 0.0102094333 | BE17: 0.02413610377 | BF17: 972.8442 | BG17: 0.004966727017 | BH17: 1472850.32 | BI17: 0.02148411982 | BJ17: 4208.143771 | BK17: 11624.76169 | BL17: 1471.819 | BM17: 0.5359050381 | BN17: 0.004233041968 | BO17: 0.02372555319 | BP17: 61724092.87 | BQ17: 12212052.46 | BR17: 0.1424513081 | BS17: =I17=Comparatives!$D$3 -> TRUE | BT17: 2 | BU17: =ROW() -> 17 | BV17: =NOT(ISNA(MATCH(BU17,Comparatives!$F:$F,0))) -> FALSE | BW17: =BU17='List Box etc'!$G$18 -> FALSE | BX17: =K17=Assumptions!$F$16 -> FALSE | BY17: TRUE
B18: Argentina | C18: 17 | D18: Store 17 | E18: Store 17 Argentina | F18: 4223130.23 | G18: 370.43 | H18: Brand Type 15 | I18: Brand Type 15 | J18: Classification Type 24 | K18: Classification Type 24 | L18: 31675886.23 | M18: 2740078.69 | N18: 17777865.96 | O18: 7382479.42 | P18: 106844.25 | Q18: 7489567.09 | R18: -4749488.4 | S18: -789797.19 | T18: -23412.69 | U18: 121887.42 | V18: -1249701.06 | W18: -1970118.34 | X18: -19508.76 | Y18: -123953.33 | Z18: -61266.16 | AA18: -75857.68 | AB18: 2664221.01 | AC18: -84622.17 | AD18: -142824.45 | AE18: -9077400.76 | AF18: 8860424.57 | AG18: -101568287.2 | AH18: 97407817.53 | AI18: -47390.52 | AJ18: 47390.52 | AK18: 0 | AL18: 0 | AM18: 0 | AN18: 10264006.29 | AO18: 0.5083217212 | AP18: 9927942.75 | AQ18: 0.4916782788 | AR18: =Comparatives!$D$3 -> Brand Type 15 | AS18: 3 | AT18: 0.4152624076 | AU18: 0.006009959252 | AV18: 0.4212860591 | AW18: 0.07029533594 | AX18: 3373.649704 | AY18: -0.006856133367 | AZ18: -329.0430581 | BA18: 4377445.82 | BB18: 0.01732921048 | BC18: 110693078.4 | BD18: 0.0006852974104 | BE18: 0.004266973335 | BF18: 385.5639392 | BG18: 0.008033835463 | BH18: 1059638.85 | BI18: 0.05960438966 | BJ18: 2860.564344 | BK18: 5318.463245 | BL18: 115.86926 | BM18: 0.4916782788 | BN18: 0.006972340228 | BO18: 1.781759763 | BP18: 36053332.05 | BQ18: 2664221.01 | BR18: 0.05320559899 | BS18: =I18=Comparatives!$D$3 -> TRUE | BT18: 3 | BU18: =ROW() -> 18 | BV18: =NOT(ISNA(MATCH(BU18,Comparatives!$F:$F,0))) -> FALSE | BW18: =BU18='List Box etc'!$G$18 -> TRUE | BX18: =K18=Assumptions!$F$16 -> FALSE | BY18: TRUE
B19: Argentina | C19: 18 | D19: Store 18 | E19: Store 18 Argentina | F19: 6675557.91 | G19: 345.22 | H19: Brand Type 15 | I19: Brand Type 15 | J19: Classification Type 25 | K19: Classification Type 25 | L19: 3594320.385 | M19: 3213645.64 | N19: 25933855.38 | O19: 11040308.04 | P19: 179257.7 | Q19: 11219565.74 | R19: -8015038.16 | S19: -1464703.12 | T19: -182728.55 | U19: -173474.39 | V19: -1855757.78 | W19: -3478332.69 | X19: 0 | Y19: -215118.91 | Z19: -69390.2 | AA19: -104733.31 | AB19: 3108912.33 | AC19: -48972.47 | AD19: -213061.17 | AE19: -15075225.97 | AF19: 14611508.28 | AG19: -133287111.6 | AH19: 124883790 | AI19: -18960 | AJ19: 18960 | AK19: 0 | AL19: 0 | AM19: 0 | AN19: 12684410.14 | AO19: 0.43367189 | AP19: 16564453.88 | AQ19: 0.56632811 | AR19: =Comparatives!$D$3 -> Brand Type 15 | AS19: 4 | AT19: 0.4257102493 | AU19: 0.0069121115 | AV19: 0.4326223608 | AW19: 0.07155734282 | AX19: 5375.580152 | AY19: 0.006689109176 | AZ19: 502.5038816 | BA19: 8867039.28 | BB19: 0.01181153108 | BC19: 148381297.6 | BD19: 0.0007058390221 | BE19: 0.004038478216 | BF19: 617.1750478 | BG19: 0.008215560968 | BH19: 1798184.7 | BI19: 0.06933734586 | BJ19: 5208.808006 | BK19: 10075.69866 | BL19: 529.3104397 | BM19: 0.56632811 | BN19: 0.008294906671 | BO19: 0.1385956824 | BP19: 12461359.66 | BQ19: 3108912.33 | BR19: 0.179628623 | BS19: =I19=Comparatives!$D$3 -> TRUE | BT19: 4 | BU19: =ROW() -> 19 | BV19: =NOT(ISNA(MATCH(BU19,Comparatives!$F:$F,0))) -> TRUE | BW19: =BU19='List Box etc'!$G$18 -> FALSE | BX19: =K19=Assumptions!$F$16 -> FALSE | BY19: TRUE
B20: Argentina | C20: 19 | D20: Store 19 | E20: Store 19 Argentina | F20: 5371076.68 | G20: 85 | H20: Brand Type 17 | I20: Brand Type 17 | J20: Classification Type 32 | K20: Classification Type 32 | L20: 331330.3846 | M20: 395996.03 | N20: 9050091.95 | O20: 2955157.99 | P20: 4479.27 | Q20: 2959637.26 | R20: -2563641.23 | S20: -109452.52 | T20: -76561.7 | U20: -43903.25 | V20: -1024080.11 | W20: -971129.58 | X20: -22543.68 | Y20: -91003.54 | Z20: -9121.62 | AA20: -379749.24 | AB20: 16246.79 | AC20: -2472.86 | AD20: -25863.55 | AE20: -9989796.72 | AF20: 3045827.34 | AG20: -26476152.93 | AH20: 10022420.52 | AI20: 0 | AJ20: 0 | AK20: 0 | AL20: 0 | AM20: 0 | AN20: 6984833.19 | AO20: 0.677014855 | AP20: 3332271.58 | AQ20: 0.322985145 | AR20: =Comparatives!$D$3 -> Brand Type 15 | AS20: 4 | AT20: 0.3265334768 | AU20: 0.0004949419326 | AV20: 0.3270284188 | AW20: 0.1131568735 | AX20: 12048.00129 | AY20: 0.004851138557 | AZ20: 516.5088235 | BA20: 23397701.79 | BB20: 0.01623019403 | BC20: 36465949.65 | BD20: 0.01041380366 | BE20: 0.04196081566 | BF20: 304.2770588 | BG20: 0.002857821793 | BH20: 212050.54 | BI20: 0.02343076083 | BJ20: 2494.712235 | BK20: 11425.05388 | BL20: 1165.945647 | BM20: 0.322985145 | BN20: 0.01005553761 | BO20: 0.03661072025 | BP20: 23729032.17 | BQ20: 16246.79 | BR20: 0.0004929694862 | BS20: =I20=Comparatives!$D$3 -> FALSE | BT20: 4 | BU20: =ROW() -> 20 | BV20: =NOT(ISNA(MATCH(BU20,Comparatives!$F:$F,0))) -> FALSE | BW20: =BU20='List Box etc'!$G$18 -> FALSE | BX20: =K20=Assumptions!$F$16 -> FALSE | BY20: FALSE
B21: Argentina | C21: 20 | D21: Store 20 | E21: Store 20 Argentina | F21: 2811917.84 | G21: 427 | H21: Brand Type 29 | I21: Brand Type 29 | J21: Classification Type 35 | K21: Classification Type 35 | L21: 4955851.769 | M21: -761027.01 | N21: 9629548.05 | O21: 3318923.83 | P21: -5646.4 | Q21: 3313277.43 | R21: -4042567.34 | S21: -502653.49 | T21: -42502.08 | U21: -439221.07 | V21: -664631.26 | W21: -1604408.88 | X21: -22206.96 | Y21: -83696.25 | Z21: -43885.48 | AA21: -90381.54 | AB21: -851408.55 | AC21: -17433.05 | AD21: -134126.88 | AE21: -4083595.87 | AF21: 3160454.12 | AG21: -7122092.56 | AH21: 4506267.47 | AI21: -9960 | AJ21: 9960 | AK21: 0 | AL21: 0 | AM21: -76679.28 | AN21: 4883830.79 | AO21: 0.4516881066 | AP21: 5928565.46 | AQ21: 0.5483118934 | AR21: =Comparatives!$D$3 -> Brand Type 15 | AS21: 4 | AT21: 0.3446603945 | AU21: -0.0005863618906 | AV21: 0.3440740326 | AW21: 0.0690199848 | AX21: 1556.513489 | AY21: 0.04561180522 | AZ21: 1028.620773 | BA21: 3538966.84 | BB21: 0.0255389621 | BC21: 11215648.43 | BD21: 0.008058521142 | BE21: 0.009385854822 | BF21: 314.1144731 | BG21: 0.01392867862 | BH21: 647668.27 | BI21: 0.0672584286 | BJ21: 1516.787518 | BK21: 3757.397845 | BL21: 151.5434192 | BM21: 0.5483118934 | BN21: 0.008691607287 | BO21: 0.5146505052 | BP21: 8494818.609 | BQ21: -851408.55 | BR21: -0.07216330144 | BS21: =I21=Comparatives!$D$3 -> FALSE | BT21: 4 | BU21: =ROW() -> 21 | BV21: =NOT(ISNA(MATCH(BU21,Comparatives!$F:$F,0))) -> FALSE | BW21: =BU21='List Box etc'!$G$18 -> FALSE | BX21: =K21=Assumptions!$F$16 -> FALSE | BY21: FALSE
B22: Argentina | C22: 21 | D22: Store 21 | E22: Store 21 Argentina | F22: 12358848.71 | G22: 401 | H22: Brand Type 29 | I22: Brand Type 29 | J22: Classification Type 36 | K22: Classification Type 36 | L22: 1348220.769 | M22: 4769623.94 | N22: 44585401.25 | O22: 17888285.19 | P22: 298218.17 | Q22: 18186473.56 | R22: -13394633.25 | S22: -2278993.52 | T22: -560502.33 | U22: -212536.84 | V22: -3231780.41 | W22: -5019314.5 | X22: -4159.46 | Y22: -294856.66 | Z22: -109906.85 | AA22: -908480.56 | AB22: 3861143.38 | AC22: -111770.16 | AD22: -312375.98 | AE22: -11199426.92 | AF22: 7911934.84 | AG22: -127640932.5 | AH22: 84845923.64 | AI22: -8700 | AJ22: 8700 | AK22: 0 | AL22: 0 | AM22: 0 | AN22: 20109283.79 | AO22: 0.4036373659 | AP22: 29710890.18 | AQ22: 0.5963626341 | AR22: =Comparatives!$D$3 -> Brand Type 15 | AS22: 4 | AT22: 0.4012139554 | AU22: 0.006688695439 | AV22: 0.4079019825 | AW22: 0.07248517047 | AX22: 8059.302768 | AY22: 0.004766960351 | AZ22: 530.0170574 | BA22: 46082500.96 | BB22: 0.01971421995 | BC22: 138849059.4 | BD22: 0.006542936363 | BE22: 0.02037618894 | BF22: 778.9924688 | BG22: 0.007006239066 | BH22: 2795527.19 | BI22: 0.06270050536 | BJ22: 6971.389501 | BK22: 12516.99377 | BL22: 1408.13414 | BM22: 0.5963626341 | BN22: 0.006613300581 | BO22: 0.03023906327 | BP22: 47430721.73 | BQ22: 3861143.38 | BR22: 0.05861229035 | BS22: =I22=Comparatives!$D$3 -> FALSE | BT22: 4 | BU22: =ROW() -> 22 | BV22: =NOT(ISNA(MATCH(BU22,Comparatives!$F:$F,0))) -> FALSE | BW22: =BU22='List Box etc'!$G$18 -> FALSE | BX22: =K22=Assumptions!$F$16 -> FALSE | BY22: FALSE
B23: Argentina | C23: 22 | D23: Store 22 | E23: Store 22 Argentina | F23: 4072954.03 | G23: 243.85 | H23: Brand Type 29 | I23: Brand Type 29 | J23: Classification Type 35 | K23: Classification Type 35 | L23: 2978039.538 | M23: 1204233.19 | N23: 17674107.81 | O23: 6550371.39 | P23: -127647.26 | Q23: 6422724.13 | R23: -5218490.94 | S23: -263910.07 | T23: -397360.34 | U23: 77831.54 | V23: -1052904.86 | W23: -2870850.03 | X23: -16007.98 | Y23: -161281.93 | Z23: -34543.19 | AA23: -121959.7 | AB23: 1082273.49 | AC23: -68238.38 | AD23: -98928.53 | AE23: -6105926.54 | AF23: 6054995.25 | AG23: -35376143.85 | AH23: 28581129.58 | AI23: -126718.8 | AJ23: 126718.8 | AK23: -10298.88 | AL23: 10298.88 | AM23: 0 | AN23: 12525515.37 | AO23: 0.6216604686 | AP23: 7622967.61 | AQ23: 0.3783395314 | AR23: =Comparatives!$D$3 -> Brand Type 15 | AS23: 4 | AT23: 0.3706196353 | AU23: -0.007222274605 | AV23: 0.3633973607 | AW23: 0.05957329622 | AX23: 4317.838261 | AY23: -0.004403704042 | AZ23: -319.1779373 | BA23: 6845945.56 | BB23: 0.0178148802 | BC23: 41619088.07 | BD23: 0.00293037896 | BE23: 0.006900472788 | BF23: 405.6941973 | BG23: 0.005597370519 | BH23: 527973.57 | BI23: 0.02987271412 | BJ23: 2165.157146 | BK23: 11773.01632 | BL23: 1695.174575 | BM23: 0.3783395314 | BN23: 0.009125322293 | BO23: 0.1684973052 | BP23: 9823985.098 | BQ23: 1082273.49 | BR23: 0.07931983864 | BS23: =I23=Comparatives!$D$3 -> FALSE | BT23: 4 | BU23: =ROW() -> 23 | BV23: =NOT(ISNA(MATCH(BU23,Comparatives!$F:$F,0))) -> FALSE | BW23: =BU23='List Box etc'!$G$18 -> FALSE | BX23: =K23=Assumptions!$F$16 -> FALSE | BY23: FALSE
B24: Argentina | C24: 23 | D24: Store 23 | E24: Store 23 Argentina | F24: 7839705.5 | G24: 657.09 | H24: Brand Type 29 | I24: Brand Type 29 | J24: Classification Type 35 | K24: Classification Type 35 | L24: 2842220.385 | M24: 291601.85 | N24: 12323374.24 | O24: 4939452.58 | P24: 93404.64 | Q24: 5033229.22 | R24: -4739374.87 | S24: -371343.02 | T24: 0 | U24: -134456.32 | V24: -954300.12 | W24: -2881216.86 | X24: -6298 | Y24: -71238.77 | Z24: -38699.93 | AA24: -764225.13 | AB24: -472623.28 | AC24: -93328.5 | AD24: -200175.11 | AE24: -9596419.1 | AF24: 5011657.37 | AG24: -63637788.06 | AH24: 25284169.17 | AI24: -46464 | AJ24: 22843.62 | AK24: 0 | AL24: 0 | AM24: 0 | AN24: 7467372.79 | AO24: 0.5360612585 | AP24: 6462700.82 | AQ24: 0.4639387415 | AR24: =Comparatives!$D$3 -> Brand Type 15 | AS24: 4 | AT24: 0.4008198148 | AU24: 0.007579469566 | AV24: 0.4084294709 | AW24: 0.0774382163 | AX24: 1452.312651 | AY24: 0.01091067409 | AZ24: 204.6239024 | BA24: 42962001 | BB24: 0.01778839701 | BC24: 73280671.16 | BD24: 0.01042874087 | BE24: 0.06201427589 | BF24: 304.6388014 | BG24: 0.01624353088 | BH24: 574610.22 | BI24: 0.0466276694 | BJ24: 874.4771949 | BK24: 4384.813131 | BL24: 9.584683985 | BM24: 0.4639387415 | BN24: 0.005780784436 | BO24: 0.2306365391 | BP24: 45804221.38 | BQ24: -472623.28 | BR24: -0.007429200875 | BS24: =I24=Comparatives!$D$3 -> FALSE | BT24: 4 | BU24: =ROW() -> 24 | BV24: =NOT(ISNA(MATCH(BU24,Comparatives!$F:$F,0))) -> FALSE | BW24: =BU24='List Box etc'!$G$18 -> FALSE | BX24: =K24=Assumptions!$F$16 -> FALSE | BY24: FALSE
B25: Australia | C25: 24 | D25: Store 24 | E25: Store 24 Australia | F25: 4703492.09 | G25: 1476.5 | H25: Brand Type 2 | I25: Brand Type 2 | J25: Classification Type 2 | K25: Classification Type 2 | L25: 1395814.615 | M25: 16176088.4 | N25: 73833618.63 | O25: 31834130.7 | P25: 409786.4 | Q25: 32243917.1 | R25: -16055188.57 | S25: -978987.57 | T25: -1525467 | U25: -858928.61 | V25: -4919429.6 | W25: -5800015.44 | X25: -2759.46 | Y25: -508075.51 | Z25: -293155.56 | AA25: -1426648.16 | AB25: 14749440.24 | AC25: -80292.07 | AD25: -458445.78 | AE25: -19098509.28 | AF25: 11919960.93 | AG25: -133300252 | AH25: 54306773.31 | AI25: -62400 | AJ25: 52347.06 | AK25: 0 | AL25: 0 | AM25: 0 | AN25: 40038263.82 | AO25: 0.475017728 | AP25: 44249672.1 | AQ25: 0.524982272 | AR25: =Comparatives!$D$3 -> Brand Type 15 | AS25: 4 | AT25: 0.4311603751 | AU25: 0.005550132956 | AV25: 0.436710508 | AW25: 0.06662858588 | AX25: 3331.818219 | AY25: 0.01163329965 | AZ25: 581.7328886 | BA25: 86182079.96 | BB25: 0.01655388406 | BC25: 152461161.3 | BD25: 0.00935745306 | BE25: 0.01932247378 | BF25: 310.4949407 | BG25: 0.006209173931 | BH25: 1860510.71 | BI25: 0.02519869329 | BJ25: 1260.081754 | BK25: 3928.219059 | BL25: 1035.033159 | BM25: 0.524982272 | BN25: 0.006881357293 | BO25: 0.01890486531 | BP25: 87577894.58 | BQ25: 14749440.24 | BR25: 0.121258875 | BS25: =I25=Comparatives!$D$3 -> FALSE | BT25: 4 | BU25: =ROW() -> 25 | BV25: =NOT(ISNA(MATCH(BU25,Comparatives!$F:$F,0))) -> FALSE | BW25: =BU25='List Box etc'!$G$18 -> FALSE | BX25: =K25=Assumptions!$F$16 -> FALSE | BY25: FALSE
B26: Australia | C26: 25 | D26: Store 25 | E26: Store 25 Australia | F26: 10091777.23 | G26: 1035.21 | H26: Brand Type 2 | I26: Brand Type 2 | J26: Classification Type 5 | K26: Classification Type 5 | L26: 2349848.769 | M26: 498002.49 | N26: 5746642.26 | O26: 1991176.67 | P26: 3299.85 | Q26: 1994476.52 | R26: -1492932.18 | S26: -141142.82 | T26: -12998.62 | U26: 20837.57 | V26: -579772.45 | W26: -569169.32 | X26: -10113.7 | Y26: -66702.55 | Z26: -5277.63 | AA26: -104942.86 | AB26: 393059.63 | AC26: 484.52 | AD26: -15040.96 | AE26: -2759077.92 | AF26: 2679947 | AG26: -8208008.53 | AH26: 6245212.74 | AI26: -598644 | AJ26: 598644 | AK26: 0 | AL26: 0 | AM26: 0 | AN26: 4700433.56 | AO26: 0.7174950422 | AP26: 1850738.62 | AQ26: 0.2825049578 | AR26: =Comparatives!$D$3 -> Brand Type 15 | AS26: 4 | AT26: 0.3464939316 | AU26: 0.0005742222764 | AV26: 0.3470681538 | AW26: 0.1008889059 | AX26: 560.0529844 | AY26: -0.003626042662 | AZ26: -20.12883376 | BA26: 2041926.71 | BB26: 0.05139403853 | BC26: 11565730.45 | BD26: 0.009073604167 | BE26: 0.01826159612 | BF26: 14.52938051 | BG26: 0.002617347543 | BH26: 212638.48 | BI26: 0.03700221284 | BJ26: 205.4061302 | BK26: 549.8104926 | BL26: 22.326214 | BM26: 0.2825049578 | BN26: 0.01160722157 | BO26: 0.408908135 | BP26: 4391775.479 | BQ26: 393059.63 | BR26: 0.06443929908 | BS26: =I26=Comparatives!$D$3 -> FALSE | BT26: 4 | BU26: =ROW() -> 26 | BV26: =NOT(ISNA(MATCH(BU26,Comparatives!$F:$F,0))) -> FALSE | BW26: =BU26='List Box etc'!$G$18 -> FALSE | BX26: =K26=Assumptions!$F$16 -> FALSE | BY26: FALSE
B27: Australia | C27: 26 | D27: Store 26 | E27: Store 26 Australia | F27: 11068216.31 | G27: 714 | H27: Brand Type 4 | I27: Brand Type 4 | J27: Classification Type 7 | K27: Classification Type 7 | L27: 1672002.154 | M27: 6086748.69 | N27: 43864264.61 | O27: 16389376.42 | P27: 273853.31 | Q27: 16663229.73 | R27: -10576481.04 | S27: -1131710.18 | T27: -517144.2 | U27: -260295.93 | V27: -3592415.54 | W27: -3359709.57 | X27: -4440 | Y27: -243359.22 | Z27: -120414.8 | AA27: -750567.94 | AB27: 5336180.75 | AC27: -111915.03 | AD27: -319917.6 | AE27: -5618229.27 | AF27: 3621302.35 | AG27: -92728825.12 | AH27: 56087264.5 | AI27: -9600 | AJ27: 9600 | AK27: 0 | AL27: 0 | AM27: 0 | AN27: 21293263.07 | AO27: 0.4420015369 | AP27: 26881372.74 | AQ27: 0.5579984631 | AR27: =Comparatives!$D$3 -> Brand Type 15 | AS27: 4 | AT27: 0.3736384632 | AU27: 0.006243198477 | AV27: 0.3798816617 | AW27: 0.08189845588 | AX27: 5031.394314 | AY27: 0.005934122738 | AZ27: 364.5601261 | BA27: 38638487.54 | BB27: 0.01942539648 | BC27: 98356654.39 | BD27: 0.007631084492 | BE27: 0.01711114837 | BF27: 448.0638655 | BG27: 0.007293353778 | BH27: 1607399.23 | BI27: 0.03664484619 | BJ27: 2251.259426 | BK27: 4705.475588 | BL27: 730.510084 | BM27: 0.5579984631 | BN27: 0.005548006382 | BO27: 0.03811763787 | BP27: 40310489.69 | BQ27: 5336180.75 | BR27: 0.09531142314 | BS27: =I27=Comparatives!$D$3 -> FALSE | BT27: 4 | BU27: =ROW() -> 27 | BV27: =NOT(ISNA(MATCH(BU27,Comparatives!$F:$F,0))) -> FALSE | BW27: =BU27='List Box etc'!$G$18 -> FALSE | BX27: =K27=Assumptions!$F$16 -> FALSE | BY27: FALSE
B28: Australia | C28: 27 | D28: Store 27 | E28: Store 27 Australia | F28: 110814731.1 | G28: 11499 | H28: Brand Type 2 | I28: Brand Type 2 | J28: Classification Type 3 | K28: Classification Type 3 | L28: 1109251.692 | M28: -476441.99 | N28: 17079812.33 | O28: 5965898.38 | P28: 50944.88 | Q28: 6016843.26 | R28: -6471882.63 | S28: -1000516.37 | T28: -608542.44 | U28: -235068.63 | V28: -2053506.46 | W28: -2527449.48 | X28: -26267.97 | Y28: -123771.24 | Z28: -57026.21 | AA28: 207790.03 | AB28: -268651.96 | AC28: -92264.35 | AD28: -235915.53 | AE28: -17954089.25 | AF28: 10485212.59 | AG28: 11271236.04 | AH28: 745241.94 | AI28: -1457880 | AJ28: 1457880 | AK28: 0 | AL28: 0 | AM28: 0 | AN28: 10815145.72 | AO28: 0.5596537877 | AP28: 8509561.73 | AQ28: 0.4403462123 | AR28: =Comparatives!$D$3 -> Brand Type 15 | AS28: 4 | AT28: 0.3492953122 | AU28: 0.002982754085 | AV28: 0.3522780663 | AW28: 0.1202300365 | AX28: 178.5813079 | AY28: 0.01376295157 | AZ28: 20.44252805 | BA28: -4547601.32 | BB28: 0.0456922266 | BC28: 8140733.21 | BD28: -0.02552473157 | BE28: -0.0121658263 | BF28: 20.51617793 | BG28: 0.01381253643 | BH28: 1273578.17 | BI28: 0.07456628594 | BJ28: 110.7555587 | BK28: 219.7973285 | BL28: 55.20570571 | BM28: 0.4403462123 | BN28: 0.007246639343 | BO28: 0.06494519207 | BP28: -3438349.628 | BQ28: -268651.96 | BR28: 0.05625646957 | BS28: =I28=Comparatives!$D$3 -> FALSE | BT28: 4 | BU28: =ROW() -> 28 | BV28: =NOT(ISNA(MATCH(BU28,Comparatives!$F:$F,0))) -> FALSE | BW28: =BU28='List Box etc'!$G$18 -> FALSE | BX28: =K28=Assumptions!$F$16 -> FALSE | BY28: FALSE
B29: Australia | C29: 28 | D29: Store 28 | E29: Store 28 Australia | F29: 13752970.47 | G29: 167.7 | H29: Brand Type 1 | I29: Brand Type 1 | J29: Classification Type 1 | K29: Classification Type 1 | L29: 41363962.62 | M29: 31076814.52 | N29: 102302302.8 | O29: 45379839.69 | P29: 787053.09 | Q29: 46163707.78 | R29: -15074262.32 | S29: -1044108.13 | T29: -527036.3 | U29: -430040.18 | V29: -5705749.54 | W29: -5445528.84 | X29: -5440.82 | Y29: -599741.82 | Z29: -71810.8 | AA29: -1871875.05 | AB29: 29204939.47 | AC29: -85902.77 | AD29: -327580.86 | AE29: -4776666.54 | AF29: 2456145.96 | AG29: -203827998.3 | AH29: 125889447.5 | AI29: -16560 | AJ29: 16560 | AK29: 0 | AL29: 0 | AM29: 0 | AN29: 59522838.06 | AO29: 0.5120236301 | AP29: 56727339.78 | AQ29: 0.4879763699 | AR29: =Comparatives!$D$3 -> Brand Type 15 | AS29: 4 | AT29: 0.4435857105 | AU29: 0.00769340541 | AV29: 0.4512479827 | AW29: 0.05577342232 | AX29: 34023.55122 | AY29: 0.004203621699 | AZ29: 2564.342159 | BA29: 80259071.44 | BB29: 0.02332290938 | BC29: 208621224.9 | BD29: 0.008972601187 | BE29: 0.01829748694 | BF29: 1953.37424 | BG29: 0.003202086864 | BH29: 1801563.52 | BI29: 0.01761019518 | BJ29: 10742.77591 | BK29: 32471.84758 | BL29: 3175.176625 | BM29: 0.4879763699 | BN29: 0.005862446919 | BO29: 0.4043307088 | BP29: 121623034.1 | BQ29: 29204939.47 | BR29: 0.1728912338 | BS29: =I29=Comparatives!$D$3 -> FALSE | BT29: 4 | BU29: =ROW() -> 29 | BV29: =NOT(ISNA(MATCH(BU29,Comparatives!$F:$F,0))) -> FALSE | BW29: =BU29='List Box etc'!$G$18 -> FALSE | BX29: =K29=Assumptions!$F$16 -> FALSE | BY29: FALSE
B30: Australia | C30: 29 | D30: Store 29 | E30: Store 29 Australia | F30: 28185161.59 | G30: 2412.65 | H30: Brand Type 2 | I30: Brand Type 2 | J30: Classification Type 5 | K30: Classification Type 5 | L30: 7001627.538 | M30: 19590682.83 | N30: 94768924.19 | O30: 40083323.28 | P30: 1074836.56 | Q30: 41158159.84 | R30: -21558337.96 | S30: -2356624.08 | T30: -546026.65 | U30: -479331.71 | V30: -8489905.68 | W30: -6441300 | X30: -131828.71 | Y30: -706794.35 | Z30: -243543.16 | AA30: -3439404.42 | AB30: 16151278.41 | AC30: -201604.96 | AD30: -543732.62 | AE30: -55335724.8 | AF30: 10350221.58 | AG30: -269449385.9 | AH30: 39678946.32 | AI30: 0 | AJ30: 0 | AK30: 0 | AL30: 0 | AM30: 0 | AN30: 62039149.86 | AO30: 0.5405682151 | AP30: 52727401.57 | AQ30: 0.4594317849 | AR30: =Comparatives!$D$3 -> Brand Type 15 | AS30: 4 | AT30: 0.4229585133 | AU30: 0.01134165624 | AV30: 0.4343001695 | AW30: 0.08958533351 | AX30: 3518.913096 | AY30: 0.005057899666 | AZ30: 198.6743664 | BA30: 274755942.8 | BB30: 0.01251803468 | BC30: 324785110.7 | BD30: 0.01058978477 | BE30: 0.03629253418 | BF30: 225.3673844 | BG30: 0.005737456921 | BH30: 3508566.55 | BI30: 0.03702233174 | BJ30: 1454.237685 | BK30: 2669.802914 | BL30: 280.9588461 | BM30: 0.4594317849 | BN30: 0.007458081392 | BO30: 0.07388104907 | BP30: 281757570.3 | BQ30: 16151278.41 | BR30: 0.04127278796 | BS30: =I30=Comparatives!$D$3 -> FALSE | BT30: 4 | BU30: =ROW() -> 30 | BV30: =NOT(ISNA(MATCH(BU30,Comparatives!$F:$F,0))) -> FALSE | BW30: =BU30='List Box etc'!$G$18 -> FALSE | BX30: =K30=Assumptions!$F$16 -> FALSE | BY30: FALSE
B31: Australia | C31: 30 | D31: Store 30 | E31: Store 30 Australia | F31: 14622129.7 | G31: 907 | H31: Brand Type 12 | I31: Brand Type 12 | J31: Classification Type 18 | K31: Classification Type 18 | L31: 1731073.077 | M31: 11581854.47 | N31: 70899949.06 | O31: 30175237.92 | P31: 556970.91 | Q31: 30732208.83 | R31: -19158267.58 | S31: -2470315.87 | T31: -1072556.34 | U31: -384848.91 | V31: -6138364.74 | W31: -6766045.88 | X31: -33859.46 | Y31: -454945.7 | Z31: -157225.02 | AA31: -2436353.53 | AB31: 9145500.94 | AC31: -136360 | AD31: -486939.86 | AE31: -10336339.32 | AF31: 4920093.66 | AG31: -229118911.2 | AH31: 160035322.2 | AI31: -729817.68 | AJ31: 729817.68 | AK31: 0 | AL31: 0 | AM31: 0 | AN31: 37159823.45 | AO31: 0.4656955407 | AP31: 42634420.22 | AQ31: 0.5343044593 | AR31: =Comparatives!$D$3 -> Brand Type 15 | AS31: 4 | AT31: 0.4256030973 | AU31: 0.00785573075 | AV31: 0.4334588281 | AW31: 0.08657784415 | AX31: 6767.767078 | AY31: 0.005428056227 | AZ31: 424.3097133 | BA31: 74499834.72 | BB31: 0.0327028045 | BC31: 240185068.2 | BD31: 0.01014365109 | BE31: 0.03436326207 | BF31: 536.8686439 | BG31: 0.006867986035 | BH31: 3218846.59 | BI31: 0.04539984348 | BJ31: 3548.893705 | BK31: 7459.808026 | BL31: 1219.863065 | BM31: 0.5343044593 | BN31: 0.006416728165 | BO31: 0.02441571679 | BP31: 76230907.8 | BQ31: 9145500.94 | BR31: 0.08637914551 | BS31: =I31=Comparatives!$D$3 -> FALSE | BT31: 4 | BU31: =ROW() -> 31 | BV31: =NOT(ISNA(MATCH(BU31,Comparatives!$F:$F,0))) -> FALSE | BW31: =BU31='List Box etc'!$G$18 -> FALSE | BX31: =K31=Assumptions!$F$16 -> FALSE | BY31: FALSE
B32: Australia | C32: 31 | D32: Store 31 | E32: Store 31 Australia | F32: 19217844.78 | G32: 1064 | H32: Brand Type 13 | I32: Brand Type 13 | J32: Classification Type 20 | K32: Classification Type 20 | L32: 313478.9231 | M32: 1575125.3 | N32: 10290645.23 | O32: 3830206.63 | P32: -63859.23 | Q32: 3766347.4 | R32: -2191222.1 | S32: -129549.21 | T32: -9988.23 | U32: -51201.6 | V32: -757696.17 | W32: -745256.04 | X32: -25333.21 | Y32: -103151.34 | Z32: -64972.46 | AA32: -441656.35 | AB32: 1133468.95 | AC32: -102729.54 | AD32: -45498.29 | AE32: -11678741.16 | AF32: 5006863.87 | AG32: -51586511.57 | AH32: 28562003.55 | AI32: -219862.92 | AJ32: 219862.92 | AK32: 0 | AL32: 0 | AM32: 0 | AN32: 7421499.53 | AO32: 0.6326458589 | AP32: 4309391.34 | AQ32: 0.3673541411 | AR32: =Comparatives!$D$3 -> Brand Type 15 | AS32: 4 | AT32: 0.3722027671 | AU32: -0.00620556132 | AV32: 0.3659972058 | AW32: 0.07362960758 | AX32: 712.1204605 | AY32: 0.004975548069 | AZ32: 48.12180451 | BA32: 29696385.31 | BB32: 0.01487239425 | BC32: 63485115.65 | BD32: 0.00695684879 | BE32: 0.04291823692 | BF32: 42.76155075 | BG32: 0.004421325289 | BH32: 400402.55 | BI32: 0.03890937264 | BJ32: 376.3181861 | BK32: 700.428609 | BL32: 33.19684211 | BM32: 0.3673541411 | BN32: 0.01002379712 | BO32: 0.03046251387 | BP32: 30009864.23 | BQ32: 1133468.95 | BR32: 0.0271943131 | BS32: =I32=Comparatives!$D$3 -> FALSE | BT32: 4 | BU32: =ROW() -> 32 | BV32: =NOT(ISNA(MATCH(BU32,Comparatives!$F:$F,0))) -> FALSE | BW32: =BU32='List Box etc'!$G$18 -> FALSE | BX32: =K32=Assumptions!$F$16 -> FALSE | BY32: FALSE
B33: Australia | C33: 32 | D33: Store 32 | E33: Store 32 Australia | F33: 1093049.41 | G33: 350 | H33: Brand Type 12 | I33: Brand Type 12 | J33: Classification Type 16 | K33: Classification Type 16 | L33: 1705557.385 | M33: 6843051.32 | N33: 31397250.1 | O33: 13897573.4 | P33: 318532.68 | Q33: 14216106.08 | R33: -7363659.93 | S33: -1141402.72 | T33: -614623.76 | U33: 210140.07 | V33: -2579149.48 | W33: -2179699.63 | X33: 0 | Y33: -307748.21 | Z33: -103784.5 | AA33: -414476.24 | AB33: 6428575.08 | AC33: -50360.45 | AD33: -225000.35 | AE33: -14886822.54 | AF33: 11651366.32 | AG33: 2835194.73 | AH33: -15824427.54 | AI33: -511848 | AJ33: 511848 | AK33: 0 | AL33: 0 | AM33: 0 | AN33: 21997245.45 | AO33: 0.6123923476 | AP33: 13922937.97 | AQ33: 0.3876076524 | AR33: =Comparatives!$D$3 -> Brand Type 15 | AS33: 4 | AT33: 0.4426366435 | AU33: 0.01014524135 | AV33: 0.4527818849 | AW33: 0.0821457125 | AX33: 7368.998514 | AY33: -0.006692945061 | AZ33: -600.4002 | BA33: 16224689.03 | BB33: 0.02554602059 | BC33: 12563475.81 | BD33: 0.03299057094 | BE33: 0.01320103635 | BF33: 642.8581429 | BG33: 0.007166243836 | BH33: 1603295.88 | BI33: 0.05106485042 | BJ33: 4580.845371 | BK33: 6227.713229 | BL33: 1756.067886 | BM33: 0.3876076524 | BN33: 0.009801756811 | BO33: 0.05432187148 | BP33: 17930246.41 | BQ33: 6428575.08 | BR33: 0.2581433601 | BS33: =I33=Comparatives!$D$3 -> FALSE | BT33: 4 | BU33: =ROW() -> 33 | BV33: =NOT(ISNA(MATCH(BU33,Comparatives!$F:$F,0))) -> FALSE | BW33: =BU33='List Box etc'!$G$18 -> FALSE | BX33: =K33=Assumptions!$F$16 -> FALSE | BY33: FALSE
B34: Australia | C34: 33 | D34: Store 33 | E34: Store 33 Australia | F34: 38785075.17 | G34: 1575.39 | H34: Brand Type 12 | I34: Brand Type 12 | J34: Classification Type 16 | K34: Classification Type 16 | L34: 371301.0769 | M34: 21209899.29 | N34: 268565575.4 | O34: 109809848.3 | P34: 3435634.22 | Q34: 113245482.5 | R34: -92024315.81 | S34: -3646493.63 | T34: -4338756.49 | U34: -3489036.92 | V34: -26848359 | W34: -44478044.77 | X34: -238074.04 | Y34: -1809057.75 | Z34: -682695.83 | AA34: -3812521.22 | AB34: 17397378.07 | AC34: -917714.36 | AD34: -1152778.35 | AE34: -130442267.9 | AF34: 23424338.18 | AG34: -612378543.5 | AH34: 213661699.1 | AI34: -2260369.68 | AJ34: 1850247.28 | AK34: 0 | AL34: 0 | AM34: 0 | AN34: 198564926.9 | AO34: 0.6181582873 | AP34: 122655270.2 | AQ34: 0.3818417127 | AR34: =Comparatives!$D$3 -> Brand Type 15 | AS34: 4 | AT34: 0.4088753672 | AU34: 0.01279253387 | AV34: 0.4216679011 | AW34: 0.09996947287 | AX34: 17042.35713 | AY34: 0.01299137805 | AZ34: 2214.713131 | BA34: 506144896.5 | BB34: 0.007532469944 | BC34: 745081181 | BD34: 0.005116920568 | BE34: 0.01419586712 | BF34: 731.7415688 | BG34: 0.004292353361 | BH34: 7055961.57 | BI34: 0.02627276992 | BJ34: 4478.866547 | BK34: 28233.03739 | BL34: 2905.204762 | BM34: 0.3818417127 | BN34: 0.006736000128 | BO34: 0.001382534141 | BP34: 506516197.5 | BQ34: 17397378.07 | BR34: 0.02472993415 | BS34: =I34=Comparatives!$D$3 -> FALSE | BT34: 4 | BU34: =ROW() -> 34 | BV34: =NOT(ISNA(MATCH(BU34,Comparatives!$F:$F,0))) -> FALSE | BW34: =BU34='List Box etc'!$G$18 -> FALSE | BX34: =K34=Assumptions!$F$16 -> FALSE | BY34: FALSE
B35: Australia | C35: 34 | D35: Store 34 | E35: Store 34 Australia | F35: 7997806.24 | G35: 650 | H35: Brand Type 12 | I35: Brand Type 12 | J35: Classification Type 16 | K35: Classification Type 16 | L35: 4003301.769 | M35: 596115.85 | N35: 20163903.2 | O35: 6500898.15 | P35: 6816.29 | Q35: 6507714.44 | R35: -5911598.59 | S35: -91549.17 | T35: -67835.25 | U35: -152548.34 | V35: -1465588.18 | W35: -3162444.06 | X35: -22891.46 | Y35: -155602.82 | Z35: -49975.8 | AA35: -420441.58 | AB35: 175674.27 | AC35: -3151.71 | AD35: -55330.26 | AE35: -12803533.31 | AF35: 5202740.02 | AG35: -52215616.96 | AH35: 19707922.88 | AI35: -1220395.8 | AJ35: 1220395.8 | AK35: 0 | AL35: 0 | AM35: 0 | AN35: 17161332.15 | AO35: 0.7465981706 | AP35: 5824703.48 | AQ35: 0.2534018294 | AR35: =Comparatives!$D$3 -> Brand Type 15 | AS35: 4 | AT35: 0.3224027653 | AU35: 0.0003380441739 | AV35: 0.3227408094 | AW35: 0.07268375401 | AX35: 2254.751046 | AY35: 0.007565417196 | AZ35: 234.6897538 | BA35: 40108487.37 | BB35: 0.01048260873 | BC35: 66239546.07 | BD35: 0.006347289572 | BE35: 0.02085120008 | BF35: 85.12347692 | BG35: 0.002744025274 | BH35: 300279.5 | BI35: 0.01489193322 | BJ35: 461.9684615 | BK35: 4865.298554 | BL35: 139.5795538 | BM35: 0.2534018294 | BN35: 0.007716899772 | BO35: 0.1985380375 | BP35: 44111789.14 | BQ35: 175674.27 | BR35: 0.002867384816 | BS35: =I35=Comparatives!$D$3 -> FALSE | BT35: 4 | BU35: =ROW() -> 35 | BV35: =NOT(ISNA(MATCH(BU35,Comparatives!$F:$F,0))) -> FALSE | BW35: =BU35='List Box etc'!$G$18 -> FALSE | BX35: =K35=Assumptions!$F$16 -> FALSE | BY35: FALSE
B36: Australia | C36: 35 | D36: Store 35 | E36: Store 35 Australia | F36: 20729454.26 | G36: 1035 | H36: Brand Type 13 | I36: Brand Type 13 | J36: Classification Type 20 | K36: Classification Type 20 | L36: 6276465.231 | M36: 5071063.41 | N36: 109166612.1 | O36: 46568910.62 | P36: 1041349.11 | Q36: 47610259.73 | R36: -42501275.37 | S36: -3284138.17 | T36: -2791055.16 | U36: -1795958.99 | V36: -10006510.1 | W36: -21109426.8 | X36: -13027.46 | Y36: -748087.72 | Z36: -221194.4 | AA36: -5006667.97 | AB36: 64395.44 | AC36: -181731.2 | AD36: -813299.55 | AE36: -54647864.33 | AF36: 22761223.34 | AG36: -246937878 | AH36: 137863292.2 | AI36: -1530257.64 | AJ36: 1530257.64 | AK36: 0 | AL36: 0 | AM36: 0 | AN36: 62050329.3 | AO36: 0.4913445693 | AP36: 64236462.44 | AQ36: 0.5086554307 | AR36: =Comparatives!$D$3 -> Brand Type 15 | AS36: 4 | AT36: 0.4265856539 | AU36: 0.009539080581 | AV36: 0.4361247344 | AW36: 0.09166273372 | AX36: 9668.1257 | AY36: 0.01645154095 | AZ36: 1735.226077 | BA36: 140961226.7 | BB36: 0.03551805051 | BC36: 303115999.9 | BD36: 0.0165173332 | BE36: 0.04586263027 | BF36: 785.7966667 | BG36: 0.007450075935 | BH36: 4435151.49 | BI36: 0.04062736219 | BJ36: 4285.170522 | BK36: 20395.58145 | BL36: 2709.25857 | BM36: 0.5086554307 | BN36: 0.006852715362 | BO36: 0.05749436671 | BP36: 147237692 | BQ36: 64395.44 | BR36: 0.0003148970633 | BS36: =I36=Comparatives!$D$3 -> FALSE | BT36: 4 | BU36: =ROW() -> 36 | BV36: =NOT(ISNA(MATCH(BU36,Comparatives!$F:$F,0))) -> FALSE | BW36: =BU36='List Box etc'!$G$18 -> FALSE | BX36: =K36=Assumptions!$F$16 -> FALSE | BY36: FALSE
B37: Australia | C37: 36 | D37: Store 36 | E37: Store 36 Australia | F37: 101007114.8 | G37: 2160.76 | H37: Brand Type 13 | I37: Brand Type 13 | J37: Classification Type 17 | K37: Classification Type 17 | L37: 418476.3077 | M37: 2361156.75 | N37: 18804496.86 | O37: 7054526.97 | P37: -86115.12 | Q37: 6971279.85 | R37: -4608851.26 | S37: -412796.96 | T37: -333686.6 | U37: -117811.28 | V37: -1419887.39 | W37: -1677946.16 | X37: -21988.74 | Y37: -123776.93 | Z37: -88759.53 | AA37: -380182.71 | AB37: 1980974.04 | AC37: -78413.81 | AD37: -87970.83 | AE37: -10918595.42 | AF37: 10161718.4 | AG37: -33521667.17 | AH37: 27919020.76 | AI37: -120406.8 | AJ37: 120406.8 | AK37: 0 | AL37: 0 | AM37: 0 | AN37: 12684457.38 | AO37: 0.5918039803 | AP37: 8749087.85 | AQ37: 0.4081960197 | AR37: =Comparatives!$D$3 -> Brand Type 15 | AS37: 4 | AT37: 0.3751510621 | AU37: -0.004579496098 | AV37: 0.3707240828 | AW37: 0.07550786392 | AX37: 657.1240628 | AY37: 0.006265058878 | AZ37: 54.52307521 | BA37: 6359523.43 | BB37: 0.05978163524 | BC37: 44560669.39 | BD37: 0.008531799796 | BE37: 0.02021764862 | BF37: 40.7129112 | BG37: 0.004678180472 | BH37: 703747.23 | BI37: 0.03742441158 | BJ37: 325.6943066 | BK37: 776.5536941 | BL37: 164.6065921 | BM37: 0.4081960197 | BN37: 0.006582304803 | BO37: 0.02225405502 | BP37: 6777999.738 | BQ37: 1980974.04 | BR37: 0.2104310068 | BS37: =I37=Comparatives!$D$3 -> FALSE | BT37: 4 | BU37: =ROW() -> 37 | BV37: =NOT(ISNA(MATCH(BU37,Comparatives!$F:$F,0))) -> FALSE | BW37: =BU37='List Box etc'!$G$18 -> FALSE | BX37: =K37=Assumptions!$F$16 -> FALSE | BY37: FALSE
B38: Australia | C38: 37 | D38: Store 37 | E38: Store 37 Australia | F38: 11735836.04 | G38: 668 | H38: Brand Type 12 | I38: Brand Type 12 | J38: Classification Type 16 | K38: Classification Type 16 | L38: 1982953.385 | M38: 720164.99 | N38: 14967721.2 | O38: 5553772.3 | P38: -76198.23 | Q38: 5477574.07 | R38: -4756067.11 | S38: -512659.82 | T38: -166033.92 | U38: -751418.63 | V38: -942668.94 | W38: -1778894.65 | X38: -22544.46 | Y38: -137837.29 | Z38: -88643.89 | AA38: -26648.69 | AB38: 693516.3 | AC38: -146619.72 | AD38: -75022.15 | AE38: -7825792.98 | AF38: 7778780.92 | AG38: -14349727.57 | AH38: 13476377.3 | AI38: -1188441 | AJ38: 1188441 | AK38: 0 | AL38: 0 | AM38: 0 | AN38: 9676385.69 | AO38: 0.5673094265 | AP38: 7380242.03 | AQ38: 0.4326905735 | AR38: =Comparatives!$D$3 -> Brand Type 15 | AS38: 4 | AT38: 0.3710499565 | AU38: -0.005090837074 | AV38: 0.3659591194 | AW38: 0.06298012419 | AX38: 1411.181048 | AY38: 0.05020260733 | AZ38: 1124.878189 | BA38: 920362.33 | BB38: 0.02895456401 | BC38: 23363961.55 | BD38: 0.001140589533 | BE38: 0.001780410635 | BF38: 112.3086078 | BG38: 0.005012262655 | BH38: 885760.72 | BI38: 0.05917806112 | BJ38: 1325.989102 | BK38: 2663.015943 | BL38: 282.3029641 | BM38: 0.4326905735 | BN38: 0.009208969633 | BO38: 0.1324819829 | BP38: 2903315.715 | BQ38: 693516.3 | BR38: 0.1719867163 | BS38: =I38=Comparatives!$D$3 -> FALSE | BT38: 4 | BU38: =ROW() -> 38 | BV38: =NOT(ISNA(MATCH(BU38,Comparatives!$F:$F,0))) -> FALSE | BW38: =BU38='List Box etc'!$G$18 -> FALSE | BX38: =K38=Assumptions!$F$16 -> FALSE | BY38: FALSE
B39: Australia | C39: 38 | D39: Store 38 | E39: Store 38 Australia | F39: 26733013.87 | G39: 2711 | H39: Brand Type 12 | I39: Brand Type 12 | J39: Classification Type 22 | K39: Classification Type 22 | L39: 1250251.231 | M39: 236714.18 | N39: 20341896.99 | O39: 7014932.87 | P39: -0.79 | Q39: 7014932.08 | R39: -6778217.9 | S39: -484207.55 | T39: 0 | U39: -197782.46 | V39: -1547888.64 | W39: -3917526.8 | X39: 0 | Y39: -269150.66 | Z39: -22712.17 | AA39: -1139981.85 | AB39: -903267.67 | AC39: -7702.67 | AD39: -50946.06 | AE39: -26249659.65 | AF39: 6424539.23 | AG39: -82633311.99 | AH39: 14794490.04 | AI39: 0 | AJ39: 0 | AK39: 0 | AL39: 0 | AM39: 0 | AN39: 19804159.84 | AO39: 0.8540044231 | AP39: 3385602.77 | AQ39: 0.1459955769 | AR39: =Comparatives!$D$3 -> Brand Type 15 | AS39: 4 | AT39: 0.3448514597 | AU39: -3.883610267e-08 | AV39: 0.3448514209 | AW39: 0.07609362297 | AX39: 570.9659314 | AY39: 0.009722911295 | AZ39: 72.9555367 | BA39: 87663942.37 | BB39: 0.01300399935 | BC39: 108882971.6 | BD39: 0.01046979002 | BE39: 0.05604107869 | BF39: 18.79234969 | BG39: 0.002504489135 | BH39: 783773.05 | BI39: 0.03852998815 | BJ39: 289.1084655 | BK39: 1445.048617 | BL39: 0 | BM39: 0.1459955769 | BN39: 0.01323134515 | BO39: 0.06146187995 | BP39: 88914193.6 | BQ39: -903267.67 | BR39: -0.007314385882 | BS39: =I39=Comparatives!$D$3 -> FALSE | BT39: 4 | BU39: =ROW() -> 39 | BV39: =NOT(ISNA(MATCH(BU39,Comparatives!$F:$F,0))) -> FALSE | BW39: =BU39='List Box etc'!$G$18 -> FALSE | BX39: =K39=Assumptions!$F$16 -> FALSE | BY39: FALSE
B40: Australia | C40: 39 | D40: Store 39 | E40: Store 39 Australia | F40: 9503251.79 | G40: 395 | H40: Brand Type 15 | I40: Brand Type 15 | J40: Classification Type 26 | K40: Classification Type 26 | L40: 1954748.769 | M40: -273558.81 | N40: 3561502.22 | O40: 1165662.31 | P40: 1158.33 | Q40: 1166820.64 | R40: -1440379.45 | S40: -87446.98 | T40: -110261.07 | U40: 2827.17 | V40: -537783.42 | W40: -527744.42 | X40: 0 | Y40: -38906.54 | Z40: -45050.96 | AA40: -276162.84 | AB40: -549721.65 | AC40: 0 | AD40: -17291 | AE40: -4313015.52 | AF40: 662365.14 | AG40: -21996384.78 | AH40: 2963063.19 | AI40: 0 | AJ40: 0 | AK40: 0 | AL40: 0 | AM40: 0 | AN40: 2835202.04 | AO40: 0.698308493 | AP40: 1224897.57 | AQ40: 0.301691507 | AR40: =Comparatives!$D$3 -> Brand Type 15 | AS40: 5 | AT40: 0.3272951238 | AU40: 0.0003252363549 | AV40: 0.3276203602 | AW40: 0.1509990411 | AX40: 1361.477013 | AY40: -0.0007938139092 | AZ40: -7.157392405 | BA40: 22683971.97 | BB40: 0.01217435996 | BC40: 26309400.3 | BD40: 0.01049673641 | BE40: 0.07754111129 | BF40: 43.77468354 | BG40: 0.004854973809 | BH40: 171404.48 | BI40: 0.04812701759 | BJ40: 433.9353924 | BK40: 1336.061823 | BL40: 279.1419494 | BM40: 0.301691507 | BN40: 0.01092419367 | BO40: 0.5488551315 | BP40: 24638720.74 | BQ40: -549721.65 | BR40: -0.01606412899 | BS40: =I40=Comparatives!$D$3 -> TRUE | BT40: 5 | BU40: =ROW() -> 40 | BV40: =NOT(ISNA(MATCH(BU40,Comparatives!$F:$F,0))) -> FALSE | BW40: =BU40='List Box etc'!$G$18 -> FALSE | BX40: =K40=Assumptions!$F$16 -> FALSE | BY40: TRUE
B41: Australia | C41: 40 | D41: Store 40 | E41: Store 40 Australia | F41: 6492097.86 | G41: 350 | H41: Brand Type 15 | I41: Brand Type 15 | J41: Classification Type 24 | K41: Classification Type 24 | L41: 2198003 | M41: 1601990.13 | N41: 6921046.95 | O41: 2444905.85 | P41: 1411875.24 | Q41: 3856781.09 | R41: -2254790.96 | S41: -43761 | T41: -16348.44 | U41: 92223.9 | V41: -1797307.71 | W41: -157626.92 | X41: 0 | Y41: -65327.92 | Z41: -65271.42 | AA41: -294022.8 | AB41: 1307967.33 | AC41: -6211.09 | AD41: -10186.04 | AE41: -784745.76 | AF41: 223994.24 | AG41: -27318152.76 | AH41: 7082659.02 | AI41: 0 | AJ41: 0 | AK41: 0 | AL41: 0 | AM41: 0 | AN41: 6970668.49 | AO41: 0.8834821599 | AP41: 919325 | AQ41: 0.1165178401 | AR41: =Comparatives!$D$3 -> Brand Type 15 | AS41: 6 | AT41: 0.3532566485 | AU41: 0.2039973504 | AV41: 0.557253999 | AW41: 0.2596872587 | AX41: 5135.164886 | AY41: -0.01332513717 | AZ41: -263.4968571 | BA41: 20796245.26 | BB41: 0.01413826373 | BC41: 28102898.52 | BD41: 0.01046236564 | BE41: 0.04248241662 | BF41: 29.10297143 | BG41: 0.001471748433 | BH41: 180571.43 | BI41: 0.02609019001 | BJ41: 515.9183714 | BK41: 450.3626286 | BL41: 46.70982857 | BM41: 0.1165178401 | BN41: 0.009439022806 | BO41: 0.3175824432 | BP41: 22994248.26 | BQ41: 1307967.33 | BR41: 0.04095530617 | BS41: =I41=Comparatives!$D$3 -> TRUE | BT41: 6 | BU41: =ROW() -> 41 | BV41: =NOT(ISNA(MATCH(BU41,Comparatives!$F:$F,0))) -> TRUE | BW41: =BU41='List Box etc'!$G$18 -> FALSE | BX41: =K41=Assumptions!$F$16 -> FALSE | BY41: TRUE
B42: Australia | C42: 41 | D42: Store 41 | E42: Store 41 Australia | F42: 6017140.09 | G42: 350 | H42: Brand Type 15 | I42: Brand Type 15 | J42: Classification Type 23 | K42: Classification Type 23 | L42: 647438.6154 | M42: 2893256.67 | N42: 23158746.95 | O42: 9248355.98 | P42: 199646.32 | Q42: 9448002.3 | R42: -6552882.88 | S42: -851278.15 | T42: -56785.92 | U42: -323106.63 | V42: -1584883.6 | W42: -2673056.88 | X42: -43860 | Y42: -145742.16 | Z42: -46032.93 | AA42: -556465.44 | AB42: 2336791.23 | AC42: -47664.46 | AD42: -196022.16 | AE42: -9526208.79 | AF42: 3249093.32 | AG42: -61940891.45 | AH42: 10994077.9 | AI42: 0 | AJ42: 0 | AK42: 0 | AL42: 0 | AM42: 0 | AN42: 12855861.94 | AO42: 0.4900685811 | AP42: 13376919.42 | AQ42: 0.5099314189 | AR42: =Comparatives!$D$3 -> Brand Type 15 | AS42: 7 | AT42: 0.3993461304 | AU42: 0.008620773845 | AV42: 0.4079669043 | AW42: 0.06843563702 | AX42: 4528.238857 | AY42: 0.01395181832 | AZ42: 923.1618 | BA42: 57223929.02 | BB42: 0.009724348704 | BC42: 71467100.24 | BD42: 0.007786316195 | BE42: 0.02402830521 | BF42: 560.0633143 | BG42: 0.008464281786 | BH42: 1090717.7 | BI42: 0.04709744022 | BJ42: 3116.336286 | BK42: 7637.305371 | BL42: 287.5597714 | BM42: 0.5099314189 | BN42: 0.006293179865 | BO42: 0.02795654777 | BP42: 57871367.64 | BQ42: 2336791.23 | BR42: 0.02907292076 | BS42: =I42=Comparatives!$D$3 -> TRUE | BT42: 7 | BU42: =ROW() -> 42 | BV42: =NOT(ISNA(MATCH(BU42,Comparatives!$F:$F,0))) -> FALSE | BW42: =BU42='List Box etc'!$G$18 -> FALSE | BX42: =K42=Assumptions!$F$16 -> FALSE | BY42: TRUE
B43: Australia | C43: 42 | D43: Store 42 | E43: Store 42 Australia | F43: 3997319.41 | G43: 359 | H43: Brand Type 16 | I43: Brand Type 16 | J43: Classification Type 28 | K43: Classification Type 28 | L43: 5059233.923 | M43: 15055417.87 | N43: 57669403.32 | O43: 25758595.69 | P43: 324665.81 | Q43: 26083261.5 | R43: -10984575.15 | S43: -1171514.49 | T43: -602872.32 | U43: 364280.21 | V43: -4096406.85 | W43: -2843639.66 | X43: 0 | Y43: -485733.8 | Z43: -108135.86 | AA43: -786319.4 | AB43: 14269098.47 | AC43: -160723.73 | AD43: -222173.91 | AE43: -11408478.48 | AF43: 8436751.28 | AG43: -66803011.98 | AH43: 38577757.4 | AI43: -11760 | AJ43: 10483.86 | AK43: 0 | AL43: 0 | AM43: 0 | AN43: 31751980.47 | AO43: 0.4860817789 | AP43: 33570320.94 | AQ43: 0.5139182211 | AR43: =Comparatives!$D$3 -> Brand Type 15 | AS43: 7 | AT43: 0.4466596532 | AU43: 0.005629775779 | AV43: 0.452289429 | AW43: 0.07103258598 | AX43: 11410.60404 | AY43: -0.006316698093 | AZ43: -1014.708106 | BA43: 31198257.92 | BB43: 0.02520395216 | BC43: 78223250.46 | BD43: 0.01005224656 | BE43: 0.01363494947 | BF43: 618.8688301 | BG43: 0.003852543935 | BH43: 1926107.88 | BI43: 0.03339912968 | BJ43: 5365.203008 | BK43: 7921.001838 | BL43: 1679.310084 | BM43: 0.5139182211 | BN43: 0.008422729767 | BO43: 0.0877282169 | BP43: 36257491.84 | BQ43: 14269098.47 | BR43: 0.2833552564 | BS43: =I43=Comparatives!$D$3 -> FALSE | BT43: 7 | BU43: =ROW() -> 43 | BV43: =NOT(ISNA(MATCH(BU43,Comparatives!$F:$F,0))) -> FALSE | BW43: =BU43='List Box etc'!$G$18 -> FALSE | BX43: =K43=Assumptions!$F$16 -> FALSE | BY43: FALSE
B44: Australia | C44: 43 | D44: Store 43 | E44: Store 43 Australia | F44: 2393435.96 | G44: 50 | H44: Brand Type 17 | I44: Brand Type 17 | J44: Classification Type 32 | K44: Classification Type 32 | L44: 457021.0769 | M44: 5713618.71 | N44: 31270577.16 | O44: 12344398.24 | P44: 258259.14 | Q44: 12602657.38 | R44: -6881803.01 | S44: -600590.08 | T44: -123007.44 | U44: 136591.15 | V44: -2078939.86 | W44: -3060788.88 | X44: 0 | Y44: -175399.96 | Z44: -52560.47 | AA44: -784303.66 | AB44: 4929315.05 | AC44: -57296.6 | AD44: -209331.72 | AE44: -8683796.84 | AF44: 8006728.3 | AG44: -65660063.18 | AH44: 50830754.66 | AI44: 0 | AJ44: 0 | AK44: 0 | AL44: 0 | AM44: 0 | AN44: 21673153.63 | AO44: 0.6145308991 | AP44: 13594647.65 | AQ44: 0.3854691009 | AR44: =Comparatives!$D$3 -> Brand Type 15 | AS44: 7 | AT44: 0.3947608059 | AU44: 0.008258854279 | AV44: 0.4030196602 | AW44: 0.06648229898 | AX44: 41578.7972 | AY44: -0.00436804058 | AZ44: -2731.823 | BA44: 15506377.06 | BB44: 0.05057942658 | BC44: 74343860.02 | BD44: 0.01054967633 | BE44: 0.02508120192 | BF44: 4186.6344 | BG44: 0.006694207111 | BH44: 885847.11 | BI44: 0.02832845411 | BJ44: 17716.9422 | BK44: 61215.7776 | BL44: 2460.1488 | BM44: 0.3854691009 | BN44: 0.005609105297 | BO44: 0.0146150509 | BP44: 15963398.14 | BQ44: 4929315.05 | BR44: 0.2223277779 | BS44: =I44=Comparatives!$D$3 -> FALSE | BT44: 7 | BU44: =ROW() -> 44 | BV44: =NOT(ISNA(MATCH(BU44,Comparatives!$F:$F,0))) -> FALSE | BW44: =BU44='List Box etc'!$G$18 -> FALSE | BX44: =K44=Assumptions!$F$16 -> FALSE | BY44: FALSE
B45: Australia | C45: 44 | D45: Store 44 | E45: Store 44 Australia | F45: 9486250.37 | G45: 448 | H45: Brand Type 29 | I45: Brand Type 29 | J45: Classification Type 35 | K45: Classification Type 35 | L45: 6587657.615 | M45: 79291.29 | N45: 472226.85 | O45: 251711.23 | P45: -0.89 | Q45: 251710.34 | R45: -172419.05 | S45: 0 | T45: 0 | U45: -3550.77 | V45: -74828.53 | W45: -51112.5 | X45: -398 | Y45: -282.16 | Z45: -6216.75 | AA45: 0 | AB45: 79291.29 | AC45: 0 | AD45: -2069.9 | AE45: -371422.83 | AF45: 0 | AG45: -1399499.12 | AH45: 0 | AI45: 0 | AJ45: 0 | AK45: 0 | AL45: 0 | AM45: 0 | AN45: 352818.57 | AO45: 0.7133879142 | AP45: 141749.06 | AQ45: 0.2866120858 | AR45: =Comparatives!$D$3 -> Brand Type 15 | AS45: 7 | AT45: 0.5330303222 | AU45: -1.884687412e-06 | AV45: 0.5330284375 | AW45: 0.1584588636 | AX45: 167.0279687 | AY45: 0.007519203959 | AZ45: 7.925825893 | BA45: 1770921.95 | BB45: 0 | BC45: 1770921.95 | BD45: 0 | BE45: 0 | BF45: 4.6203125 | BG45: 0.004383274691 | BH45: 6498.91 | BI45: 0.01376226278 | BJ45: 14.50649554 | BK45: 114.0904018 | BL45: 0.8883928571 | BM45: 0.2866120858 | BN45: 0.0005975094385 | BO45: 13.95019706 | BP45: 8358579.565 | BQ45: 79291.29 | BR45: 0.006830075416 | BS45: =I45=Comparatives!$D$3 -> FALSE | BT45: 7 | BU45: =ROW() -> 45 | BV45: =NOT(ISNA(MATCH(BU45,Comparatives!$F:$F,0))) -> FALSE | BW45: =BU45='List Box etc'!$G$18 -> FALSE | BX45: =K45=Assumptions!$F$16 -> FALSE | BY45: FALSE
B46: Australia | C46: 45 | D46: Store 45 | E46: Store 45 Australia | F46: 8951095.87 | G46: 250 | H46: Brand Type 29 | I46: Brand Type 29 | J46: Classification Type 35 | K46: Classification Type 35 | L46: 1359271.385 | M46: 1971404.73 | N46: 21152247.61 | O46: 7880121.42 | P46: -167952.58 | Q46: 7712168.84 | R46: -5740764.11 | S46: -157200 | T46: -386274.6 | U46: -160112.74 | V46: -1763085.65 | W46: -2503397.25 | X46: -25349.38 | Y46: -172061.16 | Z46: -88510.67 | AA46: -607972.83 | AB46: 1363431.9 | AC46: -174745.13 | AD46: -70512.17 | AE46: -21403916.08 | AF46: 15294924.84 | AG46: -89693734.58 | AH46: 63823821.07 | AI46: -858365.64 | AJ46: 858365.64 | AK46: -29946.48 | AL46: 29946.48 | AM46: 0 | AN46: 14716914.61 | AO46: 0.6103137492 | AP46: 9396772.21 | AQ46: 0.3896862508 | AR46: =Comparatives!$D$3 -> Brand Type 15 | AS46: 7 | AT46: 0.3725429829 | AU46: -0.007940176529 | AV46: 0.3646028064 | AW46: 0.08335216581 | AX46: 7052.3426 | AY46: 0.007569537902 | AZ46: 640.45096 | BA46: 31978904.75 | BB46: 0.01901168394 | BC46: 111985962.8 | BD46: 0.00542900927 | BE46: 0.0287427058 | BF46: 282.04868 | BG46: 0.00333355449 | BH46: 592516.96 | BI46: 0.02801200945 | BJ46: 2370.06784 | BK46: 10013.589 | BL46: 1646.49592 | BM46: 0.3896862508 | BN46: 0.008134414989 | BO46: 0.06426132152 | BP46: 33338176.13 | BQ46: 1363431.9 | BR46: 0.02944585103 | BS46: =I46=Comparatives!$D$3 -> FALSE | BT46: 7 | BU46: =ROW() -> 46 | BV46: =NOT(ISNA(MATCH(BU46,Comparatives!$F:$F,0))) -> FALSE | BW46: =BU46='List Box etc'!$G$18 -> FALSE | BX46: =K46=Assumptions!$F$16 -> FALSE | BY46: FALSE
B47: Australia | C47: 46 | D47: Store 46 | E47: Store 46 Australia | F47: 2672450.2 | G47: 221.8 | H47: Brand Type 29 | I47: Brand Type 29 | J47: Classification Type 35 | K47: Classification Type 35 | L47: 3105372.231 | M47: 1880958.91 | N47: 4732769.4 | O47: 1733499.52 | P47: 1049839.46 | Q47: 2783338.98 | R47: -902380.07 | S47: -121449.15 | T47: -1688 | U47: 184962.12 | V47: -197104.2 | W47: -483354.46 | X47: 0 | Y47: -35190.13 | Z47: -52691.37 | AA47: -256634.74 | AB47: 1624324.17 | AC47: 921.33 | AD47: -11691.95 | AE47: -4854069.6 | AF47: 314646.76 | AG47: -24082336.62 | AH47: 939908.05 | AI47: 0 | AJ47: 0 | AK47: 0 | AL47: 0 | AM47: 0 | AN47: 4604101.5 | AO47: 0.853572923 | AP47: 789815.5 | AQ47: 0.146427077 | AR47: =Comparatives!$D$3 -> Brand Type 15 | AS47: 7 | AT47: 0.3662759314 | AU47: 0.2218234973 | AV47: 0.5880994286 | AW47: 0.04164669422 | AX47: 888.657349 | AY47: -0.03908116039 | AZ47: -833.9139766 | BA47: 27681851.41 | BB47: 0.009270866179 | BC47: 28936406.22 | BD47: 0.008868922355 | BE47: 0.05422506746 | BF47: 52.71393147 | BG47: 0.00247042461 | BH47: 208409.32 | BI47: 0.04403538444 | BJ47: 939.6272317 | BK47: 2179.235618 | BL47: 7.610459874 | BM47: 0.146427077 | BN47: 0.007435420369 | BO47: 0.6561427292 | BP47: 30787223.64 | BQ47: 1624324.17 | BR47: 0.037986972 | BS47: =I47=Comparatives!$D$3 -> FALSE | BT47: 7 | BU47: =ROW() -> 47 | BV47: =NOT(ISNA(MATCH(BU47,Comparatives!$F:$F,0))) -> FALSE | BW47: =BU47='List Box etc'!$G$18 -> FALSE | BX47: =K47=Assumptions!$F$16 -> FALSE | BY47: FALSE
B48: Australia | C48: 47 | D48: Store 47 | E48: Store 47 Australia | F48: 3460908.64 | G48: 350 | H48: Brand Type 29 | I48: Brand Type 29 | J48: Classification Type 37 | K48: Classification Type 37 | L48: 4590823.615 | M48: 7016775 | N48: 45230487.63 | O48: 19553511.51 | P48: 167415.57 | Q48: 19720927.08 | R48: -12676093.2 | S48: -1553921.87 | T48: -783849.11 | U48: -993844.79 | V48: -3173041.16 | W48: -4591723.68 | X48: -2035 | Y48: -248106.96 | Z48: -141237.06 | AA48: -172651.47 | AB48: 6844123.53 | AC48: -182499.4 | AD48: -636665.71 | AE48: -41789909.83 | AF48: 3864513.68 | AG48: -88623577.8 | AH48: 58557418.73 | AI48: 0 | AJ48: 0 | AK48: 0 | AL48: 0 | AM48: 0 | AN48: 21502173.9 | AO48: 0.4192255194 | AP48: 29788057.5 | AQ48: 0.5807744806 | AR48: =Comparatives!$D$3 -> Brand Type 15 | AS48: 7 | AT48: 0.4323082181 | AU48: 0.003701387687 | AV48: 0.4360096058 | AW48: 0.07015270731 | AX48: 9065.831886 | AY48: 0.02197289576 | AZ48: 2839.556543 | BA48: 67991555.22 | BB48: 0.002539307557 | BC48: 130413487.6 | BD48: 0.001323877408 | BE48: 0.003817148102 | BF48: 1819.044886 | BG48: 0.0140760302 | BH48: 2125765.29 | BI48: 0.0469985048 | BJ48: 6073.615114 | BK48: 13119.21051 | BL48: 2245.383171 | BM48: 0.5807744806 | BN48: 0.005485392111 | BO48: 0.1014984329 | BP48: 72582378.84 | BQ48: 6844123.53 | BR48: 0.06789208374 | BS48: =I48=Comparatives!$D$3 -> FALSE | BT48: 7 | BU48: =ROW() -> 48 | BV48: =NOT(ISNA(MATCH(BU48,Comparatives!$F:$F,0))) -> FALSE | BW48: =BU48='List Box etc'!$G$18 -> FALSE | BX48: =K48=Assumptions!$F$16 -> FALSE | BY48: FALSE
B49: Bangladesh | C49: 48 | D49: Store 48 | E49: Store 48 Bangladesh | F49: 14584335.81 | G49: 135 | H49: Brand Type 1 | I49: Brand Type 1 | J49: Classification Type 1 | K49: Classification Type 1 | L49: 1248505.385 | M49: 3845950.49 | N49: 47851986.54 | O49: 18509700.98 | P49: 432442.21 | Q49: 18942143.19 | R49: -15072841.45 | S49: -2468492.88 | T49: -580497.48 | U49: -287250.01 | V49: -3820082.59 | W49: -5853733.11 | X49: -47473.46 | Y49: -252397.5 | Z49: -76284.41 | AA49: -1285229.08 | AB49: 2560721.41 | AC49: -152815.58 | AD49: -478823.53 | AE49: -7782025.68 | AF49: 3175004.08 | AG49: -138954815.5 | AH49: 76465517.6 | AI49: -4362183.96 | AJ49: 4340692.56 | AK49: 0 | AL49: 0 | AM49: 0 | AN49: 27492112.88 | AO49: 0.5107881317 | AP49: 26330815.21 | AQ49: 0.4892118683 | AR49: =Comparatives!$D$3 -> Brand Type 15 | AS49: 7 | AT49: 0.3868115478 | AU49: 0.009037079571 | AV49: 0.3958486274 | AW49: 0.07983122261 | AX49: 28296.90807 | AY49: 0.006002885789 | AZ49: 2127.777852 | BA49: 67117810.92 | BB49: 0.01914885278 | BC49: 151099025.2 | BD49: 0.008505872746 | BE49: 0.02685842685 | BF49: 3546.840963 | BG49: 0.01000634591 | BH49: 2949990.37 | BI49: 0.06164823204 | BJ49: 21851.78052 | BK49: 43360.986 | BL49: 4651.636593 | BM49: 0.4892118683 | BN49: 0.005274545912 | BO49: 0.02609098336 | BP49: 68366316.3 | BQ49: 2560721.41 | BR49: 0.02696824277 | BS49: =I49=Comparatives!$D$3 -> FALSE | BT49: 7 | BU49: =ROW() -> 49 | BV49: =NOT(ISNA(MATCH(BU49,Comparatives!$F:$F,0))) -> FALSE | BW49: =BU49='List Box etc'!$G$18 -> FALSE | BX49: =K49=Assumptions!$F$16 -> FALSE | BY49: FALSE
B50: Bangladesh | C50: 49 | D50: Store 49 | E50: Store 49 Bangladesh | F50: 23679599.47 | G50: 2005.75 | H50: Brand Type 2 | I50: Brand Type 2 | J50: Classification Type 5 | K50: Classification Type 5 | L50: 906205.8462 | M50: 2076350.17 | N50: 13022637.16 | O50: 5572294.94 | P50: 108995.96 | Q50: 5681290.9 | R50: -3604940.73 | S50: -509904.2 | T50: -192921.47 | U50: -133763.45 | V50: -927921.35 | W50: -1106332.48 | X50: -59626.08 | Y50: -103398.03 | Z50: -31982.27 | AA50: -374058.05 | AB50: 1702292.12 | AC50: -53464.65 | AD50: -118352.33 | AE50: -8231382.84 | AF50: 7386220.18 | AG50: -42927343.54 | AH50: 39906867.96 | AI50: -131298.24 | AJ50: 131298.24 | AK50: 0 | AL50: 0 | AM50: 0 | AN50: 8288890.71 | AO50: 0.56551383 | AP50: 6368382.5 | AQ50: 0.43448617 | AR50: =Comparatives!$D$3 -> Brand Type 15 | AS50: 7 | AT50: 0.4278929737 | AU50: 0.008369730237 | AV50: 0.436262704 | AW50: 0.07125448852 | AX50: 462.630612 | AY50: 0.01027160999 | AZ50: 66.68999128 | BA50: 3865638.24 | BB50: 0.09676488765 | BC50: 51290024.62 | BD50: 0.007292998059 | BE50: 0.02872367904 | BF50: 59.00652125 | BG50: 0.00908819992 | BH50: 698749.15 | BI50: 0.05365650148 | BJ50: 348.3730026 | BK50: 551.5804462 | BL50: 125.9117786 | BM50: 0.43448617 | BN50: 0.007939868763 | BO50: 0.06958696883 | BP50: 4771844.086 | BQ50: 1702292.12 | BR50: 0.2568504554 | BS50: =I50=Comparatives!$D$3 -> FALSE | BT50: 7 | BU50: =ROW() -> 50 | BV50: =NOT(ISNA(MATCH(BU50,Comparatives!$F:$F,0))) -> FALSE | BW50: =BU50='List Box etc'!$G$18 -> FALSE | BX50: =K50=Assumptions!$F$16 -> FALSE | BY50: FALSE
B51: Bangladesh | C51: 50 | D51: Store 50 | E51: Store 50 Bangladesh | F51: 55433244.71 | G51: 3596 | H51: Brand Type 2 | I51: Brand Type 2 | J51: Classification Type 4 | K51: Classification Type 4 | L51: 2496182.846 | M51: 17402948.5 | N51: 74471539.73 | O51: 31177605.8 | P51: 656354.9 | Q51: 31833960.7 | R51: -14413645.24 | S51: -1768752.19 | T51: -425493.02 | U51: -226300.1 | V51: -5404065.64 | W51: -4825221.92 | X51: 510.54 | Y51: -400959.1 | Z51: -148454.45 | AA51: -1743842.49 | AB51: 15659106.01 | AC51: -359933.67 | AD51: -396685.86 | AE51: -7457509.44 | AF51: 3628804.98 | AG51: -166814489 | AH51: 106352628.3 | AI51: -21924 | AJ51: 19548.9 | AK51: 0 | AL51: 0 | AM51: 0 | AN51: 43394909.13 | AO51: 0.5180187684 | AP51: 40376011.5 | AQ51: 0.4819812316 | AR51: =Comparatives!$D$3 -> Brand Type 15 | AS51: 7 | AT51: 0.4186512849 | AU51: 0.008813499793 | AV51: 0.4274647847 | AW51: 0.07256551509 | AX51: 1502.799121 | AY51: 0.003038746088 | AZ51: 62.93106229 | BA51: 64292940.29 | BB51: 0.02712338994 | BC51: 174293922.5 | BD51: 0.01000518243 | BE51: 0.02341622714 | BF51: 110.3130868 | BG51: 0.005326677298 | BH51: 2678099.41 | BI51: 0.03596138095 | BJ51: 744.7439961 | BK51: 1341.830345 | BL51: 118.1820022 | BM51: 0.4819812316 | BN51: 0.005384058144 | BO51: 0.0335186147 | BP51: 66789123.14 | BQ51: 15659106.01 | BR51: 0.1688082699 | BS51: =I51=Comparatives!$D$3 -> FALSE | BT51: 7 | BU51: =ROW() -> 51 | BV51: =NOT(ISNA(MATCH(BU51,Comparatives!$F:$F,0))) -> FALSE | BW51: =BU51='List Box etc'!$G$18 -> FALSE | BX51: =K51=Assumptions!$F$16 -> FALSE | BY51: FALSE
B52: Bangladesh | C52: 51 | D52: Store 51 | E52: Store 51 Bangladesh | F52: 6308856.03 | G52: 122 | H52: Brand Type 1 | I52: Brand Type 1 | J52: Classification Type 1 | K52: Classification Type 1 | L52: 5405791.692 | M52: 2304636.61 | N52: 11428347.55 | O52: 4599808.71 | P52: 115749.51 | Q52: 4715558.22 | R52: -2410921.61 | S52: -218740.96 | T52: -133678.6 | U52: -95322.67 | V52: -1062680.91 | W52: -454484.06 | X52: 0 | Y52: -69303.73 | Z52: -22083.82 | AA52: -82355.51 | AB52: 2222281.1 | AC52: -40696.38 | AD52: -87887.92 | AE52: -6797582.49 | AF52: 5883813.78 | AG52: -4980106.17 | AH52: 3339882.71 | AI52: -1550654.4 | AJ52: 1550654.4 | AK52: 0 | AL52: 0 | AM52: 0 | AN52: 5926771.44 | AO52: 0.4598245236 | AP52: 6962431.15 | AQ52: 0.5401754764 | AR52: =Comparatives!$D$3 -> Brand Type 15 | AS52: 7 | AT52: 0.4024911467 | AU52: 0.01012828053 | AV52: 0.4126194272 | AW52: 0.09298640117 | AX52: 8710.499262 | AY52: 0.008340897018 | AZ52: 781.3333607 | BA52: 2553992.17 | BB52: 0.0322457958 | BC52: 13328343.06 | BD52: 0.006178975858 | BE52: 0.007206248291 | BF52: 720.3927869 | BG52: 0.007690343649 | BH52: 350824.89 | BI52: 0.03069777923 | BJ52: 2875.613852 | BK52: 3725.27918 | BL52: 1095.72623 | BM52: 0.5401754764 | BN52: 0.006064195169 | BO52: 0.4730160392 | BP52: 7959783.862 | BQ52: 2222281.1 | BR52: 0.2010158089 | BS52: =I52=Comparatives!$D$3 -> FALSE | BT52: 7 | BU52: =ROW() -> 52 | BV52: =NOT(ISNA(MATCH(BU52,Comparatives!$F:$F,0))) -> FALSE | BW52: =BU52='List Box etc'!$G$18 -> FALSE | BX52: =K52=Assumptions!$F$16 -> FALSE | BY52: FALSE
B53: Bangladesh | C53: 52 | D53: Store 52 | E53: Store 52 Bangladesh | F53: 48951274.87 | G53: 3248 | H53: Brand Type 2 | I53: Brand Type 2 | J53: Classification Type 5 | K53: Classification Type 5 | L53: 9202465.385 | M53: 3330027 | N53: 20823873.43 | O53: 8562103.03 | P53: 167382.68 | Q53: 8729485.71 | R53: -5390149.27 | S53: -828035.95 | T53: -6747 | U53: -202567.57 | V53: -1525074.69 | W53: -1979752.5 | X53: -35527.32 | Y53: -127860.4 | Z53: -79340.68 | AA53: -739782.16 | AB53: 2590244.84 | AC53: -62809.79 | AD53: -131894.98 | AE53: -8066438.83 | AF53: 1688198.19 | AG53: -62397476.41 | AH53: 14063419.03 | AI53: -29004 | AJ53: 29004 | AK53: 0 | AL53: 0 | AM53: 0 | AN53: 12706439.78 | AO53: 0.5469756654 | AP53: 10523916.86 | AQ53: 0.4530243346 | AR53: =Comparatives!$D$3 -> Brand Type 15 | AS53: 7 | AT53: 0.4111676465 | AU53: 0.008038018506 | AV53: 0.419205665 | AW53: 0.07323684016 | AX53: 469.5427001 | AY53: 0.009727660451 | AZ53: 62.36686268 | BA53: 54712298.02 | BB53: 0.01352131398 | BC53: 70492919.24 | BD53: 0.01049441799 | BE53: 0.03552567501 | BF53: 40.60806034 | BG53: 0.006333835078 | BH53: 1098046.82 | BI53: 0.05273019084 | BJ53: 338.0686022 | BK53: 609.5297106 | BL53: 13.01549261 | BM53: 0.4530243346 | BN53: 0.006140087262 | BO53: 0.441919003 | BP53: 63914763.4 | BQ53: 2590244.84 | BR53: 0.02917911583 | BS53: =I53=Comparatives!$D$3 -> FALSE | BT53: 7 | BU53: =ROW() -> 53 | BV53: =NOT(ISNA(MATCH(BU53,Comparatives!$F:$F,0))) -> FALSE | BW53: =BU53='List Box etc'!$G$18 -> FALSE | BX53: =K53=Assumptions!$F$16 -> FALSE | BY53: FALSE
B54: Bangladesh | C54: 53 | D54: Store 53 | E54: Store 53 Bangladesh | F54: 18375488.11 | G54: 710.1 | H54: Brand Type 4 | I54: Brand Type 4 | J54: Classification Type 7 | K54: Classification Type 7 | L54: 6486535.538 | M54: 43466628.37 | N54: 172644441.7 | O54: 71663763.1 | P54: 1909681.18 | Q54: 73573444.28 | R54: -30090106.76 | S54: -2552206.53 | T54: -1451262.82 | U54: -1171791.12 | V54: -10974578.15 | W54: -10618212.68 | X54: -4501.35 | Y54: -1051838.55 | Z54: -484299.15 | AA54: -4489857.49 | AB54: 38976770.88 | AC54: -367129.69 | AD54: -507756.64 | AE54: -56566072.02 | AF54: 23505217.04 | AG54: -277914805.2 | AH54: 111531022.9 | AI54: -528608.28 | AJ54: 528608.28 | AK54: 0 | AL54: 0 | AM54: 0 | AN54: 105727689.1 | AO54: 0.5347292962 | AP54: 91994204.72 | AQ54: 0.4652707038 | AR54: =Comparatives!$D$3 -> Brand Type 15 | AS54: 7 | AT54: 0.4150945284 | AU54: 0.01106135339 | AV54: 0.4261558818 | AW54: 0.06356751508 | AX54: 15454.97557 | AY54: 0.006787308694 | AZ54: 1650.177609 | BA54: 199444637.2 | BB54: 0.02251179852 | BC54: 335009485.5 | BD54: 0.01340218019 | BE54: 0.0260063831 | BF54: 715.049486 | BG54: 0.002941054082 | BH54: 4455473.92 | BI54: 0.02580722482 | BJ54: 6274.431658 | BK54: 14953.12305 | BL54: 2050.083326 | BM54: 0.4652707038 | BN54: 0.006092513259 | BO54: 0.03757164421 | BP54: 205931172.8 | BQ54: 38976770.88 | BR54: 0.1362750217 | BS54: =I54=Comparatives!$D$3 -> FALSE | BT54: 7 | BU54: =ROW() -> 54 | BV54: =NOT(ISNA(MATCH(BU54,Comparatives!$F:$F,0))) -> FALSE | BW54: =BU54='List Box etc'!$G$18 -> FALSE | BX54: =K54=Assumptions!$F$16 -> FALSE | BY54: FALSE
B55: Bangladesh | C55: 54 | D55: Store 54 | E55: Store 54 Bangladesh | F55: 16486797.38 | G55: 651.5 | H55: Brand Type 12 | I55: Brand Type 12 | J55: Classification Type 18 | K55: Classification Type 18 | L55: 1650461 | M55: 1812138.36 | N55: 11357562.75 | O55: 3806785.74 | P55: 18315 | Q55: 3825100.74 | R55: -2009015.1 | S55: -99216.54 | T55: -62518.44 | U55: -21171.27 | V55: -764343.33 | W55: -714946.83 | X55: -1939.46 | Y55: -115044.16 | Z55: -22901.85 | AA55: -119455.86 | AB55: 1692682.5 | AC55: 3.06 | AD55: -21035.81 | AE55: -2621490.3 | AF55: 937196.64 | AG55: -12230415.72 | AH55: 5754397.74 | AI55: -18864 | AJ55: 18864 | AK55: 0 | AL55: 0 | AM55: 0 | AN55: 8845012.39 | AO55: 0.6831380145 | AP55: 4102609.03 | AQ55: 0.3168619855 | AR55: =Comparatives!$D$3 -> Brand Type 15 | AS55: 7 | AT55: 0.3351762895 | AU55: 0.00161258189 | AV55: 0.3367888714 | AW55: 0.06729818244 | AX55: 1173.205418 | AY55: 0.001864068063 | AZ55: 32.4961934 | BA55: 8160311.64 | BB55: 0.01463863946 | BC55: 14870770.02 | BD55: 0.008032930362 | BE55: 0.01051773718 | BF55: 32.28827322 | BG55: 0.001852141209 | BH55: 237159.49 | BI55: 0.02088119566 | BJ55: 364.0207061 | BK55: 1097.385771 | BL55: 98.93768227 | BM55: 0.3168619855 | BN55: 0.01012929997 | BO55: 0.1453182374 | BP55: 9810772.64 | BQ55: 1692682.5 | BR55: 0.1242237941 | BS55: =I55=Comparatives!$D$3 -> FALSE | BT55: 7 | BU55: =ROW() -> 55 | BV55: =NOT(ISNA(MATCH(BU55,Comparatives!$F:$F,0))) -> FALSE | BW55: =BU55='List Box etc'!$G$18 -> FALSE | BX55: =K55=Assumptions!$F$16 -> FALSE | BY55: FALSE
B56: Bangladesh | C56: 55 | D56: Store 55 | E56: Store 55 Bangladesh | F56: 9828713.93 | G56: 975.6 | H56: Brand Type 12 | I56: Brand Type 12 | J56: Classification Type 15 | K56: Classification Type 15 | L56: 3142176.538 | M56: 3985111.57 | N56: 21235660.64 | O56: 8878726.16 | P56: 195074.89 | Q56: 9073801.05 | R56: -5088689.48 | S56: -541415.31 | T56: -41728.5 | U56: -208172.62 | V56: -1623687.72 | W56: -1927458.87 | X56: 14812.5 | Y56: -126034.85 | Z56: -50318.93 | AA56: -620828.4 | AB56: 3364283.17 | AC56: -86441.06 | AD56: -119531.16 | AE56: -5555530.29 | AF56: 3065451.97 | AG56: -41648628.58 | AH56: 22647106.8 | AI56: 0 | AJ56: 0 | AK56: 0 | AL56: 0 | AM56: 0 | AN56: 12643621.7 | AO56: 0.5248986738 | AP56: 11444116.24 | AQ56: 0.4751013262 | AR56: =Comparatives!$D$3 -> Brand Type 15 | AS56: 7 | AT56: 0.4181045417 | AU56: 0.009186193606 | AV56: 0.4272907353 | AW56: 0.07646042888 | AX56: 1664.296556 | AY56: 0.00980297357 | AZ56: 213.3790693 | BA56: 21491600.1 | BB56: 0.02888702549 | BC56: 47204158.87 | BD56: 0.01315198522 | BE56: 0.02923518183 | BF56: 122.5206642 | BG56: 0.005628794038 | BH56: 804210.15 | BI56: 0.03787073845 | BJ56: 824.323647 | BK56: 1975.665098 | BL56: 27.58917589 | BM56: 0.4751013262 | BN56: 0.005935056702 | BO56: 0.1479669784 | BP56: 24633776.64 | BQ56: 3364283.17 | BR56: 0.09833181156 | BS56: =I56=Comparatives!$D$3 -> FALSE | BT56: 7 | BU56: =ROW() -> 56 | BV56: =NOT(ISNA(MATCH(BU56,Comparatives!$F:$F,0))) -> FALSE | BW56: =BU56='List Box etc'!$G$18 -> FALSE | BX56: =K56=Assumptions!$F$16 -> FALSE | BY56: FALSE
B57: Bangladesh | C57: 56 | D57: Store 56 | E57: Store 56 Bangladesh | F57: 19906067.61 | G57: 1300 | H57: Brand Type 13 | I57: Brand Type 13 | J57: Classification Type 20 | K57: Classification Type 20 | L57: 510766.6154 | M57: 2459567.11 | N57: 11506423.47 | O57: 5119287.45 | P57: -43014.2 | Q57: 5076273.25 | R57: -2616706.14 | S57: -403324.73 | T57: 0 | U57: -52654.72 | V57: -1092430.11 | W57: -471570.33 | X57: 0 | Y57: -23655.89 | Z57: -43571.47 | AA57: 181394.19 | AB57: 2640961.3 | AC57: -54712.11 | AD57: -121901.2 | AE57: -6526427.16 | AF57: 3841236.84 | AG57: 16617939.24 | AH57: -12313374.63 | AI57: 0 | AJ57: 0 | AK57: 0 | AL57: 0 | AM57: 0 | AN57: 8729398.23 | AO57: 0.6654862685 | AP57: 4387924.61 | AQ57: 0.3345137315 | AR57: =Comparatives!$D$3 -> Brand Type 15 | AS57: 7 | AT57: 0.4449069221 | AU57: -0.003738277156 | AV57: 0.4411686449 | AW57: 0.09494089218 | AX57: 840.3308538 | AY57: 0.004576115257 | AZ57: 40.50363077 | BA57: -1619374.29 | BB57: 0.112014987 | BC57: -10091512.08 | BD57: 0.01797492671 | BE57: -0.01576460231 | BF57: 93.77015385 | BG57: 0.01059418683 | BH57: 525264.2 | BI57: 0.04564964964 | BJ57: 404.0493846 | BK57: 362.7464077 | BL57: 0 | BM57: 0.3345137315 | BN57: 0.002055885572 | BO57: 0.04438969387 | BP57: -1108607.675 | BQ57: 2640961.3 | BR57: -1.715207444 | BS57: =I57=Comparatives!$D$3 -> FALSE | BT57: 7 | BU57: =ROW() -> 57 | BV57: =NOT(ISNA(MATCH(BU57,Comparatives!$F:$F,0))) -> FALSE | BW57: =BU57='List Box etc'!$G$18 -> FALSE | BX57: =K57=Assumptions!$F$16 -> FALSE | BY57: FALSE
B58: Bangladesh | C58: 57 | D58: Store 57 | E58: Store 57 Bangladesh | F58: 15052863.58 | G58: 561 | H58: Brand Type 12 | I58: Brand Type 12 | J58: Classification Type 16 | K58: Classification Type 16 | L58: 597870.6154 | M58: 3605148.73 | N58: 16067251.42 | O58: 7289146.8 | P58: -18782.71 | Q58: 7270364.09 | R58: -3658886.79 | S58: -352090.01 | T58: 0 | U58: -118542.02 | V58: -1002939.19 | W58: -1564887.11 | X58: 0 | Y58: -29658.98 | Z58: -18530.27 | AA58: -401050.53 | AB58: 3204098.2 | AC58: -49128.79 | AD58: -111965.42 | AE58: -5717354.76 | AF58: 3398139.84 | AG58: -33237037.68 | AH58: 15761040.93 | AI58: 0 | AJ58: 0 | AK58: 0 | AL58: 0 | AM58: 0 | AN58: 11873706.21 | AO58: 0.6483042562 | AP58: 6441315.01 | AQ58: 0.3516957438 | AR58: =Comparatives!$D$3 -> Brand Type 15 | AS58: 7 | AT58: 0.4536648248 | AU58: -0.001169005794 | AV58: 0.452495819 | AW58: 0.06242132919 | AX58: 1787.770392 | AY58: 0.007377865504 | AZ58: 211.3048485 | BA58: 19795211.67 | BB58: 0.02025997684 | BC58: 38954392.44 | BD58: 0.0102953866 | BE58: 0.02496074279 | BF58: 199.5818538 | BG58: 0.006968548451 | BH58: 449408.05 | BI58: 0.0279704374 | BJ58: 801.0838681 | BK58: 2789.460089 | BL58: 0 | BM58: 0.3516957438 | BN58: 0.001845927422 | BO58: 0.03721050974 | BP58: 20393082.29 | BQ58: 3204098.2 | BR58: 0.1131241796 | BS58: =I58=Comparatives!$D$3 -> FALSE | BT58: 7 | BU58: =ROW() -> 58 | BV58: =NOT(ISNA(MATCH(BU58,Comparatives!$F:$F,0))) -> FALSE | BW58: =BU58='List Box etc'!$G$18 -> FALSE | BX58: =K58=Assumptions!$F$16 -> FALSE | BY58: FALSE
B59: Bangladesh | C59: 58 | D59: Store 58 | E59: Store 58 Bangladesh | F59: 16633112.34 | G59: 1022 | H59: Brand Type 12 | I59: Brand Type 12 | J59: Classification Type 15 | K59: Classification Type 15 | L59: 1393293.308 | M59: 1434535.43 | N59: 8954934.7 | O59: 3713546.05 | P59: 92369.42 | Q59: 3805915.47 | R59: -2364066.27 | S59: -366507.58 | T59: 0 | U59: -104516.74 | V59: -698757.25 | W59: -704119.14 | X59: 0 | Y59: -42511.31 | Z59: -54106.96 | AA59: -485181.84 | AB59: 949353.59 | AC59: -34728.98 | AD59: -118571.83 | AE59: -10644480 | AF59: 8791151.61 | AG59: -51353694.87 | AH59: 31786363.01 | AI59: -6600 | AJ59: 6600 | AK59: 0 | AL59: 0 | AM59: 0 | AN59: 6412404.54 | AO59: 0.6354088476 | AP59: 3679372.69 | AQ59: 0.3645911524 | AR59: =Comparatives!$D$3 -> Brand Type 15 | AS59: 7 | AT59: 0.4146927001 | AU59: 0.01031491832 | AV59: 0.4250076184 | AW59: 0.07803041266 | AX59: 683.7155088 | AY59: 0.01167141286 | AZ59: 102.2668689 | BA59: 21420660.25 | BB59: 0.02265018138 | BC59: 62004774.87 | BD59: 0.00782491092 | BE59: 0.05418038838 | BF59: 116.0194031 | BG59: 0.01324094859 | BH59: 497854.83 | BI59: 0.05559558463 | BJ59: 487.1377984 | BK59: 688.9619765 | BL59: 0 | BM59: 0.3645911524 | BN59: 0.004747249581 | BO59: 0.1555894436 | BP59: 22813953.56 | BQ59: 949353.59 | BR59: 0.02996125082 | BS59: =I59=Comparatives!$D$3 -> FALSE | BT59: 7 | BU59: =ROW() -> 59 | BV59: =NOT(ISNA(MATCH(BU59,Comparatives!$F:$F,0))) -> FALSE | BW59: =BU59='List Box etc'!$G$18 -> FALSE | BX59: =K59=Assumptions!$F$16 -> FALSE | BY59: FALSE
B60: Bangladesh | C60: 59 | D60: Store 59 | E60: Store 59 Bangladesh | F60: 13066714.46 | G60: 1100 | H60: Brand Type 13 | I60: Brand Type 13 | J60: Classification Type 21 | K60: Classification Type 21 | L60: 666748.9231 | M60: 3888133.86 | N60: 20911203.89 | O60: 9090121.07 | P60: 142477.81 | Q60: 9232598.88 | R60: -5338324.76 | S60: -571096.5 | T60: -192825.72 | U60: -315482.75 | V60: -1635052.79 | W60: -1740199.17 | X60: 0 | Y60: -136904.83 | Z60: -47564.33 | AA60: -799767.01 | AB60: 3088366.85 | AC60: -210817.02 | AD60: -145901.51 | AE60: -9504265.07 | AF60: 4160916.08 | AG60: -66241990.06 | AH60: 27049683.57 | AI60: 0 | AJ60: 0 | AK60: 0 | AL60: 0 | AM60: 0 | AN60: 12746233.48 | AO60: 0.5382790995 | AP60: 10933365.99 | AQ60: 0.4617209005 | AR60: =Comparatives!$D$3 -> Brand Type 15 | AS60: 7 | AT60: 0.4347009918 | AU60: 0.006813467591 | AV60: 0.4415144594 | AW60: 0.07819027535 | AX60: 1486.411627 | AY60: 0.01508678083 | AZ60: 286.8025 | BA60: 44535655.48 | BB60: 0.01795790365 | BC60: 75746255.13 | BD60: 0.01055850231 | BE60: 0.03824586161 | BF60: 132.6377364 | BG60: 0.00697719322 | BH60: 966382.68 | BI60: 0.04621363194 | BJ60: 878.5297091 | BK60: 1581.999245 | BL60: 175.2961091 | BM60: 0.4617209005 | BN60: 0.006546960697 | BO60: 0.03188476984 | BP60: 45202404.4 | BQ60: 3088366.85 | BR60: 0.04919260737 | BS60: =I60=Comparatives!$D$3 -> FALSE | BT60: 7 | BU60: =ROW() -> 60 | BV60: =NOT(ISNA(MATCH(BU60,Comparatives!$F:$F,0))) -> FALSE | BW60: =BU60='List Box etc'!$G$18 -> FALSE | BX60: =K60=Assumptions!$F$16 -> FALSE | BY60: FALSE
B61: Bangladesh | C61: 60 | D61: Store 60 | E61: Store 60 Bangladesh | F61: 43602861.93 | G61: 1528 | H61: Brand Type 12 | I61: Brand Type 12 | J61: Classification Type 18 | K61: Classification Type 18 | L61: 415597.0769 | M61: 2059287.53 | N61: 12203955.42 | O61: 5188518.06 | P61: 116877.23 | Q61: 5305395.29 | R61: -3246107.76 | S61: -434151.45 | T61: -56502.04 | U61: -248254.33 | V61: -1080187.66 | W61: -962426.44 | X61: 0 | Y61: -76022.29 | Z61: -39415.89 | AA61: -69333.55 | AB61: 1989953.98 | AC61: -43939.37 | AD61: -85267.81 | AE61: -1405628.73 | AF61: 1176798.67 | AG61: -6237240.04 | AH61: 3104130.85 | AI61: -68040 | AJ61: 62863.86 | AK61: 0 | AL61: 0 | AM61: 0 | AN61: 6595787.52 | AO61: 0.4798664913 | AP61: 7149259.57 | AQ61: 0.5201335087 | AR61: =Comparatives!$D$3 -> Brand Type 15 | AS61: 7 | AT61: 0.4251505255 | AU61: 0.009576995816 | AV61: 0.4347275213 | AW61: 0.08851127547 | AX61: 706.9290969 | AY61: 0.02034212036 | AZ61: 162.4701113 | BA61: 3367115.39 | BB61: 0.02059137926 | BC61: 7710908.77 | BD61: 0.008991618507 | BE61: 0.005681235928 | BF61: 55.80354058 | BG61: 0.006986899498 | BH61: 593529 | BI61: 0.04863415012 | BJ61: 388.4352094 | BK61: 629.8602356 | BL61: 36.97777487 | BM61: 0.5201335087 | BN61: 0.00622931561 | BO61: 0.03405429327 | BP61: 3782712.467 | BQ61: 1989953.98 | BR61: 0.3787670562 | BS61: =I61=Comparatives!$D$3 -> FALSE | BT61: 7 | BU61: =ROW() -> 61 | BV61: =NOT(ISNA(MATCH(BU61,Comparatives!$F:$F,0))) -> FALSE | BW61: =BU61='List Box etc'!$G$18 -> FALSE | BX61: =K61=Assumptions!$F$16 -> FALSE | BY61: FALSE
B62: Bangladesh | C62: 61 | D62: Store 61 | E62: Store 61 Bangladesh | F62: 27704187 | G62: 1521 | H62: Brand Type 12 | I62: Brand Type 12 | J62: Classification Type 22 | K62: Classification Type 22 | L62: 1641096 | M62: 3646400.11 | N62: 20312913.44 | O62: 8127924.1 | P62: 147841.1 | Q62: 8275765.2 | R62: -4614168.96 | S62: -435264.59 | T62: -26797.92 | U62: -141351.73 | V62: -2003701.27 | W62: -952236.72 | X62: 11440 | Y62: -135433.2 | Z62: -98552.33 | AA62: 167716.71 | AB62: 3814116.82 | AC62: -84824.93 | AD62: -184306.45 | AE62: -1210350.96 | AF62: 742998.6 | AG62: 6373829.64 | AH62: -8120450.7 | AI62: 0 | AJ62: 0 | AK62: 0 | AL62: 0 | AM62: 0 | AN62: 14172714.84 | AO62: 0.6201290795 | AP62: 8681744.51 | AQ62: 0.3798709205 | AR62: =Comparatives!$D$3 -> Brand Type 15 | AS62: 7 | AT62: 0.4001358113 | AU62: 0.007278182937 | AV62: 0.4074139943 | AW62: 0.09864174708 | AX62: 1317.357837 | AY62: 0.006958712763 | AZ62: 92.9334188 | BA62: 2213973.42 | BB62: -0.07575371433 | BC62: -5163478.68 | BD62: 0.03248134066 | BE62: -0.00825665459 | BF62: 121.1745233 | BG62: 0.009073363629 | BH62: 754075.05 | BI62: 0.03712293917 | BJ62: 495.7758383 | BK62: 626.059645 | BL62: 10.09725181 | BM62: 0.3798709205 | BN62: 0.006667344908 | BO62: 0.08079077405 | BP62: 3855069.42 | BQ62: 3814116.82 | BR62: 0.7123514031 | BS62: =I62=Comparatives!$D$3 -> FALSE | BT62: 7 | BU62: =ROW() -> 62 | BV62: =NOT(ISNA(MATCH(BU62,Comparatives!$F:$F,0))) -> FALSE | BW62: =BU62='List Box etc'!$G$18 -> FALSE | BX62: =K62=Assumptions!$F$16 -> FALSE | BY62: FALSE
B63: Bangladesh | C63: 62 | D63: Store 62 | E63: Store 62 Bangladesh | F63: 10573614.11 | G63: 642 | H63: Brand Type 12 | I63: Brand Type 12 | J63: Classification Type 15 | K63: Classification Type 15 | L63: 2358145.692 | M63: 5187098.57 | N63: 38075406.96 | O63: 15393099.96 | P63: 352298.54 | Q63: 15745398.5 | R63: -10482410.95 | S63: 260481.51 | T63: -820275.5 | U63: 168479.41 | V63: -3102979.72 | W63: -5553930.71 | X63: -46050.61 | Y63: -242396.39 | Z63: -79431.11 | AA63: -850570.62 | AB63: 4336527.95 | AC63: -54130.31 | AD63: -309878.72 | AE63: -3486427.57 | AF63: 1665298.53 | AG63: -95015065.09 | AH63: 55018044.32 | AI63: -11400 | AJ63: 11400 | AK63: 0 | AL63: 0 | AM63: 0 | AN63: 21572903.28 | AO63: 0.5044117719 | AP63: 21195534.1 | AQ63: 0.4955882281 | AR63: =Comparatives!$D$3 -> Brand Type 15 | AS63: 7 | AT63: 0.4042793285 | AU63: 0.009252653304 | AV63: 0.4135319819 | AW63: 0.08149564162 | AX63: 4833.301745 | AY63: -0.004424887964 | AZ63: -262.4289875 | BA63: 41818149.81 | BB63: 0.02033974779 | BC63: 98512892.66 | BD63: 0.008634104603 | BE63: 0.02233910778 | BF63: 482.677134 | BG63: 0.008138553065 | BH63: 115476.3 | BI63: 0.003032831668 | BJ63: 179.8696262 | BK63: 8650.982414 | BL63: 1349.417617 | BM63: 0.4955882281 | BN63: 0.006366219283 | BO63: 0.06193356501 | BP63: 44176295.5 | BQ63: 4336527.95 | BR63: 0.07067817907 | BS63: =I63=Comparatives!$D$3 -> FALSE | BT63: 7 | BU63: =ROW() -> 63 | BV63: =NOT(ISNA(MATCH(BU63,Comparatives!$F:$F,0))) -> FALSE | BW63: =BU63='List Box etc'!$G$18 -> FALSE | BX63: =K63=Assumptions!$F$16 -> FALSE | BY63: FALSE
B64: Bangladesh | C64: 63 | D64: Store 63 | E64: Store 63 Bangladesh | F64: 10353463.86 | G64: 495 | H64: Brand Type 15 | I64: Brand Type 15 | J64: Classification Type 25 | K64: Classification Type 25 | L64: 1153442.615 | M64: 18013257.43 | N64: 95769966.95 | O64: 41045204.87 | P64: 714494.71 | Q64: 41759699.58 | R64: -23717147.73 | S64: -2554876.21 | T64: -1317938.62 | U64: -234906.88 | V64: -6416988.32 | W64: -10030486.37 | X64: -13119.46 | Y64: -468268.11 | Z64: -342195.28 | AA64: -3137428.39 | AB64: 14875829.04 | AC64: -112632 | AD64: -1107701.27 | AE64: -74821316.55 | AF64: 8686522.15 | AG64: -373243753.3 | AH64: 81181176.92 | AI64: -13320 | AJ64: 13320 | AK64: 0 | AL64: 0 | AM64: 0 | AN64: 48943407.86 | AO64: 0.4498903692 | AP64: 59846224.49 | AQ64: 0.5501096308 | AR64: =Comparatives!$D$3 -> Brand Type 15 | AS64: 8 | AT64: 0.428581174 | AU64: 0.007460529984 | AV64: 0.436041704 | AW64: 0.06700418225 | AX64: 12963.61277 | AY64: 0.002452824069 | AZ64: 474.5593535 | BA64: 358197370.8 | BB64: 0.008758937519 | BC64: 448078389.9 | BD64: 0.007001963186 | BE64: 0.03276004461 | BF64: 2237.780343 | BG64: 0.01156626973 | BH64: 3477971.6 | BI64: 0.03631589016 | BJ64: 7026.205253 | BK64: 20263.60883 | BL64: 2689.006222 | BM64: 0.5501096308 | BN64: 0.004889508944 | BO64: 0.01204388653 | BP64: 359350813.4 | BQ64: 14875829.04 | BR64: 0.02980540605 | BS64: =I64=Comparatives!$D$3 -> TRUE | BT64: 8 | BU64: =ROW() -> 64 | BV64: =NOT(ISNA(MATCH(BU64,Comparatives!$F:$F,0))) -> TRUE | BW64: =BU64='List Box etc'!$G$18 -> FALSE | BX64: =K64=Assumptions!$F$16 -> FALSE | BY64: TRUE
B65: Bangladesh | C65: 64 | D65: Store 64 | E65: Store 64 Bangladesh | F65: 16967953.21 | G65: 279.78 | H65: Brand Type 15 | I65: Brand Type 15 | J65: Classification Type 26 | K65: Classification Type 26 | L65: 4293846.385 | M65: 1083903.8 | N65: 11116760.9 | O65: 4293090.34 | P65: -46173.8 | Q65: 4246916.54 | R65: -3163012.74 | S65: -125741.84 | T65: -162939.36 | U65: -77391.56 | V65: -944416.23 | W65: -880153.47 | X65: -21158.21 | Y65: -89257.6 | Z65: -71857.96 | AA65: -442605.69 | AB65: 641298.11 | AC65: -37487.13 | AD65: -79905.21 | AE65: -13631446.51 | AF65: 9659698.91 | AG65: -67432376.16 | AH65: 44093627.41 | AI65: -123358.8 | AJ65: 123358.8 | AK65: 0 | AL65: 0 | AM65: 0 | AN65: 6885048.69 | AO65: 0.5433179522 | AP65: 5787178.8 | AQ65: 0.4566820478 | AR65: =Comparatives!$D$3 -> Brand Type 15 | AS65: 9 | AT65: 0.3861817645 | AU65: -0.004153530009 | AV65: 0.3820282345 | AW65: 0.08495426307 | AX65: 3375.567339 | AY65: 0.006961700508 | AZ65: 276.6157695 | BA65: 27310496.35 | BB65: 0.01620643156 | BC65: 81187181.47 | BD65: 0.005451669611 | BE65: 0.0398142673 | BF65: 285.6001501 | BG65: 0.007187814033 | BH65: 324344.53 | BI65: 0.02917617217 | BJ65: 1159.284188 | BK65: 3145.877011 | BL65: 658.008328 | BM65: 0.4566820478 | BN65: 0.008029101355 | BO65: 0.3862497739 | BP65: 31604342.73 | BQ65: 641298.11 | BR65: 0.01460984786 | BS65: =I65=Comparatives!$D$3 -> TRUE | BT65: 9 | BU65: =ROW() -> 65 | BV65: =NOT(ISNA(MATCH(BU65,Comparatives!$F:$F,0))) -> FALSE | BW65: =BU65='List Box etc'!$G$18 -> FALSE | BX65: =K65=Assumptions!$F$16 -> FALSE | BY65: TRUE
B66: Bangladesh | C66: 65 | D66: ="Store "&C66 -> Store 65 | E66: =D66&" "&B66 -> Store 65 Bangladesh | F66: 6042323.93 | G66: 500 | H66: Brand Type 15 | I66: Brand Type 15 | J66: Classification Type 24 | K66: Classification Type 24 | L66: 1024419 | M66: 7470340.04 | N66: 32423794.52 | O66: 12937341.51 | P66: 355434.37 | Q66: 13292775.88 | R66: -5798488.93 | S66: -537491.43 | T66: -274660.69 | U66: 4151.32 | V66: -1725252.66 | W66: -2186879.84 | X66: -18463.68 | Y66: -205327.1 | Z66: -50976.36 | AA66: -437562.65 | AB66: 7032777.39 | AC66: -84649.79 | AD66: -188393.81 | AE66: -7688080.08 | AF66: 7477542.52 | AG66: -34850568.6 | AH66: 29488053.07 | AI66: -423948.24 | AJ66: 418772.1 | AK66: 0 | AL66: 0 | AM66: 0 | AN66: 20920151.5 | AO66: 0.5804444329 | AP66: 15121457.85 | AQ66: 0.4195555671 | AR66: =Comparatives!$D$3 -> Brand Type 15 | AS66: 10 | AT66: =IF(N66,O66/N66) -> 0.3990076332 | AU66: =IF(N66,P66/N66) -> 0.01096214602 | AV66: =IF(N66,Q66/N66) -> 0.4099697792 | AW66: =IFERROR(-V66/N66,FALSE) -> 0.05320946193 | AX66: =IFERROR(-V66/G66,FALSE) -> 3450.50532 | AY66: =IFERROR(-U66/N66,FALSE) -> -0.0001280331331 | AZ66: =IFERROR(-U66/G66,FALSE) -> -8.30264 | BA66: =-SUM(AE66:AL66) -> 5578229.23 | BB66: =IFERROR(-AA66/BA66,FALSE) -> 0.07844113821 | BC66: =-(AE66+AG66+AI66+AK66) -> 42962596.92 | BD66: =IFERROR(-AA66/BC66,FALSE) -> 0.01018473466 | BE66: =IFERROR(-AA66/N66,FALSE) -> 0.01349510927 | BF66: =IFERROR(-AD66/G66,FALSE) -> 376.78762 | BG66: =IFERROR(-AD66/N66,FALSE) -> 0.005810356647 | BH66: =-(S66+Y66+Z66+AC66) -> 878444.68 | BI66: =IF(N66,BH66/N66) -> 0.02709259336 | BJ66: =IF(G66,BH66/G66) -> 1756.88936 | BK66: =IF(G66,-W66/G66) -> 4373.75968 | BL66: =IF(G66,-SUM(X66,T66)/G66) -> 586.24874 | BM66: =AQ66 -> 0.4195555671 | BN66: =IF(N66,-Y66/N66) -> 0.006332605515 | BO66: =IF(N66,L66/N66) -> 0.03159466729 | BP66: =BA66+L66 -> 6602648.23 | BQ66: =AB66 -> 7032777.39 | BR66: =BQ66*(1-0.28)/BP66 -> 0.7669043609 | BS66: =I66=Comparatives!$D$3 -> TRUE | BT66: 10 | BU66: =ROW() -> 66 | BV66: =NOT(ISNA(MATCH(BU66,Comparatives!$F:$F,0))) -> TRUE | BW66: =BU66='List Box etc'!$G$18 -> FALSE | BX66: =K66=Assumptions!$F$16 -> FALSE | BY66: =AR66=H66 -> TRUE
B67: Bangladesh | C67: 66 | D67: Store 66 | E67: Store 66 Bangladesh | F67: 2683184.69 | G67: 223 | H67: Brand Type 16 | I67: Brand Type 16 | J67: Classification Type 29 | K67: Classification Type 29 | L67: 1390940.308 | M67: 11310468.8 | N67: 49368846.3 | O67: 21639385.95 | P67: 451236.93 | Q67: 22090622.88 | R67: -10775843.98 | S67: -1179911.66 | T67: -368507.76 | U67: -581109.92 | V67: -3152024.4 | W67: -4386038.16 | X67: -2220 | Y67: -313548.11 | Z67: -89889.05 | AA67: -788003.3 | AB67: 10522465.5 | AC67: -105000.76 | AD67: -280301.54 | AE67: -7496022.12 | AF67: 3352711.32 | AG67: -79373302.73 | AH67: 41530519.16 | AI67: -505964.88 | AJ67: 505964.88 | AK67: 0 | AL67: 0 | AM67: 0 | AN67: 28630489.81 | AO67: 0.5120353961 | AP67: 27284570.02 | AQ67: 0.4879646039 | AR67: =Comparatives!$D$3 -> Brand Type 15 | AS67: 10 | AT67: 0.4383206733 | AU67: 0.009140114947 | AV67: 0.4474607882 | AW67: 0.06384642616 | AX67: 14134.63857 | AY67: 0.01177078185 | AZ67: 2605.874081 | BA67: 41986094.37 | BB67: 0.01876819723 | BC67: 87375289.73 | BD67: 0.00901860586 | BE67: 0.01596154982 | BF67: 1256.957578 | BG67: 0.005677700838 | BH67: 1688349.58 | BI67: 0.03419868412 | BJ67: 7571.07435 | BK67: 19668.33256 | BL67: 1662.456323 | BM67: 0.4879646039 | BN67: 0.006351133022 | BO67: 0.02817445438 | BP67: 43377034.68 | BQ67: 10522465.5 | BR67: 0.1746586694 | BS67: =I67=Comparatives!$D$3 -> FALSE | BT67: 10 | BU67: =ROW() -> 67 | BV67: =NOT(ISNA(MATCH(BU67,Comparatives!$F:$F,0))) -> FALSE | BW67: =BU67='List Box etc'!$G$18 -> FALSE | BX67: =K67=Assumptions!$F$16 -> FALSE | BY67: FALSE
B68: Bangladesh | C68: 67 | D68: Store 67 | E68: Store 67 Bangladesh | F68: 4050993.53 | G68: 50 | H68: Brand Type 17 | I68: Brand Type 17 | J68: Classification Type 32 | K68: Classification Type 32 | L68: 292711 | M68: -36668.35 | N68: 3584929.41 | O68: 1193703.78 | P68: 4896.15 | Q68: 1198599.93 | R68: -1235268.28 | S68: -107105.74 | T68: -12012.48 | U68: -42958.61 | V68: -628737.45 | W68: -236387.64 | X68: -1939.46 | Y68: -33114.93 | Z68: -20195.51 | AA68: -8518.6 | AB68: -45186.95 | AC68: -14305.27 | AD68: -14256.28 | AE68: -129780 | AF68: 119172.46 | AG68: -723424.51 | AH68: 390680.29 | AI68: -16560 | AJ68: 16560 | AK68: 0 | AL68: 0 | AM68: 0 | AN68: 1974782.48 | AO68: 0.483207657 | AP68: 2112037.03 | AQ68: 0.516792343 | AR68: =Comparatives!$D$3 -> Brand Type 15 | AS68: =AS67+BY68 -> 10 | AT68: 0.3329783222 | AU68: 0.00136575911 | AV68: 0.3343440813 | AW68: 0.1753834952 | AX68: 12574.749 | AY68: 0.01198311182 | AZ68: 859.1722 | BA68: 343351.76 | BB68: 0.02481012475 | BC68: 869764.51 | BD68: 0.009794145314 | BE68: 0.00237622531 | BF68: 285.1256 | BG68: 0.003976725444 | BH68: 174721.45 | BI68: 0.0487377658 | BJ68: 3494.429 | BK68: 4727.7528 | BL68: 279.0388 | BM68: 0.516792343 | BN68: 0.009237261383 | BO68: 0.08165042223 | BP68: 636062.76 | BQ68: -45186.95 | BR68: -0.05114999029 | BS68: =I68=Comparatives!$D$3 -> FALSE | BT68: =BT67+BS68 -> 10 | BU68: =ROW() -> 68 | BV68: =NOT(ISNA(MATCH(BU68,Comparatives!$F:$F,0))) -> FALSE | BW68: =BU68='List Box etc'!$G$18 -> FALSE | BX68: =K68=Assumptions!$F$16 -> FALSE | BY68: FALSE
B69: Bangladesh | C69: 68 | D69: Store 68 | E69: Store 68 Bangladesh | F69: 13375243.31 | G69: 710 | H69: Brand Type 29 | I69: Brand Type 29 | J69: Classification Type 35 | K69: Classification Type 35 | L69: 4273035 | M69: 494898.73 | N69: 8997017.42 | O69: 3491827.61 | P69: 81955.19 | Q69: 3573782.8 | R69: -3067739.71 | S69: -257901.54 | T69: -73910.49 | U69: -383753.32 | V69: -841343.46 | W69: -1006342.94 | X69: 0 | Y69: -61403.85 | Z69: -60068.49 | AA69: -128334.76 | AB69: 366563.97 | AC69: -32624.27 | AD69: -108485.59 | AE69: -5777252 | AF69: 4888869.09 | AG69: -7560049.97 | AH69: 3927278.15 | AI69: -16680 | AJ69: 16680 | AK69: 0 | AL69: 0 | AM69: 0 | AN69: 5226786.21 | AO69: 0.5190731405 | AP69: 4842673.76 | AQ69: 0.4809268595 | AR69: =Comparatives!$D$3 -> Brand Type 15 | AS69: 10 | AT69: 0.3881094642 | AU69: 0.009109150975 | AV69: 0.3972186151 | AW69: 0.09351359686 | AX69: 1184.990789 | AY69: 0.04265339302 | AZ69: 540.4976338 | BA69: 4521154.73 | BB69: 0.02838539437 | BC69: 13353981.97 | BD69: 0.009610224148 | BE69: 0.01426414488 | BF69: 152.7966056 | BG69: 0.01205795042 | BH69: 411998.15 | BI69: 0.04579274784 | BJ69: 580.2790845 | BK69: 1417.384423 | BL69: 104.0992817 | BM69: 0.4809268595 | BN69: 0.006824911761 | BO69: 0.4749390604 | BP69: 8794189.73 | BQ69: 366563.97 | BR69: 0.03001141282 | BS69: =I69=Comparatives!$D$3 -> FALSE | BT69: 10 | BU69: =ROW() -> 69 | BV69: =NOT(ISNA(MATCH(BU69,Comparatives!$F:$F,0))) -> FALSE | BW69: =BU69='List Box etc'!$G$18 -> FALSE | BX69: =K69=Assumptions!$F$16 -> FALSE | BY69: FALSE
B70: Bangladesh | C70: 69 | D70: Store 69 | E70: Store 69 Bangladesh | F70: 6869404.79 | G70: 453 | H70: Brand Type 29 | I70: Brand Type 29 | J70: Classification Type 35 | K70: Classification Type 35 | L70: 1444002.154 | M70: 1491581.82 | N70: 5741988.36 | O70: 2186632.38 | P70: -33125.59 | Q70: 2153506.79 | R70: -661924.97 | S70: -372460.16 | T70: 0 | U70: -74958.78 | V70: -486194.98 | W70: 570601.27 | X70: 0 | Y70: -44781.07 | Z70: -33804.92 | AA70: 86724.12 | AB70: 1578305.94 | AC70: -56067.61 | AD70: -53059.35 | AE70: -4708669.56 | AF70: 1374833.34 | AG70: 9041220.72 | AH70: -1123803.72 | AI70: 0 | AJ70: 0 | AK70: 0 | AL70: 0 | AM70: 0 | AN70: 4075328.92 | AO70: 0.6226301298 | AP70: 2470015.94 | AQ70: 0.3773698702 | AR70: =Comparatives!$D$3 -> Brand Type 15 | AS70: 10 | AT70: 0.3808144919 | AU70: -0.005769010302 | AV70: 0.3750454816 | AW70: 0.08467362689 | AX70: 1073.278102 | AY70: 0.01305449877 | AZ70: 165.4719205 | BA70: -4583580.78 | BB70: 0.01892060469 | BC70: -4332551.16 | BD70: 0.02001687154 | BE70: -0.01510349979 | BF70: 117.1288079 | BG70: 0.00924058822 | BH70: 507113.76 | BI70: 0.08831675166 | BJ70: 1119.456424 | BK70: -1259.605453 | BL70: 0 | BM70: 0.3773698702 | BN70: 0.007798878575 | BO70: 0.2514812053 | BP70: -3139578.626 | BQ70: 1578305.94 | BR70: -0.3619531192 | BS70: =I70=Comparatives!$D$3 -> FALSE | BT70: 10 | BU70: =ROW() -> 70 | BV70: =NOT(ISNA(MATCH(BU70,Comparatives!$F:$F,0))) -> FALSE | BW70: =BU70='List Box etc'!$G$18 -> FALSE | BX70: =K70=Assumptions!$F$16 -> FALSE | BY70: FALSE
B71: Bangladesh | C71: 70 | D71: Store 70 | E71: Store 70 Bangladesh | F71: 4116570.71 | G71: 273 | H71: Brand Type 29 | I71: Brand Type 29 | J71: Classification Type 35 | K71: Classification Type 35 | L71: 4992455.462 | M71: 1472438.54 | N71: 11269494.78 | O71: 4283373.75 | P71: 96418.33 | Q71: 4379792.08 | R71: -2899827.39 | S71: -454843.66 | T71: -55831.26 | U71: -263436.97 | V71: -1119055.3 | W71: 212759.2 | X71: -11150 | Y71: -54621.87 | Z71: -40136.64 | AA71: -624511.44 | AB71: 847927.1 | AC71: -66215.54 | AD71: -177973.45 | AE71: -7963992.11 | AF71: 3339491.55 | AG71: -51933949.23 | AH71: 19022868.84 | AI71: 0 | AJ71: 0 | AK71: 0 | AL71: 0 | AM71: 0 | AN71: 6992179.66 | AO71: 0.548841318 | AP71: 5747713.33 | AQ71: 0.451158682 | AR71: =Comparatives!$D$3 -> Brand Type 15 | AS71: 10 | AT71: 0.3800856945 | AU71: 0.008555692325 | AV71: 0.3886413868 | AW71: 0.09929950915 | AX71: 4099.103663 | AY71: 0.02337611181 | AZ71: 964.9705861 | BA71: 37535580.95 | BB71: 0.01663785198 | BC71: 59897941.34 | BD71: 0.01042625883 | BE71: 0.05541609914 | BF71: 651.9173993 | BG71: 0.01579249589 | BH71: 615817.71 | BI71: 0.05464465994 | BJ71: 2255.742527 | BK71: -779.3377289 | BL71: 245.3526007 | BM71: 0.451158682 | BN71: 0.004846878327 | BO71: 0.443006147 | BP71: 42528036.41 | BQ71: 847927.1 | BR71: 0.01435541265 | BS71: =I71=Comparatives!$D$3 -> FALSE | BT71: 10 | BU71: =ROW() -> 71 | BV71: =NOT(ISNA(MATCH(BU71,Comparatives!$F:$F,0))) -> FALSE | BW71: =BU71='List Box etc'!$G$18 -> FALSE | BX71: =K71=Assumptions!$F$16 -> FALSE | BY71: FALSE
B72: Bangladesh | C72: 71 | D72: Store 71 | E72: Store 71 Bangladesh | F72: 3608976.83 | G72: 400 | H72: Brand Type 29 | I72: Brand Type 29 | J72: Classification Type 35 | K72: Classification Type 35 | L72: 1768363.769 | M72: 280338.95 | N72: 9572883.5 | O72: 3741991.98 | P72: 89526.29 | Q72: 3831518.27 | R72: -3551179.32 | S72: -388550 | T72: 55508.6 | U72: -36629.13 | V72: -1259150.82 | W72: -1106641.05 | X72: -35160 | Y72: -72783.13 | Z72: -24390.61 | AA72: -56370.48 | AB72: 223968.47 | AC72: -29307.06 | AD72: -158236.9 | AE72: -8410466.7 | AF72: 2654156.16 | AG72: -3780887.52 | AH72: 447448.92 | AI72: 0 | AJ72: 0 | AK72: 0 | AL72: 0 | AM72: 0 | AN72: 5524936.22 | AO72: 0.5122515477 | AP72: 5260655.83 | AQ72: 0.4877484523 | AR72: =Comparatives!$D$3 -> Brand Type 15 | AS72: 10 | AT72: 0.390894967 | AU72: 0.0093520714 | AV72: 0.4002470384 | AW72: 0.1315330767 | AX72: 3147.87705 | AY72: 0.003826342397 | AZ72: 91.572825 | BA72: 9089749.14 | BB72: 0.006201544084 | BC72: 12191354.22 | BD72: 0.004623807904 | BE72: 0.00588855803 | BF72: 395.59225 | BG72: 0.01652970079 | BH72: 515030.8 | BI72: 0.0538010099 | BJ72: 1287.577 | BK72: 2766.602625 | BL72: -50.8715 | BM72: 0.4877484523 | BN72: 0.007603051891 | BO72: 0.1847263439 | BP72: 10858112.91 | BQ72: 223968.47 | BR72: 0.01485131899 | BS72: =I72=Comparatives!$D$3 -> FALSE | BT72: 10 | BU72: =ROW() -> 72 | BV72: =NOT(ISNA(MATCH(BU72,Comparatives!$F:$F,0))) -> FALSE | BW72: =BU72='List Box etc'!$G$18 -> FALSE | BX72: =K72=Assumptions!$F$16 -> FALSE | BY72: FALSE
B73: Barbados | C73: 72 | D73: Store 72 | E73: Store 72 Barbados | F73: 197721893.9 | G73: 6479.72 | H73: Brand Type 2 | I73: Brand Type 2 | J73: Classification Type 8 | K73: Classification Type 8 | L73: 36366663.15 | M73: -145459.8 | N73: 2013541.86 | O73: 706488.52 | P73: -9511.44 | Q73: 696977.08 | R73: -842436.88 | S73: -20000 | T73: -79732 | U73: 12869.76 | V73: -369654.03 | W73: -158659.6 | X73: 0 | Y73: -19729.56 | Z73: -26460.23 | AA73: -183047.28 | AB73: -328507.08 | AC73: -58090.09 | AD73: -32583.25 | AE73: -1815393.6 | AF73: 276204.84 | AG73: -15779560.12 | AH73: 1855120.92 | AI73: 0 | AJ73: 0 | AK73: 0 | AL73: 0 | AM73: 0 | AN73: 1659902.98 | AO73: 0.7231313512 | AP73: 635534.74 | AQ73: 0.2768686488 | AR73: =Comparatives!$D$3 -> Brand Type 15 | AS73: 10 | AT73: 0.3508685536 | AU73: -0.004723735915 | AV73: 0.3461448177 | AW73: 0.1835839807 | AX73: 57.04784003 | AY73: -0.006391602904 | AZ73: -1.986159896 | BA73: 15463627.96 | BB73: 0.0118372791 | BC73: 17594953.72 | BD73: 0.0104033965 | BE73: 0.09090810757 | BF73: 5.028496602 | BG73: 0.01618205742 | BH73: 124279.88 | BI73: 0.06172202449 | BJ73: 19.17982258 | BK73: 24.48556419 | BL73: 12.30485268 | BM73: 0.2768686488 | BN73: 0.009798435479 | BO73: 18.06104153 | BP73: 51830291.11 | BQ73: -328507.08 | BR73: -0.004563453002 | BS73: =I73=Comparatives!$D$3 -> FALSE | BT73: 10 | BU73: =ROW() -> 73 | BV73: =NOT(ISNA(MATCH(BU73,Comparatives!$F:$F,0))) -> FALSE | BW73: =BU73='List Box etc'!$G$18 -> FALSE | BX73: =K73=Assumptions!$F$16 -> FALSE | BY73: FALSE
B74: Barbados | C74: 73 | D74: Store 73 | E74: Store 73 Barbados | F74: 39337168.34 | G74: 1540 | H74: Brand Type 2 | I74: Brand Type 2 | J74: Classification Type 2 | K74: Classification Type 2 | L74: 9314961.462 | M74: 748816.9 | N74: 11518328.02 | O74: 4262237.65 | P74: 132345.54 | Q74: 4394583.19 | R74: -3644450.54 | S74: -454885.79 | T74: 0 | U74: -95233.78 | V74: -1048201.66 | W74: -1563095.34 | X74: -11860.52 | Y74: -73758.06 | Z74: -38363.07 | AA74: -18853.07 | AB74: 729963.83 | AC74: -44516.43 | AD74: -96534.33 | AE74: -188714.38 | AF74: 158162.95 | AG74: -1274811.05 | AH74: 523327.85 | AI74: -18600 | AJ74: 18600 | AK74: 0 | AL74: 0 | AM74: 0 | AN74: 6786717.15 | AO74: 0.5251415658 | AP74: 6136878.3 | AQ74: 0.4748584342 | AR74: =Comparatives!$D$3 -> Brand Type 15 | AS74: 10 | AT74: 0.3700396136 | AU74: 0.01148999575 | AV74: 0.3815296094 | AW74: 0.09100293534 | AX74: 680.6504286 | AY74: 0.008268021178 | AZ74: 61.84011688 | BA74: 782034.63 | BB74: 0.02410771758 | BC74: 1482125.43 | BD74: 0.01272029318 | BE74: 0.001636788774 | BF74: 62.68462987 | BG74: 0.008380932531 | BH74: 611523.35 | BI74: 0.05309132966 | BJ74: 397.0930844 | BK74: 1014.996974 | BL74: 7.701636364 | BM74: 0.4748584342 | BN74: 0.006403538766 | BO74: 0.8087077782 | BP74: 10096996.09 | BQ74: 729963.83 | BR74: 0.05205250679 | BS74: =I74=Comparatives!$D$3 -> FALSE | BT74: 10 | BU74: =ROW() -> 74 | BV74: =NOT(ISNA(MATCH(BU74,Comparatives!$F:$F,0))) -> FALSE | BW74: =BU74='List Box etc'!$G$18 -> FALSE | BX74: =K74=Assumptions!$F$16 -> FALSE | BY74: FALSE
B75: Barbados | C75: 74 | D75: Store 74 | E75: Store 74 Barbados | F75: 99811097.37 | G75: 4311.24 | H75: Brand Type 2 | I75: Brand Type 2 | J75: Classification Type 2 | K75: Classification Type 2 | L75: 3696571.154 | M75: 652841.14 | N75: 13407476.53 | O75: 5290956.34 | P75: 99397.92 | Q75: 5390354.26 | R75: -4735836.18 | S75: -688764.29 | T75: -15766.77 | U75: -124525.48 | V75: -1613951.93 | W75: -1630149.29 | X75: 0 | Y75: -74456.19 | Z75: -45666.91 | AA75: -599935.41 | AB75: 52905.73 | AC75: -60884.25 | AD75: -138218.16 | AE75: -8697111.39 | AF75: 2653511.18 | AG75: -49536120.05 | AH75: 16473872.24 | AI75: -17640 | AJ75: 17640 | AK75: 0 | AL75: 0 | AM75: 0 | AN75: 7676559.25 | AO75: 0.5086530047 | AP75: 7415378.04 | AQ75: 0.4913469953 | AR75: =Comparatives!$D$3 -> Brand Type 15 | AS75: 10 | AT75: 0.3946273058 | AU75: 0.007413618795 | AV75: 0.4020409245 | AW75: 0.1203770095 | AX75: 374.3591009 | AY75: 0.009287764161 | AZ75: 28.88391275 | BA75: 39105848.02 | BB75: 0.01534132209 | BC75: 58250871.44 | BD75: 0.01029916626 | BE75: 0.04474633304 | BF75: 32.05995491 | BG75: 0.01030903613 | BH75: 869771.64 | BI75: 0.06487213594 | BJ75: 201.7451221 | BK75: 378.1161081 | BL75: 3.657131127 | BM75: 0.4913469953 | BN75: 0.005553333607 | BO75: 0.2757096867 | BP75: 42802419.17 | BQ75: 52905.73 | BR75: 0.000889952632 | BS75: =I75=Comparatives!$D$3 -> FALSE | BT75: 10 | BU75: =ROW() -> 75 | BV75: =NOT(ISNA(MATCH(BU75,Comparatives!$F:$F,0))) -> FALSE | BW75: =BU75='List Box etc'!$G$18 -> FALSE | BX75: =K75=Assumptions!$F$16 -> FALSE | BY75: FALSE
B76: Barbados | C76: 75 | D76: Store 75 | E76: Store 75 Barbados | F76: 3619584.99 | G76: 113 | H76: Brand Type 1 | I76: Brand Type 1 | J76: Classification Type 1 | K76: Classification Type 1 | L76: 2272886.538 | M76: 5677817.07 | N76: 34100049.9 | O76: 14263265.2 | P76: 257542.36 | Q76: 14520807.56 | R76: -8842990.49 | S76: -954635.24 | T76: -76518.67 | U76: -197454.19 | V76: -2809721.11 | W76: -3541901.2 | X76: -49953 | Y76: -219432.65 | Z76: -99108.18 | AA76: -1198421.7 | AB76: 4479395.37 | AC76: -96998.09 | AD76: -265613.34 | AE76: -14722050.28 | AF76: 5400509.41 | AG76: -105820030.6 | AH76: 27125375.1 | AI76: 0 | AJ76: 0 | AK76: 0 | AL76: 0 | AM76: 0 | AN76: 18158442.37 | AO76: 0.469921697 | AP76: 20482979.14 | AQ76: 0.530078303 | AR76: =Comparatives!$D$3 -> Brand Type 15 | AS76: 10 | AT76: 0.4182769598 | AU76: 0.007552550825 | AV76: 0.4258295106 | AW76: 0.08239639292 | AX76: 24864.78858 | AY76: 0.005790436981 | AZ76: 1747.382212 | BA76: 88016196.33 | BB76: 0.01361592241 | BC76: 120542080.8 | BD76: 0.00994193639 | BE76: 0.03514427995 | BF76: 2350.560531 | BG76: 0.007789236109 | BH76: 1370174.16 | BI76: 0.04018100161 | BJ76: 12125.43504 | BK76: 31344.25841 | BL76: 1119.218319 | BM76: 0.530078303 | BN76: 0.006434965657 | BO76: 0.06665346664 | BP76: 90289082.87 | BQ76: 4479395.37 | BR76: 0.03572042781 | BS76: =I76=Comparatives!$D$3 -> FALSE | BT76: 10 | BU76: =ROW() -> 76 | BV76: =NOT(ISNA(MATCH(BU76,Comparatives!$F:$F,0))) -> FALSE | BW76: =BU76='List Box etc'!$G$18 -> FALSE | BX76: =K76=Assumptions!$F$16 -> FALSE | BY76: FALSE
B77: Barbados | C77: 76 | D77: Store 76 | E77: Store 76 Barbados | F77: 24460095.85 | G77: 2480.76 | H77: Brand Type 2 | I77: Brand Type 2 | J77: Classification Type 6 | K77: Classification Type 6 | L77: 762692.8462 | M77: -1850368.07 | N77: 14092242.7 | O77: 3822193.7 | P77: 126956.09 | Q77: 3949149.79 | R77: -7685566.99 | S77: -1009596.77 | T77: -17847.81 | U77: -357954.37 | V77: -1744671.2 | W77: -2053525.06 | X77: 0 | Y77: -111786.01 | Z77: -58271.6 | AA77: -323354.13 | AB77: -4071532 | AC77: -69386.79 | AD77: -332718.16 | AE77: -11019637.12 | AF77: 5250312.56 | AG77: -25569729.68 | AH77: 15424171.54 | AI77: -183531.12 | AJ77: 162541.2 | AK77: 0 | AL77: 0 | AM77: 0 | AN77: 8547467.45 | AO77: 0.5431918698 | AP77: 7188164.7 | AQ77: 0.4568081302 | AR77: =Comparatives!$D$3 -> Brand Type 15 | AS77: 10 | AT77: 0.2712267864 | AU77: 0.009008934398 | AV77: 0.2802357207 | AW77: 0.1238036583 | AX77: 703.28093 | AY77: 0.02540080934 | AZ77: 144.2922209 | BA77: 15935872.62 | BB77: 0.0202909585 | BC77: 36772897.92 | BD77: 0.008793272989 | BE77: 0.02294554081 | BF77: 134.1194473 | BG77: 0.02361002199 | BH77: 1249041.17 | BI77: 0.08863324288 | BJ77: 503.4913373 | BK77: 827.7806237 | BL77: 7.194492817 | BM77: 0.4568081302 | BN77: 0.007932449957 | BO77: 0.05412146685 | BP77: 16698565.47 | BQ77: -4071532 | BR77: -0.1755541843 | BS77: =I77=Comparatives!$D$3 -> FALSE | BT77: 10 | BU77: =ROW() -> 77 | BV77: =NOT(ISNA(MATCH(BU77,Comparatives!$F:$F,0))) -> FALSE | BW77: =BU77='List Box etc'!$G$18 -> FALSE | BX77: =K77=Assumptions!$F$16 -> FALSE | BY77: FALSE
B78: Barbados | C78: 77 | D78: Store 77 | E78: Store 77 Barbados | F78: 6218182.67 | G78: 591 | H78: Brand Type 12 | I78: Brand Type 12 | J78: Classification Type 18 | K78: Classification Type 18 | L78: 2019622.769 | M78: 1116623.67 | N78: 10410036.23 | O78: 4026413.76 | P78: 91074.53 | Q78: 4117488.29 | R78: -2987131.3 | S78: -279908.41 | T78: -24225.9 | U78: -279437.66 | V78: -831465.97 | W78: -1036807.69 | X78: 0 | Y78: -65599.85 | Z78: -18746.84 | AA78: -40068.96 | AB78: 1076554.71 | AC78: -43572.11 | AD78: -80483.91 | AE78: -1439313.93 | AF78: 1170167.73 | AG78: -3609477.88 | AH78: 2024234.32 | AI78: -65976 | AJ78: 65976 | AK78: 0 | AL78: 0 | AM78: 0 | AN78: 6811299.85 | AO78: 0.5825296135 | AP78: 4881324.34 | AQ78: 0.4174703865 | AR78: =Comparatives!$D$3 -> Brand Type 15 | AS78: 10 | AT78: 0.3867819161 | AU78: 0.008748723634 | AV78: 0.3955306398 | AW78: 0.07987157313 | AX78: 1406.879814 | AY78: 0.02684310158 | AZ78: 472.8217597 | BA78: 1854389.76 | BB78: 0.02160762579 | BC78: 5114767.81 | BD78: 0.007833974383 | BE78: 0.003849070178 | BF78: 136.1825888 | BG78: 0.007731376551 | BH78: 407827.21 | BI78: 0.03917634876 | BJ78: 690.0629611 | BK78: 1754.327733 | BL78: 40.99137056 | BM78: 0.4174703865 | BN78: 0.006301596704 | BO78: 0.1940072757 | BP78: 3874012.529 | BQ78: 1076554.71 | BR78: 0.2000817977 | BS78: =I78=Comparatives!$D$3 -> FALSE | BT78: 10 | BU78: =ROW() -> 78 | BV78: =NOT(ISNA(MATCH(BU78,Comparatives!$F:$F,0))) -> FALSE | BW78: =BU78='List Box etc'!$G$18 -> FALSE | BX78: =K78=Assumptions!$F$16 -> FALSE | BY78: FALSE
B79: Barbados | C79: 78 | D79: Store 78 | E79: Store 78 Barbados | F79: 14926946.8 | G79: 880 | H79: Brand Type 12 | I79: Brand Type 12 | J79: Classification Type 16 | K79: Classification Type 16 | L79: 3410469.385 | M79: 14758997.21 | N79: 66171195.37 | O79: 27024735.67 | P79: 569696.66 | Q79: 27594432.33 | R79: -12830479.24 | S79: -857312.19 | T79: -235805.49 | U79: -975164.46 | V79: -4832789.9 | W79: -4293839.44 | X79: -6379.46 | Y79: -371711.49 | Z79: -115587.06 | AA79: -942577.82 | AB79: 13816419.39 | AC79: -87142.12 | AD79: -300984.99 | AE79: -5055401.22 | AF79: 2356785.26 | AG79: -99218174.57 | AH79: 52926624.99 | AI79: -6600 | AJ79: 6600 | AK79: 0 | AL79: 0 | AM79: 0 | AN79: 39594581.87 | AO79: 0.5326639601 | AP79: 34738552.78 | AQ79: 0.4673360399 | AR79: =Comparatives!$D$3 -> Brand Type 15 | AS79: 10 | AT79: 0.4084063393 | AU79: 0.008609435825 | AV79: 0.4170157752 | AW79: 0.07303464707 | AX79: 5491.806705 | AY79: 0.01473699326 | AZ79: 1108.141432 | BA79: 48990165.54 | BB79: 0.0192401436 | BC79: 104280175.8 | BD79: 0.009038897498 | BE79: 0.01424453366 | BF79: 342.0283977 | BG79: 0.004548580214 | BH79: 1431752.86 | BI79: 0.02163710134 | BJ79: 1626.991886 | BK79: 4879.363 | BL79: 275.2101705 | BM79: 0.4673360399 | BN79: 0.005617421416 | BO79: 0.0515400903 | BP79: 52400634.92 | BQ79: 13816419.39 | BR79: 0.1898416303 | BS79: =I79=Comparatives!$D$3 -> FALSE | BT79: 10 | BU79: =ROW() -> 79 | BV79: =NOT(ISNA(MATCH(BU79,Comparatives!$F:$F,0))) -> FALSE | BW79: =BU79='List Box etc'!$G$18 -> FALSE | BX79: =K79=Assumptions!$F$16 -> FALSE | BY79: FALSE
B80: Barbados | C80: 79 | D80: Store 79 | E80: Store 79 Barbados | F80: 8966197.14 | G80: 600 | H80: Brand Type 12 | I80: Brand Type 12 | J80: Classification Type 16 | K80: Classification Type 16 | L80: 373431.2308 | M80: 2542014.87 | N80: 27288502.04 | O80: 9812290.62 | P80: 245290.41 | Q80: 10057581.03 | R80: -7507797.68 | S80: -750075.84 | T80: -384755.16 | U80: -75836.11 | V80: -2219518.5 | W80: -3054783.87 | X80: -21930.81 | Y80: -144009.55 | Z80: -20049.15 | AA80: -433667.26 | AB80: 2108347.61 | AC80: -28995.24 | AD80: -163631.83 | AE80: -16738490.37 | AF80: 13744943.15 | AG80: -47880001.99 | AH80: 32447867.85 | AI80: -73324.8 | AJ80: 73324.8 | AK80: 0 | AL80: 0 | AM80: 0 | AN80: 19491632.58 | AO80: 0.6374694718 | AP80: 11084941.58 | AQ80: 0.3625305282 | AR80: =Comparatives!$D$3 -> Brand Type 15 | AS80: 10 | AT80: 0.3595760077 | AU80: 0.008988782515 | AV80: 0.3685647902 | AW80: 0.0813353 | AX80: 3699.1975 | AY80: 0.002779049942 | AZ80: 126.3935167 | BA80: 18425681.36 | BB80: 0.02353602298 | BC80: 64691817.16 | BD80: 0.006703587548 | BE80: 0.01589194084 | BF80: 272.7197167 | BG80: 0.00599636542 | BH80: 943129.78 | BI80: 0.03456143465 | BJ80: 1571.882967 | BK80: 5091.30645 | BL80: 677.80995 | BM80: 0.3625305282 | BN80: 0.005277297735 | BO80: 0.0136845632 | BP80: 18799112.59 | BQ80: 2108347.61 | BR80: 0.08074903918 | BS80: =I80=Comparatives!$D$3 -> FALSE | BT80: 10 | BU80: =ROW() -> 80 | BV80: =NOT(ISNA(MATCH(BU80,Comparatives!$F:$F,0))) -> FALSE | BW80: =BU80='List Box etc'!$G$18 -> FALSE | BX80: =K80=Assumptions!$F$16 -> FALSE | BY80: FALSE
B81: Barbados | C81: 80 | D81: Store 80 | E81: Store 80 Barbados | F81: 30712875.82 | G81: 1323 | H81: Brand Type 12 | I81: Brand Type 12 | J81: Classification Type 15 | K81: Classification Type 15 | L81: 2283306.231 | M81: 40879352.25 | N81: 200298915.2 | O81: 84703711.73 | P81: 1992142.13 | Q81: 86695853.86 | R81: -45777686.13 | S81: -4293048.24 | T81: -3541133.76 | U81: -3571895.49 | V81: -14899902.31 | W81: -14066625.75 | X81: -345183.38 | Y81: -1510635 | Z81: -442134.97 | AA81: -5480986.32 | AB81: 35398365.93 | AC81: -1042238.66 | AD81: -916367.25 | AE81: -51733474.52 | AF81: 24164766.15 | AG81: -490600161.7 | AH81: 288898292.7 | AI81: -5325943.2 | AJ81: 5325162.84 | AK81: 0 | AL81: 0 | AM81: 0 | AN81: 119040822 | AO81: 0.5042349786 | AP81: 117041217.2 | AQ81: 0.4957650214 | AR81: =Comparatives!$D$3 -> Brand Type 15 | AS81: 10 | AT81: 0.4228865225 | AU81: 0.009945845825 | AV81: 0.4328323683 | AW81: 0.07438833251 | AX81: 11262.20885 | AY81: 0.01783282493 | AZ81: 2699.84542 | BA81: 229271357.7 | BB81: 0.0239061101 | BC81: 547659579.4 | BD81: 0.01000801689 | BE81: 0.02736403396 | BF81: 692.643424 | BG81: 0.004574998566 | BH81: 7288056.87 | BI81: 0.03638590284 | BJ81: 5508.735351 | BK81: 10632.37018 | BL81: 2937.503507 | BM81: 0.4957650214 | BN81: 0.007541903051 | BO81: 0.01139949374 | BP81: 231554664 | BQ81: 35398365.93 | BR81: 0.1100682795 | BS81: =I81=Comparatives!$D$3 -> FALSE | BT81: 10 | BU81: =ROW() -> 81 | BV81: =NOT(ISNA(MATCH(BU81,Comparatives!$F:$F,0))) -> FALSE | BW81: =BU81='List Box etc'!$G$18 -> FALSE | BX81: =K81=Assumptions!$F$16 -> FALSE | BY81: FALSE
B82: Barbados | C82: 81 | D82: Store 81 | E82: Store 81 Barbados | F82: 1553699.39 | G82: 400 | H82: Brand Type 12 | I82: Brand Type 12 | J82: Classification Type 16 | K82: Classification Type 16 | L82: 3610187.154 | M82: 337880.58 | N82: 18106960.26 | O82: 6645156.21 | P82: -84244.77 | Q82: 6560911.44 | R82: -6223030.86 | S82: -420342.57 | T82: -254724.17 | U82: -235477.79 | V82: -1610018.28 | W82: -3166522 | X82: -14603.06 | Y82: -137550.03 | Z82: -52251.4 | AA82: -242766.41 | AB82: 95114.17 | AC82: -29581.27 | AD82: -68768.25 | AE82: -7258720.84 | AF82: 4213616.93 | AG82: -33531558.72 | AH82: 21942319.44 | AI82: -128158.8 | AJ82: 128158.8 | AK82: 0 | AL82: 0 | AM82: 0 | AN82: 11351895.34 | AO82: 0.5500051814 | AP82: 9287719.93 | AQ82: 0.4499948186 | AR82: =Comparatives!$D$3 -> Brand Type 15 | AS82: 10 | AT82: 0.3669945764 | AU82: -0.004652618042 | AV82: 0.3623419583 | AW82: 0.08891709359 | AX82: 4025.0457 | AY82: 0.01300482172 | AZ82: 588.694475 | BA82: 14634343.19 | BB82: 0.01658881488 | BC82: 40918438.36 | BD82: 0.005932934387 | BE82: 0.01340735311 | BF82: 171.920625 | BG82: 0.00379789037 | BH82: 639725.27 | BI82: 0.03533035147 | BJ82: 1599.313175 | BK82: 7916.305 | BL82: 673.318075 | BM82: 0.4499948186 | BN82: 0.007596527966 | BO82: 0.1993811828 | BP82: 18244530.34 | BQ82: 95114.17 | BR82: 0.00375357442 | BS82: =I82=Comparatives!$D$3 -> FALSE | BT82: 10 | BU82: =ROW() -> 82 | BV82: =NOT(ISNA(MATCH(BU82,Comparatives!$F:$F,0))) -> FALSE | BW82: =BU82='List Box etc'!$G$18 -> FALSE | BX82: =K82=Assumptions!$F$16 -> FALSE | BY82: FALSE
B83: Barbados | C83: 82 | D83: Store 82 | E83: Store 82 Barbados | F83: 17418757.87 | G83: 1244 | H83: Brand Type 12 | I83: Brand Type 12 | J83: Classification Type 15 | K83: Classification Type 15 | L83: 1273723.923 | M83: 6930882.86 | N83: 48429133.11 | O83: 18234340.66 | P83: 355649.06 | Q83: 18589989.72 | R83: -11654834.43 | S83: -846623.83 | T83: -342077.24 | U83: -525263.91 | V83: -3596046.08 | W83: -4787411.06 | X83: 0 | Y83: -254621.97 | Z83: -61488.86 | AA83: -824582.95 | AB83: 6106299.91 | AC83: -107577.21 | AD83: -337999.53 | AE83: -4817995.43 | AF83: 2404544.57 | AG83: -87954076.16 | AH83: 47769531.03 | AI83: -538116.24 | AJ83: 538116.24 | AK83: 0 | AL83: 0 | AM83: 0 | AN83: 30360246.68 | AO83: 0.5592199187 | AP83: 23930106.12 | AQ83: 0.4407800813 | AR83: =Comparatives!$D$3 -> Brand Type 15 | AS83: 10 | AT83: 0.3765159417 | AU83: 0.007343700726 | AV83: 0.3838596425 | AW83: 0.07425377761 | AX83: 2890.712283 | AY83: 0.01084603164 | AZ83: 422.2378698 | BA83: 42597995.99 | BB83: 0.01935731789 | BC83: 93310187.83 | BD83: 0.008837008789 | BE83: 0.0170265891 | BF83: 271.7038023 | BG83: 0.006979260381 | BH83: 1270311.87 | BI83: 0.02623032436 | BJ83: 1021.151021 | BK83: 3848.401174 | BL83: 274.9817042 | BM83: 0.4407800813 | BN83: 0.005257619818 | BO83: 0.02630077892 | BP83: 43871719.91 | BQ83: 6106299.91 | BR83: 0.1002134392 | BS83: =I83=Comparatives!$D$3 -> FALSE | BT83: 10 | BU83: =ROW() -> 83 | BV83: =NOT(ISNA(MATCH(BU83,Comparatives!$F:$F,0))) -> FALSE | BW83: =BU83='List Box etc'!$G$18 -> FALSE | BX83: =K83=Assumptions!$F$16 -> FALSE | BY83: FALSE
B84: Barbados | C84: 83 | D84: Store 83 | E84: Store 83 Barbados | F84: 14370168.92 | G84: 650 | H84: Brand Type 12 | I84: Brand Type 12 | J84: Classification Type 18 | K84: Classification Type 18 | L84: 2575949 | M84: -320968.18 | N84: 2015180.78 | O84: 312611.06 | P84: 12008.04 | Q84: 324619.1 | R84: -645587.28 | S84: -250 | T84: 0 | U84: -146910.34 | V84: -374866.84 | W84: 0 | X84: -1939.46 | Y84: -20211.87 | Z84: -60334.72 | AA84: -68869.63 | AB84: -389837.81 | AC84: -1208.25 | AD84: -4404 | AE84: -990955.32 | AF84: 990867.8 | AG84: -6569948.28 | AH84: 5936500.88 | AI84: 0 | AJ84: 0 | AK84: 0 | AL84: 0 | AM84: 0 | AN84: 246083.3 | AO84: 0.1071182002 | AP84: 2051222.85 | AQ84: 0.8928817998 | AR84: =Comparatives!$D$3 -> Brand Type 15 | AS84: 10 | AT84: 0.1551280476 | AU84: 0.005958790457 | AV84: 0.1610868381 | AW84: 0.1860214447 | AX84: 576.7182154 | AY84: 0.07290181678 | AZ84: 226.0159077 | BA84: 633534.92 | BB84: 0.1087069202 | BC84: 7560903.6 | BD84: 0.009108650717 | BE84: 0.03417541031 | BF84: 6.775384615 | BG84: 0.002185411872 | BH84: 82004.84 | BI84: 0.04069354016 | BJ84: 126.1612923 | BK84: 0 | BL84: 2.983784615 | BM84: 0.8928817998 | BN84: 0.01002980487 | BO84: 1.278271918 | BP84: 3209483.92 | BQ84: -389837.81 | BR84: -0.08745431671 | BS84: =I84=Comparatives!$D$3 -> FALSE | BT84: 10 | BU84: =ROW() -> 84 | BV84: =NOT(ISNA(MATCH(BU84,Comparatives!$F:$F,0))) -> FALSE | BW84: =BU84='List Box etc'!$G$18 -> FALSE | BX84: =K84=Assumptions!$F$16 -> FALSE | BY84: FALSE
B85: Barbados | C85: 84 | D85: Store 84 | E85: Store 84 Barbados | F85: 9591526.69 | G85: 535 | H85: Brand Type 12 | I85: Brand Type 12 | J85: Classification Type 16 | K85: Classification Type 16 | L85: 354017.2308 | M85: 63576.21 | N85: 3898985.55 | O85: 1321610.63 | P85: 4387.12 | Q85: 1325997.75 | R85: -1262421.54 | S85: -149787.92 | T85: -9963.5 | U85: -24731.17 | V85: -627080.01 | W85: -247591.62 | X85: -6970.33 | Y85: -59561.78 | Z85: -13457.79 | AA85: -42783.08 | AB85: 20793.13 | AC85: 0 | AD85: -16446.91 | AE85: -3083104.2 | AF85: 3071740.84 | AG85: -11812113.48 | AH85: 11357307.5 | AI85: -1308151.56 | AJ85: 1308151.56 | AK85: 0 | AL85: 0 | AM85: 0 | AN85: 2629074.51 | AO85: 0.5914886644 | AP85: 1815768.93 | AQ85: 0.4085113356 | AR85: =Comparatives!$D$3 -> Brand Type 15 | AS85: 10 | AT85: 0.3389626899 | AU85: 0.001125195245 | AV85: 0.3400878852 | AW85: 0.1608315809 | AX85: 1172.112168 | AY85: 0.006342975547 | AZ85: 46.22648598 | BA85: 466169.34 | BB85: 0.09177583408 | BC85: 16203369.24 | BD85: 0.002640381723 | BE85: 0.01097287473 | BF85: 30.74188785 | BG85: 0.004218253643 | BH85: 222807.49 | BI85: 0.05714498993 | BJ85: 416.4625981 | BK85: 462.7880748 | BL85: 31.65201869 | BM85: 0.4085113356 | BN85: 0.01527622486 | BO85: 0.09079726668 | BP85: 820186.5708 | BQ85: 20793.13 | BR85: 0.01825322937 | BS85: =I85=Comparatives!$D$3 -> FALSE | BT85: 10 | BU85: =ROW() -> 85 | BV85: =NOT(ISNA(MATCH(BU85,Comparatives!$F:$F,0))) -> FALSE | BW85: =BU85='List Box etc'!$G$18 -> FALSE | BX85: =K85=Assumptions!$F$16 -> FALSE | BY85: FALSE
B86: Barbados | C86: 85 | D86: Store 85 | E86: Store 85 Barbados | F86: 20791592.26 | G86: 1620 | H86: Brand Type 12 | I86: Brand Type 12 | J86: Classification Type 15 | K86: Classification Type 15 | L86: 429818.2308 | M86: 782828.35 | N86: 6454966.1 | O86: 2251691.99 | P86: 2350.31 | Q86: 2254042.3 | R86: -1471213.95 | S86: -115803.14 | T86: -9556.94 | U86: 6613.26 | V86: -606088.24 | W86: -487910.5 | X86: -6484.69 | Y86: -81626.97 | Z86: -12749.06 | AA86: -24267.26 | AB86: 758561.09 | AC86: 0 | AD86: -14807.25 | AE86: -3082794.72 | AF86: 3067434.3 | AG86: -7451203.72 | AH86: 6895660.06 | AI86: -103309.8 | AJ86: 103309.8 | AK86: 0 | AL86: 0 | AM86: 0 | AN86: 5150835.05 | AO86: 0.699969019 | AP86: 2207826.42 | AQ86: 0.300030981 | AR86: =Comparatives!$D$3 -> Brand Type 15 | AS86: 10 | AT86: 0.3488309551 | AU86: 0.0003641088061 | AV86: 0.3491950639 | AW86: 0.09389487576 | AX86: 374.1285432 | AY86: -0.001024522809 | AZ86: -4.082259259 | BA86: 570904.08 | BB86: 0.04250672022 | BC86: 10637308.24 | BD86: 0.002281334662 | BE86: 0.003759471332 | BF86: 9.140277778 | BG86: 0.002293931489 | BH86: 210179.17 | BI86: 0.032560848 | BJ86: 129.7402284 | BK86: 301.179321 | BL86: 9.902240741 | BM86: 0.300030981 | BN86: 0.01264560785 | BO86: 0.06658721736 | BP86: 1000722.311 | BQ86: 758561.09 | BR86: 0.5457697694 | BS86: =I86=Comparatives!$D$3 -> FALSE | BT86: 10 | BU86: =ROW() -> 86 | BV86: =NOT(ISNA(MATCH(BU86,Comparatives!$F:$F,0))) -> FALSE | BW86: =BU86='List Box etc'!$G$18 -> FALSE | BX86: =K86=Assumptions!$F$16 -> FALSE | BY86: FALSE
B87: Barbados | C87: 86 | D87: Store 86 | E87: Store 86 Barbados | F87: 4432893.01 | G87: 348 | H87: Brand Type 15 | I87: Brand Type 15 | J87: Classification Type 24 | K87: Classification Type 24 | L87: 935313 | M87: -4579932.93 | N87: 47467177.57 | O87: 17483157.3 | P87: 675357.39 | Q87: 18158514.69 | R87: -22738447.62 | S87: -2836479.92 | T87: -2203 | U87: 217413.13 | V87: -4600811.76 | W87: -18148294.63 | X87: -2494.46 | Y87: -536404.39 | Z87: -942710.29 | AA87: -3631711.95 | AB87: -8211644.88 | AC87: -149551 | AD87: -587368.68 | AE87: -20731916.22 | AF87: 11465033.12 | AG87: -299826718.9 | AH87: 200359335.6 | AI87: 0 | AJ87: 0 | AK87: 0 | AL87: 0 | AM87: 0 | AN87: 39156158.97 | AO87: 0.6656874247 | AP87: 19664478.94 | AQ87: 0.3343125753 | AR87: =Comparatives!$D$3 -> Brand Type 15 | AS87: 11 | AT87: 0.3683209787 | AU87: 0.01422788176 | AV87: 0.3825488605 | AW87: 0.09692617079 | AX87: 13220.72345 | AY87: -0.004580283495 | AZ87: -624.7503736 | BA87: 108734266.4 | BB87: 0.03339988461 | BC87: 320558635.1 | BD87: 0.01132932185 | BE87: 0.07650996196 | BF87: 1687.841034 | BG87: 0.01237420698 | BH87: 4465145.6 | BI87: 0.09406806616 | BJ87: 12830.87816 | BK87: 52150.27193 | BL87: 13.49844828 | BM87: 0.3343125753 | BN87: 0.01130053265 | BO87: 0.01970441572 | BP87: 109669579.4 | BQ87: -8211644.88 | BR87: -0.05391088712 | BS87: =I87=Comparatives!$D$3 -> TRUE | BT87: 11 | BU87: =ROW() -> 87 | BV87: =NOT(ISNA(MATCH(BU87,Comparatives!$F:$F,0))) -> FALSE | BW87: =BU87='List Box etc'!$G$18 -> FALSE | BX87: =K87=Assumptions!$F$16 -> FALSE | BY87: TRUE
B88: Barbados | C88: 87 | D88: Store 87 | E88: Store 87 Barbados | F88: 7092071.96 | G88: 344 | H88: Brand Type 15 | I88: Brand Type 15 | J88: Classification Type 25 | K88: Classification Type 25 | L88: 2379327.615 | M88: 8458254.2 | N88: 96367249.1 | O88: 37524587.03 | P88: 735393.99 | Q88: 38259981.02 | R88: -29798434.94 | S88: -4122725.57 | T88: -1307501.04 | U88: -1011227.5 | V88: -9672697.2 | W88: -9482484.47 | X88: -95975.98 | Y88: -476842.07 | Z88: -372278.03 | AA88: -1986912.82 | AB88: 6471341.38 | AC88: -930338.48 | AD88: -857265.05 | AE88: -8815575.68 | AF88: 3497344.73 | AG88: -207058524.6 | AH88: 116058040 | AI88: -7840131 | AJ88: 7840131 | AK88: 0 | AL88: 0 | AM88: 0 | AN88: 62562250.58 | AO88: 0.5756246901 | AP88: 46123585.27 | AQ88: 0.4243753099 | AR88: =Comparatives!$D$3 -> Brand Type 15 | AS88: 12 | AT88: 0.3893914933 | AU88: 0.007631160969 | AV88: 0.3970226542 | AW88: 0.1003732834 | AX88: 28118.30581 | AY88: 0.01049347688 | AZ88: 2939.614826 | BA88: 96318715.53 | BB88: 0.02062852281 | BC88: 223714231.3 | BD88: 0.00888147709 | BE88: 0.02061813364 | BF88: 2492.049564 | BG88: 0.008895813235 | BH88: 5902184.15 | BI88: 0.06124678462 | BJ88: 17157.51206 | BK88: 27565.36183 | BL88: 4079.875058 | BM88: 0.4243753099 | BN88: 0.004948175593 | BO88: 0.02469020998 | BP88: 98698043.15 | BQ88: 6471341.38 | BR88: 0.0472082895 | BS88: =I88=Comparatives!$D$3 -> TRUE | BT88: 12 | BU88: =ROW() -> 88 | BV88: =NOT(ISNA(MATCH(BU88,Comparatives!$F:$F,0))) -> FALSE | BW88: =BU88='List Box etc'!$G$18 -> FALSE | BX88: =K88=Assumptions!$F$16 -> FALSE | BY88: TRUE
B89: Barbados | C89: 88 | D89: Store 88 | E89: Store 88 Barbados | F89: 6669145.04 | G89: 527.34 | H89: Brand Type 15 | I89: Brand Type 15 | J89: Classification Type 24 | K89: Classification Type 24 | L89: 1514287.385 | M89: -16789949.94 | N89: 23672369.77 | O89: -1511689.25 | P89: 183664.82 | Q89: -1328024.43 | R89: -15461925.51 | S89: -2909168.87 | T89: -926016.36 | U89: -1885658.27 | V89: -2173710.4 | W89: -6464144.94 | X89: -30600 | Y89: -95937.15 | Z89: -52581.15 | AA89: -426267.48 | AB89: -17216217.42 | AC89: -229045.46 | AD89: -196708.54 | AE89: -13671104.32 | AF89: 2482723.41 | AG89: -25225240.68 | AH89: 4011422.58 | AI89: 0 | AJ89: 0 | AK89: 0 | AL89: 0 | AM89: 0 | AN89: 20335823.37 | AO89: 0.7345007822 | AP89: 7350768.48 | AQ89: 0.2654992178 | AR89: =Comparatives!$D$3 -> Brand Type 15 | AS89: 13 | AT89: -0.06385880521 | AU89: 0.00775861571 | AV89: -0.0561001895 | AW89: 0.09182479072 | AX89: 4122.028293 | AY89: 0.07965650623 | AZ89: 3575.792221 | BA89: 32402199.01 | BB89: 0.01315551083 | BC89: 38896345 | BD89: 0.01095906261 | BE89: 0.01800696272 | BF89: 373.0203284 | BG89: 0.008309626029 | BH89: 3286732.63 | BI89: 0.1388425689 | BJ89: 6232.663234 | BK89: 12258.02128 | BL89: 1814.04096 | BM89: 0.2654992178 | BN89: 0.004052705789 | BO89: 0.0639685591 | BP89: 33916486.39 | BQ89: -17216217.42 | BR89: -0.3654764352 | BS89: =I89=Comparatives!$D$3 -> TRUE | BT89: 13 | BU89: =ROW() -> 89 | BV89: =NOT(ISNA(MATCH(BU89,Comparatives!$F:$F,0))) -> FALSE | BW89: =BU89='List Box etc'!$G$18 -> FALSE | BX89: =K89=Assumptions!$F$16 -> FALSE | BY89: TRUE
B90: Barbados | C90: 89 | D90: Store 89 | E90: Store 89 Barbados | F90: 2723180.49 | G90: 350 | H90: Brand Type 15 | I90: Brand Type 15 | J90: Classification Type 23 | K90: Classification Type 23 | L90: 1176169.846 | M90: 166642.5 | N90: 3247512.83 | O90: 1145968.19 | P90: 1646.63 | Q90: 1147614.82 | R90: -980972.32 | S90: -47378.89 | T90: 40278.59 | U90: -98907.84 | V90: -444061.02 | W90: -235263.81 | X90: -1939.46 | Y90: -55302.69 | Z90: -6552.09 | AA90: -33172.92 | AB90: 133469.58 | AC90: -20.53 | AD90: -8369.85 | AE90: -517837.8 | AF90: 324606.54 | AG90: -2815758.72 | AH90: 1487055.36 | AI90: 0 | AJ90: 0 | AK90: 0 | AL90: 0 | AM90: 0 | AN90: 2924298.91 | AO90: 0.7898889248 | AP90: 777865.81 | AQ90: 0.2101110752 | AR90: =Comparatives!$D$3 -> Brand Type 15 | AS90: 14 | AT90: 0.3528756467 | AU90: 0.0005070434164 | AV90: 0.3533826901 | AW90: 0.1367388039 | AX90: 1268.745771 | AY90: 0.03045648937 | AZ90: 282.5938286 | BA90: 1521934.62 | BB90: 0.02179654734 | BC90: 3333596.52 | BD90: 0.009951090302 | BE90: 0.01021486957 | BF90: 23.91385714 | BG90: 0.002577310834 | BH90: 109254.2 | BI90: 0.0336424229 | BJ90: 312.1548571 | BK90: 672.1823143 | BL90: -109.5403714 | BM90: 0.2101110752 | BN90: 0.0170292445 | BO90: 0.362175581 | BP90: 2698104.466 | BQ90: 133469.58 | BR90: 0.03561689282 | BS90: =I90=Comparatives!$D$3 -> TRUE | BT90: 14 | BU90: =ROW() -> 90 | BV90: =NOT(ISNA(MATCH(BU90,Comparatives!$F:$F,0))) -> FALSE | BW90: =BU90='List Box etc'!$G$18 -> FALSE | BX90: =K90=Assumptions!$F$16 -> FALSE | BY90: TRUE
B91: Barbados | C91: 90 | D91: Store 90 | E91: Store 90 Barbados | F91: 4672222.66 | G91: 50 | H91: Brand Type 17 | I91: Brand Type 17 | J91: Classification Type 32 | K91: Classification Type 32 | L91: 432652.2308 | M91: 941864.05 | N91: 13328777.7 | O91: 4898164.99 | P91: 90456.42 | Q91: 4988621.41 | R91: -4046757.36 | S91: -758242.67 | T91: 0 | U91: 272188.32 | V91: -1588585.27 | W91: -1283037.73 | X91: -34400 | Y91: -94099.22 | Z91: -35612.48 | AA91: 652990.15 | AB91: 1594854.2 | AC91: -70934.48 | AD91: -192511.46 | AE91: -7643566.31 | AF91: 2656249.02 | AG91: 7068999.2 | AH91: 7307911.35 | AI91: 0 | AJ91: 0 | AK91: 0 | AL91: 0 | AM91: 0 | AN91: 9648758.57 | AO91: 0.640130893 | AP91: 5424343.94 | AQ91: 0.359869107 | AR91: =Comparatives!$D$3 -> Brand Type 15 | AS91: 14 | AT91: 0.3674879348 | AU91: 0.006786550278 | AV91: 0.374274485 | AW91: 0.1191846174 | AX91: 31771.7054 | AY91: -0.02042110133 | AZ91: -5443.7664 | BA91: -9389593.26 | BB91: 0.06954402943 | BC91: 574567.11 | BD91: -1.136490653 | BE91: -0.04899100013 | BF91: 3850.2292 | BG91: 0.01444329438 | BH91: 958888.85 | BI91: 0.07194124409 | BJ91: 19177.777 | BK91: 25660.7546 | BL91: 688 | BM91: 0.359869107 | BN91: 0.007059853658 | BO91: 0.032460008 | BP91: -8956941.029 | BQ91: 1594854.2 | BR91: -0.1282016952 | BS91: =I91=Comparatives!$D$3 -> FALSE | BT91: 14 | BU91: =ROW() -> 91 | BV91: =NOT(ISNA(MATCH(BU91,Comparatives!$F:$F,0))) -> FALSE | BW91: =BU91='List Box etc'!$G$18 -> FALSE | BX91: =K91=Assumptions!$F$16 -> FALSE | BY91: FALSE
B92: Barbados | C92: 91 | D92: Store 91 | E92: Store 91 Barbados | F92: 4919213.91 | G92: 500 | H92: Brand Type 29 | I92: Brand Type 29 | J92: Classification Type 35 | K92: Classification Type 35 | L92: 1687621.385 | M92: 5155342.05 | N92: 26923840.5 | O92: 8656964.29 | P92: -26487.1 | Q92: 8630477.19 | R92: -3472146.54 | S92: -287848.7 | T92: -143718.63 | U92: 419005.45 | V92: -1411378.51 | W92: -1485900 | X92: -185 | Y92: -103684.98 | Z92: -27716.46 | AA92: -488567.86 | AB92: 4666774.19 | AC92: -16910.32 | AD92: -32706.59 | AE92: -10168543.9 | AF92: 1725724.66 | AG92: -35172062.16 | AH92: 5082319.66 | AI92: 0 | AJ92: 0 | AK92: 0 | AL92: 0 | AM92: 0 | AN92: 16658558.27 | AO92: 0.5438131085 | AP92: 13974315.43 | AQ92: 0.4561868915 | AR92: =Comparatives!$D$3 -> Brand Type 15 | AS92: 14 | AT92: 0.3215352687 | AU92: -0.0009837786701 | AV92: 0.32055149 | AW92: 0.05242114363 | AX92: 2822.75702 | AY92: -0.01556261819 | AZ92: -838.0109 | BA92: 38532561.74 | BB92: 0.0126793506 | BC92: 45340606.06 | BD92: 0.01077550352 | BE92: 0.01814629157 | BF92: 65.41318 | BG92: 0.001214781747 | BH92: 436160.46 | BI92: 0.01619978621 | BJ92: 872.32092 | BK92: 2971.8 | BL92: 287.80726 | BM92: 0.4561868915 | BN92: 0.003851047179 | BO92: 0.06268130227 | BP92: 40220183.12 | BQ92: 4666774.19 | BR92: 0.08354207156 | BS92: =I92=Comparatives!$D$3 -> FALSE | BT92: 14 | BU92: =ROW() -> 92 | BV92: =NOT(ISNA(MATCH(BU92,Comparatives!$F:$F,0))) -> FALSE | BW92: =BU92='List Box etc'!$G$18 -> FALSE | BX92: =K92=Assumptions!$F$16 -> FALSE | BY92: FALSE
B93: Barbados | C93: 92 | D93: Store 92 | E93: Store 92 Barbados | F93: 15267622.13 | G93: 470 | H93: Brand Type 29 | I93: Brand Type 29 | J93: Classification Type 35 | K93: Classification Type 35 | L93: 1593158.077 | M93: 1144961.98 | N93: 33696130.29 | O93: 11567475.45 | P93: 354777.04 | Q93: 11922252.49 | R93: -10748357.39 | S93: -942490.04 | T93: -930353.16 | U93: -392202.46 | V93: -3424059.4 | W93: -3737010.24 | X93: -3515 | Y93: -196155.17 | Z93: -65809.34 | AA93: -614095.02 | AB93: 530866.96 | AC93: -98097.74 | AD93: -258276.37 | AE93: -4055604.46 | AF93: 1947790.4 | AG93: -81410753.79 | AH93: 51364041.71 | AI93: -40152 | AJ93: 40152 | AK93: 0 | AL93: 0 | AM93: 0 | AN93: 20491903.47 | AO93: 0.5522005023 | AP93: 16617630.81 | AQ93: 0.4477994977 | AR93: =Comparatives!$D$3 -> Brand Type 15 | AS93: 14 | AT93: 0.3432879488 | AU93: 0.0105287176 | AV93: 0.3538166664 | AW93: 0.1016158049 | AX93: 7285.232766 | AY93: 0.01163939172 | AZ93: 834.4733191 | BA93: 32154526.14 | BB93: 0.01909824506 | BC93: 85506510.25 | BD93: 0.007181851045 | BE93: 0.01822449684 | BF93: 549.5241915 | BG93: 0.007664867383 | BH93: 1302552.29 | BI93: 0.03865584204 | BJ93: 2771.387851 | BK93: 7951.085617 | BL93: 1986.953532 | BM93: 0.4477994977 | BN93: 0.005821296639 | BO93: 0.04728014948 | BP93: 33747684.22 | BQ93: 530866.96 | BR93: 0.01132593895 | BS93: =I93=Comparatives!$D$3 -> FALSE | BT93: 14 | BU93: =ROW() -> 93 | BV93: =NOT(ISNA(MATCH(BU93,Comparatives!$F:$F,0))) -> FALSE | BW93: =BU93='List Box etc'!$G$18 -> FALSE | BX93: =K93=Assumptions!$F$16 -> FALSE | BY93: FALSE
B94: Barbados | C94: 93 | D94: Store 93 | E94: Store 93 Barbados | F94: 11388079.02 | G94: 574 | H94: Brand Type 29 | I94: Brand Type 29 | J94: Classification Type 35 | K94: Classification Type 35 | L94: 8606035.692 | M94: 7713706.34 | N94: 23212278.47 | O94: 7959619.04 | P94: 4915907.14 | Q94: 12875526.18 | R94: -5161819.84 | S94: -7796.16 | T94: -18223.92 | U94: 204355.75 | V94: -3942039.12 | W94: -472348.57 | X94: -22005 | Y94: -218211.41 | Z94: -354239.85 | AA94: -262236 | AB94: 7451470.34 | AC94: -6057.63 | AD94: -15163.92 | AE94: -1618010.52 | AF94: 738817.09 | AG94: -23317539 | AH94: 7813330.8 | AI94: 0 | AJ94: 0 | AK94: 0 | AL94: 0 | AM94: 0 | AN94: 24791883.96 | AO94: 0.937033117 | AP94: 1665968.5 | AQ94: 0.06296688299 | AR94: =Comparatives!$D$3 -> Brand Type 15 | AS94: 14 | AT94: 0.3429055467 | AU94: 0.2117804655 | AV94: 0.5546860123 | AW94: 0.1698256001 | AX94: 6867.663972 | AY94: -0.00880377815 | AZ94: -356.0204704 | BA94: 16383401.63 | BB94: 0.01600619981 | BC94: 24935549.52 | BD94: 0.01051655187 | BE94: 0.01129729683 | BF94: 26.41797909 | BG94: 0.0006532715011 | BH94: 586305.05 | BI94: 0.02525840153 | BJ94: 1021.437369 | BK94: 822.9069164 | BL94: 70.08522648 | BM94: 0.06296688299 | BN94: 0.009400688962 | BO94: 0.3707535951 | BP94: 24989437.32 | BQ94: 7451470.34 | BR94: 0.2146930551 | BS94: =I94=Comparatives!$D$3 -> FALSE | BT94: 14 | BU94: =ROW() -> 94 | BV94: =NOT(ISNA(MATCH(BU94,Comparatives!$F:$F,0))) -> FALSE | BW94: =BU94='List Box etc'!$G$18 -> FALSE | BX94: =K94=Assumptions!$F$16 -> FALSE | BY94: FALSE
B95: Barbados | C95: 94 | D95: Store 94 | E95: Store 94 Barbados | F95: 9576194.62 | G95: 312 | H95: Brand Type 29 | I95: Brand Type 29 | J95: Classification Type 35 | K95: Classification Type 35 | L95: 1983387 | M95: 3218481.26 | N95: 50188711.28 | O95: 20329010.05 | P95: 1348660.88 | Q95: 21677670.93 | R95: -18432795.39 | S95: -2605297.2 | T95: -667329.53 | U95: -945462.62 | V95: -5066223.38 | W95: -6555853.28 | X95: -80887.86 | Y95: -548659.82 | Z95: 196741.79 | AA95: -235914.7 | AB95: 2982566.56 | AC95: -516919.83 | AD95: -853520.4 | AE95: -59340067.94 | AF95: 20646778.23 | AG95: 4209622.97 | AH95: 4640117.54 | AI95: 0 | AJ95: 0 | AK95: 0 | AL95: 0 | AM95: 0 | AN95: 38210804.64 | AO95: 0.6294864664 | AP95: 22490746.04 | AQ95: 0.3705135336 | AR95: =Comparatives!$D$3 -> Brand Type 15 | AS95: 14 | AT95: 0.4050514455 | AU95: 0.02687179737 | AV95: 0.4319232428 | AW95: 0.1009434841 | AX95: 16237.89545 | AY95: 0.01883815296 | AZ95: 3030.32891 | BA95: 29843549.2 | BB95: 0.007905048371 | BC95: 55130444.97 | BD95: 0.004279209067 | BE95: 0.004700553052 | BF95: 2735.642308 | BG95: 0.01700622268 | BH95: 3474135.06 | BI95: 0.06922144385 | BJ95: 11135.04827 | BK95: 21012.35026 | BL95: 2398.13266 | BM95: 0.3705135336 | BN95: 0.0109319368 | BO95: 0.03951858793 | BP95: 31826936.2 | BQ95: 2982566.56 | BR95: 0.06747265617 | BS95: =I95=Comparatives!$D$3 -> FALSE | BT95: 14 | BU95: =ROW() -> 95 | BV95: =NOT(ISNA(MATCH(BU95,Comparatives!$F:$F,0))) -> FALSE | BW95: =BU95='List Box etc'!$G$18 -> FALSE | BX95: =K95=Assumptions!$F$16 -> FALSE | BY95: FALSE
B96: Benin | C96: 95 | D96: Store 95 | E96: Store 95 Benin | F96: 20341697.93 | G96: 2331 | H96: Brand Type 2 | I96: Brand Type 2 | J96: Classification Type 5 | K96: Classification Type 5 | L96: 96876886.69 | M96: 2500394.12 | N96: 17561837.42 | O96: 7134793.88 | P96: 177869.04 | Q96: 7312662.92 | R96: -4803476.94 | S96: -310726.67 | T96: -167998.62 | U96: -440974.96 | V96: -1463696.51 | W96: -1399860.03 | X96: -6848.52 | Y96: -134368.83 | Z96: -78106.96 | AA96: 120800.64 | AB96: 2621194.76 | AC96: -224111.68 | AD96: -169078.07 | AE96: -6553488.79 | AF96: 3632374.9 | AG96: 9408290.79 | AH96: -2757750.73 | AI96: -85510.2 | AJ96: 85510.2 | AK96: 0 | AL96: 0 | AM96: 0 | AN96: 12326305.45 | AO96: 0.6192832802 | AP96: 7577841.56 | AQ96: 0.3807167198 | AR96: =Comparatives!$D$3 -> Brand Type 15 | AS96: 14 | AT96: 0.406266936 | AU96: 0.01012815662 | AV96: 0.4163950927 | AW96: 0.0833452944 | AX96: 627.9264307 | AY96: 0.02510984184 | AZ96: 189.178447 | BA96: -3729426.17 | BB96: 0.03239121369 | BC96: -2769291.8 | BD96: 0.04362149196 | BE96: -0.006878587765 | BF96: 72.53456456 | BG96: 0.009627584287 | BH96: 747314.14 | BI96: 0.04255330021 | BJ96: 320.5980867 | BK96: 600.5405534 | BL96: 75.00949807 | BM96: 0.3807167198 | BN96: 0.007651182891 | BO96: 5.516329777 | BP96: 93147460.52 | BQ96: 2621194.76 | BR96: 0.02026099495 | BS96: =I96=Comparatives!$D$3 -> FALSE | BT96: 14 | BU96: =ROW() -> 96 | BV96: =NOT(ISNA(MATCH(BU96,Comparatives!$F:$F,0))) -> FALSE | BW96: =BU96='List Box etc'!$G$18 -> FALSE | BX96: =K96=Assumptions!$F$16 -> FALSE | BY96: FALSE
B97: Benin | C97: 96 | D97: Store 96 | E97: Store 96 Benin | F97: 12739892.99 | G97: 2000 | H97: Brand Type 2 | I97: Brand Type 2 | J97: Classification Type 5 | K97: Classification Type 5 | L97: 5822247.923 | M97: 1523882.95 | N97: 10460796.63 | O97: 3687693.47 | P97: 13232.31 | Q97: 3700925.78 | R97: -2177042.83 | S97: -89609.58 | T97: -12758.71 | U97: -46595.73 | V97: -710108.75 | W97: -999285.55 | X97: -539.46 | Y97: -120819.3 | Z97: -13773.08 | AA97: -385383.27 | AB97: 1138499.68 | AC97: -3729.59 | AD97: -23579.85 | AE97: -8711621.04 | AF97: 3281484.43 | AG97: -28610569.48 | AH97: 10320526.26 | AI97: -78000 | AJ97: 78000 | AK97: 0 | AL97: 0 | AM97: 0 | AN97: 9279336.86 | AO97: 0.7781213473 | AP97: 2645971.31 | AQ97: 0.2218786527 | AR97: =Comparatives!$D$3 -> Brand Type 15 | AS97: 14 | AT97: 0.3525251088 | AU97: 0.001264942859 | AV97: 0.3537900516 | AW97: 0.06788285588 | AX97: 355.054375 | AY97: 0.00445431946 | AZ97: 23.297865 | BA97: 23720179.83 | BB97: 0.01624706359 | BC97: 37400190.52 | BD97: 0.01030431302 | BE97: 0.03684071908 | BF97: 11.789925 | BG97: 0.00225411609 | BH97: 227931.55 | BI97: 0.02178911971 | BJ97: 113.965775 | BK97: 499.642775 | BL97: 6.649085 | BM97: 0.2218786527 | BN97: 0.01154972267 | BO97: 0.5565778716 | BP97: 29542427.75 | BQ97: 1138499.68 | BR97: 0.027747204 | BS97: =I97=Comparatives!$D$3 -> FALSE | BT97: 14 | BU97: =ROW() -> 97 | BV97: =NOT(ISNA(MATCH(BU97,Comparatives!$F:$F,0))) -> FALSE | BW97: =BU97='List Box etc'!$G$18 -> FALSE | BX97: =K97=Assumptions!$F$16 -> FALSE | BY97: FALSE
B98: Benin | C98: 97 | D98: Store 97 | E98: Store 97 Benin | F98: 112383435.6 | G98: 5810 | H98: Brand Type 2 | I98: Brand Type 2 | J98: Classification Type 8 | K98: Classification Type 8 | L98: 1623133.231 | M98: 55422680.54 | N98: 339256623.7 | O98: 136733388.9 | P98: 4656058.44 | Q98: 141389447.3 | R98: -85908849.51 | S98: -2960174.27 | T98: -5698349.8 | U98: -2385009.72 | V98: -31007221.83 | W98: -31020419.43 | X98: -363105.87 | Y98: -3443702.89 | Z98: -816865.65 | AA98: -8754642.46 | AB98: 46668038.08 | AC98: -1076030.31 | AD98: -1338001.58 | AE98: -224701337.4 | AF98: 124207189 | AG98: -618807125.6 | AH98: 340161740.5 | AI98: 0 | AJ98: 0 | AK98: 0 | AL98: 0 | AM98: 0 | AN98: 285612015.5 | AO98: 0.6777976923 | AP98: 135770380.4 | AQ98: 0.3222023077 | AR98: =Comparatives!$D$3 -> Brand Type 15 | AS98: 14 | AT98: 0.4030382292 | AU98: 0.01372429634 | AV98: 0.4167625255 | AW98: 0.09139754293 | AX98: 5336.871227 | AY98: 0.007030105098 | AZ98: 410.5008124 | BA98: 379139533.5 | BB98: 0.0230908193 | BC98: 843508463 | BD98: 0.01037884366 | BE98: 0.02580536929 | BF98: 230.2928709 | BG98: 0.003943921758 | BH98: 8296773.12 | BI98: 0.02445574394 | BJ98: 1428.016028 | BK98: 5339.142759 | BL98: 1043.279806 | BM98: 0.3222023077 | BN98: 0.01015073148 | BO98: 0.004784381843 | BP98: 380762666.8 | BQ98: 46668038.08 | BR98: 0.08824653872 | BS98: =I98=Comparatives!$D$3 -> FALSE | BT98: 14 | BU98: =ROW() -> 98 | BV98: =NOT(ISNA(MATCH(BU98,Comparatives!$F:$F,0))) -> FALSE | BW98: =BU98='List Box etc'!$G$18 -> FALSE | BX98: =K98=Assumptions!$F$16 -> FALSE | BY98: FALSE
B99: Benin | C99: 98 | D99: Store 98 | E99: Store 98 Benin | F99: 44965400.78 | G99: 5200 | H99: Brand Type 2 | I99: Brand Type 2 | J99: Classification Type 3 | K99: Classification Type 3 | L99: 1630480.692 | M99: 2751445.21 | N99: 21828026.48 | O99: 7137453.18 | P99: 9887.76 | Q99: 7147340.94 | R99: -4395895.73 | S99: -81697.56 | T99: -94571.38 | U99: 721454.56 | V99: -1309578.8 | W99: -2619242.13 | X99: -2864.46 | Y99: -275742.25 | Z99: -102542.03 | AA99: -80936.7 | AB99: 2670508.51 | AC99: -9044.63 | AD99: -49631.75 | AE99: -6286265.72 | AF99: 4434962.38 | AG99: -21664649.87 | AH99: 14950486.26 | AI99: -187213.68 | AJ99: 187213.68 | AK99: 0 | AL99: 0 | AM99: 0 | AN99: 20716305.49 | AO99: 0.8325500464 | AP99: 4166649.69 | AQ99: 0.1674499536 | AR99: =Comparatives!$D$3 -> Brand Type 15 | AS99: 14 | AT99: 0.3269857303 | AU99: 0.0004529846072 | AV99: 0.3274387149 | AW99: 0.05999529097 | AX99: 251.8420769 | AY99: -0.03305175393 | AZ99: -138.7412615 | BA99: 8565466.95 | BB99: 0.009449187122 | BC99: 28138129.27 | BD99: 0.002876406574 | BE99: 0.003707925683 | BF99: 9.544567308 | BG99: 0.002273762589 | BH99: 469026.47 | BI99: 0.02148735116 | BJ99: 90.19739808 | BK99: 503.7004096 | BL99: 18.73766154 | BM99: 0.1674499536 | BN99: 0.01263248651 | BO99: 0.07469666091 | BP99: 10195947.64 | BQ99: 2670508.51 | BR99: 0.1885814046 | BS99: =I99=Comparatives!$D$3 -> FALSE | BT99: 14 | BU99: =ROW() -> 99 | BV99: =NOT(ISNA(MATCH(BU99,Comparatives!$F:$F,0))) -> FALSE | BW99: =BU99='List Box etc'!$G$18 -> FALSE | BX99: =K99=Assumptions!$F$16 -> FALSE | BY99: FALSE
B100: Benin | C100: 99 | D100: Store 99 | E100: Store 99 Benin | F100: 38686934.6 | G100: 4002 | H100: Brand Type 2 | I100: Brand Type 2 | J100: Classification Type 4 | K100: Classification Type 4 | L100: 1860591.769 | M100: 8717805.54 | N100: 75684973.15 | O100: 31620503.8 | P100: 589218.18 | Q100: 32209721.98 | R100: -23482702.13 | S100: -2396296.65 | T100: -1370911.12 | U100: -1039032.52 | V100: -7350218.86 | W100: -8119126.78 | X100: -199016.77 | Y100: -457239.79 | Z100: -221673.33 | AA100: -1389877.36 | AB100: 7327928.18 | AC100: -270637.3 | AD100: -606588.1 | AE100: -17687657.14 | AF100: 9118679.28 | AG100: -201005694.4 | AH100: 138576194.9 | AI100: -207498.72 | AJ100: 207498.72 | AK100: 0 | AL100: 0 | AM100: 0 | AN100: 48258817.97 | AO100: 0.56063722 | AP100: 37819694.56 | AQ100: 0.43936278 | AR100: =Comparatives!$D$3 -> Brand Type 15 | AS100: 14 | AT100: 0.4177910421 | AU100: 0.0077851409 | AV100: 0.425576183 | AW100: 0.09711596046 | AX100: 1836.636397 | AY100: 0.01372838592 | AZ100: 259.6283158 | BA100: 70998477.37 | BB100: 0.01957615729 | BC100: 218900850.3 | BD100: 0.006349346557 | BE100: 0.01836398035 | BF100: 151.5712394 | BG100: 0.008014643789 | BH100: 3345847.07 | BI100: 0.04420754782 | BJ100: 836.0437456 | BK100: 2028.767311 | BL100: 392.2858296 | BM100: 0.43936278 | BN100: 0.006041354987 | BO100: 0.02458337094 | BP100: 72859069.14 | BQ100: 7327928.18 | BR100: 0.072415258 | BS100: =I100=Comparatives!$D$3 -> FALSE | BT100: 14 | BU100: =ROW() -> 100 | BV100: =NOT(ISNA(MATCH(BU100,Comparatives!$F:$F,0))) -> FALSE | BW100: =BU100='List Box etc'!$G$18 -> FALSE | BX100: =K100=Assumptions!$F$16 -> FALSE | BY100: FALSE
B101: Benin | C101: 100 | D101: Store 100 | E101: Store 100 Benin | F101: 23853329.8 | G101: 1842 | H101: Brand Type 2 | I101: Brand Type 2 | J101: Classification Type 6 | K101: Classification Type 6 | L101: 1182345.154 | M101: -193355.33 | N101: 1509403.85 | O101: 537404.33 | P101: -928.9 | Q101: 536475.43 | R101: -729830.76 | S101: -40617.04 | T101: -20686.37 | U101: -296308.52 | V101: -165744.74 | W101: -287155.73 | X101: 0 | Y101: -26184.54 | Z101: -6341.85 | AA101: -7991.4 | AB101: -201346.73 | AC101: 0 | AD101: -12566.04 | AE101: 0 | AF101: 0 | AG101: -767172 | AH101: 198926.34 | AI101: 0 | AJ101: 0 | AK101: 0 | AL101: 0 | AM101: 0 | AN101: 1552440.05 | AO101: 0.9022036004 | AP101: 168280.25 | AQ101: 0.09779639957 | AR101: =Comparatives!$D$3 -> Brand Type 15 | AS101: 14 | AT101: 0.3560374714 | AU101: -0.000615408527 | AV101: 0.3554220628 | AW101: 0.1098080809 | AX101: 89.98085776 | AY101: 0.1963083107 | AZ101: 160.8623887 | BA101: 568245.66 | BB101: 0.01406328383 | BC101: 767172 | BD101: 0.01041669925 | BE101: 0.00529440812 | BF101: 6.821954397 | BG101: 0.008325167582 | BH101: 73143.43 | BI101: 0.04845848909 | BJ101: 39.7087025 | BK101: 155.8934473 | BL101: 11.23038545 | BM101: 0.09779639957 | BN101: 0.01734760382 | BO101: 0.7833192912 | BP101: 1750590.814 | BQ101: -201346.73 | BR101: -0.08281183955 | BS101: =I101=Comparatives!$D$3 -> FALSE | BT101: 14 | BU101: =ROW() -> 101 | BV101: =NOT(ISNA(MATCH(BU101,Comparatives!$F:$F,0))) -> FALSE | BW101: =BU101='List Box etc'!$G$18 -> FALSE | BX101: =K101=Assumptions!$F$16 -> FALSE | BY101: FALSE
B102: Benin | C102: 101 | D102: Store 101 | E102: Store 101 Benin | F102: 6585744.83 | G102: 694 | H102: Brand Type 12 | I102: Brand Type 12 | J102: Classification Type 18 | K102: Classification Type 18 | L102: 2643767.231 | M102: 15395595.63 | N102: 63054769.96 | O102: 27270463.89 | P102: 485294.36 | Q102: 27755758.25 | R102: -12343075.83 | S102: -1484190.97 | T102: -661437.42 | U102: -121046.87 | V102: -4050479.54 | W102: -4385542.16 | X102: -3974.81 | Y102: -380092.57 | Z102: -77725.94 | AA102: -892738.45 | AB102: 14502857.18 | AC102: -67405.87 | AD102: -284579.35 | AE102: -9603347.16 | AF102: 4615775.52 | AG102: -106209433.3 | AH102: 63817349.76 | AI102: -6904.8 | AJ102: 6904.8 | AK102: 0 | AL102: 0 | AM102: 0 | AN102: 40948099.51 | AO102: 0.5738172312 | AP102: 30412775.15 | AQ102: 0.4261827688 | AR102: =Comparatives!$D$3 -> Brand Type 15 | AS102: 14 | AT102: 0.4324885161 | AU102: 0.007696394108 | AV102: 0.4401849102 | AW102: 0.06423748025 | AX102: 5836.42585 | AY102: 0.001919709961 | AZ102: 174.419121 | BA102: 47379655.13 | BB102: 0.01884223191 | BC102: 115819685.2 | BD102: 0.007708002732 | BE102: 0.014158143 | BF102: 410.0567003 | BG102: 0.004513208916 | BH102: 2009415.35 | BI102: 0.03186777703 | BJ102: 2895.411167 | BK102: 6319.225014 | BL102: 958.8072478 | BM102: 0.4261827688 | BN102: 0.00602797489 | BO102: 0.04192810841 | BP102: 50023422.36 | BQ102: 14502857.18 | BR102: 0.2087433581 | BS102: =I102=Comparatives!$D$3 -> FALSE | BT102: 14 | BU102: =ROW() -> 102 | BV102: =NOT(ISNA(MATCH(BU102,Comparatives!$F:$F,0))) -> FALSE | BW102: =BU102='List Box etc'!$G$18 -> FALSE | BX102: =K102=Assumptions!$F$16 -> FALSE | BY102: FALSE
B103: Benin | C103: 102 | D103: Store 102 | E103: Store 102 Benin | F103: 12037671.08 | G103: 730 | H103: Brand Type 12 | I103: Brand Type 12 | J103: Classification Type 15 | K103: Classification Type 15 | L103: 399490.0769 | M103: 15246049.13 | N103: 80929894.4 | O103: 34334581.04 | P103: 536772.98 | Q103: 34871354.02 | R103: -19615431.53 | S103: -1991185.61 | T103: -1205203.68 | U103: -1072346.37 | V103: -5942815.79 | W103: -7398429.99 | X103: -50778.79 | Y103: -428694.96 | Z103: -198466.05 | AA103: -1508125.38 | AB103: 13737923.75 | AC103: -155108.25 | AD103: -437503.48 | AE103: -22851052.21 | AF103: 15582929.64 | AG103: -174524400 | AH103: 103262316.6 | AI103: -991273.56 | AJ103: 991273.56 | AK103: 0 | AL103: 0 | AM103: 0 | AN103: 45000886.33 | AO103: 0.4906394722 | AP103: 46717959.95 | AQ103: 0.5093605278 | AR103: =Comparatives!$D$3 -> Brand Type 15 | AS103: 14 | AT103: 0.4242509062 | AU103: 0.006632567409 | AV103: 0.4308834736 | AW103: 0.07343165136 | AX103: 8140.843548 | AY103: 0.01325031224 | AZ103: 1468.96763 | BA103: 78530206.01 | BB103: 0.01920439862 | BC103: 198366725.8 | BD103: 0.007602713478 | BE103: 0.01863496043 | BF103: 599.3198356 | BG103: 0.005405956393 | BH103: 2773454.87 | BI103: 0.03426984417 | BJ103: 3799.253247 | BK103: 10134.8356 | BL103: 1720.523932 | BM103: 0.5093605278 | BN103: 0.00529711503 | BO103: 0.004936248588 | BP103: 78929696.09 | BQ103: 13737923.75 | BR103: 0.125317917 | BS103: =I103=Comparatives!$D$3 -> FALSE | BT103: 14 | BU103: =ROW() -> 103 | BV103: =NOT(ISNA(MATCH(BU103,Comparatives!$F:$F,0))) -> FALSE | BW103: =BU103='List Box etc'!$G$18 -> FALSE | BX103: =K103=Assumptions!$F$16 -> FALSE | BY103: FALSE
B104: Benin | C104: 103 | D104: Store 103 | E104: Store 103 Benin | F104: 9307465 | G104: 705.565 | H104: Brand Type 12 | I104: Brand Type 12 | J104: Classification Type 16 | K104: Classification Type 16 | L104: 456525.3077 | M104: 24225749.51 | N104: 106308573 | O104: 45558386.79 | P104: 1017458.83 | Q104: 46575845.62 | R104: -22338922.16 | S104: -1936628.48 | T104: -635299.96 | U104: 78214.87 | V104: -6427224.04 | W104: -10838683.44 | X104: -1939.46 | Y104: -609049.69 | Z104: -149137.02 | AA104: -4030353.45 | AB104: 20195396.06 | AC104: -66179.47 | AD104: -618315.52 | AE104: -30832656.24 | AF104: 13656563.04 | AG104: -99207353.35 | AH104: 64864976.71 | AI104: -634112.04 | AJ104: 634112.04 | AK104: 0 | AL104: 0 | AM104: 0 | AN104: 71337912.36 | AO104: 0.5855807755 | AP104: 50486292.51 | AQ104: 0.4144192245 | AR104: =Comparatives!$D$3 -> Brand Type 15 | AS104: 14 | AT104: 0.4285485688 | AU104: 0.009570806961 | AV104: 0.4381193758 | AW104: 0.0604581913 | AX104: 9109.329459 | AY104: -0.0007357343611 | AZ104: -110.8542374 | BA104: 51518469.84 | BB104: 0.07823123362 | BC104: 130674121.6 | BD104: 0.03084278203 | BE104: 0.03791183851 | BF104: 876.340975 | BG104: 0.005816233845 | BH104: 2760994.66 | BI104: 0.02597151465 | BJ104: 3913.168397 | BK104: 15361.70791 | BL104: 903.1618915 | BM104: 0.4144192245 | BN104: 0.005729074082 | BO104: 0.004294341416 | BP104: 51974995.15 | BQ104: 20195396.06 | BR104: 0.2797630884 | BS104: =I104=Comparatives!$D$3 -> FALSE | BT104: 14 | BU104: =ROW() -> 104 | BV104: =NOT(ISNA(MATCH(BU104,Comparatives!$F:$F,0))) -> FALSE | BW104: =BU104='List Box etc'!$G$18 -> FALSE | BX104: =K104=Assumptions!$F$16 -> FALSE | BY104: FALSE
B105: Benin | C105: 104 | D105: Store 104 | E105: Store 104 Benin | F105: 10198570.27 | G105: 619 | H105: Brand Type 12 | I105: Brand Type 12 | J105: Classification Type 22 | K105: Classification Type 22 | L105: 6180659.385 | M105: 62066676.05 | N105: 227529605.9 | O105: 98035758.38 | P105: 2096257.94 | Q105: 100132016.3 | R105: -38050722.94 | S105: -3496549.66 | T105: -240127.74 | U105: -3433797.33 | V105: -15733704.56 | W105: -5155120.95 | X105: -200834.61 | Y105: -1401329.73 | Z105: -509393.29 | AA105: -3622804.8 | AB105: 58443871.25 | AC105: -338828.68 | AD105: -841624.28 | AE105: -23856860.57 | AF105: 8782604.11 | AG105: -421323787.3 | AH105: 250518235.4 | AI105: -1535225.88 | AJ105: 1376207.74 | AK105: 0 | AL105: 0 | AM105: -74274.72 | AN105: 132159872.3 | AO105: 0.498252093 | AP105: 133087126.5 | AQ105: 0.501747907 | AR105: =Comparatives!$D$3 -> Brand Type 15 | AS105: 14 | AT105: 0.4308703389 | AU105: 0.00921312166 | AV105: 0.4400834605 | AW105: 0.06915014203 | AX105: 25417.93952 | AY105: 0.01509165068 | AZ105: 5547.330097 | BA105: 186038826.5 | BB105: 0.0194733802 | BC105: 446715873.7 | BD105: 0.008109863591 | BE105: 0.01592234464 | BF105: 1359.651502 | BG105: 0.003698966017 | BH105: 5746101.36 | BI105: 0.02525430191 | BJ105: 9282.877803 | BK105: 8328.1437 | BL105: 712.3785945 | BM105: 0.501747907 | BN105: 0.00615888963 | BO105: 0.02716419853 | BP105: 192219485.9 | BQ105: 58443871.25 | BR105: 0.2189142641 | BS105: =I105=Comparatives!$D$3 -> FALSE | BT105: 14 | BU105: =ROW() -> 105 | BV105: =NOT(ISNA(MATCH(BU105,Comparatives!$F:$F,0))) -> FALSE | BW105: =BU105='List Box etc'!$G$18 -> FALSE | BX105: =K105=Assumptions!$F$16 -> FALSE | BY105: FALSE
B106: Benin | C106: 105 | D106: Store 105 | E106: Store 105 Benin | F106: 8343357.47 | G106: 1473 | H106: Brand Type 13 | I106: Brand Type 13 | J106: Classification Type 21 | K106: Classification Type 21 | L106: 2430763.615 | M106: 4688613.6 | N106: 19044907.52 | O106: 8396405.53 | P106: 153228.04 | Q106: 8549633.57 | R106: -3861019.97 | S106: -367803.17 | T106: -31976.76 | U106: -34086.83 | V106: -1777225.36 | W106: -958006.58 | X106: 0 | Y106: -118612.05 | Z106: -41469.83 | AA106: -36427.97 | AB106: 4652185.63 | AC106: -23265.63 | AD106: -102391.32 | AE106: -395276.76 | AF106: 202591.66 | AG106: -4054011.26 | AH106: 2440435.77 | AI106: -19800 | AJ106: 19800 | AK106: 0 | AL106: 0 | AM106: 0 | AN106: 11535341.22 | AO106: 0.5348559563 | AP106: 10031851 | AQ106: 0.4651440437 | AR106: =Comparatives!$D$3 -> Brand Type 15 | AS106: 14 | AT106: 0.440874051 | AU106: 0.008045617435 | AV106: 0.4489196685 | AW106: 0.09331761565 | AX106: 1206.534528 | AY106: 0.001789813364 | AZ106: 23.14109301 | BA106: 1806260.59 | BB106: 0.02016761601 | BC106: 4469088.02 | BD106: 0.008151097011 | BE106: 0.001912740714 | BF106: 69.51209776 | BG106: 0.005376309646 | BH106: 551150.68 | BI106: 0.02893953039 | BJ106: 374.1688255 | BK106: 650.3778547 | BL106: 21.7085947 | BM106: 0.4651440437 | BN106: 0.006228019216 | BO106: 0.1276332591 | BP106: 4237024.205 | BQ106: 4652185.63 | BR106: 0.7905486236 | BS106: =I106=Comparatives!$D$3 -> FALSE | BT106: 14 | BU106: =ROW() -> 106 | BV106: =NOT(ISNA(MATCH(BU106,Comparatives!$F:$F,0))) -> FALSE | BW106: =BU106='List Box etc'!$G$18 -> FALSE | BX106: =K106=Assumptions!$F$16 -> FALSE | BY106: FALSE
B107: Benin | C107: 106 | D107: Store 106 | E107: Store 106 Benin | F107: 14109678.66 | G107: 732 | H107: Brand Type 12 | I107: Brand Type 12 | J107: Classification Type 16 | K107: Classification Type 16 | L107: 736418.0769 | M107: 3562760.58 | N107: 17436444.81 | O107: 7111687.71 | P107: 152882.17 | Q107: 7264569.88 | R107: -3701809.3 | S107: -399062.35 | T107: -19921.5 | U107: -367350.73 | V107: -1411333.25 | W107: -929322.67 | X107: 0 | Y107: -88137.64 | Z107: -47542.9 | AA107: -159447.05 | AB107: 3403313.53 | AC107: -60450.59 | AD107: -105064.85 | AE107: -10719302.38 | AF107: 7993576.48 | AG107: -4590024.34 | AH107: 2938496.68 | AI107: -18600 | AJ107: 18600 | AK107: 0 | AL107: 0 | AM107: 0 | AN107: 10718638.52 | AO107: 0.5424288022 | AP107: 9041813.87 | AQ107: 0.4575711978 | AR107: =Comparatives!$D$3 -> Brand Type 15 | AS107: 14 | AT107: 0.4078634026 | AU107: 0.008767966846 | AV107: 0.4166313695 | AW107: 0.08094157183 | AX107: 1928.050888 | AY107: 0.02106798341 | AZ107: 501.8452596 | BA107: 4377253.56 | BB107: 0.03642627685 | BC107: 15327926.72 | BD107: 0.01040238859 | BE107: 0.009144470202 | BF107: 143.5312158 | BG107: 0.006025588997 | BH107: 595193.48 | BI107: 0.03413502503 | BJ107: 813.105847 | BK107: 1269.566489 | BL107: 27.21516393 | BM107: 0.4575711978 | BN107: 0.005054794195 | BO107: 0.04223441676 | BP107: 5113671.637 | BQ107: 3403313.53 | BR107: 0.4791832397 | BS107: =I107=Comparatives!$D$3 -> FALSE | BT107: 14 | BU107: =ROW() -> 107 | BV107: =NOT(ISNA(MATCH(BU107,Comparatives!$F:$F,0))) -> FALSE | BW107: =BU107='List Box etc'!$G$18 -> FALSE | BX107: =K107=Assumptions!$F$16 -> FALSE | BY107: FALSE
B108: Benin | C108: 107 | D108: Store 107 | E108: Store 107 Benin | F108: 18267437.03 | G108: 1106 | H108: Brand Type 12 | I108: Brand Type 12 | J108: Classification Type 16 | K108: Classification Type 16 | L108: 496195.8462 | M108: 3628055.16 | N108: 22716193.1 | O108: 9293398.82 | P108: 195192.81 | Q108: 9488591.63 | R108: -5858424.63 | S108: -588267.02 | T108: -180896.4 | U108: -175008.52 | V108: -1678333.69 | W108: -2516984.46 | X108: 0 | Y108: -103563.49 | Z108: -35491 | AA108: -80406.4 | AB108: 3547648.76 | AC108: -26234.34 | AD108: -130191.28 | AE108: -12346680.35 | AF108: 11801675.24 | AG108: -65979937.35 | AH108: 63481265.92 | AI108: -9844.8 | AJ108: 9844.8 | AK108: 0 | AL108: 0 | AM108: 0 | AN108: 13229796.92 | AO108: 0.5248467953 | AP108: 11977172.12 | AQ108: 0.4751532047 | AR108: =Comparatives!$D$3 -> Brand Type 15 | AS108: 14 | AT108: 0.4091089902 | AU108: 0.008592672599 | AV108: 0.4177016628 | AW108: 0.07388270044 | AX108: 1517.480732 | AY108: 0.007704130671 | AZ108: 158.2355515 | BA108: 3043676.54 | BB108: 0.02641752464 | BC108: 78336462.5 | BD108: 0.001026423679 | BE108: 0.003539607171 | BF108: 117.7136347 | BG108: 0.005731210306 | BH108: 753555.85 | BI108: 0.03317262918 | BJ108: 681.3344033 | BK108: 2275.754485 | BL108: 163.559132 | BM108: 0.4751532047 | BN108: 0.004559016097 | BO108: 0.0218432659 | BP108: 3539872.386 | BQ108: 3547648.76 | BR108: 0.7215816924 | BS108: =I108=Comparatives!$D$3 -> FALSE | BT108: 14 | BU108: =ROW() -> 108 | BV108: =NOT(ISNA(MATCH(BU108,Comparatives!$F:$F,0))) -> FALSE | BW108: =BU108='List Box etc'!$G$18 -> FALSE | BX108: =K108=Assumptions!$F$16 -> FALSE | BY108: FALSE
B109: Benin | C109: 108 | D109: Store 108 | E109: Store 108 Benin | F109: 6213111.86 | G109: 537 | H109: Brand Type 12 | I109: Brand Type 12 | J109: Classification Type 15 | K109: Classification Type 15 | L109: 461676.6154 | M109: 2353599.46 | N109: 12913153.29 | O109: 5879087.4 | P109: -6292.1 | Q109: 5872795.3 | R109: -3512425.03 | S109: 0 | T109: 0 | U109: -64785.9 | V109: -1525182.08 | W109: -1269145.28 | X109: -24204 | Y109: -74070.14 | Z109: -109418.81 | AA109: -116323.32 | AB109: 2237276.14 | AC109: -38663.88 | AD109: -301834.75 | AE109: -9282943.63 | AF109: 250927.5 | AG109: -50733363.48 | AH109: 0 | AI109: 0 | AJ109: 0 | AK109: 0 | AL109: 0 | AM109: 0 | AN109: 6870654.67 | AO109: 0.4674800502 | AP109: 7826560.04 | AQ109: 0.5325199498 | AR109: =Comparatives!$D$3 -> Brand Type 15 | AS109: 14 | AT109: 0.455278991 | AU109: -0.0004872628597 | AV109: 0.4547917281 | AW109: 0.1181107392 | AX109: 2840.190093 | AY109: 0.005017047234 | AZ109: 120.6441341 | BA109: 59765379.61 | BB109: 0.001946332823 | BC109: 60016307.11 | BD109: 0.001938195227 | BE109: 0.009008126628 | BF109: 562.0758845 | BG109: 0.02337420948 | BH109: 222152.83 | BI109: 0.01720360821 | BJ109: 413.6924209 | BK109: 2363.399032 | BL109: 45.0726257 | BM109: 0.5325199498 | BN109: 0.005736022669 | BO109: 0.03575243049 | BP109: 60227056.23 | BQ109: 2237276.14 | BR109: 0.02674609921 | BS109: =I109=Comparatives!$D$3 -> FALSE | BT109: 14 | BU109: =ROW() -> 109 | BV109: =NOT(ISNA(MATCH(BU109,Comparatives!$F:$F,0))) -> FALSE | BW109: =BU109='List Box etc'!$G$18 -> FALSE | BX109: =K109=Assumptions!$F$16 -> FALSE | BY109: FALSE
B110: Benin | C110: 109 | D110: Store 109 | E110: Store 109 Benin | F110: 11517213.92 | G110: 723 | H110: Brand Type 12 | I110: Brand Type 12 | J110: Classification Type 15 | K110: Classification Type 15 | L110: 2259915.154 | M110: 9682293.98 | N110: 34956464.29 | O110: 15204059.79 | P110: -41741.5 | Q110: 15162318.29 | R110: -5480024.31 | S110: -511621.93 | T110: -48038 | U110: -56304.61 | V110: -2363453.68 | W110: -1527018.4 | X110: 0 | Y110: -173161.31 | Z110: -54250.78 | AA110: -109615.09 | AB110: 9572678.89 | AC110: -88084.25 | AD110: -124562.85 | AE110: -7094575.2 | AF110: 6684350.62 | AG110: -6362084.76 | AH110: 2958022.81 | AI110: -434411.64 | AJ110: 434411.64 | AK110: 0 | AL110: 0 | AM110: 0 | AN110: 21793239.45 | AO110: 0.5540113935 | AP110: 17543928.89 | AQ110: 0.4459886065 | AR110: =Comparatives!$D$3 -> Brand Type 15 | AS110: 14 | AT110: 0.4349427237 | AU110: -0.001194099599 | AV110: 0.4337486241 | AW110: 0.06761134823 | AX110: 3268.953914 | AY110: 0.001610706665 | AZ110: 77.87636238 | BA110: 3814286.53 | BB110: 0.02873803243 | BC110: 13891071.6 | BD110: 0.007891046361 | BE110: 0.003135760216 | BF110: 172.2860996 | BG110: 0.003563370968 | BH110: 827118.27 | BI110: 0.02366138243 | BJ110: 1144.008672 | BK110: 2112.058645 | BL110: 66.44260028 | BM110: 0.4459886065 | BN110: 0.004953627706 | BO110: 0.06464942035 | BP110: 6074201.684 | BQ110: 9572678.89 | BR110: 1.13468883 | BS110: =I110=Comparatives!$D$3 -> FALSE | BT110: 14 | BU110: =ROW() -> 110 | BV110: =NOT(ISNA(MATCH(BU110,Comparatives!$F:$F,0))) -> FALSE | BW110: =BU110='List Box etc'!$G$18 -> FALSE | BX110: =K110=Assumptions!$F$16 -> FALSE | BY110: FALSE
B111: Benin | C111: 110 | D111: Store 110 | E111: Store 110 Benin | F111: 6682637.29 | G111: 309 | H111: Brand Type 15 | I111: Brand Type 15 | J111: Classification Type 24 | K111: Classification Type 24 | L111: 1060887.308 | M111: -1109936.94 | N111: 13545941.45 | O111: 4928457.55 | P111: 53448.42 | Q111: 4981905.97 | R111: -6077401.81 | S111: -657866.04 | T111: -255305.64 | U111: -465033.18 | V111: -1260094.99 | W111: -7337100.18 | X111: 0 | Y111: -80577.66 | Z111: -28750.58 | AA111: -64221.6 | AB111: -1174158.54 | AC111: -20527.86 | AD111: -165557.86 | AE111: -1451903.92 | AF111: 699844.81 | AG111: -8788917.87 | AH111: 7150760.03 | AI111: -199332 | AJ111: 199332 | AK111: 0 | AL111: 0 | AM111: 0 | AN111: 8240278.73 | AO111: 0.5450563286 | AP111: 6877936.21 | AQ111: 0.4549436714 | AR111: =Comparatives!$D$3 -> Brand Type 15 | AS111: 15 | AT111: 0.3638327811 | AU111: 0.003945714678 | AV111: 0.3677784958 | AW111: 0.09302380308 | AX111: 4077.977314 | AY111: 0.03433007456 | AZ111: 1504.961748 | BA111: 2390216.95 | BB111: 0.02686852338 | BC111: 10440153.79 | BD111: 0.006151403638 | BE111: 0.004741021526 | BF111: 535.7859547 | BG111: 0.01222195302 | BH111: 787722.14 | BI111: 0.05815189316 | BJ111: 2549.262589 | BK111: 23744.66078 | BL111: 826.2318447 | BM111: 0.4549436714 | BN111: 0.005948472485 | BO111: 0.07831772429 | BP111: 3451104.258 | BQ111: -1174158.54 | BR111: -0.2449633757 | BS111: =I111=Comparatives!$D$3 -> TRUE | BT111: 15 | BU111: =ROW() -> 111 | BV111: =NOT(ISNA(MATCH(BU111,Comparatives!$F:$F,0))) -> FALSE | BW111: =BU111='List Box etc'!$G$18 -> FALSE | BX111: =K111=Assumptions!$F$16 -> FALSE | BY111: TRUE
B112: Benin | C112: 111 | D112: Store 111 | E112: Store 111 Benin | F112: 6788983.31 | G112: 319 | H112: Brand Type 15 | I112: Brand Type 15 | J112: Classification Type 24 | K112: Classification Type 24 | L112: 1457967.769 | M112: 1448738.46 | N112: 9600863.95 | O112: 3561936.99 | P112: -70679.82 | Q112: 3491257.17 | R112: -2042518.71 | S112: -229376.56 | T112: -69986.54 | U112: -16958.92 | V112: -481060.01 | W112: -960402.66 | X112: -1939.46 | Y112: -80659.05 | Z112: -52102.18 | AA112: -92467.62 | AB112: 1356270.84 | AC112: -30785.62 | AD112: -54323.67 | AE112: -6564333.96 | AF112: 3700443.12 | AG112: -6133519.02 | AH112: 2742857.28 | AI112: 0 | AJ112: 0 | AK112: 0 | AL112: 0 | AM112: 0 | AN112: 6820461.12 | AO112: 0.6240427603 | AP112: 4109016.08 | AQ112: 0.3759572397 | AR112: =Comparatives!$D$3 -> Brand Type 15 | AS112: 16 | AT112: 0.3710017149 | AU112: -0.007361818725 | AV112: 0.3636398962 | AW112: 0.05010590844 | AX112: 1508.02511 | AY112: 0.0017663952 | AZ112: 53.16275862 | BA112: 6254552.58 | BB112: 0.01478405031 | BC112: 12697852.98 | BD112: 0.007282146056 | BE112: 0.009631176994 | BF112: 170.2936364 | BG112: 0.005658206416 | BH112: 392923.41 | BI112: 0.04092583876 | BJ112: 1231.734828 | BK112: 3010.666646 | BL112: 225.4733542 | BM112: 0.3759572397 | BN112: 0.008401228308 | BO112: 0.1518579762 | BP112: 7712520.349 | BQ112: 1356270.84 | BR112: 0.1266142533 | BS112: =I112=Comparatives!$D$3 -> TRUE | BT112: 16 | BU112: =ROW() -> 112 | BV112: =NOT(ISNA(MATCH(BU112,Comparatives!$F:$F,0))) -> FALSE | BW112: =BU112='List Box etc'!$G$18 -> FALSE | BX112: =K112=Assumptions!$F$16 -> FALSE | BY112: TRUE
B113: Benin | C113: 112 | D113: Store 112 | E113: Store 112 Benin | F113: 2923342.8 | G113: 350 | H113: Brand Type 15 | I113: Brand Type 15 | J113: Classification Type 23 | K113: Classification Type 23 | L113: 2611449.769 | M113: 948874.15 | N113: 42199605.41 | O113: 16999352.65 | P113: 356312.02 | Q113: 17355664.67 | R113: -16393887.43 | S113: -3126620.1 | T113: -371977.92 | U113: -323189.14 | V113: -3346199.1 | W113: -7326929.28 | X113: -43431.14 | Y113: -180057.99 | Z113: -50457.87 | AA113: -1173920.7 | AB113: -225046.55 | AC113: -89974.75 | AD113: -683741.05 | AE113: -10381011.14 | AF113: 4915097.19 | AG113: -107077505.9 | AH113: 51831439.23 | AI113: -2040302.4 | AJ113: 2040302.4 | AK113: 0 | AL113: 0 | AM113: 0 | AN113: 24611341.78 | AO113: 0.5205447133 | AP113: 22668634.66 | AQ113: 0.4794552867 | AR113: =Comparatives!$D$3 -> Brand Type 15 | AS113: 17 | AT113: 0.4028320285 | AU113: 0.008443491747 | AV113: 0.4112755203 | AW113: 0.07929455898 | AX113: 9560.568857 | AY113: 0.007658582038 | AZ113: 923.3975429 | BA113: 60711980.6 | BB113: 0.01933589859 | BC113: 119498819.4 | BD113: 0.009823701236 | BE113: 0.02781828618 | BF113: 1953.545857 | BG113: 0.01620254605 | BH113: 3447110.71 | BI113: 0.08168585172 | BJ113: 9848.887743 | BK113: 20934.08366 | BL113: 1186.883029 | BM113: 0.4794552867 | BN113: 0.004266816911 | BO113: 0.06188327459 | BP113: 63323430.37 | BQ113: -225046.55 | BR113: -0.002558824041 | BS113: =I113=Comparatives!$D$3 -> TRUE | BT113: 17 | BU113: =ROW() -> 113 | BV113: =NOT(ISNA(MATCH(BU113,Comparatives!$F:$F,0))) -> FALSE | BW113: =BU113='List Box etc'!$G$18 -> FALSE | BX113: =K113=Assumptions!$F$16 -> FALSE | BY113: TRUE
B114: Benin | C114: 113 | D114: Store 113 | E114: Store 113 Benin | F114: 5922361.46 | G114: 90.06 | H114: Brand Type 17 | I114: Brand Type 17 | J114: Classification Type 32 | K114: Classification Type 32 | L114: 17187652.38 | M114: 9201674.61 | N114: 42413749.26 | O114: 18122319 | P114: 536707.71 | Q114: 18659026.71 | R114: -9453393.2 | S114: -1499335.7 | T114: -441293.2 | U114: -72558.31 | V114: -2449620.2 | W114: -3755771.91 | X114: -35197.03 | Y114: -290793.06 | Z114: -93364.86 | AA114: 337865.28 | AB114: 9539539.89 | AC114: -71587.63 | AD114: -289366.56 | AE114: -44948255.6 | AF114: 16621426.14 | AG114: -21190439 | AH114: 66650672.63 | AI114: 0 | AJ114: 0 | AK114: 0 | AL114: 0 | AM114: 0 | AN114: 28689286.91 | AO114: 0.6036491755 | AP114: 18837137.5 | AQ114: 0.3963508245 | AR114: =Comparatives!$D$3 -> Brand Type 15 | AS114: 17 | AT114: 0.4272746295 | AU114: 0.0126540973 | AV114: 0.4399287268 | AW114: 0.05775533271 | AX114: 27199.86898 | AY114: 0.001710726151 | AZ114: 805.6663336 | BA114: -17133404.17 | BB114: 0.01971968189 | BC114: 66138694.6 | BD114: -0.005108435872 | BE114: -0.0079659376 | BF114: 3213.041972 | BG114: 0.006822470662 | BH114: 1955081.25 | BI114: 0.04609545923 | BJ114: 21708.65256 | BK114: 41702.997 | BL114: 5290.808683 | BM114: 0.3963508245 | BN114: 0.006856103624 | BO114: 0.4052377515 | BP114: 54248.21462 | BQ114: 9539539.89 | BR114: 126.6118852 | BS114: =I114=Comparatives!$D$3 -> FALSE | BT114: 17 | BU114: =ROW() -> 114 | BV114: =NOT(ISNA(MATCH(BU114,Comparatives!$F:$F,0))) -> FALSE | BW114: =BU114='List Box etc'!$G$18 -> FALSE | BX114: =K114=Assumptions!$F$16 -> FALSE | BY114: FALSE
B115: Benin | C115: 114 | D115: Store 114 | E115: Store 114 Benin | F115: 2706960.81 | G115: 45 | H115: Brand Type 17 | I115: Brand Type 17 | J115: Classification Type 32 | K115: Classification Type 32 | L115: 348206.2308 | M115: 858400.07 | N115: 9733509.1 | O115: 3712996.52 | P115: -30439.82 | Q115: 3682556.7 | R115: -2824156.63 | S115: -485735.06 | T115: -108831.79 | U115: -126502.24 | V115: -872689.96 | W115: -875516 | X115: -1939.46 | Y115: -70484.69 | Z115: -28997.6 | AA115: -174153.65 | AB115: 684246.42 | AC115: -102660.56 | AD115: -125365.36 | AE115: -6937802.66 | AF115: 4958661.9 | AG115: -16000923.84 | AH115: 15900762.63 | AI115: 0 | AJ115: 0 | AK115: 0 | AL115: 0 | AM115: 0 | AN115: 7265684.91 | AO115: 0.6564458723 | AP115: 3802531.4 | AQ115: 0.3435541277 | AR115: =Comparatives!$D$3 -> Brand Type 15 | AS115: 17 | AT115: 0.3814653566 | AU115: -0.003127322293 | AV115: 0.3783380343 | AW115: 0.08965830833 | AX115: 19393.11022 | AY115: 0.01299657078 | AZ115: 2811.160889 | BA115: 2079301.97 | BB115: 0.08375582408 | BC115: 22938726.5 | BD115: 0.007592123739 | BE115: 0.01789217519 | BF115: 2785.896889 | BG115: 0.01287977015 | BH115: 687877.91 | BI115: 0.07067111182 | BJ115: 15286.17578 | BK115: 19455.91111 | BL115: 2461.583333 | BM115: 0.3435541277 | BN115: 0.007241446972 | BO115: 0.03577396674 | BP115: 2427508.201 | BQ115: 684246.42 | BR115: 0.2029477891 | BS115: =I115=Comparatives!$D$3 -> FALSE | BT115: 17 | BU115: =ROW() -> 115 | BV115: =NOT(ISNA(MATCH(BU115,Comparatives!$F:$F,0))) -> FALSE | BW115: =BU115='List Box etc'!$G$18 -> FALSE | BX115: =K115=Assumptions!$F$16 -> FALSE | BY115: FALSE
B116: Benin | C116: 115 | D116: Store 115 | E116: Store 115 Benin | F116: 18097403.21 | G116: 700 | H116: Brand Type 29 | I116: Brand Type 29 | J116: Classification Type 36 | K116: Classification Type 36 | L116: 7197169.692 | M116: 11725979.39 | N116: 49040783.75 | O116: 21389080.72 | P116: 338141.61 | Q116: 21727222.33 | R116: -9994833.3 | S116: -1126015.85 | T116: -341776.48 | U116: -184216.68 | V116: -2439036.67 | W116: -5650258.84 | X116: -2220 | Y116: -295818.07 | Z116: -46660.39 | AA116: -1650264.87 | AB116: 10075714.52 | AC116: -103785.58 | AD116: -300520.75 | AE116: -1154973.58 | AF116: 683397.09 | AG116: -3924776.87 | AH116: 7348506.1 | AI116: -15600 | AJ116: 15600 | AK116: 0 | AL116: 0 | AM116: -32506.08 | AN116: 27537550.9 | AO116: 0.4967696018 | AP116: 27895693.81 | AQ116: 0.5032303982 | AR116: =Comparatives!$D$3 -> Brand Type 15 | AS116: 17 | AT116: 0.4361488354 | AU116: 0.006895110236 | AV116: 0.4430439456 | AW116: 0.04973486318 | AX116: 3484.3381 | AY116: 0.003756397551 | AZ116: 263.1666857 | BA116: -2952152.74 | BB116: -0.5590038915 | BC116: 5095350.45 | BD116: 0.3238766178 | BE116: 0.03365086656 | BF116: 429.3153571 | BG116: 0.006127976085 | BH116: 1572279.89 | BI116: 0.03206065992 | BJ116: 2246.114129 | BK116: 8071.798343 | BL116: 491.4235429 | BM116: 0.5032303982 | BN116: 0.006032082838 | BO116: 0.1467588636 | BP116: 4245016.952 | BQ116: 10075714.52 | BR116: 1.708948288 | BS116: =I116=Comparatives!$D$3 -> FALSE | BT116: 17 | BU116: =ROW() -> 116 | BV116: =NOT(ISNA(MATCH(BU116,Comparatives!$F:$F,0))) -> FALSE | BW116: =BU116='List Box etc'!$G$18 -> FALSE | BX116: =K116=Assumptions!$F$16 -> FALSE | BY116: FALSE
B117: Benin | C117: 116 | D117: Store 116 | E117: Store 116 Benin | F117: 12861760.39 | G117: 408.51 | H117: Brand Type 29 | I117: Brand Type 29 | J117: Classification Type 35 | K117: Classification Type 35 | L117: 3689336.538 | M117: 5320775.66 | N117: 21299836.45 | O117: 9579765.26 | P117: -23855.17 | Q117: 9555910.09 | R117: -4235134.43 | S117: -92949.12 | T117: 0 | U117: 6267.85 | V117: -1513142.57 | W117: -1834104.39 | X117: 0 | Y117: -117760.85 | Z117: -63738.61 | AA117: -624300.28 | AB117: 4696475.38 | AC117: -148565.78 | AD117: -135026.95 | AE117: -6493239.36 | AF117: 5335578.82 | AG117: -53290807.68 | AH117: 38196376.98 | AI117: 0 | AJ117: 0 | AK117: 0 | AL117: 0 | AM117: 0 | AN117: 12531276.03 | AO117: 0.5250297026 | AP117: 11336470.82 | AQ117: 0.4749702974 | AR117: =Comparatives!$D$3 -> Brand Type 15 | AS117: 17 | AT117: 0.449757691 | AU117: -0.001119969632 | AV117: 0.4486377213 | AW117: 0.07104010275 | AX117: 3704.052704 | AY117: -0.0002942675177 | AZ117: -15.34319845 | BA117: 16252091.24 | BB117: 0.03841353527 | BC117: 59784047.04 | BD117: 0.0104425898 | BE117: 0.02931009736 | BF117: 330.5352378 | BG117: 0.006339342103 | BH117: 423014.36 | BI117: 0.0198599816 | BJ117: 1035.50552 | BK117: 4489.74172 | BL117: 0 | BM117: 0.4749702974 | BN117: 0.005528720856 | BO117: 0.1732096182 | BP117: 19941427.78 | BQ117: 4696475.38 | BR117: 0.1695697174 | BS117: =I117=Comparatives!$D$3 -> FALSE | BT117: 17 | BU117: =ROW() -> 117 | BV117: =NOT(ISNA(MATCH(BU117,Comparatives!$F:$F,0))) -> FALSE | BW117: =BU117='List Box etc'!$G$18 -> FALSE | BX117: =K117=Assumptions!$F$16 -> FALSE | BY117: FALSE
B118: Benin | C118: 117 | D118: Store 117 | E118: Store 117 Benin | F118: 11232602.32 | G118: 465.94 | H118: Brand Type 29 | I118: Brand Type 29 | J118: Classification Type 35 | K118: Classification Type 35 | L118: 2830893.692 | M118: 6447376.98 | N118: 33503978.9 | O118: 14252430 | P118: 242077.87 | Q118: 14494507.87 | R118: -8046253.7 | S118: -1035493.94 | T118: -316130.76 | U118: -141338.77 | V118: -2084769.91 | W118: -3318331.75 | X118: 17903 | Y118: -260266.17 | Z118: -56889.62 | AA118: -883649.88 | AB118: 5563727.1 | AC118: -68466.17 | AD118: -234406.94 | AE118: -12324821.77 | AF118: 8641167.4 | AG118: -72127281.96 | AH118: 42136524.66 | AI118: 0 | AJ118: 0 | AK118: 0 | AL118: 0 | AM118: 0 | AN118: 19165792.35 | AO118: 0.5082008265 | AP118: 18547236.34 | AQ118: 0.4917991735 | AR118: =Comparatives!$D$3 -> Brand Type 15 | AS118: 17 | AT118: 0.4253951461 | AU118: 0.007225346898 | AV118: 0.432620493 | AW118: 0.06222454701 | AX118: 4474.331266 | AY118: 0.004218566709 | AZ118: 303.3411383 | BA118: 33674411.67 | BB118: 0.02624098941 | BC118: 84452103.73 | BD118: 0.01046332585 | BE118: 0.02637447578 | BF118: 503.0839593 | BG118: 0.006996391106 | BH118: 1421115.9 | BI118: 0.04241633223 | BJ118: 3049.997639 | BK118: 7121.800554 | BL118: 640.0561446 | BM118: 0.4917991735 | BN118: 0.007768216748 | BO118: 0.08449425368 | BP118: 36505305.36 | BQ118: 5563727.1 | BR118: 0.1097342831 | BS118: =I118=Comparatives!$D$3 -> FALSE | BT118: 17 | BU118: =ROW() -> 118 | BV118: =NOT(ISNA(MATCH(BU118,Comparatives!$F:$F,0))) -> FALSE | BW118: =BU118='List Box etc'!$G$18 -> FALSE | BX118: =K118=Assumptions!$F$16 -> FALSE | BY118: FALSE
B119: Botswana | C119: 118 | D119: Store 118 | E119: Store 118 Botswana | F119: 8137933.28 | G119: 147 | H119: Brand Type 1 | I119: Brand Type 1 | J119: Classification Type 1 | K119: Classification Type 1 | L119: 6187771.308 | M119: 2295896.88 | N119: 15930039.59 | O119: 6767475.67 | P119: 125595.74 | Q119: 6893071.41 | R119: -4597174.53 | S119: -446968.74 | T119: -65037.72 | U119: -304002.14 | V119: -1705005.42 | W119: -1395254.5 | X119: 0 | Y119: -104569.25 | Z119: -50991.8 | AA119: -522328.56 | AB119: 1773568.32 | AC119: -116523.08 | AD119: -123345.61 | AE119: -15354472.78 | AF119: 11025170.4 | AG119: -58581735.02 | AH119: 39446517.62 | AI119: -16200 | AJ119: 16200 | AK119: 0 | AL119: 0 | AM119: 0 | AN119: 9186221.57 | AO119: 0.5130150659 | AP119: 8720117.21 | AQ119: 0.4869849341 | AR119: =Comparatives!$D$3 -> Brand Type 15 | AS119: 17 | AT119: 0.4248247866 | AU119: 0.00788420765 | AV119: 0.4327089943 | AW119: 0.1070308338 | AX119: 11598.67633 | AY119: 0.01908357718 | AZ119: 2068.041769 | BA119: 23464519.78 | BB119: 0.02226035584 | BC119: 73952407.8 | BD119: 0.00706303656 | BE119: 0.03278890533 | BF119: 839.0857823 | BG119: 0.007742956902 | BH119: 719052.87 | BI119: 0.04513817219 | BJ119: 4891.516122 | BK119: 9491.527211 | BL119: 442.4334694 | BM119: 0.4869849341 | BN119: 0.00656428061 | BO119: 0.388434145 | BP119: 29652291.09 | BQ119: 1773568.32 | BR119: 0.04306477319 | BS119: =I119=Comparatives!$D$3 -> FALSE | BT119: 17 | BU119: =ROW() -> 119 | BV119: =NOT(ISNA(MATCH(BU119,Comparatives!$F:$F,0))) -> FALSE | BW119: =BU119='List Box etc'!$G$18 -> FALSE | BX119: =K119=Assumptions!$F$16 -> FALSE | BY119: FALSE
B120: Botswana | C120: 119 | D120: Store 119 | E120: Store 119 Botswana | F120: 13745047.09 | G120: 1027.77 | H120: Brand Type 2 | I120: Brand Type 2 | J120: Classification Type 6 | K120: Classification Type 6 | L120: 3705969.923 | M120: 6580460.36 | N120: 38583315.82 | O120: 16061532.54 | P120: 317732.48 | Q120: 16379265.02 | R120: -9787752.65 | S120: -993245.21 | T120: -424745.74 | U120: -935311.57 | V120: -3070915.21 | W120: -2736594 | X120: -26414.46 | Y120: -217746.7 | Z120: -118095.78 | AA120: -1126961.08 | AB120: 5453499.28 | AC120: -101381.37 | AD120: -303781.19 | AE120: -4759445.48 | AF120: 2331868.73 | AG120: -119567080.3 | AH120: 75297478.15 | AI120: -10920 | AJ120: 10920 | AK120: 0 | AL120: 0 | AM120: 0 | AN120: 22298171.71 | AO120: 0.5123599 | AP120: 21222353.04 | AQ120: 0.4876401 | AR120: =Comparatives!$D$3 -> Brand Type 15 | AS120: 17 | AT120: 0.4162818099 | AU120: 0.008234970822 | AV120: 0.4245167807 | AW120: 0.07959179103 | AX120: 2987.940113 | AY120: 0.02424134759 | AZ120: 910.0397657 | BA120: 46697178.91 | BB120: 0.02413338678 | BC120: 124337445.8 | BD120: 0.009063730342 | BE120: 0.02920850777 | BF120: 295.5731243 | BG120: 0.007873382148 | BH120: 1430469.06 | BI120: 0.03707480888 | BJ120: 1391.818267 | BK120: 2662.65215 | BL120: 438.970003 | BM120: 0.4876401 | BN120: 0.005643545542 | BO120: 0.09605109992 | BP120: 50403148.83 | BQ120: 5453499.28 | BR120: 0.07790226548 | BS120: =I120=Comparatives!$D$3 -> FALSE | BT120: 17 | BU120: =ROW() -> 120 | BV120: =NOT(ISNA(MATCH(BU120,Comparatives!$F:$F,0))) -> FALSE | BW120: =BU120='List Box etc'!$G$18 -> FALSE | BX120: =K120=Assumptions!$F$16 -> FALSE | BY120: FALSE
B121: Botswana | C121: 120 | D121: Store 120 | E121: Store 120 Botswana | F121: 23867746.85 | G121: 1500 | H121: Brand Type 2 | I121: Brand Type 2 | J121: Classification Type 2 | K121: Classification Type 2 | L121: 1747724.077 | M121: 325952.89 | N121: 13117841.92 | O121: 4941426.21 | P121: -64098.52 | Q121: 4877327.69 | R121: -4548713.89 | S121: -394951.76 | T121: -238231.68 | U121: -57657.41 | V121: -1030809.62 | W121: -2336324.12 | X121: -14603.06 | Y121: -101992.17 | Z121: -62490.85 | AA121: -107355.5 | AB121: 218597.39 | AC121: -88960.14 | AD121: -77843.13 | AE121: -7286927.79 | AF121: 7203516.14 | AG121: -33130483.45 | AH121: 27937467.84 | AI121: -165603 | AJ121: 165603 | AK121: -217778.88 | AL121: 217778.88 | AM121: 0 | AN121: 7623195.61 | AO121: 0.5101278723 | AP121: 7320499.93 | AQ121: 0.4898721277 | AR121: =Comparatives!$D$3 -> Brand Type 15 | AS121: 17 | AT121: 0.376695057 | AU121: -0.004886361674 | AV121: 0.3718086953 | AW121: 0.07858073197 | AX121: 687.2064133 | AY121: 0.004395342645 | AZ121: 38.43827333 | BA121: 5276427.26 | BB121: 0.02034624846 | BC121: 40800793.12 | BD121: 0.002631211106 | BE121: 0.008183929998 | BF121: 51.89542 | BG121: 0.00593414149 | BH121: 648394.92 | BI121: 0.04942847489 | BJ121: 432.26328 | BK121: 1557.549413 | BL121: 168.5564933 | BM121: 0.4898721277 | BN121: 0.00777507235 | BO121: 0.1332325917 | BP121: 7024151.337 | BQ121: 218597.39 | BR121: 0.02240699456 | BS121: =I121=Comparatives!$D$3 -> FALSE | BT121: 17 | BU121: =ROW() -> 121 | BV121: =NOT(ISNA(MATCH(BU121,Comparatives!$F:$F,0))) -> FALSE | BW121: =BU121='List Box etc'!$G$18 -> FALSE | BX121: =K121=Assumptions!$F$16 -> FALSE | BY121: FALSE
B122: Botswana | C122: 121 | D122: Store 121 | E122: Store 121 Botswana | F122: 91601613.08 | G122: 6000 | H122: Brand Type 2 | I122: Brand Type 2 | J122: Classification Type 4 | K122: Classification Type 4 | L122: 16355092.15 | M122: 1605962.59 | N122: 26356954.04 | O122: 9813703.27 | P122: 270149.81 | Q122: 10083853.08 | R122: -8474983.59 | S122: -850585.54 | T122: -8025 | U122: -504726.02 | V122: -2600551.36 | W122: -3325095.85 | X122: -15316.94 | Y122: -143289.52 | Z122: -51546.76 | AA122: -1082710.05 | AB122: 523252.54 | AC122: -47282.08 | AD122: -338804.42 | AE122: -22728904.44 | AF122: 19032034.03 | AG122: -86559881.34 | AH122: 42044664.14 | AI122: -15360 | AJ122: 15360 | AK122: 0 | AL122: 0 | AM122: 0 | AN122: 18280179.44 | AO122: 0.6227692318 | AP122: 11072875.44 | AQ122: 0.3772307682 | AR122: =Comparatives!$D$3 -> Brand Type 15 | AS122: 17 | AT122: 0.3723382928 | AU122: 0.01024965971 | AV122: 0.3825879525 | AW122: 0.09866661208 | AX122: 433.4252267 | AY122: 0.01914963388 | AZ122: 84.12100333 | BA122: 48212087.61 | BB122: 0.02245723228 | BC122: 109304145.8 | BD122: 0.009905480184 | BE122: 0.04107872436 | BF122: 56.46740333 | BG122: 0.01285446033 | BH122: 1092703.9 | BI122: 0.04145789754 | BJ122: 182.1173167 | BK122: 554.1826417 | BL122: 3.890323333 | BM122: 0.3772307682 | BN122: 0.005436497699 | BO122: 0.6205228468 | BP122: 64567179.76 | BQ122: 523252.54 | BR122: 0.005834881285 | BS122: =I122=Comparatives!$D$3 -> FALSE | BT122: 17 | BU122: =ROW() -> 122 | BV122: =NOT(ISNA(MATCH(BU122,Comparatives!$F:$F,0))) -> FALSE | BW122: =BU122='List Box etc'!$G$18 -> FALSE | BX122: =K122=Assumptions!$F$16 -> FALSE | BY122: FALSE
B123: Botswana | C123: 122 | D123: Store 122 | E123: Store 122 Botswana | F123: 9417836.23 | G123: 154 | H123: Brand Type 1 | I123: Brand Type 1 | J123: Classification Type 1 | K123: Classification Type 1 | L123: 13517037.08 | M123: 4309815.9 | N123: 58208082.23 | O123: 22535548.12 | P123: 405705.56 | Q123: 22941253.68 | R123: -18620353.12 | S123: -1942332.52 | T123: -654206.64 | U123: -770635.35 | V123: -5004021.15 | W123: -7642238.2 | X123: -4787.43 | Y123: -369809.93 | Z123: -146890.22 | AA123: -1569438.46 | AB123: 2740377.44 | AC123: -188241.33 | AD123: -787628.59 | AE123: -9372900.47 | AF123: 4707422.09 | AG123: -191747592.4 | AH123: 119710155.4 | AI123: -563095.32 | AJ123: 563095.32 | AK123: 0 | AL123: 0 | AM123: 0 | AN123: 37699474.58 | AO123: 0.5791973595 | AP123: 27389694.01 | AQ123: 0.4208026405 | AR123: =Comparatives!$D$3 -> Brand Type 15 | AS123: 17 | AT123: 0.3871549664 | AU123: 0.006969917999 | AV123: 0.3941248844 | AW123: 0.0859678065 | AX123: 32493.64383 | AY123: 0.01323931867 | AZ123: 5004.125649 | BA123: 76702915.4 | BB123: 0.02046126215 | BC123: 201683588.2 | BD123: 0.007781686523 | BE123: 0.02696255228 | BF123: 5114.471364 | BG123: 0.0135312582 | BH123: 2647274 | BI123: 0.04547949183 | BJ123: 17190.09091 | BK123: 49624.92338 | BL123: 4279.182273 | BM123: 0.4208026405 | BN123: 0.006353240235 | BO123: 0.2322192479 | BP123: 90219952.48 | BQ123: 2740377.44 | BR123: 0.02186957211 | BS123: =I123=Comparatives!$D$3 -> FALSE | BT123: 17 | BU123: =ROW() -> 123 | BV123: =NOT(ISNA(MATCH(BU123,Comparatives!$F:$F,0))) -> FALSE | BW123: =BU123='List Box etc'!$G$18 -> FALSE | BX123: =K123=Assumptions!$F$16 -> FALSE | BY123: FALSE
B124: Botswana | C124: 123 | D124: Store 123 | E124: Store 123 Botswana | F124: 29341503.53 | G124: 2955 | H124: Brand Type 2 | I124: Brand Type 2 | J124: Classification Type 4 | K124: Classification Type 4 | L124: 29762129 | M124: 1476817.58 | N124: 25472524.21 | O124: 9196424.14 | P124: -281429.26 | Q124: 8914994.88 | R124: -7438177.3 | S124: -259174.74 | T124: -642254.72 | U124: -267833.67 | V124: -1603368.62 | W124: -3826649.68 | X124: -35747.52 | Y124: -196627.06 | Z124: -79851.5 | AA124: -111404.7 | AB124: 1365412.88 | AC124: -205460.9 | AD124: -88944.69 | AE124: -5293379.06 | AF124: 5244032.23 | AG124: -39037060.41 | AH124: 33597529.42 | AI124: -125278.8 | AJ124: 125278.8 | AK124: -315687.96 | AL124: 315687.96 | AM124: 0 | AN124: 16901922.86 | AO124: 0.5822290593 | AP124: 12127756.42 | AQ124: 0.4177709407 | AR124: =Comparatives!$D$3 -> Brand Type 15 | AS124: 17 | AT124: 0.3610330906 | AU124: -0.01104834596 | AV124: 0.3499847446 | AW124: 0.06294502291 | AX124: 542.5951337 | AY124: 0.01051461048 | AZ124: 90.63745178 | BA124: 5488877.82 | BB124: 0.02029644376 | BC124: 44771406.23 | BD124: 0.002488300221 | BE124: 0.004373524158 | BF124: 30.09972589 | BG124: 0.003491789399 | BH124: 741114.2 | BI124: 0.02909465092 | BJ124: 250.8000677 | BK124: 1294.974511 | BL124: 229.4423824 | BM124: 0.4177709407 | BN124: 0.007719182378 | BO124: 1.168401245 | BP124: 35251006.82 | BQ124: 1365412.88 | BR124: 0.0278884878 | BS124: =I124=Comparatives!$D$3 -> FALSE | BT124: 17 | BU124: =ROW() -> 124 | BV124: =NOT(ISNA(MATCH(BU124,Comparatives!$F:$F,0))) -> FALSE | BW124: =BU124='List Box etc'!$G$18 -> FALSE | BX124: =K124=Assumptions!$F$16 -> FALSE | BY124: FALSE
B125: Botswana | C125: 124 | D125: Store 124 | E125: Store 124 Botswana | F125: 12361154.75 | G125: 650 | H125: Brand Type 12 | I125: Brand Type 12 | J125: Classification Type 18 | K125: Classification Type 18 | L125: 501499.5385 | M125: 24995658.66 | N125: 202820349.5 | O125: 84037335.33 | P125: 4212157.44 | Q125: 88249492.77 | R125: -63185842.44 | S125: -3412232.33 | T125: -7113596.83 | U125: -1731997.71 | V125: -17213159.01 | W125: -25558332.33 | X125: -136276.43 | Y125: -1604172.46 | Z125: -420016.13 | AA125: -9574599.93 | AB125: 15421058.73 | AC125: -1406873.34 | AD125: -1358505.91 | AE125: -217089149.9 | AF125: 87505785.63 | AG125: -510440389.8 | AH125: 222326763.6 | AI125: -416443.32 | AJ125: 416443.32 | AK125: -117240 | AL125: 0 | AM125: 0 | AN125: 122290920.7 | AO125: 0.4910757166 | AP125: 126735688.8 | AQ125: 0.5089242834 | AR125: =Comparatives!$D$3 -> Brand Type 15 | AS125: 17 | AT125: 0.4143437064 | AU125: 0.0207679232 | AV125: 0.4351116296 | AW125: 0.08486899394 | AX125: 26481.78309 | AY125: 0.008539565752 | AZ125: 2664.611862 | BA125: 417814230.4 | BB125: 0.02291592586 | BC125: 728063223 | BD125: 0.0131507809 | BE125: 0.04720729431 | BF125: 2090.009092 | BG125: 0.006698074989 | BH125: 6843294.26 | BI125: 0.03374066891 | BJ125: 10528.14502 | BK125: 39320.51128 | BL125: 11153.65117 | BM125: 0.5089242834 | BN125: 0.00790932697 | BO125: 0.002472629299 | BP125: 418315730 | BQ125: 15421058.73 | BR125: 0.02654254069 | BS125: =I125=Comparatives!$D$3 -> FALSE | BT125: 17 | BU125: =ROW() -> 125 | BV125: =NOT(ISNA(MATCH(BU125,Comparatives!$F:$F,0))) -> FALSE | BW125: =BU125='List Box etc'!$G$18 -> FALSE | BX125: =K125=Assumptions!$F$16 -> FALSE | BY125: FALSE
B126: Botswana | C126: 125 | D126: Store 125 | E126: Store 125 Botswana | F126: 7470584.73 | G126: 913.56 | H126: Brand Type 12 | I126: Brand Type 12 | J126: Classification Type 16 | K126: Classification Type 16 | L126: 1667102 | M126: 1654707.04 | N126: 13506021.91 | O126: 4482574.73 | P126: 3259.53 | Q126: 4485834.26 | R126: -2831127.22 | S126: -84916.87 | T126: -104604.88 | U126: 12874.85 | V126: -996537.7 | W126: -1033662.09 | X126: -539.46 | Y126: -141112.62 | Z126: -14766.95 | AA126: -269500.99 | AB126: 1385206.05 | AC126: -5863.89 | AD126: -19204.75 | AE126: -5021746.06 | AF126: 2045911.49 | AG126: -22004411.72 | AH126: 8844977.9 | AI126: -8520 | AJ126: 8520 | AK126: 0 | AL126: 0 | AM126: 0 | AN126: 10947840.52 | AO126: 0.7110748831 | AP126: 4448344.58 | AQ126: 0.2889251169 | AR126: =Comparatives!$D$3 -> Brand Type 15 | AS126: 17 | AT126: 0.3318945253 | AU126: 0.0002413390132 | AV126: 0.3321358643 | AW126: 0.07378469446 | AX126: 1090.828955 | AY126: -0.0009532673711 | AZ126: -14.09305355 | BA126: 16135268.39 | BB126: 0.01670260348 | BC126: 27034677.78 | BD126: 0.009968714708 | BE126: 0.01995413541 | BF126: 21.02188143 | BG126: 0.001421939793 | BH126: 246660.33 | BI126: 0.01826298903 | BJ126: 269.9990477 | BK126: 1131.466012 | BL126: 115.0929769 | BM126: 0.2889251169 | BN126: 0.0104481261 | BO126: 0.1234339772 | BP126: 17802370.39 | BQ126: 1385206.05 | BR126: 0.056023346 | BS126: =I126=Comparatives!$D$3 -> FALSE | BT126: 17 | BU126: =ROW() -> 126 | BV126: =NOT(ISNA(MATCH(BU126,Comparatives!$F:$F,0))) -> FALSE | BW126: =BU126='List Box etc'!$G$18 -> FALSE | BX126: =K126=Assumptions!$F$16 -> FALSE | BY126: FALSE
B127: Botswana | C127: 126 | D127: Store 126 | E127: Store 126 Botswana | F127: 9762465.7 | G127: 550 | H127: Brand Type 6 | I127: Brand Type 6 | J127: Classification Type 16 | K127: Classification Type 16 | L127: 532504.9231 | M127: 18493896.87 | N127: 96444417.83 | O127: 38177004.7 | P127: 882799.7 | Q127: 39058314.4 | R127: -20541467.62 | S127: -959512.99 | T127: -518009.86 | U127: -435711.29 | V127: -8089265.24 | W127: -7428485.76 | X127: -120018.51 | Y127: -785149.82 | Z127: -362147.26 | AA127: -2214398.94 | AB127: 16279497.93 | AC127: -281111.57 | AD127: -626681.4 | AE127: -29412957.28 | AF127: 14674518.03 | AG127: -270893875.1 | AH127: 160662153.5 | AI127: -2350495.2 | AJ127: 2350495.2 | AK127: 0 | AL127: 0 | AM127: 0 | AN127: 62830368.99 | AO127: 0.5590714382 | AP127: 49553066.64 | AQ127: 0.4409285618 | AR127: =Comparatives!$D$3 -> Brand Type 15 | AS127: 17 | AT127: 0.395844628 | AU127: 0.009153455637 | AV127: 0.4049826343 | AW127: 0.08387489315 | AX127: 14707.75498 | AY127: 0.004517745037 | AZ127: 792.2023455 | BA127: 124970160.9 | BB127: 0.01771942138 | BC127: 302657327.6 | BD127: 0.007316521815 | BE127: 0.02296036401 | BF127: 1139.420727 | BG127: 0.006497850411 | BH127: 2387921.64 | BI127: 0.02475956301 | BJ127: 4341.675709 | BK127: 13506.33775 | BL127: 1160.051582 | BM127: 0.4409285618 | BN127: 0.008140956601 | BO127: 0.005521365933 | BP127: 125502665.8 | BQ127: 16279497.93 | BR127: 0.09339433896 | BS127: =I127=Comparatives!$D$3 -> FALSE | BT127: 17 | BU127: =ROW() -> 127 | BV127: =NOT(ISNA(MATCH(BU127,Comparatives!$F:$F,0))) -> FALSE | BW127: =BU127='List Box etc'!$G$18 -> FALSE | BX127: =K127=Assumptions!$F$16 -> FALSE | BY127: FALSE
B128: Botswana | C128: 127 | D128: Store 127 | E128: Store 127 Botswana | F128: 19068782.01 | G128: 707 | H128: Brand Type 6 | I128: Brand Type 6 | J128: Classification Type 15 | K128: Classification Type 15 | L128: 93740.38462 | M128: 1112494.77 | N128: 14840022.39 | O128: 6069314.15 | P128: 88257.49 | Q128: 6157571.64 | R128: -5041568.19 | S128: -568162.51 | T128: -50049.94 | U128: -257342.19 | V128: -1269210.82 | W128: -1901958.35 | X128: -52835.04 | Y128: -113459.83 | Z128: -50991.66 | AA128: -263145.33 | AB128: 849349.44 | AC128: -87696.05 | AD128: -237792.09 | AE128: -10139471.88 | AF128: 9456856.33 | AG128: -59840511.51 | AH128: 57562910.28 | AI128: -357309.96 | AJ128: 357309.96 | AK128: 0 | AL128: 0 | AM128: 0 | AN128: 9414309.83 | AO128: 0.5599428103 | AP128: 7398674.74 | AQ128: 0.4400571897 | AR128: =Comparatives!$D$3 -> Brand Type 15 | AS128: 17 | AT128: 0.4089828162 | AU128: 0.005947261243 | AV128: 0.4149300775 | AW128: 0.08552620654 | AX128: 1795.206252 | AY128: 0.01734109176 | AZ128: 363.9917822 | BA128: 2960216.78 | BB128: 0.08889393904 | BC128: 70337293.35 | BD128: 0.003741192154 | BE128: 0.01773213834 | BF128: 336.3395898 | BG128: 0.01602370157 | BH128: 820310.05 | BI128: 0.05527687415 | BJ128: 1160.268812 | BK128: 2690.181542 | BL128: 145.5233098 | BM128: 0.4400571897 | BN128: 0.00764552957 | BO128: 0.006316727977 | BP128: 3053957.165 | BQ128: 849349.44 | BR128: 0.2002423622 | BS128: =I128=Comparatives!$D$3 -> FALSE | BT128: 17 | BU128: =ROW() -> 128 | BV128: =NOT(ISNA(MATCH(BU128,Comparatives!$F:$F,0))) -> FALSE | BW128: =BU128='List Box etc'!$G$18 -> FALSE | BX128: =K128=Assumptions!$F$16 -> FALSE | BY128: FALSE
B129: Botswana | C129: 128 | D129: Store 128 | E129: Store 128 Botswana | F129: 10276131.4 | G129: 680 | H129: Brand Type 6 | I129: Brand Type 6 | J129: Classification Type 16 | K129: Classification Type 16 | L129: 348078.7692 | M129: -2364444.07 | N129: 14232600.76 | O129: 4092836.15 | P129: -53800.89 | Q129: 4039035.26 | R129: -6379574.66 | S129: -573687.91 | T129: -255023.36 | U129: -867693.52 | V129: -1366680.28 | W129: -3777456.04 | X129: -2220 | Y129: -101627.51 | Z129: -49093.76 | AA129: -296606.77 | AB129: -2661050.84 | AC129: -296782.93 | AD129: -332219.46 | AE129: -13066918.2 | AF129: 12414824.5 | AG129: -78217551.74 | AH129: 74013001.8 | AI129: -488760 | AJ129: 488760 | AK129: 0 | AL129: 0 | AM129: 0 | AN129: 8798006.15 | AO129: 0.5474352342 | AP129: 7273312.61 | AQ129: 0.4525647658 | AR129: =Comparatives!$D$3 -> Brand Type 15 | AS129: 17 | AT129: 0.2875676919 | AU129: -0.003780116572 | AV129: 0.2837875753 | AW129: 0.09602463408 | AX129: 2009.823941 | AY129: 0.06096521181 | AZ129: 1276.019882 | BA129: 4856643.64 | BB129: 0.06107237672 | BC129: 91773229.94 | BD129: 0.003231953046 | BE129: 0.02083995575 | BF129: 488.5580294 | BG129: 0.02334214706 | BH129: 1021192.11 | BI129: 0.07175021117 | BJ129: 1501.753103 | BK129: 5555.082412 | BL129: 378.2990588 | BM129: 0.4525647658 | BN129: 0.007140473601 | BO129: 0.02445644159 | BP129: 5204722.409 | BQ129: -2661050.84 | BR129: -0.368118884 | BS129: =I129=Comparatives!$D$3 -> FALSE | BT129: 17 | BU129: =ROW() -> 129 | BV129: =NOT(ISNA(MATCH(BU129,Comparatives!$F:$F,0))) -> FALSE | BW129: =BU129='List Box etc'!$G$18 -> FALSE | BX129: =K129=Assumptions!$F$16 -> FALSE | BY129: FALSE
B130: Botswana | C130: 129 | D130: ="Store "&C130 -> Store 129 | E130: =D130&" "&B130 -> Store 129 Botswana | F130: 13219135.85 | G130: 753.43 | H130: Brand Type 6 | I130: Brand Type 6 | J130: Classification Type 15 | K130: Classification Type 15 | L130: 0 | M130: 5706068.42 | N130: 38134318.37 | O130: 15176702.89 | P130: 214433.2 | Q130: 15398650.29 | R130: -9667370.26 | S130: 71413.74 | T130: -325738.91 | U130: -470853.56 | V130: -2749917.44 | W130: -4619973.57 | X130: -25287.04 | Y130: -299526.86 | Z130: -96008.02 | AA130: -730194.83 | AB130: 4975873.59 | AC130: -89584.27 | AD130: -236593.08 | AE130: -3775549.54 | AF130: 1782316.25 | AG130: -66791410.07 | AH130: 29646364.88 | AI130: -8880 | AJ130: 8880 | AK130: 0 | AL130: 0 | AM130: 0 | AN130: 17045800.13 | AO130: 0.3976081099 | AP130: 25825056.14 | AQ130: 0.6023918901 | AR130: =Comparatives!$D$3 -> Brand Type 15 | AS130: 17 | AT130: =IF(N130,O130/N130) -> 0.39798018 | AU130: =IF(N130,P130/N130) -> 0.005623102999 | AV130: =IF(N130,Q130/N130) -> 0.4038003286 | AW130: =IFERROR(-V130/N130,FALSE) -> 0.07211135684 | AX130: =IFERROR(-V130/G130,FALSE) -> 3649.86454 | AY130: =IFERROR(-U130/N130,FALSE) -> 0.01234723945 | AZ130: =IFERROR(-U130/G130,FALSE) -> 624.9466573 | BA130: =-SUM(AE130:AL130) -> 39138278.48 | BB130: =IFERROR(-AA130/BA130,FALSE) -> 0.01865679479 | BC130: =-(AE130+AG130+AI130+AK130) -> 70575839.61 | BD130: =IFERROR(-AA130/BC130,FALSE) -> 0.01034624362 | BE130: =IFERROR(-AA130/N130,FALSE) -> 0.0191479712 | BF130: =IFERROR(-AD130/G130,FALSE) -> 314.0213158 | BG130: =IFERROR(-AD130/N130,FALSE) -> 0.006204203723 | BH130: =-(S130+Y130+Z130+AC130) -> 413705.41 | BI130: =IF(N130,BH130/N130) -> 0.01084863786 | BJ130: =IF(G130,BH130/G130) -> 549.0960142 | BK130: =IF(G130,-W130/G130) -> 6131.921439 | BL130: =IF(G130,-SUM(X130,T130)/G130) -> 465.9038663 | BM130: =AQ130 -> 0.6023918901 | BN130: =IF(N130,-Y130/N130) -> 0.007854522456 | BO130: =IF(N130,L130/N130) -> 0 | BP130: =BA130+L130 -> 39138278.48 | BQ130: =AB130 -> 4975873.59 | BR130: =BQ130*(1-0.28)/BP130 -> 0.09153772531 | BS130: =I130=Comparatives!$D$3 -> FALSE | BT130: 17 | BU130: =ROW() -> 130 | BV130: =NOT(ISNA(MATCH(BU130,Comparatives!$F:$F,0))) -> FALSE | BW130: =BU130='List Box etc'!$G$18 -> FALSE | BX130: =K130=Assumptions!$F$16 -> FALSE | BY130: =AR130=H130 -> FALSE
B131: Botswana | C131: 130 | D131: Store 130 | E131: Store 130 Botswana | F131: 8944875.73 | G131: 900 | H131: Brand Type 6 | I131: Brand Type 6 | J131: Classification Type 15 | K131: Classification Type 15 | L131: 1957847.231 | M131: 13478622.58 | N131: 114449058.5 | O131: 47206424.34 | P131: 728514.9 | Q131: 47934939.24 | R131: -34446908.99 | S131: -2469260.33 | T131: -3060811.09 | U131: -2369461.12 | V131: -8905707.19 | W131: -13443561.88 | X131: -179669.82 | Y131: -633141.57 | Z131: -188545.75 | AA131: -2200020.78 | AB131: 11278601.8 | AC131: -1239733.36 | AD131: -742145.72 | AE131: -30157374.4 | AF131: 19480679.55 | AG131: -335155597.6 | AH131: 221527979.4 | AI131: -2016510.96 | AJ131: 2016510.96 | AK131: 0 | AL131: 0 | AM131: 0 | AN131: 55407836.97 | AO131: 0.4258133884 | AP131: 74714508.82 | AQ131: 0.5741866116 | AR131: =Comparatives!$D$3 -> Brand Type 15 | AS131: 17 | AT131: 0.4124666902 | AU131: 0.006365407543 | AV131: 0.4188320978 | AW131: 0.07781372176 | AX131: 9895.230211 | AY131: 0.02070319452 | AZ131: 2632.734578 | BA131: 124304313 | BB131: 0.01769866811 | BC131: 367329482.9 | BD131: 0.005989230057 | BE131: 0.01922270755 | BF131: 824.6063556 | BG131: 0.006484506994 | BH131: 4530681.01 | BI131: 0.03958687884 | BJ131: 5034.090011 | BK131: 14937.29098 | BL131: 3600.534344 | BM131: 0.5741866116 | BN131: 0.005532081946 | BO131: 0.0171067133 | BP131: 126262160.2 | BQ131: 11278601.8 | BR131: 0.0643153363 | BS131: =I131=Comparatives!$D$3 -> FALSE | BT131: 17 | BU131: =ROW() -> 131 | BV131: =NOT(ISNA(MATCH(BU131,Comparatives!$F:$F,0))) -> FALSE | BW131: =BU131='List Box etc'!$G$18 -> FALSE | BX131: =K131=Assumptions!$F$16 -> FALSE | BY131: FALSE
B132: Botswana | C132: 131 | D132: Store 131 | E132: Store 131 Botswana | F132: 16446851.35 | G132: 1159.5 | H132: Brand Type 6 | I132: Brand Type 6 | J132: Classification Type 16 | K132: Classification Type 16 | L132: 1477787.231 | M132: 3413475.44 | N132: 44051617.66 | O132: 18538735.75 | P132: 594814.7 | Q132: 19133550.45 | R132: -15708094.83 | S132: -1882920.38 | T132: -20719.24 | U132: -505753.93 | V132: -4353155.02 | W132: -6906737.39 | X132: -53412.26 | Y132: -338860.75 | Z132: -149220.5 | AA132: 1716224.46 | AB132: 5129699.9 | AC132: -135082.99 | AD132: -509948.18 | AE132: -35947298.24 | AF132: 9209043.54 | AG132: 156880602.4 | AH132: -51682046.63 | AI132: 0 | AJ132: 0 | AK132: 0 | AL132: 0 | AM132: 0 | AN132: 23384645.5 | AO132: 0.4540924781 | AP132: 28112894.38 | AQ132: 0.5459075219 | AR132: =Comparatives!$D$3 -> Brand Type 15 | AS132: =AS131+BY132 -> 17 | AT132: 0.4208412025 | AU132: 0.01350267553 | AV132: 0.4343438781 | AW132: 0.09881941348 | AX132: 3754.338094 | AY132: 0.01148093888 | AZ132: 436.1827771 | BA132: -78460301.04 | BB132: 0.02187379397 | BC132: -120933304.1 | BD132: 0.01419149565 | BE132: -0.03895939698 | BF132: 439.800069 | BG132: 0.01157615105 | BH132: 2506084.62 | BI132: 0.05688972967 | BJ132: 2161.349392 | BK132: 5956.651479 | BL132: 63.93402329 | BM132: 0.5459075219 | BN132: 0.007692356558 | BO132: 0.03354671881 | BP132: -76982513.81 | BQ132: 5129699.9 | BR132: -0.04797692028 | BS132: =I132=Comparatives!$D$3 -> FALSE | BT132: =BT131+BS132 -> 17 | BU132: =ROW() -> 132 | BV132: =NOT(ISNA(MATCH(BU132,Comparatives!$F:$F,0))) -> FALSE | BW132: =BU132='List Box etc'!$G$18 -> FALSE | BX132: =K132=Assumptions!$F$16 -> FALSE | BY132: FALSE
B133: Botswana | C133: 132 | D133: Store 132 | E133: Store 132 Botswana | F133: 26159482.76 | G133: 1000 | H133: Brand Type 12 | I133: Brand Type 12 | J133: Classification Type 15 | K133: Classification Type 15 | L133: 2456917.615 | M133: 1352024.57 | N133: 4849648.91 | O133: 1722544.41 | P133: 0 | Q133: 1722544.41 | R133: -370519.84 | S133: 3773 | T133: 0 | U133: -44542.21 | V133: -191771.66 | W133: 5609.32 | X133: 0 | Y133: -71964.3 | Z133: -15547.31 | AA133: -24413.34 | AB133: 1327611.23 | AC133: -1014.09 | AD133: -9188.88 | AE133: -616323.6 | AF133: 99051.66 | AG133: -1406480.6 | AH133: 178550.77 | AI133: 0 | AJ133: 0 | AK133: 0 | AL133: 0 | AM133: 0 | AN133: 5148811.93 | AO133: 0.9316722547 | AP133: 377607.8 | AQ133: 0.06832774535 | AR133: =Comparatives!$D$3 -> Brand Type 15 | AS133: 17 | AT133: 0.3551895079 | AU133: 0 | AV133: 0.3551895079 | AW133: 0.03954341099 | AX133: 191.77166 | AY133: 0.009184625697 | AZ133: 44.54221 | BA133: 1745201.77 | BB133: 0.01398883523 | BC133: 2022804.2 | BD133: 0.0120690574 | BE133: 0.005034042763 | BF133: 9.18888 | BG133: 0.001894751593 | BH133: 84752.7 | BI133: 0.01747604859 | BJ133: 84.7527 | BK133: -5.60932 | BL133: 0 | BM133: 0.06832774535 | BN133: 0.0148390742 | BO133: 0.5066176255 | BP133: 4202119.385 | BQ133: 1327611.23 | BR133: 0.2274757088 | BS133: =I133=Comparatives!$D$3 -> FALSE | BT133: 17 | BU133: =ROW() -> 133 | BV133: =NOT(ISNA(MATCH(BU133,Comparatives!$F:$F,0))) -> FALSE | BW133: =BU133='List Box etc'!$G$18 -> FALSE | BX133: =K133=Assumptions!$F$16 -> FALSE | BY133: FALSE
B134: Botswana | C134: 133 | D134: Store 133 | E134: Store 133 Botswana | F134: 6694882.44 | G134: 450 | H134: Brand Type 15 | I134: Brand Type 15 | J134: Classification Type 24 | K134: Classification Type 24 | L134: 1872173.692 | M134: 1899096.86 | N134: 7246591.87 | O134: 2516911.07 | P134: 1439892.52 | Q134: 3956803.59 | R134: -2057706.73 | S134: -39678.23 | T134: -3698.4 | U134: -4577.5 | V134: -1365944.23 | W134: -221807.25 | X134: 0 | Y134: -56605.66 | Z134: -212357.77 | AA134: -220098.84 | AB134: 1678998.02 | AC134: -1496.77 | AD134: -10202.05 | AE134: -130200 | AF134: 39522.96 | AG134: -20971926.08 | AH134: 7361141.34 | AI134: 0 | AJ134: 0 | AK134: 0 | AL134: 0 | AM134: 0 | AN134: 6637090.71 | AO134: 0.8035214088 | AP134: 1622914.11 | AQ134: 0.1964785912 | AR134: =Comparatives!$D$3 -> Brand Type 15 | AS134: 18 | AT134: 0.3473234198 | AU134: 0.1986992708 | AV134: 0.5460226905 | AW134: 0.1884947096 | AX134: 3035.431622 | AY134: 0.0006316762531 | AZ134: 10.17222222 | BA134: 13701461.78 | BB134: 0.01606389475 | BC134: 21102126.08 | BD134: 0.01043017368 | BE134: 0.03037273852 | BF134: 22.67122222 | BG134: 0.001407841118 | BH134: 310138.43 | BI134: 0.04279783318 | BJ134: 689.1965111 | BK134: 492.905 | BL134: 8.218666667 | BM134: 0.1964785912 | BN134: 0.007811349254 | BO134: 0.2583523021 | BP134: 15573635.47 | BQ134: 1678998.02 | BR134: 0.07762340248 | BS134: =I134=Comparatives!$D$3 -> TRUE | BT134: 18 | BU134: =ROW() -> 134 | BV134: =NOT(ISNA(MATCH(BU134,Comparatives!$F:$F,0))) -> FALSE | BW134: =BU134='List Box etc'!$G$18 -> FALSE | BX134: =K134=Assumptions!$F$16 -> FALSE | BY134: TRUE
B135: Botswana | C135: 134 | D135: Store 134 | E135: Store 134 Botswana | F135: 16491383.82 | G135: 377 | H135: Brand Type 15 | I135: Brand Type 15 | J135: Classification Type 25 | K135: Classification Type 25 | L135: 2242100.308 | M135: -441190.61 | N135: 3447375.02 | O135: 1686310.95 | P135: 0 | Q135: 1686310.95 | R135: -2127501.56 | S135: -41685.6 | T135: -50057.28 | U135: 1635.97 | V135: -1327707.43 | W135: -769036.24 | X135: -22005 | Y135: -36862.99 | Z135: -62938.31 | AA135: -209022.96 | AB135: -650213.57 | AC135: 896 | AD135: -10291.96 | AE135: 0 | AF135: 0 | AG135: -20066220.36 | AH135: 5654034.96 | AI135: 0 | AJ135: 0 | AK135: 0 | AL135: 0 | AM135: 0 | AN135: 3421328.75 | AO135: 0.8705654506 | AP135: 508678.75 | AQ135: 0.1294345494 | AR135: =Comparatives!$D$3 -> Brand Type 15 | AS135: 19 | AT135: 0.4891579652 | AU135: 0 | AV135: 0.4891579652 | AW135: 0.3851357692 | AX135: 3521.770371 | AY135: -0.0004745552748 | AZ135: -4.339442971 | BA135: 14412185.4 | BB135: 0.0145032106 | BC135: 20066220.36 | BD135: 0.01041665826 | BE135: 0.06063249829 | BF135: 27.29962865 | BG135: 0.002985448331 | BH135: 140590.9 | BI135: 0.04078201506 | BJ135: 372.9201592 | BK135: 2039.883926 | BL135: 191.1466313 | BM135: 0.1294345494 | BN135: 0.0106930606 | BO135: 0.650378997 | BP135: 16654285.71 | BQ135: -650213.57 | BR135: -0.02811010803 | BS135: =I135=Comparatives!$D$3 -> TRUE | BT135: 19 | BU135: =ROW() -> 135 | BV135: =NOT(ISNA(MATCH(BU135,Comparatives!$F:$F,0))) -> FALSE | BW135: =BU135='List Box etc'!$G$18 -> FALSE | BX135: =K135=Assumptions!$F$16 -> FALSE | BY135: TRUE
B136: Botswana | C136: 135 | D136: Store 135 | E136: Store 135 Botswana | F136: 7186814.77 | G136: 500 | H136: Brand Type 15 | I136: Brand Type 15 | J136: Classification Type 24 | K136: Classification Type 24 | L136: 910953.4615 | M136: 461060.56 | N136: 4953576.92 | O136: 1684490.18 | P136: 661029.99 | Q136: 2345520.17 | R136: -1884459.61 | S136: -35956.44 | T136: -26958.48 | U136: 7644.11 | V136: -1267381.15 | W136: -416992.66 | X136: 0 | Y136: -54029.89 | Z136: -13021.4 | AA136: -47343.68 | AB136: 413716.88 | AC136: 0 | AD136: -21650.33 | AE136: -3280235.19 | AF136: 79056.32 | AG136: -9703382.98 | AH136: 397447.2 | AI136: 0 | AJ136: 0 | AK136: 0 | AL136: 0 | AM136: 0 | AN136: 4610293.77 | AO136: 0.8164034493 | AP136: 1036784 | AQ136: 0.1835965507 | AR136: =Comparatives!$D$3 -> Brand Type 15 | AS136: 20 | AT136: 0.3400553191 | AU136: 0.1334449834 | AV136: 0.4735003025 | AW136: 0.2558517149 | AX136: 2534.7623 | AY136: -0.001543149551 | AZ136: -15.28822 | BA136: 12507114.65 | BB136: 0.003785339891 | BC136: 12983618.17 | BD136: 0.003646416537 | BE136: 0.009557473471 | BF136: 43.30066 | BG136: 0.004370645768 | BH136: 103007.73 | BI136: 0.02079461602 | BJ136: 206.01546 | BK136: 833.98532 | BL136: 53.91696 | BM136: 0.1835965507 | BN136: 0.01090724761 | BO136: 0.1838981157 | BP136: 13418068.11 | BQ136: 413716.88 | BR136: 0.02219963046 | BS136: =I136=Comparatives!$D$3 -> TRUE | BT136: 20 | BU136: =ROW() -> 136 | BV136: =NOT(ISNA(MATCH(BU136,Comparatives!$F:$F,0))) -> FALSE | BW136: =BU136='List Box etc'!$G$18 -> FALSE | BX136: =K136=Assumptions!$F$16 -> FALSE | BY136: TRUE
B137: Botswana | C137: 136 | D137: Store 136 | E137: Store 136 Botswana | F137: 4998032.99 | G137: 300 | H137: Brand Type 16 | I137: Brand Type 16 | J137: Classification Type 29 | K137: Classification Type 29 | L137: 311407.1538 | M137: 2218246.02 | N137: 6635624.56 | O137: 2380015.19 | P137: -0.06 | Q137: 2380015.13 | R137: -161769.11 | S137: 23423 | T137: 0 | U137: 60228.58 | V137: -111890.61 | W137: 14188 | X137: 0 | Y137: -96930.63 | Z137: -3134.17 | AA137: -37584.39 | AB137: 2180661.63 | AC137: 0 | AD137: -10928.32 | AE137: -4635538.04 | AF137: 32129.94 | AG137: -3895936.14 | AH137: 59135.75 | AI137: 0 | AJ137: 0 | AK137: 0 | AL137: 0 | AM137: 0 | AN137: 7278679.17 | AO137: 0.9622012665 | AP137: 285932.75 | AQ137: 0.0377987335 | AR137: =Comparatives!$D$3 -> Brand Type 15 | AS137: 20 | AT137: 0.3586723704 | AU137: -9.042102888e-09 | AV137: 0.3586723614 | AW137: 0.0168621068 | AX137: 372.9687 | AY137: -0.009076550286 | AZ137: -200.7619333 | BA137: 8440208.49 | BB137: 0.004453016776 | BC137: 8531474.18 | BD137: 0.004405380501 | BE137: 0.005664032023 | BF137: 36.42773333 | BG137: 0.001646916564 | BH137: 76641.8 | BI137: 0.01155005069 | BJ137: 255.4726667 | BK137: -47.29333333 | BL137: 0 | BM137: 0.0377987335 | BN137: 0.01460761216 | BO137: 0.04692959209 | BP137: 8751615.644 | BQ137: 2180661.63 | BR137: 0.1794041738 | BS137: =I137=Comparatives!$D$3 -> FALSE | BT137: 20 | BU137: =ROW() -> 137 | BV137: =NOT(ISNA(MATCH(BU137,Comparatives!$F:$F,0))) -> FALSE | BW137: =BU137='List Box etc'!$G$18 -> FALSE | BX137: =K137=Assumptions!$F$16 -> FALSE | BY137: FALSE
B138: Botswana | C138: 137 | D138: Store 137 | E138: Store 137 Botswana | F138: 2358921.35 | G138: 40 | H138: Brand Type 17 | I138: Brand Type 17 | J138: Classification Type 32 | K138: Classification Type 32 | L138: 636500.4615 | M138: 86611.65 | N138: 2098969.64 | O138: 715148.56 | P138: -1.32 | Q138: 715147.24 | R138: -628535.59 | S138: -124410.56 | T138: 0 | U138: -12856.83 | V138: -291085.95 | W138: -319798.86 | X138: -4651.88 | Y138: -22105.46 | Z138: -22327.99 | AA138: -295627.32 | AB138: -209015.67 | AC138: -400 | AD138: -21801.04 | AE138: -6306985.68 | AF138: 1535804.04 | AG138: -21190911.6 | AH138: 4280773.86 | AI138: 0 | AJ138: 0 | AK138: 0 | AL138: 0 | AM138: 0 | AN138: 1649699.88 | AO138: 0.6894359758 | AP138: 743125.47 | AQ138: 0.3105640242 | AR138: =Comparatives!$D$3 -> Brand Type 15 | AS138: 20 | AT138: 0.3407141039 | AU138: -6.28879987e-07 | AV138: 0.340713475 | AW138: 0.1386804004 | AX138: 7277.14875 | AY138: 0.006125305366 | AZ138: 321.42075 | BA138: 21681319.38 | BB138: 0.0136351167 | BC138: 27497897.28 | BD138: 0.01075090641 | BE138: 0.1408440191 | BF138: 545.026 | BG138: 0.01038654375 | BH138: 169244.01 | BI138: 0.08063194759 | BJ138: 4231.10025 | BK138: 7994.9715 | BL138: 116.297 | BM138: 0.3105640242 | BN138: 0.01053157682 | BO138: 0.3032442439 | BP138: 22317819.84 | BQ138: -209015.67 | BR138: -0.006743099616 | BS138: =I138=Comparatives!$D$3 -> FALSE | BT138: 20 | BU138: =ROW() -> 138 | BV138: =NOT(ISNA(MATCH(BU138,Comparatives!$F:$F,0))) -> FALSE | BW138: =BU138='List Box etc'!$G$18 -> FALSE | BX138: =K138=Assumptions!$F$16 -> FALSE | BY138: FALSE
B139: Botswana | C139: 138 | D139: Store 138 | E139: Store 138 Botswana | F139: 7443020.99 | G139: 327 | H139: Brand Type 29 | I139: Brand Type 29 | J139: Classification Type 35 | K139: Classification Type 35 | L139: 1755720.846 | M139: -1020809.45 | N139: 4438679.17 | O139: 2472408.22 | P139: -6042.3 | Q139: 2466365.92 | R139: -3487175.37 | S139: -136571.01 | T139: -78881.64 | U139: -111612.3 | V139: -489638.64 | W139: -2432841.64 | X139: 0 | Y139: -8081.37 | Z139: -65578.88 | AA139: -20190.54 | AB139: -1040999.99 | AC139: -6433.21 | AD139: -52084.79 | AE139: -2454921.08 | AF139: 29390.04 | AG139: -6831266.11 | AH139: 0 | AI139: 0 | AJ139: 0 | AK139: 0 | AL139: 0 | AM139: 0 | AN139: 2935005.4 | AO139: 0.5800588888 | AP139: 2124835 | AQ139: 0.4199411112 | AR139: =Comparatives!$D$3 -> Brand Type 15 | AS139: 20 | AT139: 0.5570144012 | AU139: -0.001361283339 | AV139: 0.5556531179 | AW139: 0.110311789 | AX139: 1497.365872 | AY139: 0.02514538576 | AZ139: 341.3220183 | BA139: 9256797.15 | BB139: 0.002181158307 | BC139: 9286187.19 | BD139: 0.002174255115 | BE139: 0.004548772107 | BF139: 159.2807034 | BG139: 0.01173429933 | BH139: 216664.47 | BI139: 0.0488128251 | BJ139: 662.5824771 | BK139: 7439.882691 | BL139: 241.2282569 | BM139: 0.4199411112 | BN139: 0.001820669999 | BO139: 0.395550293 | BP139: 11012518 | BQ139: -1040999.99 | BR139: -0.06806072808 | BS139: =I139=Comparatives!$D$3 -> FALSE | BT139: 20 | BU139: =ROW() -> 139 | BV139: =NOT(ISNA(MATCH(BU139,Comparatives!$F:$F,0))) -> FALSE | BW139: =BU139='List Box etc'!$G$18 -> FALSE | BX139: =K139=Assumptions!$F$16 -> FALSE | BY139: FALSE
B140: Botswana | C140: 139 | D140: Store 139 | E140: Store 139 Botswana | F140: 11981122.94 | G140: 365 | H140: Brand Type 29 | I140: Brand Type 29 | J140: Classification Type 35 | K140: Classification Type 35 | L140: 37992271 | M140: 1517294.93 | N140: 7739626.18 | O140: 2798731.82 | P140: -61916.02 | Q140: 2736815.8 | R140: -1219520.87 | S140: -164342.46 | T140: -13446.12 | U140: -165348.15 | V140: -597528.18 | W140: 126576.75 | X140: -8722.67 | Y140: -74672.66 | Z140: -41258.79 | AA140: -438663 | AB140: 1078631.93 | AC140: -41423.91 | AD140: -54263.5 | AE140: -4162220.88 | AF140: 1052539.62 | AG140: -37471200.28 | AH140: 8182181.88 | AI140: 0 | AJ140: 0 | AK140: 0 | AL140: 0 | AM140: 0 | AN140: 4759118.36 | AO140: 0.5394202615 | AP140: 4063535.7 | AQ140: 0.4605797385 | AR140: =Comparatives!$D$3 -> Brand Type 15 | AS140: 20 | AT140: 0.3616107232 | AU140: -0.007999872159 | AV140: 0.353610851 | AW140: 0.07720375198 | AX140: 1637.063507 | AY140: 0.02136384189 | AZ140: 453.0086301 | BA140: 32398699.66 | BB140: 0.01353952488 | BC140: 41633421.16 | BD140: 0.01053631885 | BE140: 0.05667754357 | BF140: 148.6671233 | BG140: 0.007011126731 | BH140: 321697.82 | BI140: 0.04156503331 | BJ140: 881.3638904 | BK140: -346.7856164 | BL140: 60.73641096 | BM140: 0.4605797385 | BN140: 0.009648096467 | BO140: 4.908799226 | BP140: 70390970.66 | BQ140: 1078631.93 | BR140: 0.01103287797 | BS140: =I140=Comparatives!$D$3 -> FALSE | BT140: 20 | BU140: =ROW() -> 140 | BV140: =NOT(ISNA(MATCH(BU140,Comparatives!$F:$F,0))) -> FALSE | BW140: =BU140='List Box etc'!$G$18 -> FALSE | BX140: =K140=Assumptions!$F$16 -> FALSE | BY140: FALSE
B141: Botswana | C141: 140 | D141: Store 140 | E141: Store 140 Botswana | F141: 21150838.17 | G141: 554.42 | H141: Brand Type 29 | I141: Brand Type 29 | J141: Classification Type 36 | K141: Classification Type 36 | L141: 3243990.538 | M141: 220728.67 | N141: 17642523.98 | O141: 6729331.94 | P141: 142342.54 | Q141: 6871294.48 | R141: -6650565.81 | S141: -683697.13 | T141: -232389.18 | U141: -321250.51 | V141: -1763930.46 | W141: -2755005.38 | X141: -16625.52 | Y141: -139115.47 | Z141: -60089.78 | AA141: -96945.54 | AB141: 123783.13 | AC141: -74311.03 | AD141: -176424.7 | AE141: -413616.36 | AF141: 228639.48 | AG141: -11995336.1 | AH141: 7408533.14 | AI141: -9780 | AJ141: 9780 | AK141: 0 | AL141: 0 | AM141: 0 | AN141: 11416954.74 | AO141: 0.5735497782 | AP141: 8488823.58 | AQ141: 0.4264502218 | AR141: =Comparatives!$D$3 -> Brand Type 15 | AS141: 20 | AT141: 0.3814268269 | AU141: 0.008068150575 | AV141: 0.3894734386 | AW141: 0.09998175216 | AX141: 3181.577973 | AY141: 0.01820887478 | AZ141: 579.4352837 | BA141: 4771779.84 | BB141: 0.02031643187 | BC141: 12418732.46 | BD141: 0.007806395726 | BE141: 0.005494992673 | BF141: 318.2148912 | BG141: 0.009999969403 | BH141: 957213.41 | BI141: 0.05425603565 | BJ141: 1726.513131 | BK141: 4969.166661 | BL141: 449.1445114 | BM141: 0.4264502218 | BN141: 0.007885236271 | BO141: 0.1838733813 | BP141: 8015770.378 | BQ141: 123783.13 | BR141: 0.01111856371 | BS141: =I141=Comparatives!$D$3 -> FALSE | BT141: 20 | BU141: =ROW() -> 141 | BV141: =NOT(ISNA(MATCH(BU141,Comparatives!$F:$F,0))) -> FALSE | BW141: =BU141='List Box etc'!$G$18 -> FALSE | BX141: =K141=Assumptions!$F$16 -> FALSE | BY141: FALSE
B142: Botswana | C142: 141 | D142: Store 141 | E142: Store 141 Botswana | F142: 5133484.76 | G142: 255.43 | H142: Brand Type 29 | I142: Brand Type 29 | J142: Classification Type 35 | K142: Classification Type 35 | L142: 8068333.769 | M142: 73025.67 | N142: 2535723 | O142: 840321.84 | P142: 4270.92 | Q142: 844592.76 | R142: -771567.09 | S142: -22700.66 | T142: -8653.54 | U142: -142524.35 | V142: -359260.02 | W142: -59111.78 | X142: 0 | Y142: -33773.75 | Z142: -11241.54 | AA142: -78913.44 | AB142: -5887.77 | AC142: -7285.39 | AD142: -10008.71 | AE142: -488209.08 | AF142: 330089.46 | AG142: -7017814.2 | AH142: 3922638.78 | AI142: 0 | AJ142: 0 | AK142: 0 | AL142: 0 | AM142: 0 | AN142: 1379108.59 | AO142: 0.4770806451 | AP142: 1511615.66 | AQ142: 0.5229193549 | AR142: =Comparatives!$D$3 -> Brand Type 15 | AS142: 20 | AT142: 0.3313933896 | AU142: 0.001684300691 | AV142: 0.3330776903 | AW142: 0.141679521 | AX142: 1406.491093 | AY142: 0.05620659275 | AZ142: 557.9781153 | BA142: 3253295.04 | BB142: 0.02425646584 | BC142: 7506023.28 | BD142: 0.01051334869 | BE142: 0.03112068629 | BF142: 39.18376855 | BG142: 0.003947083337 | BH142: 75001.34 | BI142: 0.02957789159 | BJ142: 293.6277649 | BK142: 231.4206632 | BL142: 33.87832283 | BM142: 0.5229193549 | BN142: 0.01331917958 | BO142: 3.181867171 | BP142: 11321628.81 | BQ142: -5887.77 | BR142: -0.0003744332615 | BS142: =I142=Comparatives!$D$3 -> FALSE | BT142: 20 | BU142: =ROW() -> 142 | BV142: =NOT(ISNA(MATCH(BU142,Comparatives!$F:$F,0))) -> FALSE | BW142: =BU142='List Box etc'!$G$18 -> FALSE | BX142: =K142=Assumptions!$F$16 -> FALSE | BY142: FALSE
B143: Brazil | C143: 142 | D143: Store 142 | E143: Store 142 Brazil | F143: 18160343.75 | G143: 2334.78 | H143: Brand Type 2 | I143: Brand Type 2 | J143: Classification Type 3 | K143: Classification Type 3 | L143: 1070551.308 | M143: 5088453.71 | N143: 45270759.85 | O143: 18841588.92 | P143: 177324.23 | Q143: 19018300.55 | R143: -13901897.86 | S143: -1093803.4 | T143: -424650.24 | U143: -935029.45 | V143: -3592366.21 | W143: -6081511.26 | X143: 11952 | Y143: -414307.77 | Z143: -129171.59 | AA143: -1097658.58 | AB143: 3990795.13 | AC143: -195676.96 | AD143: -348884.58 | AE143: -15548116.4 | AF143: 10627349.39 | AG143: -88047344.04 | AH143: 52630149.84 | AI143: 0 | AJ143: 0 | AK143: 0 | AL143: 0 | AM143: 0 | AN143: 21286924.38 | AO143: 0.4108821374 | AP143: 30520935.94 | AQ143: 0.5891178626 | AR143: =Comparatives!$D$3 -> Brand Type 15 | AS143: 20 | AT143: 0.4161977617 | AU143: 0.003916970481 | AV143: 0.4201012003 | AW143: 0.07935290289 | AX143: 1538.631567 | AY143: 0.02065415851 | AZ143: 400.4786104 | BA143: 40337961.21 | BB143: 0.02721155326 | BC143: 103595460.4 | BD143: 0.01059562432 | BE143: 0.02424652433 | BF143: 149.4293167 | BG143: 0.007706620811 | BH143: 1832959.72 | BI143: 0.04048882162 | BJ143: 785.0674239 | BK143: 2604.747025 | BL143: 176.7610824 | BM143: 0.5891178626 | BN143: 0.009151774156 | BO143: 0.02364774329 | BP143: 41408512.52 | BQ143: 3990795.13 | BR143: 0.0693908648 | BS143: =I143=Comparatives!$D$3 -> FALSE | BT143: 20 | BU143: =ROW() -> 143 | BV143: =NOT(ISNA(MATCH(BU143,Comparatives!$F:$F,0))) -> FALSE | BW143: =BU143='List Box etc'!$G$18 -> FALSE | BX143: =K143=Assumptions!$F$16 -> FALSE | BY143: FALSE
B144: Brazil | C144: 143 | D144: Store 143 | E144: Store 143 Brazil | F144: 22854459.35 | G144: 2500 | H144: Brand Type 2 | I144: Brand Type 2 | J144: Classification Type 5 | K144: Classification Type 5 | L144: 2171901.923 | M144: 7468117.73 | N144: 45418984.56 | O144: 19486776.14 | P144: 258423.85 | Q144: 19747981.19 | R144: -12268311.15 | S144: -830828.72 | T144: -1070606.29 | U144: -412073.84 | V144: -3518431.51 | W144: -5220735.63 | X144: -6549.89 | Y144: -354650.95 | Z144: -69074.24 | AA144: -834663.08 | AB144: 6633454.65 | AC144: -134272.23 | AD144: -267107.03 | AE144: -4471876.82 | AF144: 2203850.96 | AG144: -94846154.66 | AH144: 54377396.32 | AI144: -798506.4 | AJ144: 797432.4 | AK144: 0 | AL144: 0 | AM144: 0 | AN144: 27505711.55 | AO144: 0.5346098538 | AP144: 23944353.12 | AQ144: 0.4653901462 | AR144: =Comparatives!$D$3 -> Brand Type 15 | AS144: 20 | AT144: 0.4290447338 | AU144: 0.005689776038 | AV144: 0.4347957441 | AW144: 0.07746609802 | AX144: 1407.372604 | AY144: 0.009072722431 | AZ144: 164.829536 | BA144: 42737858.2 | BB144: 0.01952982941 | BC144: 100116537.9 | BD144: 0.008336915136 | BE144: 0.01837696479 | BF144: 106.842812 | BG144: 0.005880955565 | BH144: 1388826.14 | BI144: 0.03057809754 | BJ144: 555.530456 | BK144: 2088.294252 | BL144: 430.862472 | BM144: 0.4653901462 | BN144: 0.007808429744 | BO144: 0.04781925321 | BP144: 44909760.12 | BQ144: 6633454.65 | BR144: 0.1063485384 | BS144: =I144=Comparatives!$D$3 -> FALSE | BT144: 20 | BU144: =ROW() -> 144 | BV144: =NOT(ISNA(MATCH(BU144,Comparatives!$F:$F,0))) -> FALSE | BW144: =BU144='List Box etc'!$G$18 -> FALSE | BX144: =K144=Assumptions!$F$16 -> FALSE | BY144: FALSE
B145: Brazil | C145: 144 | D145: Store 144 | E145: Store 144 Brazil | F145: 37713028.69 | G145: 3198 | H145: Brand Type 2 | I145: Brand Type 2 | J145: Classification Type 5 | K145: Classification Type 5 | L145: 1377683.769 | M145: 1241742.93 | N145: 22043971.46 | O145: 8102468.63 | P145: -165549.92 | Q145: 7936918.71 | R145: -6695175.78 | S145: -320290.93 | T145: -385754.64 | U145: 18421.05 | V145: -1262252.3 | W145: -2963362.56 | X145: -13203.06 | Y145: -180072.38 | Z145: -48540.13 | AA145: -123397.95 | AB145: 1118344.98 | AC145: -108747.35 | AD145: -75675 | AE145: -6835093.47 | AF145: 6785496.37 | AG145: -37955621.44 | AH145: 32015365.3 | AI145: -125638.8 | AJ145: 125638.8 | AK145: -201895.32 | AL145: 201895.32 | AM145: 0 | AN145: 13687167.77 | AO145: 0.5446699486 | AP145: 11442119.8 | AQ145: 0.4553300514 | AR145: =Comparatives!$D$3 -> Brand Type 15 | AS145: 20 | AT145: 0.3675593867 | AU145: -0.007509986134 | AV145: 0.3600494006 | AW145: 0.05726065751 | AX145: 394.7005316 | AY145: -0.0008356502381 | AZ145: -5.760178236 | BA145: 5989853.24 | BB145: 0.02060116418 | BC145: 45118249.03 | BD145: 0.00273498978 | BE145: 0.00559780937 | BF145: 23.66322702 | BG145: 0.003432911358 | BH145: 657650.79 | BI145: 0.02983358925 | BJ145: 205.6443996 | BK145: 926.6299437 | BL145: 124.7522514 | BM145: 0.4553300514 | BN145: 0.008168781217 | BO145: 0.06249707643 | BP145: 7367537.009 | BQ145: 1118344.98 | BR145: 0.1092913934 | BS145: =I145=Comparatives!$D$3 -> FALSE | BT145: 20 | BU145: =ROW() -> 145 | BV145: =NOT(ISNA(MATCH(BU145,Comparatives!$F:$F,0))) -> FALSE | BW145: =BU145='List Box etc'!$G$18 -> FALSE | BX145: =K145=Assumptions!$F$16 -> FALSE | BY145: FALSE
B146: Brazil | C146: 145 | D146: Store 145 | E146: Store 145 Brazil | F146: 8147680.67 | G146: 640 | H146: Brand Type 4 | I146: Brand Type 4 | J146: Classification Type 7 | K146: Classification Type 7 | L146: 6594999.615 | M146: 21081899.27 | N146: 143531091.2 | O146: 58079395.57 | P146: 2793311.93 | Q146: 60872707.5 | R146: -39734642.93 | S146: -2448567.55 | T146: -1863286.49 | U146: -1490198.44 | V146: -12144081.09 | W146: -13278516.18 | X146: -17062.22 | Y146: -1173780.99 | Z146: -526786.29 | AA146: -5505364.51 | AB146: 15576534.76 | AC146: -368265.28 | AD146: -708834.49 | AE146: -128469735.6 | AF146: 34589513.68 | AG146: -407609091.3 | AH146: 111247405.8 | AI146: -8880 | AJ146: 8880 | AK146: 0 | AL146: 0 | AM146: 0 | AN146: 84732013.91 | AO146: 0.4890826841 | AP146: 88514794.16 | AQ146: 0.5109173159 | AR146: =Comparatives!$D$3 -> Brand Type 15 | AS146: 20 | AT146: 0.4046467918 | AU146: 0.0194613718 | AV146: 0.4241081636 | AW146: 0.08460941103 | AX146: 18975.1267 | AY146: 0.01038240863 | AZ146: 2328.435063 | BA146: 390241907.4 | BB146: 0.01410756868 | BC146: 536087706.9 | BD146: 0.01026952202 | BE146: 0.03835659901 | BF146: 1107.553891 | BG146: 0.004938543169 | BH146: 4517400.11 | BI146: 0.03147332102 | BJ146: 7058.437672 | BK146: 20747.68153 | BL146: 2938.044859 | BM146: 0.5109173159 | BN146: 0.008177886619 | BO146: 0.04594823018 | BP146: 396836907 | BQ146: 15576534.76 | BR146: 0.02826124493 | BS146: =I146=Comparatives!$D$3 -> FALSE | BT146: 20 | BU146: =ROW() -> 146 | BV146: =NOT(ISNA(MATCH(BU146,Comparatives!$F:$F,0))) -> FALSE | BW146: =BU146='List Box etc'!$G$18 -> FALSE | BX146: =K146=Assumptions!$F$16 -> FALSE | BY146: FALSE
B147: Brazil | C147: 146 | D147: Store 146 | E147: Store 146 Brazil | F147: 62830537.1 | G147: 4159 | H147: Brand Type 2 | I147: Brand Type 2 | J147: Classification Type 4 | K147: Classification Type 4 | L147: 1308213.154 | M147: 1354220.8 | N147: 11330735.86 | O147: 3694508.49 | P147: 18765.37 | Q147: 3713273.86 | R147: -2359053.06 | S147: -102641.28 | T147: 0 | U147: -33025.24 | V147: -546087.48 | W147: -1174276.51 | X147: -1939.46 | Y147: -105225.82 | Z147: -13101.55 | AA147: -21076.54 | AB147: 1333144.26 | AC147: -2021.7 | AD147: -17390.25 | AE147: -724180.64 | AF147: 701448.3 | AG147: -1945881.01 | AH147: 989755.26 | AI147: -8880 | AJ147: 8880 | AK147: 0 | AL147: 0 | AM147: 0 | AN147: 8091856.26 | AO147: 0.628645921 | AP147: 4780025.97 | AQ147: 0.371354079 | AR147: =Comparatives!$D$3 -> Brand Type 15 | AS147: 20 | AT147: 0.3260607727 | AU147: 0.001656147512 | AV147: 0.3277169202 | AW147: 0.04819523522 | AX147: 131.302592 | AY147: 0.002914659772 | AZ147: 7.94066843 | BA147: 978858.09 | BB147: 0.02153176259 | BC147: 2678941.65 | BD147: 0.007867487521 | BE147: 0.001860121025 | BF147: 4.181353691 | BG147: 0.001534785579 | BH147: 222990.35 | BI147: 0.01968012958 | BJ147: 53.61633806 | BK147: 282.3458788 | BL147: 0.4663284443 | BM147: 0.371354079 | BN147: 0.009286759598 | BO147: 0.1154570339 | BP147: 2287071.244 | BQ147: 1333144.26 | BR147: 0.4196912841 | BS147: =I147=Comparatives!$D$3 -> FALSE | BT147: 20 | BU147: =ROW() -> 147 | BV147: =NOT(ISNA(MATCH(BU147,Comparatives!$F:$F,0))) -> FALSE | BW147: =BU147='List Box etc'!$G$18 -> FALSE | BX147: =K147=Assumptions!$F$16 -> FALSE | BY147: FALSE
B148: Brazil | C148: 147 | D148: Store 147 | E148: Store 147 Brazil | F148: 23541517.03 | G148: 209 | H148: Brand Type 1 | I148: Brand Type 1 | J148: Classification Type 1 | K148: Classification Type 1 | L148: 6343100.385 | M148: 2485117.03 | N148: 25103818.78 | O148: 9533580.78 | P148: 220894.85 | Q148: 9754475.63 | R148: -7263658.95 | S148: -307898.32 | T148: -280840.68 | U148: -719534.42 | V148: -1832090.38 | W148: -3117190.44 | X148: 0 | Y148: -151406.87 | Z148: -56275.01 | AA148: -185210.51 | AB148: 2299906.52 | AC148: -37658.31 | AD148: -208801.28 | AE148: -13390540.88 | AF148: 11758988.15 | AG148: -44537991.34 | AH148: 33625825.68 | AI148: -1987319.28 | AJ148: 1987319.28 | AK148: 0 | AL148: 0 | AM148: 0 | AN148: 12241009.22 | AO148: 0.4432836438 | AP148: 15373384.84 | AQ148: 0.5567163562 | AR148: =Comparatives!$D$3 -> Brand Type 15 | AS148: 20 | AT148: 0.3797661568 | AU148: 0.008799252892 | AV148: 0.3885654097 | AW148: 0.07298054515 | AX148: 8765.982679 | AY148: 0.02866234919 | AZ148: 3442.748421 | BA148: 12543718.39 | BB148: 0.01476519994 | BC148: 59915851.5 | BD148: 0.003091177132 | BE148: 0.007377782306 | BF148: 999.0491866 | BG148: 0.008317510648 | BH148: 553238.51 | BI148: 0.02203802198 | BJ148: 2647.074211 | BK148: 14914.78679 | BL148: 1343.735311 | BM148: 0.5567163562 | BN148: 0.006031228608 | BO148: 0.2526747201 | BP148: 18886818.77 | BQ148: 2299906.52 | BR148: 0.08767663386 | BS148: =I148=Comparatives!$D$3 -> FALSE | BT148: 20 | BU148: =ROW() -> 148 | BV148: =NOT(ISNA(MATCH(BU148,Comparatives!$F:$F,0))) -> FALSE | BW148: =BU148='List Box etc'!$G$18 -> FALSE | BX148: =K148=Assumptions!$F$16 -> FALSE | BY148: FALSE
B149: Brazil | C149: 148 | D149: Store 148 | E149: Store 148 Brazil | F149: 32040550.74 | G149: 1154 | H149: Brand Type 13 | I149: Brand Type 13 | J149: Classification Type 17 | K149: Classification Type 17 | L149: 472031.4615 | M149: 9259763.49 | N149: 65977901.48 | O149: 27440438.02 | P149: 833781.22 | Q149: 28274219.24 | R149: -19010964.66 | S149: -1896303.32 | T149: -1091631.84 | U149: -931962.62 | V149: -5256927.84 | W149: -7734278.66 | X149: -1939.46 | Y149: -546352.72 | Z149: -175950.13 | AA149: -4628198.74 | AB149: 4631564.75 | AC149: -194656.68 | AD149: -396146.81 | AE149: -68557835.45 | AF149: 25627837.24 | AG149: -256161625.9 | AH149: 115326863.9 | AI149: -10800 | AJ149: 10800 | AK149: 0 | AL149: 0 | AM149: 0 | AN149: 39423087.19 | AO149: 0.5042447846 | AP149: 38759351.96 | AQ149: 0.4957552154 | AR149: =Comparatives!$D$3 -> Brand Type 15 | AS149: 20 | AT149: 0.4159034677 | AU149: 0.01263728008 | AV149: 0.4285407478 | AW149: 0.07967709979 | AX149: 4555.396742 | AY149: 0.0141253753 | AZ149: 807.5932582 | BA149: 183764760.1 | BB149: 0.02518545306 | BC149: 324730261.3 | BD149: 0.01425244054 | BE149: 0.07014771061 | BF149: 343.2814645 | BG149: 0.006004234768 | BH149: 2813262.85 | BI149: 0.0426394715 | BJ149: 2437.836092 | BK149: 6702.147886 | BL149: 947.6354419 | BM149: 0.4957552154 | BN149: 0.008280844158 | BO149: 0.007154387317 | BP149: 184236791.6 | BQ149: 4631564.75 | BR149: 0.01810022087 | BS149: =I149=Comparatives!$D$3 -> FALSE | BT149: 20 | BU149: =ROW() -> 149 | BV149: =NOT(ISNA(MATCH(BU149,Comparatives!$F:$F,0))) -> FALSE | BW149: =BU149='List Box etc'!$G$18 -> FALSE | BX149: =K149=Assumptions!$F$16 -> FALSE | BY149: FALSE
B150: Brazil | C150: 149 | D150: Store 149 | E150: Store 149 Brazil | F150: 15262720.14 | G150: 712 | H150: Brand Type 12 | I150: Brand Type 12 | J150: Classification Type 16 | K150: Classification Type 16 | L150: 1234725 | M150: 803514.09 | N150: 12232568.21 | O150: 4520437.8 | P150: -132184.67 | Q150: 4388253.13 | R150: -3584739.04 | S150: -330492.88 | T150: -313249 | U150: -218781.29 | V150: -824594.25 | W150: -1431812.5 | X150: -15831.86 | Y150: -112213.47 | Z150: -38073.18 | AA150: -165159.02 | AB150: 638355.07 | AC150: -75863.42 | AD150: -79658.71 | AE150: -4615088.44 | AF150: 4562990.04 | AG150: -41550765.06 | AH150: 35456225.31 | AI150: -137036.28 | AJ150: 137036.28 | AK150: -60586.44 | AL150: 60586.44 | AM150: 0 | AN150: 7713675.58 | AO150: 0.5531448499 | AP150: 6231452.14 | AQ150: 0.4468551501 | AR150: =Comparatives!$D$3 -> Brand Type 15 | AS150: 20 | AT150: 0.3695411889 | AU150: -0.01080596223 | AV150: 0.3587352267 | AW150: 0.06740974061 | AX150: 1158.137992 | AY150: 0.01788514777 | AZ150: 307.2770927 | BA150: 6146638.15 | BB150: 0.02686981338 | BC150: 46363476.22 | BD150: 0.003562265677 | BE150: 0.01350158177 | BF150: 111.8802107 | BG150: 0.00651201846 | BH150: 556642.95 | BI150: 0.04550499457 | BJ150: 781.8018961 | BK150: 2010.972612 | BL150: 462.1922191 | BM150: 0.4468551501 | BN150: 0.009173336954 | BO150: 0.100937512 | BP150: 7381363.15 | BQ150: 638355.07 | BR150: 0.06226704215 | BS150: =I150=Comparatives!$D$3 -> FALSE | BT150: 20 | BU150: =ROW() -> 150 | BV150: =NOT(ISNA(MATCH(BU150,Comparatives!$F:$F,0))) -> FALSE | BW150: =BU150='List Box etc'!$G$18 -> FALSE | BX150: =K150=Assumptions!$F$16 -> FALSE | BY150: FALSE
B151: Brazil | C151: 150 | D151: Store 150 | E151: Store 150 Brazil | F151: 22230047.71 | G151: 1946 | H151: Brand Type 13 | I151: Brand Type 13 | J151: Classification Type 20 | K151: Classification Type 20 | L151: 1523110.077 | M151: 16041731.54 | N151: 131487127.2 | O151: 50077737.44 | P151: 1643095.85 | Q151: 51720833.29 | R151: -35674282.9 | S151: -1290488.58 | T151: -4817517.96 | U151: -1801622.84 | V151: -9934320.78 | W151: -13861446.56 | X151: -129837.86 | Y151: -1525555.9 | Z151: -399019.87 | AA151: -4723351.33 | AB151: 11318380.21 | AC151: -184074.82 | AD151: -618564.4 | AE151: -77424006.63 | AF151: 31195116.25 | AG151: -273283359.5 | AH151: 148904162 | AI151: -3426703.2 | AJ151: 3426703.2 | AK151: 0 | AL151: 0 | AM151: 0 | AN151: 113434515.2 | AO151: 0.7231407471 | AP151: 43429159.89 | AQ151: 0.2768592529 | AR151: =Comparatives!$D$3 -> Brand Type 15 | AS151: 20 | AT151: 0.3808565789 | AU151: 0.01249624876 | AV151: 0.3933528277 | AW151: 0.07555356171 | AX151: 5104.995262 | AY151: 0.01370189522 | AZ151: 925.8082425 | BA151: 170608087.9 | BB151: 0.0276853893 | BC151: 354134069.4 | BD151: 0.013337749 | BE151: 0.03592253805 | BF151: 317.8645427 | BG151: 0.004704372307 | BH151: 3399139.17 | BI151: 0.02585149773 | BJ151: 1746.731331 | BK151: 7123.045509 | BL151: 2542.320565 | BM151: 0.2768592529 | BN151: 0.01160232133 | BO151: 0.01158372009 | BP151: 172131198 | BQ151: 11318380.21 | BR151: 0.04734315364 | BS151: =I151=Comparatives!$D$3 -> FALSE | BT151: 20 | BU151: =ROW() -> 151 | BV151: =NOT(ISNA(MATCH(BU151,Comparatives!$F:$F,0))) -> FALSE | BW151: =BU151='List Box etc'!$G$18 -> FALSE | BX151: =K151=Assumptions!$F$16 -> FALSE | BY151: FALSE
B152: Brazil | C152: 151 | D152: Store 151 | E152: Store 151 Brazil | F152: 22739454.88 | G152: 3848 | H152: Brand Type 13 | I152: Brand Type 13 | J152: Classification Type 19 | K152: Classification Type 19 | L152: 2396245.231 | M152: 4931065.41 | N152: 19867199.69 | O152: 11271140.04 | P152: -15134.93 | Q152: 11256005.11 | R152: -6324939.7 | S152: -735872.93 | T152: 0 | U152: -259939.3 | V152: -1123172.18 | W152: -2985204.85 | X152: -1880.98 | Y152: -529269.11 | Z152: -32797.72 | AA152: -59726.89 | AB152: 4871338.52 | AC152: -23660.94 | AD152: -133691.3 | AE152: -2604801.42 | AF152: 2057198.16 | AG152: -49099191.63 | AH152: 46297227.17 | AI152: -18131.09 | AJ152: 18131.09 | AK152: 0 | AL152: 0 | AM152: 0 | AN152: 10942480.62 | AO152: 0.6464915436 | AP152: 5983464.86 | AQ152: 0.3535084564 | AR152: =Comparatives!$D$3 -> Brand Type 15 | AS152: 20 | AT152: 0.5673240424 | AU152: -0.0007618048963 | AV152: 0.5665622375 | AW152: 0.05653399561 | AX152: 291.8846622 | AY152: 0.01308384191 | AZ152: 67.55179314 | BA152: 3349567.72 | BB152: 0.01783122331 | BC152: 51722124.14 | BD152: 0.001154764832 | BE152: 0.003006306421 | BF152: 34.74306133 | BG152: 0.006729247306 | BH152: 1321600.7 | BI152: 0.06652174039 | BJ152: 343.4513254 | BK152: 775.7808862 | BL152: 0.4888201663 | BM152: 0.3535084564 | BN152: 0.02664034782 | BO152: 0.1206131346 | BP152: 5745812.951 | BQ152: 4871338.52 | BR152: 0.6104207994 | BS152: =I152=Comparatives!$D$3 -> FALSE | BT152: 20 | BU152: =ROW() -> 152 | BV152: =NOT(ISNA(MATCH(BU152,Comparatives!$F:$F,0))) -> FALSE | BW152: =BU152='List Box etc'!$G$18 -> FALSE | BX152: =K152=Assumptions!$F$16 -> FALSE | BY152: FALSE
B153: Brazil | C153: 152 | D153: Store 152 | E153: Store 152 Brazil | F153: 29714870.91 | G153: 1819.43 | H153: Brand Type 13 | I153: Brand Type 13 | J153: Classification Type 20 | K153: Classification Type 20 | L153: 668389.9231 | M153: 6229613.44 | N153: 30102553.24 | O153: 16840685.18 | P153: -46718.81 | Q153: 16793966.37 | R153: -10564352.93 | S153: -849517.89 | T153: 0 | U153: -292435.39 | V153: -2266899.45 | W153: -5414687.04 | X153: -28709.45 | Y153: -863931.45 | Z153: -63090.91 | AA153: -479075.85 | AB153: 5750537.59 | AC153: -68132.21 | AD153: -432.63 | AE153: -23870889.84 | AF153: 984405.26 | AG153: -114796528.7 | AH153: 3871120.23 | AI153: -42531 | AJ153: 42531.01 | AK153: 0 | AL153: 0 | AM153: 0 | AN153: 16114276 | AO153: 0.6196877198 | AP153: 9889589.31 | AQ153: 0.3803122802 | AR153: =Comparatives!$D$3 -> Brand Type 15 | AS153: 20 | AT153: 0.559443747 | AU153: -0.001551988286 | AV153: 0.5578917588 | AW153: 0.07530588625 | AX153: 1245.93936 | AY153: 0.009714637415 | AZ153: 160.729124 | BA153: 133811893 | BB153: 0.003580218762 | BC153: 138709949.5 | BD153: 0.003453795864 | BE153: 0.01591479122 | BF153: 0.2377832618 | BG153: 1.43718706e-05 | BH153: 1844672.46 | BI153: 0.06127960128 | BJ153: 1013.873829 | BK153: 2976.034824 | BL153: 15.77936497 | BM153: 0.3803122802 | BN153: 0.02869960708 | BO153: 0.02220376185 | BP153: 134480283 | BQ153: 5750537.59 | BR153: 0.03078806033 | BS153: =I153=Comparatives!$D$3 -> FALSE | BT153: 20 | BU153: =ROW() -> 153 | BV153: =NOT(ISNA(MATCH(BU153,Comparatives!$F:$F,0))) -> FALSE | BW153: =BU153='List Box etc'!$G$18 -> FALSE | BX153: =K153=Assumptions!$F$16 -> FALSE | BY153: FALSE
B154: Brazil | C154: 153 | D154: Store 153 | E154: Store 153 Brazil | F154: 7337093.93 | G154: 500.82 | H154: Brand Type 12 | I154: Brand Type 12 | J154: Classification Type 16 | K154: Classification Type 16 | L154: 2050303.692 | M154: 17070711.49 | N154: 51362109.97 | O154: 28332193.31 | P154: -75283.45 | Q154: 28256909.86 | R154: -11186198.37 | S154: -622477.46 | T154: 0 | U154: 122922.14 | V154: -3372632.33 | W154: -4717587.3 | X154: -1880.98 | Y154: -1666427.77 | Z154: -40467.33 | AA154: -1268896.63 | AB154: 15801814.86 | AC154: -44774.77 | AD154: -185449.41 | AE154: -15926585.47 | AF154: 10107187.15 | AG154: -100248197.5 | AH154: 62966430.25 | AI154: 0 | AJ154: 0 | AK154: 0 | AL154: 0 | AM154: 0 | AN154: 33441624.87 | AO154: 0.7535653278 | AP154: 10936246.08 | AQ154: 0.2464346722 | AR154: =Comparatives!$D$3 -> Brand Type 15 | AS154: 20 | AT154: 0.5516166163 | AU154: -0.001465739045 | AV154: 0.5501508773 | AW154: 0.06566381973 | AX154: 6734.220538 | AY154: -0.002393245528 | AZ154: -245.4417555 | BA154: 43101165.62 | BB154: 0.02943996089 | BC154: 116174783 | BD154: 0.01092230686 | BE154: 0.02470491634 | BF154: 370.2915419 | BG154: 0.003610626785 | BH154: 2374147.33 | BI154: 0.04622371105 | BJ154: 4740.520207 | BK154: 9419.726249 | BL154: 3.755800487 | BM154: 0.2464346722 | BN154: 0.03244469067 | BO154: 0.0399186033 | BP154: 45151469.31 | BQ154: 15801814.86 | BR154: 0.251980874 | BS154: =I154=Comparatives!$D$3 -> FALSE | BT154: 20 | BU154: =ROW() -> 154 | BV154: =NOT(ISNA(MATCH(BU154,Comparatives!$F:$F,0))) -> FALSE | BW154: =BU154='List Box etc'!$G$18 -> FALSE | BX154: =K154=Assumptions!$F$16 -> FALSE | BY154: FALSE
B155: Brazil | C155: 154 | D155: Store 154 | E155: Store 154 Brazil | F155: 15861420.12 | G155: 1100 | H155: Brand Type 13 | I155: Brand Type 13 | J155: Classification Type 21 | K155: Classification Type 21 | L155: 4260615 | M155: 3141912.9 | N155: 20183633.16 | O155: 8573666.63 | P155: -13943.26 | Q155: 8559723.37 | R155: -5417810.47 | S155: -1222793.94 | T155: -50808 | U155: -59372.08 | V155: -1262702.47 | W155: -1883186.1 | X155: -1939.46 | Y155: -169050.96 | Z155: -24737.43 | AA155: -290621.75 | AB155: 2851291.15 | AC155: -28251.2 | AD155: -162287.27 | AE155: -1100715.36 | AF155: 527441.06 | AG155: -32577915 | AH155: 13859531.34 | AI155: 0 | AJ155: 0 | AK155: 0 | AL155: 0 | AM155: 0 | AN155: 17370920.68 | AO155: 0.7540768922 | AP155: 5665086.47 | AQ155: 0.2459231078 | AR155: =Comparatives!$D$3 -> Brand Type 15 | AS155: 20 | AT155: 0.4247831182 | AU155: -0.0006908201259 | AV155: 0.4240922981 | AW155: 0.06256071243 | AX155: 1147.911336 | AY155: 0.002941595278 | AZ155: 53.97461818 | BA155: 19291657.96 | BB155: 0.01506463315 | BC155: 33678630.36 | BD155: 0.008629262737 | BE155: 0.01439888189 | BF155: 147.5338818 | BG155: 0.00804053803 | BH155: 1444833.53 | BI155: 0.0715844129 | BJ155: 1313.485027 | BK155: 1711.987364 | BL155: 47.95223636 | BM155: 0.2459231078 | BN155: 0.008375645686 | BO155: 0.2110925702 | BP155: 23552272.96 | BQ155: 2851291.15 | BR155: 0.08716481978 | BS155: =I155=Comparatives!$D$3 -> FALSE | BT155: 20 | BU155: =ROW() -> 155 | BV155: =NOT(ISNA(MATCH(BU155,Comparatives!$F:$F,0))) -> FALSE | BW155: =BU155='List Box etc'!$G$18 -> FALSE | BX155: =K155=Assumptions!$F$16 -> FALSE | BY155: FALSE
B156: Brazil | C156: 155 | D156: Store 155 | E156: Store 155 Brazil | F156: 8551606.86 | G156: 450 | H156: Brand Type 12 | I156: Brand Type 12 | J156: Classification Type 16 | K156: Classification Type 16 | L156: 4223696.154 | M156: 4670443.06 | N156: 13081881.16 | O156: 8164410.96 | P156: 109218.72 | Q156: 8273629.68 | R156: -3603186.62 | S156: -3270278.26 | T156: 0 | U156: -323108 | V156: -1312578.75 | W156: 767657.72 | X156: 0 | Y156: -73262.96 | Z156: -33012.37 | AA156: -2859004.57 | AB156: 1811438.49 | AC156: -99495.34 | AD156: -362276.96 | AE156: -27704600.04 | AF156: 9301485.94 | AG156: -238732494 | AH156: 69400082.49 | AI156: 0 | AJ156: 0 | AK156: 0 | AL156: 0 | AM156: 0 | AN156: 11816193.73 | AO156: 1 | AP156: 0 | AQ156: 0 | AR156: =Comparatives!$D$3 -> Brand Type 15 | AS156: 20 | AT156: 0.6241006825 | AU156: 0.008348854317 | AV156: 0.6324495368 | AW156: 0.1003356271 | AX156: 2916.841667 | AY156: 0.0246988943 | AZ156: 718.0177778 | BA156: 187735525.6 | BB156: 0.0152288948 | BC156: 266437094.1 | BD156: 0.010730505 | BE156: 0.2185468997 | BF156: 805.0599111 | BG156: 0.02769303249 | BH156: 3476048.93 | BI156: 0.2657147613 | BJ156: 7724.553178 | BK156: -1705.906044 | BL156: 0 | BM156: 0 | BN156: 0.005600338293 | BO156: 0.3228661155 | BP156: 191959221.8 | BQ156: 1811438.49 | BR156: 0.006794337363 | BS156: =I156=Comparatives!$D$3 -> FALSE | BT156: 20 | BU156: =ROW() -> 156 | BV156: =NOT(ISNA(MATCH(BU156,Comparatives!$F:$F,0))) -> FALSE | BW156: =BU156='List Box etc'!$G$18 -> FALSE | BX156: =K156=Assumptions!$F$16 -> FALSE | BY156: FALSE
B157: Brazil | C157: 156 | D157: Store 156 | E157: Store 156 Brazil | F157: 382971.65 | G157: 401 | H157: Brand Type 12 | I157: Brand Type 12 | J157: Classification Type 16 | K157: Classification Type 16 | L157: 1303650.077 | M157: 3214114.27 | N157: 23705737.06 | O157: 14346478.87 | P157: -14213.57 | Q157: 14332265.3 | R157: -11118151.03 | S157: -403044.91 | T157: 0 | U157: 466475.34 | V157: -1323131.48 | W157: -8713201.78 | X157: -65774.92 | Y157: 0 | Z157: -43602.21 | AA157: -2191733.02 | AB157: 1022381.25 | AC157: -19049.32 | AD157: -212018.57 | AE157: -27616470.01 | AF157: 8736095.64 | AG157: -175369543.4 | AH157: 41557527.32 | AI157: 0 | AJ157: 0 | AK157: 0 | AL157: 0 | AM157: 0 | AN157: 19330892.24 | AO157: 1 | AP157: 0 | AQ157: 0 | AR157: =Comparatives!$D$3 -> Brand Type 15 | AS157: 20 | AT157: 0.6051901628 | AU157: -0.0005995835508 | AV157: 0.6045905792 | AW157: 0.05581482139 | AX157: 3299.579751 | AY157: -0.01967774041 | AZ157: -1163.28015 | BA157: 152692390.5 | BB157: 0.01435391124 | BC157: 202986013.4 | BD157: 0.01079745832 | BE157: 0.09245580572 | BF157: 528.7246135 | BG157: 0.008943766206 | BH157: 465696.44 | BI157: 0.01964488338 | BJ157: 1161.337756 | BK157: 21728.68274 | BL157: 164.0272319 | BM157: 0 | BN157: 0 | BO157: 0.0549930202 | BP157: 153996040.6 | BQ157: 1022381.25 | BR157: 0.004780087185 | BS157: =I157=Comparatives!$D$3 -> FALSE | BT157: 20 | BU157: =ROW() -> 157 | BV157: =NOT(ISNA(MATCH(BU157,Comparatives!$F:$F,0))) -> FALSE | BW157: =BU157='List Box etc'!$G$18 -> FALSE | BX157: =K157=Assumptions!$F$16 -> FALSE | BY157: FALSE
B158: Brazil | C158: 157 | D158: Store 157 | E158: Store 157 Brazil | F158: 14622712.8 | G158: 592 | H158: Brand Type 15 | I158: Brand Type 15 | J158: Classification Type 26 | K158: Classification Type 26 | L158: 1098722.077 | M158: 2696771.37 | N158: 12137868.45 | O158: 6914680.57 | P158: -7806.62 | Q158: 6906873.95 | R158: -4210102.58 | S158: -110062.72 | T158: 0 | U158: 12770.12 | V158: -915076.03 | W158: -2349775.53 | X158: -18425.86 | Y158: 0 | Z158: -31470.91 | AA158: -786896.81 | AB158: 1909874.56 | AC158: -17901.66 | AD158: -137617.87 | AE158: -3651980.03 | AF158: 949005.12 | AG158: -84490182.58 | AH158: 13622428.59 | AI158: 0 | AJ158: 0 | AK158: 0 | AL158: 0 | AM158: 0 | AN158: 9943961.84 | AO158: 1 | AP158: 0 | AQ158: 0 | AR158: =Comparatives!$D$3 -> Brand Type 15 | AS158: 21 | AT158: 0.5696783252 | AU158: -0.0006431623503 | AV158: 0.5690351628 | AW158: 0.07539017528 | AX158: 1545.736537 | AY158: -0.001052089175 | AZ158: -21.57114865 | BA158: 73570728.9 | BB158: 0.01069578651 | BC158: 88142162.61 | BD158: 0.008927586829 | BE158: 0.064829901 | BF158: 232.4626182 | BG158: 0.01133789434 | BH158: 159435.29 | BI158: 0.01313536151 | BJ158: 269.3163682 | BK158: 3969.215422 | BL158: 31.12476351 | BM158: 0 | BN158: 0 | BO158: 0.0905201833 | BP158: 74669450.98 | BQ158: 1909874.56 | BR158: 0.01841596081 | BS158: =I158=Comparatives!$D$3 -> TRUE | BT158: 21 | BU158: =ROW() -> 158 | BV158: =NOT(ISNA(MATCH(BU158,Comparatives!$F:$F,0))) -> FALSE | BW158: =BU158='List Box etc'!$G$18 -> FALSE | BX158: =K158=Assumptions!$F$16 -> FALSE | BY158: TRUE
B159: Brazil | C159: 158 | D159: Store 158 | E159: Store 158 Brazil | F159: 7621575.4 | G159: 350 | H159: Brand Type 15 | I159: Brand Type 15 | J159: Classification Type 25 | K159: Classification Type 25 | L159: 1573965.385 | M159: 2878119.62 | N159: 17421354.73 | O159: 9641913.94 | P159: -29355.36 | Q159: 9612558.58 | R159: -6734438.96 | S159: -734713.56 | T159: 0 | U159: 18266.7 | V159: -1139377.99 | W159: -3365355.55 | X159: -32169.1 | Y159: -588687.53 | Z159: -21087.62 | AA159: -944830.68 | AB159: 1933288.94 | AC159: -23831.87 | AD159: -215428.81 | AE159: -11229740.29 | AF159: 3547794.66 | AG159: -79531107.5 | AH159: 20804373.24 | AI159: 0 | AJ159: 0 | AK159: 0 | AL159: 0 | AM159: 0 | AN159: 10022516.22 | AO159: 0.668067899 | AP159: 4979725.67 | AQ159: 0.331932101 | AR159: =Comparatives!$D$3 -> Brand Type 15 | AS159: 22 | AT159: 0.5534537405 | AU159: -0.001685021656 | AV159: 0.5517687188 | AW159: 0.06540122784 | AX159: 3255.365686 | AY159: -0.001048523509 | AZ159: -52.19057143 | BA159: 66408679.89 | BB159: 0.01422751787 | BC159: 90760847.79 | BD159: 0.01041011298 | BE159: 0.05423405324 | BF159: 615.5108857 | BG159: 0.01236578976 | BH159: 1368320.58 | BI159: 0.07854271962 | BJ159: 3909.487371 | BK159: 9615.301571 | BL159: 91.91171429 | BM159: 0.331932101 | BN159: 0.03379114536 | BO159: 0.09034689948 | BP159: 67982645.27 | BQ159: 1933288.94 | BR159: 0.02047534383 | BS159: =I159=Comparatives!$D$3 -> TRUE | BT159: 22 | BU159: =ROW() -> 159 | BV159: =NOT(ISNA(MATCH(BU159,Comparatives!$F:$F,0))) -> FALSE | BW159: =BU159='List Box etc'!$G$18 -> FALSE | BX159: =K159=Assumptions!$F$16 -> FALSE | BY159: TRUE
B160: Brazil | C160: 159 | D160: Store 159 | E160: Store 159 Brazil | F160: 14960175.71 | G160: 472 | H160: Brand Type 15 | I160: Brand Type 15 | J160: Classification Type 23 | K160: Classification Type 23 | L160: 1140614.923 | M160: 3923034.63 | N160: 25362939.01 | O160: 11276505.23 | P160: -12593.93 | Q160: 11263911.3 | R160: -7340876.67 | S160: -1392000.99 | T160: 0 | U160: 108980.94 | V160: -1653029.46 | W160: -3268449.32 | X160: -1654.35 | Y160: -140407.28 | Z160: -162777.97 | AA160: 502725.73 | AB160: 4425760.36 | AC160: -64645.69 | AD160: -130895.69 | AE160: -8560548.22 | AF160: 212257.72 | AG160: -12156978.61 | AH160: -868747.83 | AI160: 0 | AJ160: 0 | AK160: 0 | AL160: 0 | AM160: 0 | AN160: 18354499.91 | AO160: 0.6340925389 | AP160: 10591590.42 | AQ160: 0.3659074611 | AR160: =Comparatives!$D$3 -> Brand Type 15 | AS160: 23 | AT160: 0.4446056203 | AU160: -0.0004965485268 | AV160: 0.4441090717 | AW160: 0.06517499645 | AX160: 3502.181059 | AY160: -0.004296857709 | AZ160: -230.891822 | BA160: 21374016.94 | BB160: -0.02352041413 | BC160: 20717526.83 | BD160: -0.0242657212 | BE160: -0.01982127268 | BF160: 277.3213771 | BG160: 0.005160903866 | BH160: 1759831.93 | BI160: 0.0693859623 | BJ160: 3728.457479 | BK160: 6924.680763 | BL160: 3.504978814 | BM160: 0.3659074611 | BN160: 0.005535923102 | BO160: 0.0449717173 | BP160: 22514631.86 | BQ160: 4425760.36 | BR160: 0.1415322924 | BS160: =I160=Comparatives!$D$3 -> TRUE | BT160: 23 | BU160: =ROW() -> 160 | BV160: =NOT(ISNA(MATCH(BU160,Comparatives!$F:$F,0))) -> FALSE | BW160: =BU160='List Box etc'!$G$18 -> FALSE | BX160: =K160=Assumptions!$F$16 -> FALSE | BY160: TRUE
B161: Brazil | C161: 160 | D161: Store 160 | E161: Store 160 Brazil | F161: 5157208.4 | G161: 486 | H161: Brand Type 16 | I161: Brand Type 16 | J161: Classification Type 30 | K161: Classification Type 30 | L161: 1409874.231 | M161: -2138793.79 | N161: 15742773.59 | O161: 8653745.67 | P161: -13110.79 | Q161: 8640634.88 | R161: -10779428.67 | S161: -240734.12 | T161: 0 | U161: -98378.04 | V161: -1435400.25 | W161: -7968424.63 | X161: -8318.72 | Y161: 0 | Z161: -49164.38 | AA161: -723143.67 | AB161: -2861937.46 | AC161: -59289.06 | AD161: -203983.51 | AE161: -1237712.42 | AF161: 213034.66 | AG161: -56823901.24 | AH161: 10083839.58 | AI161: 0 | AJ161: 0 | AK161: 0 | AL161: 0 | AM161: 0 | AN161: 12815520.96 | AO161: 1 | AP161: 0 | AQ161: 0 | AR161: =Comparatives!$D$3 -> Brand Type 15 | AS161: 23 | AT161: 0.549696381 | AU161: -0.0008328132222 | AV161: 0.5488635678 | AW161: 0.09117835823 | AX161: 2953.498457 | AY161: 0.006249091968 | AZ161: 202.4239506 | BA161: 47764739.42 | BB161: 0.01513969675 | BC161: 58061613.66 | BD161: 0.01245476356 | BE161: 0.04593495967 | BF161: 419.7191564 | BG161: 0.01295727902 | BH161: 349187.56 | BI161: 0.02218081572 | BJ161: 718.4929218 | BK161: 16395.93545 | BL161: 17.11670782 | BM161: 0 | BN161: 0 | BO161: 0.08955691465 | BP161: 49174613.65 | BQ161: -2861937.46 | BR161: -0.04190363316 | BS161: =I161=Comparatives!$D$3 -> FALSE | BT161: 23 | BU161: =ROW() -> 161 | BV161: =NOT(ISNA(MATCH(BU161,Comparatives!$F:$F,0))) -> FALSE | BW161: =BU161='List Box etc'!$G$18 -> FALSE | BX161: =K161=Assumptions!$F$16 -> FALSE | BY161: FALSE
B162: Brazil | C162: 161 | D162: Store 161 | E162: Store 161 Brazil | F162: 5141770.69 | G162: 74 | H162: Brand Type 17 | I162: Brand Type 17 | J162: Classification Type 32 | K162: Classification Type 32 | L162: 462941.2308 | M162: 6595299.28 | N162: 27061557.53 | O162: 12138320.31 | P162: -18977.93 | Q162: 12119342.38 | R162: -5524043.1 | S162: -689760.92 | T162: -5523.6 | U162: -212866.08 | V162: -1861541.96 | W162: -1843200.84 | X162: -7801.96 | Y162: -155180.37 | Z162: -29729.27 | AA162: -519996.58 | AB162: 6075302.7 | AC162: -22880.26 | AD162: -144273.86 | AE162: -6161461.44 | AF162: 5675519.52 | AG162: -43958828.28 | AH162: 31218042.2 | AI162: 0 | AJ162: 0 | AK162: 0 | AL162: 0 | AM162: 0 | AN162: 22147495.3 | AO162: 0.715107664 | AP162: 8823359.04 | AQ162: 0.284892336 | AR162: =Comparatives!$D$3 -> Brand Type 15 | AS162: 23 | AT162: 0.4485447778 | AU162: -0.0007012874251 | AV162: 0.4478434904 | AW162: 0.06878916551 | AX162: 25155.97243 | AY162: 0.00786599514 | AZ162: 2876.568649 | BA162: 13226728 | BB162: 0.03931407526 | BC162: 50120289.72 | BD162: 0.01037497155 | BE162: 0.01921532341 | BF162: 1949.646757 | BG162: 0.005331321371 | BH162: 897550.82 | BI162: 0.03316700523 | BJ162: 12129.06514 | BK162: 24908.11946 | BL162: 180.0751351 | BM162: 0.284892336 | BN162: 0.005734347324 | BO162: 0.01710696919 | BP162: 13689669.23 | BQ162: 6075302.7 | BR162: 0.3195269272 | BS162: =I162=Comparatives!$D$3 -> FALSE | BT162: 23 | BU162: =ROW() -> 162 | BV162: =NOT(ISNA(MATCH(BU162,Comparatives!$F:$F,0))) -> FALSE | BW162: =BU162='List Box etc'!$G$18 -> FALSE | BX162: =K162=Assumptions!$F$16 -> FALSE | BY162: FALSE
B163: Brazil | C163: 162 | D163: Store 162 | E163: Store 162 Brazil | F163: 13874412.96 | G163: 375.29 | H163: Brand Type 29 | I163: Brand Type 29 | J163: Classification Type 35 | K163: Classification Type 35 | L163: 1611868.231 | M163: 3557441.69 | N163: 20411982.64 | O163: 8818613.24 | P163: -33885.31 | Q163: 8784727.93 | R163: -5227286.24 | S163: -825947.08 | T163: 0 | U163: -393572.15 | V163: -1365743.98 | W163: -2035719.84 | X163: 0 | Y163: -150621.46 | Z163: -9474.72 | AA163: -78100.05 | AB163: 3479341.64 | AC163: -17542.2 | AD163: -112042.41 | AE163: -129780 | AF163: 113557.5 | AG163: -7624881.64 | AH163: 3811187.1 | AI163: -82200 | AJ163: 82200 | AK163: 0 | AL163: 0 | AM163: 0 | AN163: 13749817.03 | AO163: 0.5913343478 | AP163: 9502370.3 | AQ163: 0.4086656522 | AR163: =Comparatives!$D$3 -> Brand Type 15 | AS163: 23 | AT163: 0.4320311944 | AU163: -0.001660069509 | AV163: 0.4303711249 | AW163: 0.06690893306 | AX163: 3639.169655 | AY163: 0.01928142684 | AZ163: 1048.714727 | BA163: 3829917.04 | BB163: 0.02039209967 | BC163: 7836861.64 | BD163: 0.009965730363 | BE163: 0.003826186382 | BF163: 298.5488822 | BG163: 0.005489050818 | BH163: 1003585.46 | BI163: 0.04916648606 | BJ163: 2674.159876 | BK163: 5424.391377 | BL163: 0 | BM163: 0.4086656522 | BN163: 0.007379070552 | BO163: 0.07896676473 | BP163: 5441785.271 | BQ163: 3479341.64 | BR163: 0.4603500241 | BS163: =I163=Comparatives!$D$3 -> FALSE | BT163: 23 | BU163: =ROW() -> 163 | BV163: =NOT(ISNA(MATCH(BU163,Comparatives!$F:$F,0))) -> FALSE | BW163: =BU163='List Box etc'!$G$18 -> FALSE | BX163: =K163=Assumptions!$F$16 -> FALSE | BY163: FALSE
B164: Brazil | C164: 163 | D164: Store 163 | E164: Store 163 Brazil | F164: 7072419.73 | G164: 450 | H164: Brand Type 29 | I164: Brand Type 29 | J164: Classification Type 35 | K164: Classification Type 35 | L164: 23632759.62 | M164: 6384694.88 | N164: 24651218.32 | O164: 14216017.87 | P164: -81587.27 | Q164: 14134430.6 | R164: -7749735.72 | S164: -590707.27 | T164: -33279.05 | U164: -786053.77 | V164: -2180514.41 | W164: -3153600.12 | X164: -9847.54 | Y164: 0 | Z164: -36499.69 | AA164: -1416982.91 | AB164: 4967711.97 | AC164: -46316.95 | AD164: -273762.33 | AE164: -15464970.32 | AF164: 10238357.03 | AG164: -118111702.4 | AH164: 69149160.3 | AI164: 0 | AJ164: 0 | AK164: 0 | AL164: 0 | AM164: 0 | AN164: 20255626.09 | AO164: 1 | AP164: 0 | AQ164: 0 | AR164: =Comparatives!$D$3 -> Brand Type 15 | AS164: 23 | AT164: 0.5766862183 | AU164: -0.003309664818 | AV164: 0.5733765535 | AW164: 0.08845463059 | AX164: 4845.587578 | AY164: 0.03188701507 | AZ164: 1746.786156 | BA164: 54189155.37 | BB164: 0.02614882812 | BC164: 133576672.7 | BD164: 0.01060801172 | BE164: 0.05748125272 | BF164: 608.3607333 | BG164: 0.01110542799 | BH164: 673523.91 | BI164: 0.0273221348 | BJ164: 1496.7198 | BK164: 7008.000267 | BL164: 95.83686667 | BM164: 0 | BN164: 0 | BO164: 0.9586852588 | BP164: 77821914.99 | BQ164: 4967711.97 | BR164: 0.04596073765 | BS164: =I164=Comparatives!$D$3 -> FALSE | BT164: 23 | BU164: =ROW() -> 164 | BV164: =NOT(ISNA(MATCH(BU164,Comparatives!$F:$F,0))) -> FALSE | BW164: =BU164='List Box etc'!$G$18 -> FALSE | BX164: =K164=Assumptions!$F$16 -> FALSE | BY164: FALSE
B165: Brazil | C165: 164 | D165: Store 164 | E165: Store 164 Brazil | F165: 3270764.98 | G165: 110 | H165: Brand Type 29 | I165: Brand Type 29 | J165: Classification Type 35 | K165: Classification Type 35 | L165: 1195388.462 | M165: 21247680.89 | N165: 99555281.74 | O165: 44743838.71 | P165: 149031.35 | Q165: 44892870.06 | R165: -23642514.97 | S165: -4021885.78 | T165: -74232.91 | U165: -901517.8 | V165: -8000140.61 | W165: -7970650.05 | X165: -11169.93 | Y165: -679584 | Z165: -150268.93 | AA165: -1933829.6 | AB165: 19313851.29 | AC165: -165105.21 | AD165: -520401.31 | AE165: -34614109.96 | AF165: 24600017.98 | AG165: -165360521.1 | AH165: 29502496.38 | AI165: 0 | AJ165: 0 | AK165: 0 | AL165: 0 | AM165: 0 | AN165: 76652321.02 | AO165: 0.6607555815 | AP165: 39354752.05 | AQ165: 0.3392444185 | AR165: =Comparatives!$D$3 -> Brand Type 15 | AS165: 23 | AT165: 0.449437116 | AU165: 0.001496970803 | AV165: 0.4509340868 | AW165: 0.08035877625 | AX165: 72728.551 | AY165: 0.009055449236 | AZ165: 8195.616364 | BA165: 145872116.7 | BB165: 0.01325702022 | BC165: 199974631 | BD165: 0.009670374637 | BE165: 0.0194246811 | BF165: 4730.921 | BG165: 0.005227259678 | BH165: 5016843.92 | BI165: 0.05039254405 | BJ165: 45607.672 | BK165: 72460.455 | BL165: 776.3894545 | BM165: 0.3392444185 | BN165: 0.006826197346 | BO165: 0.0120072832 | BP165: 147067505.1 | BQ165: 19313851.29 | BR165: 0.09455503386 | BS165: =I165=Comparatives!$D$3 -> FALSE | BT165: 23 | BU165: =ROW() -> 165 | BV165: =NOT(ISNA(MATCH(BU165,Comparatives!$F:$F,0))) -> FALSE | BW165: =BU165='List Box etc'!$G$18 -> FALSE | BX165: =K165=Assumptions!$F$16 -> FALSE | BY165: FALSE
B166: Brazil | C166: 165 | D166: Store 165 | E166: Store 165 Brazil | F166: 14414612.15 | G166: 451 | H166: Brand Type 29 | I166: Brand Type 29 | J166: Classification Type 35 | K166: Classification Type 35 | L166: 11003071.85 | M166: 20139773.73 | N166: 85848572.12 | O166: 36335100.69 | P166: 8907.71 | Q166: 36344008.4 | R166: -16204234.67 | S166: -2214339.71 | T166: -82692.54 | U166: -336593.53 | V166: -5610108.81 | W166: -5769809.88 | X166: -1939.46 | Y166: -698638.39 | Z166: -155155.8 | AA166: -401069.93 | AB166: 19738703.8 | AC166: -116072.4 | AD166: -392322 | AE166: -21027678.02 | AF166: 17348137.26 | AG166: -27654389.24 | AH166: 5516439.61 | AI166: 0 | AJ166: 0 | AK166: 0 | AL166: 0 | AM166: 0 | AN166: 68349434.27 | AO166: 0.6847879251 | AP166: 31461663.1 | AQ166: 0.3152120749 | AR166: =Comparatives!$D$3 -> Brand Type 15 | AS166: 23 | AT166: 0.4232464186 | AU166: 0.000103760724 | AV166: 0.4233501793 | AW166: 0.065348889 | AX166: 12439.26565 | AY166: 0.003920781927 | AZ166: 746.3271175 | BA166: 25817490.39 | BB166: 0.01553481473 | BC166: 48682067.26 | BD166: 0.00823855585 | BE166: 0.004671829945 | BF166: 869.8935698 | BG166: 0.004569930406 | BH166: 3184206.3 | BI166: 0.03709096402 | BJ166: 7060.32439 | BK166: 12793.37002 | BL166: 187.654102 | BM166: 0.3152120749 | BN166: 0.008138031568 | BO166: 0.1281683734 | BP166: 36820562.24 | BQ166: 19738703.8 | BR166: 0.3859763641 | BS166: =I166=Comparatives!$D$3 -> FALSE | BT166: 23 | BU166: =ROW() -> 166 | BV166: =NOT(ISNA(MATCH(BU166,Comparatives!$F:$F,0))) -> FALSE | BW166: =BU166='List Box etc'!$G$18 -> FALSE | BX166: =K166=Assumptions!$F$16 -> FALSE | BY166: FALSE
B167: Burkina Fa | C167: 166 | D167: Store 166 | E167: Store 166 Burkina Fa | F167: 86179030.41 | G167: 4022 | H167: Brand Type 2 | I167: Brand Type 2 | J167: Classification Type 4 | K167: Classification Type 4 | L167: 1289590.308 | M167: 21565898.67 | N167: 79021923.53 | O167: 35448865.69 | P167: 237603.89 | Q167: 35686469.58 | R167: -14115943.87 | S167: -1309729.7 | T167: -11429.21 | U167: -365782.18 | V167: -4932229.41 | W167: -5851551.62 | X167: -58910 | Y167: -681394.8 | Z167: -27095.62 | AA167: -2367335.28 | AB167: 19198563.39 | AC167: -93691.08 | AD167: -325303.79 | AE167: -32830224.96 | AF167: 10500855.08 | AG167: -189680745.4 | AH167: 48667599.12 | AI167: 0 | AJ167: 0 | AK167: 0 | AL167: 0 | AM167: 0 | AN167: 68969938.11 | AO167: 0.7352560653 | AP167: 24834032.19 | AQ167: 0.2647439347 | AR167: =Comparatives!$D$3 -> Brand Type 15 | AS167: 23 | AT167: 0.4485953278 | AU167: 0.003006809748 | AV167: 0.4516021376 | AW167: 0.06241596243 | AX167: 1226.312633 | AY167: 0.004628869606 | AZ167: 90.9453456 | BA167: 163342516.1 | BB167: 0.01449307465 | BC167: 222510970.3 | BD167: 0.01063918456 | BE167: 0.02995795564 | BF167: 80.88110144 | BG167: 0.004116627076 | BH167: 2111911.2 | BI167: 0.02672563645 | BJ167: 525.0898061 | BK167: 1454.886032 | BL167: 17.48861512 | BM167: 0.2647439347 | BN167: 0.008622857677 | BO167: 0.0163193991 | BP167: 164632106.4 | BQ167: 19198563.39 | BR167: 0.08396275757 | BS167: =I167=Comparatives!$D$3 -> FALSE | BT167: 23 | BU167: =ROW() -> 167 | BV167: =NOT(ISNA(MATCH(BU167,Comparatives!$F:$F,0))) -> FALSE | BW167: =BU167='List Box etc'!$G$18 -> FALSE | BX167: =K167=Assumptions!$F$16 -> FALSE | BY167: FALSE
B168: Burkina Fa | C168: 167 | D168: Store 167 | E168: Store 167 Burkina Fa | F168: 42768437.38 | G168: 3995 | H168: Brand Type 2 | I168: Brand Type 2 | J168: Classification Type 4 | K168: Classification Type 4 | L168: 14893311.31 | M168: 3125333.16 | N168: 25939202.63 | O168: 9709912.95 | P168: 93017.72 | Q168: 9802930.67 | R168: -6667117.58 | S168: -1054932.43 | T168: -191164.26 | U168: -292579.79 | V168: -1904538.25 | W168: -2271884.95 | X168: -37617 | Y168: -215486.26 | Z168: -50801.56 | AA168: -79104.02 | AB168: 3046229.14 | AC168: -49074.87 | AD168: -165342.81 | AE168: -11784904.88 | AF168: 11706510.18 | AG168: -99499593.69 | AH168: 96322741.85 | AI168: -8886.24 | AJ168: 8886.24 | AK168: 0 | AL168: 0 | AM168: 0 | AN168: 12957365.94 | AO168: 0.4439662937 | AP168: 16228106.3 | AQ168: 0.5560337063 | AR168: =Comparatives!$D$3 -> Brand Type 15 | AS168: 23 | AT168: 0.3743335171 | AU168: 0.003585989952 | AV168: 0.377919507 | AW168: 0.07342316096 | AX168: 476.7304756 | AY168: 0.01127944425 | AZ168: 73.23649312 | BA168: 3255246.54 | BB168: 0.02430046973 | BC168: 111293384.8 | BD168: 0.0007107701876 | BE168: 0.003049593356 | BF168: 41.3874368 | BG168: 0.006374244126 | BH168: 1370295.12 | BI168: 0.05282718746 | BJ168: 343.0025332 | BK168: 568.6820901 | BL168: 57.26689862 | BM168: 0.5560337063 | BN168: 0.008307358675 | BO168: 0.574162264 | BP168: 18148557.85 | BQ168: 3046229.14 | BR168: 0.1208517503 | BS168: =I168=Comparatives!$D$3 -> FALSE | BT168: 23 | BU168: =ROW() -> 168 | BV168: =NOT(ISNA(MATCH(BU168,Comparatives!$F:$F,0))) -> FALSE | BW168: =BU168='List Box etc'!$G$18 -> FALSE | BX168: =K168=Assumptions!$F$16 -> FALSE | BY168: FALSE
B169: Burkina Fa | C169: 168 | D169: Store 168 | E169: Store 168 Burkina Fa | F169: 17906338.78 | G169: 1660 | H169: Brand Type 2 | I169: Brand Type 2 | J169: Classification Type 5 | K169: Classification Type 5 | L169: 1934892.846 | M169: 9557277.9 | N169: 49954132.41 | O169: 20129043.74 | P169: 169734.77 | Q169: 20298778.51 | R169: -10738850.15 | S169: -1028676.72 | T169: -587026.56 | U169: 257054.88 | V169: -3485709.51 | W169: -4653201.76 | X169: -44157.04 | Y169: -349538.06 | Z169: -66531.23 | AA169: -594245.49 | AB169: 8963032.41 | AC169: -119279.2 | AD169: -207840.55 | AE169: -6864041.59 | AF169: 3579019.26 | AG169: -60259575 | AH169: 32758668.33 | AI169: -470.52 | AJ169: 470.52 | AK169: 0 | AL169: 0 | AM169: 0 | AN169: 22628882.63 | AO169: 0.403300998 | AP169: 33480283.34 | AQ169: 0.596699002 | AR169: =Comparatives!$D$3 -> Brand Type 15 | AS169: 23 | AT169: 0.4029505222 | AU169: 0.003397812389 | AV169: 0.4063483346 | AW169: 0.06977820136 | AX169: 2099.825006 | AY169: -0.005145818126 | AZ169: -154.8523373 | BA169: 30785929 | BB169: 0.0193025031 | BC169: 67124087.11 | BD169: 0.008852939617 | BE169: 0.01189582245 | BF169: 125.2051506 | BG169: 0.004160627759 | BH169: 1564025.21 | BI169: 0.03130922577 | BJ169: 942.1838614 | BK169: 2803.13359 | BL169: 380.2310843 | BM169: 0.596699002 | BN169: 0.006997180076 | BO169: 0.03873338907 | BP169: 32720821.85 | BQ169: 8963032.41 | BR169: 0.1972255882 | BS169: =I169=Comparatives!$D$3 -> FALSE | BT169: 23 | BU169: =ROW() -> 169 | BV169: =NOT(ISNA(MATCH(BU169,Comparatives!$F:$F,0))) -> FALSE | BW169: =BU169='List Box etc'!$G$18 -> FALSE | BX169: =K169=Assumptions!$F$16 -> FALSE | BY169: FALSE
B170: Burkina Fa | C170: 169 | D170: Store 169 | E170: Store 169 Burkina Fa | F170: 57154941.81 | G170: 3170 | H170: Brand Type 2 | I170: Brand Type 2 | J170: Classification Type 5 | K170: Classification Type 5 | L170: 6077865 | M170: 2361002.93 | N170: 17704737.5 | O170: 6470238.44 | P170: 154743.52 | Q170: 6624981.96 | R170: -4261772.72 | S170: -493210.64 | T170: -240398.04 | U170: 80326.65 | V170: -1343178.57 | W170: -1668058.6 | X170: 0 | Y170: -100629.51 | Z170: -48974.14 | AA170: -36808.7 | AB170: 2324194.23 | AC170: -56842.18 | AD170: -127860.56 | AE170: -1031457.6 | AF170: 655372.93 | AG170: -3027139.58 | AH170: 1421618.89 | AI170: -568440 | AJ170: 561974.64 | AK170: -18868.8 | AL170: 9196.2 | AM170: 0 | AN170: 11422901.47 | AO170: 0.5762285953 | AP170: 8400657.38 | AQ170: 0.4237714047 | AR170: =Comparatives!$D$3 -> Brand Type 15 | AS170: 23 | AT170: 0.3654523791 | AU170: 0.008740232381 | AV170: 0.3741926114 | AW170: 0.07586548911 | AX170: 423.7156372 | AY170: -0.004537014457 | AZ170: -25.33963722 | BA170: 1997743.32 | BB170: 0.01842513982 | BC170: 4645905.98 | BD170: 0.00792282499 | BE170: 0.002079031107 | BF170: 40.33456151 | BG170: 0.007221827491 | BH170: 699656.47 | BI170: 0.03951803691 | BJ170: 220.7118202 | BK170: 526.2014511 | BL170: 75.83534385 | BM170: 0.4237714047 | BN170: 0.005683761762 | BO170: 0.3432903199 | BP170: 8075608.32 | BQ170: 2324194.23 | BR170: 0.2072190452 | BS170: =I170=Comparatives!$D$3 -> FALSE | BT170: 23 | BU170: =ROW() -> 170 | BV170: =NOT(ISNA(MATCH(BU170,Comparatives!$F:$F,0))) -> FALSE | BW170: =BU170='List Box etc'!$G$18 -> FALSE | BX170: =K170=Assumptions!$F$16 -> FALSE | BY170: FALSE
B171: Burkina Fa | C171: 170 | D171: Store 170 | E171: Store 170 Burkina Fa | F171: 9256264.99 | G171: 650 | H171: Brand Type 4 | I171: Brand Type 4 | J171: Classification Type 7 | K171: Classification Type 7 | L171: 1554423.077 | M171: 14078805.06 | N171: 98084936.02 | O171: 39305966.94 | P171: 783899.13 | Q171: 40089866.07 | R171: -26012446.95 | S171: -3572765.15 | T171: -1247601.84 | U171: -495223.29 | V171: -8804501.66 | W171: -14187843.88 | X171: -403641.47 | Y171: -462349.53 | Z171: -130714.59 | AA171: -2239478.64 | AB171: 11839326.42 | AC171: -184323.76 | AD171: -979867.28 | AE171: -50083165.3 | AF171: 28764590.44 | AG171: -342496146.1 | AH171: 245226237.5 | AI171: -21813093.36 | AJ171: 21813093.36 | AK171: 0 | AL171: 0 | AM171: 0 | AN171: 60490804.06 | AO171: 0.5458733099 | AP171: 50323927.05 | AQ171: 0.4541266901 | AR171: =Comparatives!$D$3 -> Brand Type 15 | AS171: 23 | AT171: 0.4007339815 | AU171: 0.007992044057 | AV171: 0.4087260256 | AW171: 0.0897640557 | AX171: 13545.38717 | AY171: 0.005048923006 | AZ171: 761.8819846 | BA171: 118588483.4 | BB171: 0.01888445298 | BC171: 414392404.8 | BD171: 0.005404246348 | BE171: 0.02283203447 | BF171: 1507.488123 | BG171: 0.009989987451 | BH171: 4350153.03 | BI171: 0.04435087799 | BJ171: 6692.543123 | BK171: 21827.45212 | BL171: 2540.374323 | BM171: 0.4541266901 | BN171: 0.004713766953 | BO171: 0.01584772484 | BP171: 120142906.5 | BQ171: 11839326.42 | BR171: 0.0709514633 | BS171: =I171=Comparatives!$D$3 -> FALSE | BT171: 23 | BU171: =ROW() -> 171 | BV171: =NOT(ISNA(MATCH(BU171,Comparatives!$F:$F,0))) -> FALSE | BW171: =BU171='List Box etc'!$G$18 -> FALSE | BX171: =K171=Assumptions!$F$16 -> FALSE | BY171: FALSE
B172: Burkina Fa | C172: 171 | D172: Store 171 | E172: Store 171 Burkina Fa | F172: 18635594.9 | G172: 1500 | H172: Brand Type 2 | I172: Brand Type 2 | J172: Classification Type 5 | K172: Classification Type 5 | L172: 6365998.692 | M172: 985208.96 | N172: 5534084.23 | O172: 1825302.82 | P172: 5767.68 | Q172: 1831070.5 | R172: -845861.54 | S172: -48720 | T172: 0 | U172: 40996.74 | V172: -394419.14 | W172: -167461.33 | X172: -1939.46 | Y172: -71451.69 | Z172: -4799.97 | AA172: -46553.24 | AB172: 938655.72 | AC172: -988.42 | AD172: -14588.1 | AE172: -3536726.52 | AF172: 3522276.42 | AG172: -9564635.76 | AH172: 9374188.53 | AI172: -143662.32 | AJ172: 143662.32 | AK172: 0 | AL172: 0 | AM172: 0 | AN172: 4332120.64 | AO172: 0.6866729276 | AP172: 1976735.39 | AQ172: 0.3133270724 | AR172: =Comparatives!$D$3 -> Brand Type 15 | AS172: 23 | AT172: 0.3298292444 | AU172: 0.001042210375 | AV172: 0.3308714548 | AW172: 0.07127089571 | AX172: 262.9460933 | AY172: -0.007408044095 | AZ172: -27.33116 | BA172: 204897.33 | BB172: 0.2272027654 | BC172: 13245024.6 | BD172: 0.003514771879 | BE172: 0.008412094588 | BF172: 9.7254 | BG172: 0.002636045892 | BH172: 125960.08 | BI172: 0.02276078115 | BJ172: 83.97338667 | BK172: 111.6408867 | BL172: 1.292973333 | BM172: 0.3133270724 | BN172: 0.01291120392 | BO172: 1.150325587 | BP172: 6570896.022 | BQ172: 938655.72 | BR172: 0.1028523532 | BS172: =I172=Comparatives!$D$3 -> FALSE | BT172: 23 | BU172: =ROW() -> 172 | BV172: =NOT(ISNA(MATCH(BU172,Comparatives!$F:$F,0))) -> FALSE | BW172: =BU172='List Box etc'!$G$18 -> FALSE | BX172: =K172=Assumptions!$F$16 -> FALSE | BY172: FALSE
B173: Burkina Fa | C173: 172 | D173: Store 172 | E173: Store 172 Burkina Fa | F173: 30535336.02 | G173: 1420 | H173: Brand Type 13 | I173: Brand Type 13 | J173: Classification Type 17 | K173: Classification Type 17 | L173: 326734 | M173: 11852700.31 | N173: 78128141.72 | O173: 32050547.69 | P173: 640632.11 | Q173: 32691179.8 | R173: -20816057.46 | S173: -2441201.91 | T173: -143570.45 | U173: -2094267.24 | V173: -6838033.07 | W173: -6874200 | X173: -6484.89 | Y173: -524076.8 | Z173: -243705.4 | AA173: -193985.12 | AB173: 11658715.19 | AC173: -182563.49 | AD173: -487847.38 | AE173: -75039978.25 | AF173: 11472288.27 | AG173: -93672870.63 | AH173: 100427633.7 | AI173: 0 | AJ173: 0 | AK173: 0 | AL173: 0 | AM173: 0 | AN173: 45119650.27 | AO173: 0.4925639271 | AP173: 46481962.81 | AQ173: 0.5074360729 | AR173: =Comparatives!$D$3 -> Brand Type 15 | AS173: 23 | AT173: 0.4102305134 | AU173: 0.008199761263 | AV173: 0.4184302747 | AW173: 0.08752330363 | AX173: 4815.516246 | AY173: 0.02680554271 | AZ173: 1474.836085 | BA173: 56812926.88 | BB173: 0.003414453904 | BC173: 168712848.9 | BD173: 0.001149794585 | BE173: 0.002482909688 | BF173: 343.554493 | BG173: 0.00624419536 | BH173: 3391547.6 | BI173: 0.04341006359 | BJ173: 2388.413803 | BK173: 4840.985915 | BL173: 105.6727746 | BM173: 0.5074360729 | BN173: 0.006707913288 | BO173: 0.004182027024 | BP173: 57139660.88 | BQ173: 11658715.19 | BR173: 0.1469080286 | BS173: =I173=Comparatives!$D$3 -> FALSE | BT173: 23 | BU173: =ROW() -> 173 | BV173: =NOT(ISNA(MATCH(BU173,Comparatives!$F:$F,0))) -> FALSE | BW173: =BU173='List Box etc'!$G$18 -> FALSE | BX173: =K173=Assumptions!$F$16 -> FALSE | BY173: FALSE
B174: Burkina Fa | C174: 173 | D174: Store 173 | E174: Store 173 Burkina Fa | F174: 20923560.94 | G174: 1415 | H174: Brand Type 13 | I174: Brand Type 13 | J174: Classification Type 20 | K174: Classification Type 20 | L174: 447386.4615 | M174: 274739.54 | N174: 7148255.72 | O174: 2578462.03 | P174: -46997.45 | Q174: 2531464.58 | R174: -2256725.04 | S174: -236565.96 | T174: -52669.44 | U174: -239209.34 | V174: -585715.32 | W174: -851610.91 | X174: -1939.46 | Y174: -58777.58 | Z174: -19847.77 | AA174: -237273.97 | AB174: 37465.57 | AC174: -25606.38 | AD174: -16089.86 | AE174: -12058044.88 | AF174: 3648041.74 | AG174: -7436285.8 | AH174: 16360956.36 | AI174: 0 | AJ174: 0 | AK174: 0 | AL174: 0 | AM174: 0 | AN174: 4979045.77 | AO174: 0.6110997683 | AP174: 3168634.9 | AQ174: 0.3889002317 | AR174: =Comparatives!$D$3 -> Brand Type 15 | AS174: 23 | AT174: 0.3607120577 | AU174: -0.006574673856 | AV174: 0.3541373839 | AW174: 0.08193821583 | AX174: 413.9330883 | AY174: 0.03346401547 | AZ174: 169.0525371 | BA174: -514667.42 | BB174: -0.4610238783 | BC174: 19494330.68 | BD174: 0.01217143455 | BE174: 0.0331932683 | BF174: 11.3709258 | BG174: 0.002250879184 | BH174: 340797.69 | BI174: 0.04767564331 | BJ174: 240.846424 | BK174: 601.8451661 | BL174: 38.59286219 | BM174: 0.3889002317 | BN174: 0.008222646517 | BO174: 0.06258680146 | BP174: -67280.95846 | BQ174: 37465.57 | BR174: -0.4009338008 | BS174: =I174=Comparatives!$D$3 -> FALSE | BT174: 23 | BU174: =ROW() -> 174 | BV174: =NOT(ISNA(MATCH(BU174,Comparatives!$F:$F,0))) -> FALSE | BW174: =BU174='List Box etc'!$G$18 -> FALSE | BX174: =K174=Assumptions!$F$16 -> FALSE | BY174: FALSE
B175: Burkina Fa | C175: 174 | D175: Store 174 | E175: Store 174 Burkina Fa | F175: 29812873.39 | G175: 1229 | H175: Brand Type 12 | I175: Brand Type 12 | J175: Classification Type 15 | K175: Classification Type 15 | L175: 0 | M175: 10188689.61 | N175: 50899548.66 | O175: 19801194.61 | P175: 533166.5 | Q175: 20334361.11 | R175: -10126906.58 | S175: -1127882.44 | T175: -517861 | U175: -434589.15 | V175: -3268297.56 | W175: -3412149.54 | X175: -5609.84 | Y175: -331489.9 | Z175: -88075.33 | AA175: -992672.88 | AB175: 9196016.73 | AC175: -226886.33 | AD175: -251195.62 | AE175: -10530162.23 | AF175: 7579493.82 | AG175: -84032364.06 | AH175: 49143198.12 | AI175: 0 | AJ175: 0 | AK175: 0 | AL175: 0 | AM175: 0 | AN175: 29448507.95 | AO175: 0.5152399253 | AP175: 27706433.86 | AQ175: 0.4847600747 | AR175: =Comparatives!$D$3 -> Brand Type 15 | AS175: 23 | AT175: 0.3890249547 | AU175: 0.01047487677 | AV175: 0.3994998314 | AW175: 0.06421073754 | AX175: 2659.314532 | AY175: 0.008538172959 | AZ175: 353.6120016 | BA175: 37839834.35 | BB175: 0.0262335419 | BC175: 94562526.29 | BD175: 0.01049752919 | BE175: 0.01950258708 | BF175: 204.3902522 | BG175: 0.004935124704 | BH175: 1774334 | BI175: 0.03485952325 | BJ175: 1443.721725 | BK175: 2776.362522 | BL175: 425.9323352 | BM175: 0.4847600747 | BN175: 0.006512629458 | BO175: 0 | BP175: 37839834.35 | BQ175: 9196016.73 | BR175: 0.1749778285 | BS175: =I175=Comparatives!$D$3 -> FALSE | BT175: 23 | BU175: =ROW() -> 175 | BV175: =NOT(ISNA(MATCH(BU175,Comparatives!$F:$F,0))) -> FALSE | BW175: =BU175='List Box etc'!$G$18 -> FALSE | BX175: =K175=Assumptions!$F$16 -> FALSE | BY175: FALSE
B176: Burkina Fa | C176: 175 | D176: Store 175 | E176: Store 175 Burkina Fa | F176: 23637604.31 | G176: 1239 | H176: Brand Type 12 | I176: Brand Type 12 | J176: Classification Type 15 | K176: Classification Type 15 | L176: 0 | M176: 3126784.27 | N176: 20920330.25 | O176: 7719440.95 | P176: 230208.54 | Q176: 7949649.49 | R176: -4817109.96 | S176: -902121.77 | T176: -35839.32 | U176: 118669.78 | V176: -1323433.4 | W176: -2015649 | X176: -5859 | Y176: -114655.98 | Z176: -41907.21 | AA176: -110068.07 | AB176: 3016716.2 | AC176: -50446.11 | AD176: -120265.46 | AE176: -321636.36 | AF176: 178098.52 | AG176: -12925129.54 | AH176: 8119733.35 | AI176: -21240 | AJ176: 21240 | AK176: 0 | AL176: 0 | AM176: 0 | AN176: 14223419.23 | AO176: 0.6137902146 | AP176: 8949676.22 | AQ176: 0.3862097854 | AR176: =Comparatives!$D$3 -> Brand Type 15 | AS176: 23 | AT176: 0.3689923083 | AU176: 0.0110040586 | AV176: 0.3799963669 | AW176: 0.06326063615 | AX176: 1068.146408 | AY176: -0.005672462078 | AZ176: -95.77867635 | BA176: 4948934.03 | BB176: 0.02224076323 | BC176: 13268005.9 | BD176: 0.008295750758 | BE176: 0.005261296963 | BF176: 97.06655367 | BG176: 0.005748736208 | BH176: 1109131.07 | BI176: 0.05301690063 | BJ176: 895.1824617 | BK176: 1626.835351 | BL176: 33.6548184 | BM176: 0.3862097854 | BN176: 0.005480600862 | BO176: 0 | BP176: 4948934.03 | BQ176: 3016716.2 | BR176: 0.4388895974 | BS176: =I176=Comparatives!$D$3 -> FALSE | BT176: 23 | BU176: =ROW() -> 176 | BV176: =NOT(ISNA(MATCH(BU176,Comparatives!$F:$F,0))) -> FALSE | BW176: =BU176='List Box etc'!$G$18 -> FALSE | BX176: =K176=Assumptions!$F$16 -> FALSE | BY176: FALSE
B177: Burkina Fa | C177: 176 | D177: Store 176 | E177: Store 176 Burkina Fa | F177: 14868155.03 | G177: 944 | H177: Brand Type 7 | I177: Brand Type 7 | J177: Classification Type 16 | K177: Classification Type 16 | L177: 616335.6923 | M177: 3735862.52 | N177: 20270264.74 | O177: 7490985.02 | P177: 223445.03 | Q177: 7714430.05 | R177: -3978567.53 | S177: -422966.15 | T177: -87345.34 | U177: -366337.38 | V177: -1421977.26 | W177: -1103307.36 | X177: 0 | Y177: -104456.02 | Z177: -33919.06 | AA177: -66006.63 | AB177: 3669855.89 | AC177: -54802.55 | AD177: -97098.08 | AE177: -4879079.11 | AF177: 4630522.51 | AG177: -33689096.91 | AH177: 30454606.63 | AI177: -24240 | AJ177: 24240 | AK177: 0 | AL177: 0 | AM177: 0 | AN177: 12447327.34 | AO177: 0.5489111857 | AP177: 10229068.52 | AQ177: 0.4510888143 | AR177: =Comparatives!$D$3 -> Brand Type 15 | AS177: 23 | AT177: 0.3695553618 | AU177: 0.01102329115 | AV177: 0.380578653 | AW177: 0.0701508973 | AX177: 1506.331843 | AY177: 0.01807264901 | AZ177: 388.0692585 | BA177: 3483046.88 | BB177: 0.0189508302 | BC177: 38592416.02 | BD177: 0.001710352365 | BE177: 0.003256327968 | BF177: 102.8581356 | BG177: 0.004790173254 | BH177: 616143.78 | BI177: 0.03039643477 | BJ177: 652.6946822 | BK177: 1168.757797 | BL177: 92.52684322 | BM177: 0.4510888143 | BN177: 0.005153165059 | BO177: 0.03040590245 | BP177: 4099382.572 | BQ177: 3669855.89 | BR177: 0.6445595633 | BS177: =I177=Comparatives!$D$3 -> FALSE | BT177: 23 | BU177: =ROW() -> 177 | BV177: =NOT(ISNA(MATCH(BU177,Comparatives!$F:$F,0))) -> FALSE | BW177: =BU177='List Box etc'!$G$18 -> FALSE | BX177: =K177=Assumptions!$F$16 -> FALSE | BY177: FALSE
B178: Burkina Fa | C178: 177 | D178: Store 177 | E178: Store 177 Burkina Fa | F178: 28258127.41 | G178: 1325.5 | H178: Brand Type 7 | I178: Brand Type 7 | J178: Classification Type 15 | K178: Classification Type 15 | L178: 1494105 | M178: 2654582.51 | N178: 15493137.01 | O178: 5670706.98 | P178: -116274.03 | Q178: 5554432.95 | R178: -2899850.44 | S178: -132426 | T178: -213556.36 | U178: -19352.84 | V178: -860534.59 | W178: -1197400.23 | X178: -14184.26 | Y178: -127159.53 | Z178: -32731.9 | AA178: -260405.05 | AB178: 2394177.46 | AC178: -67706.97 | AD178: -54269.5 | AE178: -6214272.6 | AF178: 1709989.27 | AG178: -24559806.84 | AH178: 12663436.12 | AI178: -17520 | AJ178: 17520 | AK178: -3814348.56 | AL178: 3814348.56 | AM178: 0 | AN178: 10666455.26 | AO178: 0.6039382026 | AP178: 6995045.89 | AQ178: 0.3960617974 | AR178: =Comparatives!$D$3 -> Brand Type 15 | AS178: 23 | AT178: 0.3660141246 | AU178: -0.007504873282 | AV178: 0.3585092513 | AW178: 0.0555429536 | AX178: 649.2150811 | AY178: 0.001249123401 | AZ178: 14.60040739 | BA178: 16400654.05 | BB178: 0.01587772349 | BC178: 34605948 | BD178: 0.007524863934 | BE178: 0.01680776784 | BF178: 40.94266315 | BG178: 0.003502809016 | BH178: 360024.4 | BI178: 0.02323766967 | BJ178: 271.6140324 | BK178: 903.3573972 | BL178: 171.8148774 | BM178: 0.3960617974 | BN178: 0.008207474698 | BO178: 0.09643657053 | BP178: 17894759.05 | BQ178: 2394177.46 | BR178: 0.09633031472 | BS178: =I178=Comparatives!$D$3 -> FALSE | BT178: 23 | BU178: =ROW() -> 178 | BV178: =NOT(ISNA(MATCH(BU178,Comparatives!$F:$F,0))) -> FALSE | BW178: =BU178='List Box etc'!$G$18 -> FALSE | BX178: =K178=Assumptions!$F$16 -> FALSE | BY178: FALSE
B179: Burkina Fa | C179: 178 | D179: Store 178 | E179: Store 178 Burkina Fa | F179: 8717860.18 | G179: 650 | H179: Brand Type 7 | I179: Brand Type 7 | J179: Classification Type 16 | K179: Classification Type 16 | L179: 1767529.462 | M179: 22212465.91 | N179: 92585321.57 | O179: 39409656.77 | P179: 979136.31 | Q179: 40388793.08 | R179: -18125815.81 | S179: -1239241.51 | T179: -1404854.06 | U179: -1563404.55 | V179: -6168754.89 | W179: -5840628.45 | X179: -4159.46 | Y179: -563899.01 | Z179: -166922.46 | AA179: -1485248.96 | AB179: 20727216.95 | AC179: -505929.64 | AD179: -414427.06 | AE179: -14021021.18 | AF179: 5553864.55 | AG179: -172166715.9 | AH179: 92286399.29 | AI179: -493378.44 | AJ179: 493378.44 | AK179: 0 | AL179: 0 | AM179: 0 | AN179: 50255257.98 | AO179: 0.4725789987 | AP179: 56087296.64 | AQ179: 0.5274210013 | AR179: =Comparatives!$D$3 -> Brand Type 15 | AS179: 23 | AT179: 0.4256577188 | AU179: 0.01057550261 | AV179: 0.4362332214 | AW179: 0.06662778489 | AX179: 9490.392138 | AY179: 0.01688609516 | AZ179: 2405.237769 | BA179: 88347473.2 | BB179: 0.01681144809 | BC179: 186681115.5 | BD179: 0.007956075022 | BE179: 0.01604194849 | BF179: 637.5800923 | BG179: 0.004476163748 | BH179: 2475992.62 | BI179: 0.02674282033 | BJ179: 3809.219415 | BK179: 8985.582231 | BL179: 2167.713108 | BM179: 0.5274210013 | BN179: 0.006090587584 | BO179: 0.01909081733 | BP179: 90115002.66 | BQ179: 20727216.95 | BR179: 0.1656061229 | BS179: =I179=Comparatives!$D$3 -> FALSE | BT179: 23 | BU179: =ROW() -> 179 | BV179: =NOT(ISNA(MATCH(BU179,Comparatives!$F:$F,0))) -> FALSE | BW179: =BU179='List Box etc'!$G$18 -> FALSE | BX179: =K179=Assumptions!$F$16 -> FALSE | BY179: FALSE
B180: Burkina Fa | C180: 179 | D180: Store 179 | E180: Store 179 Burkina Fa | F180: 10528049.99 | G180: 484.7 | H180: Brand Type 7 | I180: Brand Type 7 | J180: Classification Type 16 | K180: Classification Type 16 | L180: 0 | M180: 2650615.6 | N180: 18308195.3 | O180: 5750211.88 | P180: 23777.89 | Q180: 5773989.77 | R180: -3123374.17 | S180: -162598.27 | T180: -71272.92 | U180: 29807.34 | V180: -1008184.39 | W180: -1218533.76 | X180: -1939.46 | Y180: -244712.78 | Z180: -28130.45 | AA180: -90097.37 | AB180: 2560518.23 | AC180: -87.72 | AD180: -24766.52 | AE180: -1570330.68 | AF180: 947406.46 | AG180: -7579518.19 | AH180: 2284747.33 | AI180: -1127112 | AJ180: 1127112 | AK180: 0 | AL180: 0 | AM180: 0 | AN180: 12989997.53 | AO180: 0.6223843737 | AP180: 7881345.13 | AQ180: 0.3776156263 | AR180: =Comparatives!$D$3 -> Brand Type 15 | AS180: 23 | AT180: 0.3140785744 | AU180: 0.001298756628 | AV180: 0.315377331 | AW180: 0.05506738231 | AX180: 2080.01731 | AY180: -0.001628087286 | AZ180: -61.49647204 | BA180: 5917695.08 | BB180: 0.01522507814 | BC180: 10276960.87 | BD180: 0.008766927416 | BE180: 0.00492114971 | BF180: 51.09659583 | BG180: 0.001352755943 | BH180: 435529.22 | BI180: 0.0237887576 | BJ180: 898.5541985 | BK180: 2513.995791 | BL180: 151.0467918 | BM180: 0.3776156263 | BN180: 0.01336629722 | BO180: 0 | BP180: 5917695.08 | BQ180: 2560518.23 | BR180: 0.3115356741 | BS180: =I180=Comparatives!$D$3 -> FALSE | BT180: 23 | BU180: =ROW() -> 180 | BV180: =NOT(ISNA(MATCH(BU180,Comparatives!$F:$F,0))) -> FALSE | BW180: =BU180='List Box etc'!$G$18 -> FALSE | BX180: =K180=Assumptions!$F$16 -> FALSE | BY180: FALSE
B181: Burkina Fa | C181: 180 | D181: Store 180 | E181: Store 180 Burkina Fa | F181: 44361068.24 | G181: 2203 | H181: Brand Type 7 | I181: Brand Type 7 | J181: Classification Type 19 | K181: Classification Type 19 | L181: 5750631.231 | M181: 428750.07 | N181: 7988909.18 | O181: 2538253.58 | P181: 8118.68 | Q181: 2546372.26 | R181: -2117622.19 | S181: -63387.15 | T181: -66268.8 | U181: -36379.66 | V181: -741524.43 | W181: -798258.62 | X181: -539.46 | Y181: -58467.44 | Z181: -17904.16 | AA181: -290192.52 | AB181: 138557.55 | AC181: -1647.36 | AD181: -20368.5 | AE181: -3156832.32 | AF181: 1425792.54 | AG181: -27301700.29 | AH181: 11734037.29 | AI181: 0 | AJ181: 0 | AK181: 0 | AL181: 0 | AM181: 0 | AN181: 6135561.16 | AO181: 0.6736928709 | AP181: 2971795.36 | AQ181: 0.3263071291 | AR181: =Comparatives!$D$3 -> Brand Type 15 | AS181: 23 | AT181: 0.3177221724 | AU181: 0.001016243872 | AV181: 0.3187384163 | AW181: 0.09281923393 | AX181: 336.5975624 | AY181: 0.004553770631 | AZ181: 16.51369042 | BA181: 17298702.78 | BB181: 0.01677539199 | BC181: 30458532.61 | BD181: 0.009527462262 | BE181: 0.03632442346 | BF181: 9.24580118 | BG181: 0.00254959714 | BH181: 141406.11 | BI181: 0.01770030261 | BJ181: 64.18797549 | BK181: 362.3507127 | BL181: 30.32603722 | BM181: 0.3263071291 | BN181: 0.007318576126 | BO181: 0.7198268376 | BP181: 23049334.01 | BQ181: 138557.55 | BR181: 0.004328170001 | BS181: =I181=Comparatives!$D$3 -> FALSE | BT181: 23 | BU181: =ROW() -> 181 | BV181: =NOT(ISNA(MATCH(BU181,Comparatives!$F:$F,0))) -> FALSE | BW181: =BU181='List Box etc'!$G$18 -> FALSE | BX181: =K181=Assumptions!$F$16 -> FALSE | BY181: FALSE
B182: Burkina Fa | C182: 181 | D182: Store 181 | E182: Store 181 Burkina Fa | F182: 3348000.64 | G182: 400 | H182: Brand Type 7 | I182: Brand Type 7 | J182: Classification Type 25 | K182: Classification Type 25 | L182: 1648263 | M182: -999482.67 | N182: 19347126.9 | O182: 6505022.14 | P182: 194259.95 | Q182: 6699282.09 | R182: -7698764.76 | S182: -565631.89 | T182: -63644.07 | U182: -563015.21 | V182: -1582497.1 | W182: -4838112 | X182: -40464 | Y182: -116207.35 | Z182: -54900.69 | AA182: -1447457.04 | AB182: -2446939.71 | AC182: -46435.7 | AD182: -296044.97 | AE182: -16583446.57 | AF182: 5634326.81 | AG182: -121457950.7 | AH182: 33201341.16 | AI182: 0 | AJ182: 0 | AK182: 0 | AL182: 0 | AM182: 0 | AN182: 13201969.03 | AO182: 0.6078658826 | AP182: 8516586.67 | AQ182: 0.3921341174 | AR182: =Comparatives!$D$3 -> Brand Type 15 | AS182: 23 | AT182: 0.3362267779 | AU182: 0.01004076476 | AV182: 0.3462675427 | AW182: 0.08179494083 | AX182: 3956.24275 | AY182: 0.02910071417 | AZ182: 1407.538025 | BA182: 99205729.32 | BB182: 0.01459045813 | BC182: 138041397.3 | BD182: 0.01048567363 | BE182: 0.07481508999 | BF182: 740.112425 | BG182: 0.01530175367 | BH182: 783175.63 | BI182: 0.04048020329 | BJ182: 1957.939075 | BK182: 12095.28 | BL182: 260.270175 | BM182: 0.3921341174 | BN182: 0.006006439644 | BO182: 0.08519420008 | BP182: 100853992.3 | BQ182: -2446939.71 | BR182: -0.01746878384 | BS182: =I182=Comparatives!$D$3 -> FALSE | BT182: 23 | BU182: =ROW() -> 182 | BV182: =NOT(ISNA(MATCH(BU182,Comparatives!$F:$F,0))) -> FALSE | BW182: =BU182='List Box etc'!$G$18 -> FALSE | BX182: =K182=Assumptions!$F$16 -> FALSE | BY182: FALSE
B183: Burkina Fa | C183: 182 | D183: Store 182 | E183: Store 182 Burkina Fa | F183: 6106770.85 | G183: 379 | H183: Brand Type 15 | I183: Brand Type 15 | J183: Classification Type 24 | K183: Classification Type 24 | L183: 6710717.231 | M183: 2331091.01 | N183: 40167473.12 | O183: 15131507 | P183: 544546.18 | Q183: 15676053.18 | R183: -13325261.4 | S183: -1363375.84 | T183: -634340.04 | U183: -1126728.51 | V183: -3911245.4 | W183: -4390474.2 | X183: -6379.46 | Y183: -221640.2 | Z183: -101324.54 | AA183: -1123013.26 | AB183: 1208077.75 | AC183: -104826.75 | AD183: -439189.61 | AE183: -47009775.65 | AF183: 39095407.82 | AG183: -92164940.46 | AH183: 42951234.57 | AI183: -5988205.92 | AJ183: 5988205.92 | AK183: 0 | AL183: 0 | AM183: -38704.32 | AN183: 22962961.99 | AO183: 0.5106806921 | AP183: 22002438.79 | AQ183: 0.4893193079 | AR183: =Comparatives!$D$3 -> Brand Type 15 | AS183: 24 | AT183: 0.3767104531 | AU183: 0.01355689412 | AV183: 0.3902673472 | AW183: 0.09737344912 | AX183: 10319.90871 | AY183: 0.028050769 | AZ183: 2972.898443 | BA183: 57128073.72 | BB183: 0.01965781772 | BC183: 145162922 | BD183: 0.007736226609 | BE183: 0.02795827501 | BF183: 1158.811636 | BG183: 0.01093396163 | BH183: 1791167.33 | BI183: 0.0445924822 | BJ183: 4726.035172 | BK183: 11584.36464 | BL183: 1690.55277 | BM183: 0.4893193079 | BN183: 0.005517902491 | BO183: 0.1670684439 | BP183: 63838790.95 | BQ183: 1208077.75 | BR183: 0.01362519507 | BS183: =I183=Comparatives!$D$3 -> TRUE | BT183: 24 | BU183: =ROW() -> 183 | BV183: =NOT(ISNA(MATCH(BU183,Comparatives!$F:$F,0))) -> FALSE | BW183: =BU183='List Box etc'!$G$18 -> FALSE | BX183: =K183=Assumptions!$F$16 -> FALSE | BY183: TRUE
B184: Burkina Fa | C184: 183 | D184: Store 183 | E184: Store 183 Burkina Fa | F184: 4759242.51 | G184: 315 | H184: Brand Type 15 | I184: Brand Type 15 | J184: Classification Type 24 | K184: Classification Type 24 | L184: 743473.8462 | M184: 543922.98 | N184: 29054764.99 | O184: 10326257.44 | P184: 329662.72 | Q184: 10655920.16 | R184: -10111997.18 | S184: -806168.77 | T184: -26130.49 | U184: -254776.08 | V184: -2523181 | W184: -4936124 | X184: -66188.22 | Y184: -178964.13 | Z184: -89354.32 | AA184: -381251.83 | AB184: 162671.15 | AC184: -69850.71 | AD184: -290891.95 | AE184: -23385295.63 | AF184: 9931111.97 | AG184: -32205399.72 | AH184: 24944212.87 | AI184: 0 | AJ184: 0 | AK184: 0 | AL184: 0 | AM184: 0 | AN184: 21275720.19 | AO184: 0.6580089263 | AP184: 11057762.44 | AQ184: 0.3419910737 | AR184: =Comparatives!$D$3 -> Brand Type 15 | AS184: 25 | AT184: 0.3554066758 | AU184: 0.01134625319 | AV184: 0.3667529289 | AW184: 0.08684224432 | AX184: 8010.098413 | AY184: 0.008768822604 | AZ184: 808.8129524 | BA184: 20715370.51 | BB184: 0.01840429694 | BC184: 55590695.35 | BD184: 0.00685819502 | BE184: 0.01312183493 | BF184: 923.4665079 | BG184: 0.01001185004 | BH184: 1144337.93 | BI184: 0.03938555106 | BJ184: 3632.818825 | BK184: 15670.23492 | BL184: 293.0752698 | BM184: 0.3419910737 | BN184: 0.006159544917 | BO184: 0.02558870624 | BP184: 21458844.36 | BQ184: 162671.15 | BR184: 0.005458039867 | BS184: =I184=Comparatives!$D$3 -> TRUE | BT184: 25 | BU184: =ROW() -> 184 | BV184: =NOT(ISNA(MATCH(BU184,Comparatives!$F:$F,0))) -> FALSE | BW184: =BU184='List Box etc'!$G$18 -> FALSE | BX184: =K184=Assumptions!$F$16 -> FALSE | BY184: TRUE
B185: Burkina Fa | C185: 184 | D185: Store 184 | E185: Store 184 Burkina Fa | F185: 6751343.94 | G185: 250 | H185: Brand Type 16 | I185: Brand Type 16 | J185: Classification Type 28 | K185: Classification Type 28 | L185: 1364689.077 | M185: 12055086.91 | N185: 51316531.4 | O185: 21360307.25 | P185: 420720.89 | Q185: 21781028.14 | R185: -9725941.23 | S185: -784874.91 | T185: -179479.28 | U185: -175053.04 | V185: -3367534.15 | W185: -4159349.32 | X185: -4159.46 | Y185: -376600.7 | Z185: -81158.71 | AA185: -745432.94 | AB185: 11309653.97 | AC185: -81725.74 | AD185: -215004.89 | AE185: -5361951.46 | AF185: 2644850.93 | AG185: -66745295.47 | AH185: 31769851.08 | AI185: -19344 | AJ185: 19344 | AK185: 0 | AL185: 0 | AM185: 0 | AN185: 32051366.61 | AO185: 0.5480328854 | AP185: 26433019.02 | AQ185: 0.4519671146 | AR185: =Comparatives!$D$3 -> Brand Type 15 | AS185: 25 | AT185: 0.4162461232 | AU185: 0.008198544962 | AV185: 0.4244446681 | AW185: 0.06562279363 | AX185: 13470.1366 | AY185: 0.00341124069 | AZ185: 700.21216 | BA185: 37692544.92 | BB185: 0.01977666782 | BC185: 72126590.93 | BD185: 0.01033506409 | BE185: 0.01452617548 | BF185: 860.01956 | BG185: 0.004189778306 | BH185: 1324360.06 | BI185: 0.02580766907 | BJ185: 5297.44024 | BK185: 16637.39728 | BL185: 734.55496 | BM185: 0.4519671146 | BN185: 0.007338779331 | BO185: 0.0265935565 | BP185: 39057234 | BQ185: 11309653.97 | BR185: 0.2084876481 | BS185: =I185=Comparatives!$D$3 -> FALSE | BT185: 25 | BU185: =ROW() -> 185 | BV185: =NOT(ISNA(MATCH(BU185,Comparatives!$F:$F,0))) -> FALSE | BW185: =BU185='List Box etc'!$G$18 -> FALSE | BX185: =K185=Assumptions!$F$16 -> FALSE | BY185: FALSE
B186: Burkina Fa | C186: 185 | D186: Store 185 | E186: Store 185 Burkina Fa | F186: 3162975.37 | G186: 59 | H186: Brand Type 17 | I186: Brand Type 17 | J186: Classification Type 32 | K186: Classification Type 32 | L186: 401222 | M186: 2962240.82 | N186: 16075895.03 | O186: 6177874.41 | P186: 183364.25 | Q186: 6361238.66 | R186: -3389875.3 | S186: -286679.44 | T186: -162032.37 | U186: -68706.55 | V186: -1312914.48 | W186: -1057463.66 | X186: 0 | Y186: -97069.43 | Z186: -20391.73 | AA186: -414392.61 | AB186: 2547848.21 | AC186: -74537.46 | AD186: -89167.21 | AE186: -5700292.61 | AF186: 5276988.93 | AG186: -39827257.15 | AH186: 27348433.46 | AI186: -22054.44 | AJ186: 22054.44 | AK186: 0 | AL186: 0 | AM186: 0 | AN186: 10337863.76 | AO186: 0.5761291267 | AP186: 7605793.8 | AQ186: 0.4238708733 | AR186: =Comparatives!$D$3 -> Brand Type 15 | AS186: 25 | AT186: 0.384294274 | AU186: 0.01140616119 | AV186: 0.3957004352 | AW186: 0.08166975945 | AX186: 22252.7878 | AY186: 0.004273886454 | AZ186: 1164.517797 | BA186: 12902127.37 | BB186: 0.03211816146 | BC186: 45549604.2 | BD186: 0.009097611654 | BE186: 0.02577726523 | BF186: 1511.308644 | BG186: 0.005546640472 | BH186: 478678.06 | BI186: 0.02977613745 | BJ186: 8113.187458 | BK186: 17923.11288 | BL186: 2746.311356 | BM186: 0.4238708733 | BN186: 0.006038197551 | BO186: 0.0249579883 | BP186: 13303349.37 | BQ186: 2547848.21 | BR186: 0.1378938988 | BS186: =I186=Comparatives!$D$3 -> FALSE | BT186: 25 | BU186: =ROW() -> 186 | BV186: =NOT(ISNA(MATCH(BU186,Comparatives!$F:$F,0))) -> FALSE | BW186: =BU186='List Box etc'!$G$18 -> FALSE | BX186: =K186=Assumptions!$F$16 -> FALSE | BY186: FALSE
